Workbook

Sheet iaith - language
A1: 1 | K1: 1 | L1: Cymraeg/Welsh
L2: Saesneg/English
L3: Dewiswch os gwelwch yn dda / Please select
A4: =IF('iaith - language'!$K$1=3,"", IF('iaith - language'!$K$1=2,VLOOKUP(A1,Text!$A$2:$C$366,2,0),VLOOKUP(A1,Text!$A$2:$C$366,3,0))) -> Proses wirio data Cylch 1 - data i'w defnyddio ar gyfer Setliad 2023-24
A6: Dewiswch iaith / Choose your preferred language:

Sheet Text (hidden)
B1: English | C1: Welsh
A2: 1 | B2: Round 1 Data verification process - data for use in the 2023-24 Settlement | C2: Proses wirio data Cylch 1 - data i'w defnyddio ar gyfer Setliad 2023-24
A3: 2 | B3: Round 1 data verification process | C3: Proses gwiriad data cylch 1
A4: 3 | B4: Please select your authority name: | C4: Dewiswch enw eich awdurdod:
A5: 4 | B5: Pupils at Independent schools | C5: Disgyblion mewn ysgolion annibynnol
A6: 5 | B6: You are requested to notify us of any pupils educated in independent schools for pupils without statements of special educational need (excluding special schools) | C6: Gofynnir ichi roi gwybod inni am unrhyw ddisgyblion sy'n cael eu haddysgu mewn ysgolion annibynnol ar gyfer disgyblion nad ydynt ar ddatganiad anghenion addysgol arbennig (ac eithrio ysgolion arbennig)
A7: 6 | B7: for whom your authority pays full tuition fees as recorded on line 1.3.5 on the Section 52 outturn return. This information should be provided in respect of the position at April 2022. | C7: y mae eich awdurdod yn talu ffïoedd dysgu llawn ar eu cyfer, fel sydd wedi'i gofnodi ar llinell 1.3.5 o adroddiad alldro Adran 52. Dylid darparu'r wybodaeth hon ar gyfer y sefyllfa fel yr oedd ym mis Ebrill 2022.
A8: 7 | B8: These pupils are directly credited in the SSAs and it is therefore very important that this information is provided to ensure the accuracy of the calculations. | C8: Rhoddir credyd yn uniongyrchol ar gyfer y disgyblion hyn yn yr Asesiadau o Wariant Safonol, felly mae'n bwysig iawn fod yr wybodaeth hon yn cael ei darparu er mwyn sicrhau bod y cyfrifiadau'n gywir.
A9: 8 | B9: Please provide the figures to us in the table below. Note that it will be assumed that there are no such pupils unless otherwise indicated. | C9: Darparwch y ffigurau inni yn y tabl isod. Sylwch y cymerir yn ganiataol nad oes disgyblion o'r fath os na ddywedir yn wahanol.
A10: 9 | B10: Data set | C10: Set ddata
A11: 10 | B11: Pupils in N2 or reception year groups in nursery or primary schools | C11: Disgyblion mewn grwpiau blwyddyn meithrin 2 neu flwyddyn derbyn mewn ysgolion meithrin neu gynradd
A12: 11 | B12: Primary school pupils in year groups 1 and above | C12: Disgyblion ysgol gynradd yng ngrwpiau blwyddyn 1 ac uwch
A13: 12 | B13: Secondary school pupils in year groups 10 and 11 | C13: Disgyblion ysgol uwchradd yng ngrwpiau blwyddyn 10 ac 11
A14: 13 | B14: Secondary school pupils in year groups 7-11 | C14: Disgyblion ysgol uwchradd yng ngrwpiau blwyddyn 7-11
A15: 14 | B15: Secondary school pupils in year groups 12-14 | C15: Disgyblion ysgol uwchradd yng ngrwpiau blwyddyn 12-14
A16: 15 | B16: The non-financial data originally sourced by Local Authorities is used to calculate Standard Spending Assessments within the Local Government Settlement. | C16: Defnyddir y data heb fod yn ariannol, a gasglwyd yn wreiddiol gan Awdurdodau Lleol, i gyfrifo Asesiadau o Wariant Safonol (SSAs) yn y Setliad Llywodraeth Leol.
A17: 16 | B17: This data has already been through various quality assurance and validation processes prior to its publication. | C17: Mae'r data hyn eisoes wedi bod drwy amryw o brosesau sicrhau ansawdd a gwirio cyn iddynt gael eu cyhoeddi.
A18: 17 | B18: The purpose of the data verification exercise is not to re-visit published estimates where the changes are minor. This process is to ensure that any significant errors or revisions to the non-financial data are identified prior to the publication of the Local Government Settlement. | C18: Ni ddylid defnyddio’r broses wirio hon i roi sylw i amcangyfrifon sydd wedi eu cyhoeddi os yw’r newidiadau dan sylw yn rhai mân. Yn hytrach, nod y broses yw sicrhau bod unrhyw gamgymeriadau sylweddol yn y data heb fod yn ariannol, neu newidiadau o bwys iddynt, yn cael eu nodi cyn cyhoeddi'r Setliad Llywodraeth Leol.
A19: 18 | B19: Query form for comments on data | C19: Ffurflen ymholiadau ar gyfer sylwadau ar y data
A20: 19 | B20: Topic area | C20: Pwnc
A21: 20 | B21: Data point | C21: Pwynt data
A22: 21 | B22: Verification figure | C22: Ffigur gwiriad
A23: 22 | B23: Data Repository | C23: Ystorfa Ddata
A24: 23 | B24: Updated Figure | C24: Ffigur diwygiedig
A25: 24 | B25: Only if agreed by data repository | C25: Dim ond os cytunwyd gan yr ystorfa ddata
A26: 25 | B26: Comments/Queries | C26: Sylwadau/Ymholiadau
A27: 26 | B27: If you have agreed an update to your published data with the relevant data repository, please provide details here | C27: Os ydych chi wedi cael cytundeb yr ystorfa ddata berthnasol i ddiwygio eich data cyhoeddedig, rhowch fanylion
A28: 27 | B28: Local Government Finance Policy and Sustainability Division, Welsh Government | C28: Yr Is-adran Polisi Cyllid Llywodraeth Leol a Chynaliadwyedd, Llywodraeth Cymru
A29: 28 | B29: Please return by email to: | C29: I'w ddychwelyd drwy e-bost i:
A30: 29 | B30: Welsh Government | C30: Llywodraeth Cymru
A31: 30 | B31: For queries please contact: | C31: Os oes gennych ymholiadau, cysylltwch â:
A32: 31 | B32: For detailed descriptions on the data in this spreadsheet please see the data note document for round 1 verification on the website: | C32: Mae disgrifiadau manwl o'r data yn y daenlen hon i'w cael yn y ddogfen nodiadau ar y data ar gyfer gwiriad cylch 1, sydd ar gael ar y wefan.
A33: 32 | B33: https://gov.wales/topics/localgovernment/finandfunding/settlement/local-gov-verification-settlement-2022-23/?lang=en | C33: https://llyw.cymru/topics/localgovernment/finandfunding/settlement/local-gov-verification-settlement-2022-23/?skip=1&lang=cy
A34: 33 | B34: Notes: | C34: Nodiadau:
A35: 34 | B35: 1 This data set is taken as a 3 year average in the settlement. | C35: 1 Caiff y set ddata hon ei chymryd fel cyfartaledd 3 blynedd yn y setliad.
A36: 35 | B36: 2 The dataset 'Private Sector Dwelling Stock' was removed from the Revenue Support Grant settlement calculations, although is included within the General Capital Funding (GCF) formulae | C36: 2 Cafodd y set ddata 'Stoc Anheddau'r Sector Preifat' ei hepgor o'r cyfrifiadau ar gyfer y setliad Grant Cynnal Refeniw, ond mae wedi ei chynnwys yn y fformiwlâu ar gyfer Cyllid Cyfalaf Cyffredinol
A37: 36 | B37: 3 This data was not used in 2012-13 | C37: 3 Ni ddefnyddiwyd y data hyn yn 2012-13
B38: Data - English | C38: Data - Welsh
A39: 38 | B39: PLANNING APPLICATIONS | C39: CEISIADAU CYNLLUNIO
A40: 39 | B40: TAX CREDIT CLAIMANTS | C40: HAWLWYR CREDYD TRETH
A41: 40 | B41: ROADS DATA | C41: DATA FFYRDD
A42: 41 | B42: TRAFFIC FLOW | C42: LLIF TRAFFIG
A43: 42 | B43: PRIVATE SECTOR DWELLING STOCK | C43: STOC ANHEDDAU'R SECTOR PREIFAT
A44: 43 | B44: LAND AREA | C44: ARWYNEBEDD TIR
A45: 44 | B45: 2018 POPULATION PROJECTIONS DATA | C45: 2018 DATA AMCANESTYNIADAU POBLOGAETH
A46: 45 | B46: POPULATION ESTIMATES DATA | C46: DATA AMCANGYFRIFON POBLOGAETH
A47: 46 | B47: HOUSING DATA - GCF | C47: DATA TAI - CYLLID CYFALAF CYFFREDINOL
A48: 47 | B48: LAND DRAINAGE PRECEPTS | C48: PRAESEPTAU DRAENIO TIR
A49: 48 | B49: LENGTH OF PROTECTED COASTLINE | C49: HYD YR ARFORDIR A WARCHODIR
A50: 49 | B50: FARMS | C50: FFERMYDD
A51: 50 | B51: HOMELESSNESS DATA | C51: DATA DIGARTREFEDD
A52: 51 | B52: Planning Applications Received | C52: Ceisiadau Cynllunio a Gafwyd
A53: 52 | B53: Dependent children in out of work families | C53: Plant dibynnol mewn teuluoedd di-waith
A54: 53 | B54: A County road length (km) | C54: Hyd ffyrdd A y sir (km)
A55: 54 | B55: Built-up A County road length (km) | C55: Hyd ffyrdd A y sir, adeiledig (km)
A56: 55 | B56: B and C road length (km) | C56: Hyd ffyrdd B ac C (km)
A57: 56 | B57: Built-up B and C road length (km) | C57: Hyd ffyrdd B ac C, adeiledig (km)
A58: 57 | B58: Minor surfaced road length (km) | C58: Hyd is-ffyrdd â wyneb caled (km)
A59: 58 | B59: Built-up minor surfaced road length (km) | C59: Hyd is-ffyrdd â wyneb caled, adeiledig (km)
A60: 59 | B60: Traffic flow (vehicles) | C60: Llif traffig (cerbydau)
A61: 60 | B61: Total Homelessness Decisions | C61: Cyfanswm Penderfyniadau Digartrefedd
A62: 61 | B62: Private sector dwelling stock | C62: Stoc anheddau'r sector preifat
A63: 62 | B63: Land area (hectares) | C63: Arwynebedd tir (hectarau)
A64: 63 | B64: Motor vehicle traffic on all principal roads | C64: Traffig cerbydau modur ar yr holl prf ffyrdd
A65: 64 | B65: Owner-occupied, privately rented, intermediate and other tenures | C65: Yn eiddo i berchen-feddianwyr, wedi'u rhentu'n breifat, deiliadaeth ganolradd a deiliadaethau eraill
A66: 65 | B66: Area in hectares | C66: Arwynebedd mewn hectarau
A67: 66 | B67: Total population | C67: Cyfanswm y boblogaeth
A68: 67 | B68: Total population (projections) | C68: Cyfanswm y boblogaeth (amcanestyniad)
A69: 68 | B69: Population aged 3 (projections) | C69: Poblogaeth 3 oed (amcanestyniad)
A70: 69 | B70: Population aged 3 to 11 (projections) | C70: Poblogaeth 3 i 11 oed (amcanestyniad)
A71: 70 | B71: Population aged 3 to 16 (projections) | C71: Poblogaeth 3 i 16 oed (amcanestyniad)
A72: 71 | B72: Population aged 11 to 15 (projections) | C72: Poblogaeth 11 i 15 oed (amcanestyniad)
A73: 72 | B73: Population aged 11 to 20 (projections) | C73: Poblogaeth 11 i 20 oed (amcanestyniad)
A74: 73 | B74: Population aged 16 and over (projections) | C74: Poblogaeth 16 oed a throsodd (amcanestyniad)
A75: 74 | B75: Population aged 16 to 18 (projections) | C75: Poblogaeth 16 i 18 oed (amcanestyniad)
A76: 75 | B76: Population aged 0 to 17 (projections) | C76: Poblogaeth 0 i 17 oed (amcanestyniad)
A77: 76 | B77: Population aged 18 to 64 (projections) | C77: Poblogaeth 18 i 64 oed (amcanestyniad)
A78: 77 | B78: Population aged 18 and over (projections) | C78: Poblogaeth 18 oed a throsodd (amcanestyniad)
A79: 78 | B79: Population aged under 60 (projections) | C79: Poblogaeth o dan 60 oed (amcanestyniad)
A80: 79 | B80: Population aged 60 and over (projections) | C80: Poblogaeth 60 oed a throsodd (amcanestyniad)
A81: 80 | B81: Population aged 85 and over (projections) | C81: Poblogaeth 85 oed a throsodd (amcanestyniad)
A82: 81 | B82: Working age population (16-65M/F) (projections) | C82: Poblogaeth oedran gweithio (16-65G/B) (amcanestyniad)
A83: 82 | B83: Mid-Year Population Estimates all ages | C83: Amcangyfrifon Poblogaeth Ganol Blwyddyn, pob oed
A84: 83 | B84: Mid-Year Population Estimates aged 18 and over | C84: Amcangyfrifon Poblogaeth Ganol Blwyddyn, 18 oed a throsodd
A85: 84 | B85: Mid-Year Population Estimates aged 65 and over | C85: Amcangyfrifon Poblogaeth Ganol Blwyddyn, 65 oed a throsodd
A86: 85 | B86: Amount spent on mandatory Disabled Facilities Grants completed by area (£s) | C86: Swm a wariwyd ar grantiau cyfleusterau i'r anabl wedi'u cwblhau (£s)
A87: 86 | B87: Amount spent on DFGs completed (£s) | C87: Swm a wariwyd ar grantiau cyfleusterau i'r anabl wedi'u cwblhau (£s)
A88: 87 | B88: Special levies by Internal Drainage Boards | C88: Ardollau arbennig gan Fyrddau Draenio Mewnol
A89: 88 | B89: Length (km) | C89: Hyd (km)
A90: 89 | B90: Number of economically active farms | C90: Nifer y ffermydd economaidd weithgar
A91: 90 | B91: Land Drainage Precepts | C91: Praeseptau Draenio Tir
A92: 91 | B92: Length of protected coastline | C92: Hyd yr arfordir a warchodir
A93: 92 | B93: Number of Farms | C93: Nifer y Ffermydd
A94: 93 | B94: HM Revenue & Customs | C94: Cyllid a Thollau EM
A95: 143 | B95: Total street lighting units | C95: Cyfanswm yr unedau goleuadau stryd
A96: 144 | B96: TRADING PREMISES | C96: EIDDO MASNACHU
A97: 145 | B97: Number of Trading Premises | C97: Nifer yr Eiddo Masnachu
A98: 146 | B98: FOOD PREMISES | C98: EIDDO BWYD
A99: 147 | B99: Number of Food Premises | C99: Nifer yr Eiddo Bwyd
A100: 148 | B100: MORTALITY DATA | C100: DATA MARWOLAETHAU
A101: 149 | B101: Registered number of deaths | C101: Nifer y marwolaethau wedi'u cofrestru
A102: 150 | B102: COUNCIL TAX REDUCTION SCHEMES (CTRS) DATA | C102: DATA CYNLLUNIAU GOSTYNGIADAU'R DRETH GYNGOR
A103: 151 | B103: CTRS Caseload | C103: Llwyth achosion Cynlluniau Gostyngiadau'r Dreth Gyngor
A104: 152 | B104: CTRS Expenditure | C104: Gwariant Cynlluniau Gostyngiadau'r Dreth Gyngor
A105: 152.5 | B105: Covid-19 CTRS support | C105: Cefnogaeth CTRS Covid-19
A106: 153 | B106: Valuation Office Agency (VOA) | C106: Asiantaeth y Swyddfa Brisio
A107: 154 | B107: STREET LIGHTING UNITS | C107: UNEDAU GOLEUADAU STRYD
A108: 158 | B108: Office for National Statistics (ONS) | C108: Y Swyddfa Ystadegau Gwladol
A109: 159 | B109: SHIPS ARRIVING AT PORTS | C109: LLONGAU SY'N CYRRAEDD PORTHLADDOEDD
A110: 160 | B110: Number of ships arriving at ports | C110: Nifer y llongau sy'n cyrraedd porthladdoedd
A111: 161 | B111: TOURISM DATA | C111: DATA TWRISTIAETH
A112: 162 | B112: Tourist nights (thousands) inc AirBnb | C112: Nosweithiau twristiaid (miloedd) gan gynnwys AirBnb
A113: 163 | B113: Tourist days (thousands) | C113: Diwrnodau twristiaid (miloedd)
A114: 164 | B114: Scarborough Tourism Economic Activity Monitor (STEAM) | C114: Scarborough Tourism Economic Activity Monitor (STEAM)
A115: 165 | B115: UNEMPLOYMENT BENEFIT CLAIMANT COUNT DATA | C115: DATA AR GANRAN YR HAWLWYR BUDD-DAL DIWEITHDRA
A116: 166 | B116: Numbers of claimants | C116: Nifer yr hawlwyr
A117: 178 | B117: HOUSING BENEFIT CLAIMANTS | C117: NIFER YR HAWLWYR BUDD-DAL TAI
A118: 179 | B118: BENEFITS CLAIMANTS DATA | C118: DATA AR HAWLWYR BUDD-DALIADAU
A119: 192 | B119: Claimant Count Data | C119: Data Hawlwyr Budd-dal
A120: 193 | B120: Housing Benefit Claimants | C120: Nifer Yr Hawlwyr Budd-dal Tai
A121: 194 | B121: Number of Income Support Claimants, aged 18-64 | C121: Nifer yr Hawlwyr Cymhorthdal Incwm, 18-64 oed
A122: 195 | B122: Number of Income Based Jobseeker’s Allowance Recipients, aged 18-64 | C122: Nifer y Derbynwyr Lwfans Ceisio Swydd ar Sail Incwm, 18-64 oed
A123: 196 | B123: Number of Pension Credit Claimants, aged 18-64 | C123: Nifer yr hawlwyr Credyd Pensiwn, 18-64 oed
A124: 197 | B124: Number of people on Universal Credit (not in employment) aged 18-64 | C124: Nifer y rhai sydd yn derbyn Credyd Cynhwysol (ddim mewn cyflogaeth) 18-64 oed
A125: 198 | B125: Total number of Income Support Claimants | C125: Cyfanswm yr Hawlwyr Cymhorthdal Incwm
A126: 199 | B126: Total number of Income Based Jobseeker’s Allowance Recipients | C126: Cyfanswm y Derbynwyr Lwfans Ceisio Swydd ar Sail Incwm
A127: 200 | B127: Total number of Pension Credit Claimants | C127: Cyfanswm Hawlwyr Credyd Pensiwn
A128: 201 | B128: Total number of people on Universal Credit (not in employment) | C128: Cyfanswm y rhai sy’n derbyn Credyd Cynhwysol (ddim mewn cyflogaeth)
A129: 202 | B129: Number of Severe Disablement Allowance Claimants aged 18-64 | C129: Nifer yr Hawlwyr Lwfans Anabledd Difrifol, 18-64 oed
A130: 203 | B130: Number of Disability Living Allowance Claimants aged 18-64 | C130: Nifer yr Hawlwyr Lwfans Byw i'r Anabl, 18-64 oed | E130: To use | F130: 1
A131: 204 | B131: Number of Personal Independence Payment Claimants aged 18-64 | C131: Nifer yr Hawlwyr Taliad Annibyniaeth Bersonol sydd yn 18-64 oed | D131: 2 | E131: =IF('iaith - language'!$K$1=2,Text!B142,Text!C142) -> Dewiswch / Select
A132: 205 | B132: Pension Credit (PC) claimants aged 65+ | C132: Hawlwyr Credyd Pensiwn, 65 oed a hŷn | D132: 3 | E132: =IF('iaith - language'!$K$1=2,Text!B143,Text!C143) -> Sir Ynys Môn
A133: 206 | B133: Total Income Support (IS), Job Seekers Allowance (JSA) and Pension Credit (PC) claimants | C133: Cyfanswn yr hawlwyr Cymhorthdal Incwm, Lwfans Ceisio Gwaith, a Chredyd Pensiwn | D133: 4 | E133: =IF('iaith - language'!$K$1=2,Text!B144,Text!C144) -> Gwynedd
A134: 207 | B134: Severe Disablement Allowence (SDA) and Disability Living Allowence (DLA) claimants aged 18-64 | C134: Pobl (18-64) sy'n hawlio Lwfans Anabledd Difrifol a Lwfans Byw i'r Anabl | D134: 5 | E134: =IF('iaith - language'!$K$1=2,Text!B145,Text!C145) -> Conwy
A135: 208 | B135: Department for Work and Pensions (DWP) | C135: Yr Adran Gwaith a Phensiynau (DWP) | D135: 6 | E135: =IF('iaith - language'!$K$1=2,Text!B146,Text!C146) -> Sir Ddinbych
A136: 209 | B136: NOMIS official labour market statistics | C136: NOMIS ystadegau swyddogol y farchnad lafur | D136: 7 | E136: =IF('iaith - language'!$K$1=2,Text!B147,Text!C147) -> Sir y Fflint
A137: 210 | B137: NOMIS official labour market statistics and Department for Work and Pensions (DWP) | C137: NOMIS ystadegau swyddogol y farchnad lafur a Yr Adran Gwaith a Phensiynau (DWP) | D137: 8 | E137: =IF('iaith - language'!$K$1=2,Text!B148,Text!C148) -> Wrecsam
A138: 271 | B138: LGFPSettlement@Gov.Wales | C138: LGFPSettlement@Llyw.Cymru | D138: 9 | E138: =IF('iaith - language'!$K$1=2,Text!B149,Text!C149) -> Powys
A139: 272 | B139: Maritime and shipping statistics, Department for Transport | C139: Ystadegau morol a llongau, Yr Adran Drafnidiaeth | D139: 10 | E139: =IF('iaith - language'!$K$1=2,Text!B150,Text!C150) -> Sir Ceredigion
A140: 273 | B140: *Data not submitted | C140: *Data heb ei gyflwyno | D140: 11 | E140: =IF('iaith - language'!$K$1=2,Text!B151,Text!C151) -> Sir Benfro
B141: LA name English | C141: LA name Welsh | D141: 12 | E141: =IF('iaith - language'!$K$1=2,Text!B152,Text!C152) -> Sir Gaerfyrddin
A142: 116 | B142: Please select | C142: Dewiswch / Select | D142: 13 | E142: =IF('iaith - language'!$K$1=2,Text!B153,Text!C153) -> Abertawe
A143: 117 | B143: Isle of Anglesey | C143: Sir Ynys Môn | D143: 14 | E143: =IF('iaith - language'!$K$1=2,Text!B154,Text!C154) -> Castell-nedd Port Talbot
A144: 118 | B144: Gwynedd | C144: Gwynedd | D144: 15 | E144: =IF('iaith - language'!$K$1=2,Text!B155,Text!C155) -> Pen-y-bont ar Ogwr
A145: 119 | B145: Conwy | C145: Conwy | D145: 16 | E145: =IF('iaith - language'!$K$1=2,Text!B156,Text!C156) -> Bro Morgannwg
A146: 120 | B146: Denbighshire | C146: Sir Ddinbych | D146: 17 | E146: =IF('iaith - language'!$K$1=2,Text!B157,Text!C157) -> Rhondda Cynon Taf
A147: 121 | B147: Flintshire | C147: Sir y Fflint | D147: 18 | E147: =IF('iaith - language'!$K$1=2,Text!B158,Text!C158) -> Merthyr Tudful
A148: 122 | B148: Wrexham | C148: Wrecsam | D148: 19 | E148: =IF('iaith - language'!$K$1=2,Text!B159,Text!C159) -> Caerffili
A149: 123 | B149: Powys | C149: Powys | D149: 20 | E149: =IF('iaith - language'!$K$1=2,Text!B160,Text!C160) -> Blaenau Gwent
A150: 124 | B150: Ceredigion | C150: Sir Ceredigion | D150: 21 | E150: =IF('iaith - language'!$K$1=2,Text!B161,Text!C161) -> Torfaen
A151: 125 | B151: Pembrokeshire | C151: Sir Benfro | D151: 22 | E151: =IF('iaith - language'!$K$1=2,Text!B162,Text!C162) -> Sir Fynwy
A152: 126 | B152: Carmarthenshire | C152: Sir Gaerfyrddin | D152: 23 | E152: =IF('iaith - language'!$K$1=2,Text!B163,Text!C163) -> Casnewydd
A153: 127 | B153: Swansea | C153: Abertawe | D153: 24 | E153: =IF('iaith - language'!$K$1=2,Text!B164,Text!C164) -> Caerdydd
A154: 128 | B154: Neath Port Talbot | C154: Castell-nedd Port Talbot | E154: =IF('iaith - language'!$K$1=2,Text!B165,Text!C165) -> Cyfanswm AU
A155: 129 | B155: Bridgend | C155: Pen-y-bont ar Ogwr
A156: 130 | B156: The Vale of Glamorgan | C156: Bro Morgannwg
A157: 131 | B157: Rhondda Cynon Taf | C157: Rhondda Cynon Taf
A158: 132 | B158: Merthyr Tydfil | C158: Merthyr Tudful
A159: 133 | B159: Caerphilly | C159: Caerffili
A160: 134 | B160: Blaenau Gwent | C160: Blaenau Gwent
A161: 135 | B161: Torfaen | C161: Torfaen
A162: 136 | B162: Monmouthshire | C162: Sir Fynwy
A163: 137 | B163: Newport | C163: Casnewydd
A164: 138 | B164: Cardiff | C164: Caerdydd
A165: 139 | B165: UA Total | C165: Cyfanswm AU
A166: 140 | B166: 1 The dataset 'Private Sector Dwelling Stock' was removed from the Revenue Support Grant settlement calculations, although is included within the General Capital Funding (GCF) formulae | C166: 1 Cafodd y set ddata 'Stoc Anheddau'r Sector Preifat' ei hepgor o'r cyfrifiadau ar gyfer y setliad Grant Cynnal Refeniw, ond mae wedi ei chynnwys yn y fformiwlâu ar gyfer Cyllid Cyfalaf Cyffredinol
A167: 141 | B167: .. The data item is not available | C167: .. Nid yw'r eitem ddata yma ar gael
A168: 142 | B168: Please note the published mid-year population have been dif
A169: 271.5 | B169: Council tax stock of properties | C169: Stoc eiddo treth cyngor
A170: 274 | B170: Valuation Office Agency (VOA) | C170: Asiantaeth y Swyddfa Brisio
A171: 600 | B171: Round 1 Data verification process - data for use in the 2023-24 Settlement | C171: Proses wirio data Cylch 1 - data i'w defnyddio ar gyfer Setliad 2023-24
A172: 601 | B172: June 2021 | C172: Mehefin 2021
A173: 602 | B173: September 2021 | C173: Medi 2021
A174: 603 | B174: December 2021 | C174: Rhagfyr 2021
A175: 604 | B175: March 2022 | C175: Mawrth 2022
A176: 605 | B176: May 2022 | C176: Mai 2022
A177: 606 | B177: April 2022 | C177: Ebrill 2022
A178: 607 | B178: October 2021 | C178: Hydref 2021
A179: 608 | B179: November 2021 | C179: Tachwedd 2021
A180: 609 | B180: December 2021 | C180: Rhagfyr 2021
A181: 610 | B181: January 2022 | C181: Ionawr 2022
A182: 611 | B182: February 2022 | C182: Chwefror 2022
A183: 612 | B183: June 2022 | C183: Mehefin 2022
A184: 613 | B184: July 2022 | C184: Gorffennaf 2022
A185: 614 | B185: August 2022 | C185: Awst 2022
A186: 615 | B186: May 2021 | C186: Mai 2021
A187: 616 | B187: August 2021 | C187: Awst 2021
A188: 300 | B188: Data used in the 2022-23 Settlement - for information purposes only | C188: Data a ddefnyddiwyd yn Setliad 2022-23 – er gwybodaeth yn unig
A189: 301 | B189: June 2020 | C189: Mehefin 2020
A190: 302 | B190: September 2020 | C190: Medi 2020
A191: 303 | B191: December 2020 | C191: Rhagfyr 2020
A192: 304 | B192: March 2021 | C192: Mawrth 2021
A193: 305 | B193: May 2021 | C193: Mai 2021
A194: 306 | B194: April 2021 | C194: Ebrill 2021
A195: 307 | B195: October 2020 | C195: Hydref 2020
A196: 308 | B196: November 2020 | C196: Tachwedd 2020
A197: 309 | B197: December 2020 | C197: Rhagfyr 2020
A198: 310 | B198: January 2021 | C198: Ionawr 2021
A199: 311 | B199: February 2021 | C199: Chwefror 2021
A200: 312 | B200: June 2021 | C200: Mehefin 2021
... 38 more rows

Sheet queryformround1
A1: 2 | C1: =IF('iaith - language'!K1=2,VLOOKUP(A1,Text!A3:C316,2),VLOOKUP(A1,Text!A3:C318,3)) -> Proses gwiriad data cylch 1
A3: 3 | C3: =IF('iaith - language'!K1=2,VLOOKUP(A3,Text!A3:C316,2),VLOOKUP(A3,Text!A3:C318,3)) -> Dewiswch enw eich awdurdod:
A5: 4 | C5: =IF('iaith - language'!$K$1=2,VLOOKUP(A5,Text!$A$3:$C$402,2,0),VLOOKUP(A5,Text!$A$3:$C$402,3,0)) -> Disgyblion mewn ysgolion annibynnol
A6: 5 | C6: =IF('iaith - language'!$K$1=2,VLOOKUP(A6,Text!$A$3:$C$402,2,0),VLOOKUP(A6,Text!$A$3:$C$402,3,0)) -> Gofynnir ichi roi gwybod inni am unrhyw ddisgyblion sy'n cael eu haddysgu mewn ysgolion annibynnol ar gyfer disgyblion nad ydynt ar ddatganiad anghenion addysgol arbennig (ac eithrio ysgolion arbennig)
A7: 6 | C7: =IF('iaith - language'!$K$1=2,VLOOKUP(A7,Text!$A$3:$C$402,2,0),VLOOKUP(A7,Text!$A$3:$C$402,3,0)) -> y mae eich awdurdod yn talu ffïoedd dysgu llawn ar eu cyfer, fel sydd wedi'i gofnodi ar llinell 1.3.5 o adroddiad alldro Adran 52. Dylid darparu'r wybodaeth hon ar gyfer y sefyllfa fel yr oedd ym mis Ebrill 2022.
A8: 7 | C8: =IF('iaith - language'!$K$1=2,VLOOKUP(A8,Text!$A$3:$C$402,2,0),VLOOKUP(A8,Text!$A$3:$C$402,3,0)) -> Rhoddir credyd yn uniongyrchol ar gyfer y disgyblion hyn yn yr Asesiadau o Wariant Safonol, felly mae'n bwysig iawn fod yr wybodaeth hon yn cael ei darparu er mwyn sicrhau bod y cyfrifiadau'n gywir.
A9: 8 | C9: =IF('iaith - language'!$K$1=2,VLOOKUP(A9,Text!$A$3:$C$402,2,0),VLOOKUP(A9,Text!$A$3:$C$402,3,0)) -> Darparwch y ffigurau inni yn y tabl isod. Sylwch y cymerir yn ganiataol nad oes disgyblion o'r fath os na ddywedir yn wahanol.
A10: 9
A11: 4 | C11: =IF('iaith - language'!$K$1=2,VLOOKUP(A10,Text!$A$3:$C$402,2,0),VLOOKUP(A10,Text!$A$3:$C$402,3,0)) -> Set ddata | D11: =IF('iaith - language'!$K$1=2,VLOOKUP(A11,Text!$A$3:$C$402,2,0),VLOOKUP(A11,Text!$A$3:$C$402,3,0)) -> Disgyblion mewn ysgolion annibynnol
A12: 10 | C12: =IF('iaith - language'!$K$1=2,VLOOKUP(A12,Text!$A$3:$C$402,2,0),VLOOKUP(A12,Text!$A$3:$C$402,3,0)) -> Disgyblion mewn grwpiau blwyddyn meithrin 2 neu flwyddyn derbyn mewn ysgolion meithrin neu gynradd
A13: 11 | C13: =IF('iaith - language'!$K$1=2,VLOOKUP(A13,Text!$A$3:$C$402,2,0),VLOOKUP(A13,Text!$A$3:$C$402,3,0)) -> Disgyblion ysgol gynradd yng ngrwpiau blwyddyn 1 ac uwch
A14: 12 | C14: =IF('iaith - language'!$K$1=2,VLOOKUP(A14,Text!$A$3:$C$402,2,0),VLOOKUP(A14,Text!$A$3:$C$402,3,0)) -> Disgyblion ysgol uwchradd yng ngrwpiau blwyddyn 10 ac 11
A15: 13 | C15: =IF('iaith - language'!$K$1=2,VLOOKUP(A15,Text!$A$3:$C$402,2,0),VLOOKUP(A15,Text!$A$3:$C$402,3,0)) -> Disgyblion ysgol uwchradd yng ngrwpiau blwyddyn 7-11
A16: 14 | C16: =IF('iaith - language'!$K$1=2,VLOOKUP(A16,Text!$A$3:$C$402,2,0),VLOOKUP(A16,Text!$A$3:$C$402,3,0)) -> Disgyblion ysgol uwchradd yng ngrwpiau blwyddyn 12-14
A18: 15 | C18: =IF('iaith - language'!K1=2,VLOOKUP(A18,Text!A3:C316,2),VLOOKUP(A18,Text!A3:C318,3)) -> Defnyddir y data heb fod yn ariannol, a gasglwyd yn wreiddiol gan Awdurdodau Lleol, i gyfrifo Asesiadau o Wariant Safonol (SSAs) yn y Setliad Llywodraeth Leol.
A19: 16 | C19: =IF('iaith - language'!K1=2,VLOOKUP(A19,Text!A3:C316,2),VLOOKUP(A19,Text!A3:C318,3)) -> Mae'r data hyn eisoes wedi bod drwy amryw o brosesau sicrhau ansawdd a gwirio cyn iddynt gael eu cyhoeddi.
A20: 17 | C20: =IF('iaith - language'!K1=2,VLOOKUP(A20,Text!A3:C316,2),VLOOKUP(A20,Text!A3:C318,3)) -> Ni ddylid defnyddio’r broses wirio hon i roi sylw i amcangyfrifon sydd wedi eu cyhoeddi os yw’r newidiadau dan sylw yn rhai mân. Yn hytrach, nod y broses yw sicrhau bod unrhyw gamgymeriadau sylweddol yn y data heb fod yn ariannol, neu newidiadau o bwys iddynt, yn cael eu nodi cyn cyhoeddi'r Setliad Llywodraeth Leol.
A22: 18 | C22: =IF('iaith - language'!$K$1=2,VLOOKUP(A22,Text!$A$3:$C$402,2,0),VLOOKUP(A22,Text!$A$3:$C$402,3,0)) -> Ffurflen ymholiadau ar gyfer sylwadau ar y data
E24: 20 | F24: 21 | G24: 22 | H24: 23 | I24: 25
A25: 19 | C25: =IF('iaith - language'!$K$1=2,VLOOKUP(A25,Text!$A$3:$C$402,2,0),VLOOKUP(A25,Text!$A$3:$C$402,3,0)) -> Pwnc | D25: =IF('iaith - language'!$K$1=2,VLOOKUP(A10,Text!$A$3:$C$402,2,0),VLOOKUP(A10,Text!$A$3:$C$402,3,0)) -> Set ddata | E25: =IF('iaith - language'!$K$1=2,VLOOKUP(E24,Text!$A$3:$C$402,2,0),VLOOKUP(E24,Text!$A$3:$C$402,3,0)) -> Pwynt data | F25: =IF('iaith - language'!$K$1=2,VLOOKUP(F24,Text!$A$3:$C$402,2,0),VLOOKUP(F24,Text!$A$3:$C$402,3,0)) -> Ffigur gwiriad | G25: =IF('iaith - language'!K1=2,VLOOKUP(G24,Text!A3:C316,2),VLOOKUP(G24,Text!A3:C318,3)) -> Ystorfa Ddata | H25: =IF('iaith - language'!K1=2,VLOOKUP(H24,Text!A3:C316,2),VLOOKUP(H24,Text!A3:C318,3)) -> Ffigur diwygiedig | I25: =IF('iaith - language'!K1=2,VLOOKUP(I24,Text!A3:C316,2),VLOOKUP(I24,Text!A3:C318,3)) -> Sylwadau/Ymholiadau | J25: 24
H26: =IF('iaith - language'!K1=2,VLOOKUP(J25,Text!A3:C316,2),VLOOKUP(J25,Text!A3:C318,3)) -> Dim ond os cytunwyd gan yr ystorfa ddata | I26: =IF('iaith - language'!K1=2,VLOOKUP(J26,Text!A3:C316,2),VLOOKUP(J26,Text!A3:C318,3)) -> Os ydych chi wedi cael cytundeb yr ystorfa ddata berthnasol i ddiwygio eich data cyhoeddedig, rhowch fanylion | J26: 26
A27: 38 | B27: 51 | C27: =IF('iaith - language'!$K$1=2,VLOOKUP(A27,Text!$A$3:$C$402,2,0),VLOOKUP(A27,Text!$A$3:$C$402,3,0)) -> CEISIADAU CYNLLUNIO | D27: =IF('iaith - language'!$K$1=2,VLOOKUP(B27,Text!$A$3:$C$402,2,0),VLOOKUP(B27,Text!$A$3:$C$402,3,0)) -> Ceisiadau Cynllunio a Gafwyd | E27: =VLOOKUP(0,'2023-24 Settlement data '!$B$7:$ET$32,K27,FALSE) -> Mehefin 2021 | F27: =VLOOKUP(Text!$F$130,'2023-24 Settlement data '!$B$9:$EU$30,$K27,FALSE) ->  | G27: =IF('iaith - language'!K1=2,VLOOKUP(A29,Text!A3:C316,2),VLOOKUP(A29,Text!A3:C318,3)) -> Llywodraeth Cymru | J27: 109 | K27: 3
E28: =VLOOKUP(0,'2023-24 Settlement data '!$B$7:$ET$32,K28,FALSE) -> Medi 2021 | F28: =VLOOKUP(Text!$F$130,'2023-24 Settlement data '!$B$9:$EU$30,$K28,FALSE) ->  | J28: 110 | K28: 4
A29: 29 | E29: =VLOOKUP(0,'2023-24 Settlement data '!$B$7:$ET$32,K29,FALSE) -> Rhagfyr 2021 | F29: =VLOOKUP(Text!$F$130,'2023-24 Settlement data '!$B$9:$EU$30,$K29,FALSE) ->  | J29: 111 | K29: 5
E30: =VLOOKUP(0,'2023-24 Settlement data '!$B$7:$ET$32,K30,FALSE) -> Mawrth 2022 | F30: =VLOOKUP(Text!$F$130,'2023-24 Settlement data '!$B$9:$EU$30,$K30,FALSE) ->  | J30: 112 | K30: 6
A31: 42 | B31: 64 | C31: =IF('iaith - language'!$K$1=2,VLOOKUP(A31,Text!$A$3:$C$402,2,0),VLOOKUP(A31,Text!$A$3:$C$402,3,0)) -> STOC ANHEDDAU'R SECTOR PREIFAT | D31: =IF('iaith - language'!$K$1=2,VLOOKUP(B31,Text!$A$3:$C$402,2,0),VLOOKUP(B31,Text!$A$3:$C$402,3,0)) -> Yn eiddo i berchen-feddianwyr, wedi'u rhentu'n breifat, deiliadaeth ganolradd a deiliadaethau eraill | E31: =VLOOKUP(0,'2022-23 Settlement data'!$B$7:$ET$32,K31,FALSE) -> 2019-20 | F31: =VLOOKUP(Text!$F$130,'2022-23 Settlement data'!$B$9:$EU$30,$K31,FALSE) ->  | G31: =IF('iaith - language'!K1=2,VLOOKUP(A29,Text!A3:C316,2),VLOOKUP(A29,Text!A3:C318,3)) -> Llywodraeth Cymru | I31: Do not verify | K31: =K30+1 -> 7
A32: 43 | B32: 65 | C32: =IF('iaith - language'!$K$1=2,VLOOKUP(A32,Text!$A$3:$C$402,2,0),VLOOKUP(A32,Text!$A$3:$C$402,3,0)) -> ARWYNEBEDD TIR | D32: =IF('iaith - language'!$K$1=2,VLOOKUP(B32,Text!$A$3:$C$402,2,0),VLOOKUP(B32,Text!$A$3:$C$402,3,0)) -> Arwynebedd mewn hectarau | E32: =VLOOKUP(0,'2023-24 Settlement data '!$B$7:$ET$32,K32,FALSE) -> Mai 2022 | F32: =VLOOKUP(Text!$F$130,'2023-24 Settlement data '!$B$9:$EU$30,$K32,FALSE) ->  | G32: =IF('iaith - language'!K1=2,VLOOKUP(A29,Text!A3:C316,2),VLOOKUP(A29,Text!A3:C318,3)) -> Llywodraeth Cymru | J32: 113 | K32: =K31+1 -> 8
A33: 44 | B33: 66 | C33: =IF('iaith - language'!$K$1=2,VLOOKUP(A33,Text!$A$3:$C$402,2,0),VLOOKUP(A33,Text!$A$3:$C$402,3,0)) -> 2018 DATA AMCANESTYNIADAU POBLOGAETH | D33: =IF('iaith - language'!$K$1=2,VLOOKUP(B33,Text!$A$3:$C$402,2,0),VLOOKUP(B33,Text!$A$3:$C$402,3,0)) -> Cyfanswm y boblogaeth | E33: =VLOOKUP(0,'2023-24 Settlement data '!$B$7:$ET$32,K33,FALSE) -> 2023 | F33: =VLOOKUP(Text!$F$130,'2023-24 Settlement data '!$B$9:$EU$30,$K33,FALSE) ->  | G33: =IF('iaith - language'!K1=2,VLOOKUP(A29,Text!A3:C316,2),VLOOKUP(A29,Text!A3:C318,3)) -> Llywodraeth Cymru | J33: 99 | K33: =K32+1 -> 9
B34: 68 | D34: =IF('iaith - language'!$K$1=2,VLOOKUP(B34,Text!$A$3:$C$402,2,0),VLOOKUP(B34,Text!$A$3:$C$402,3,0)) -> Poblogaeth 3 oed (amcanestyniad) | E34: =VLOOKUP(0,'2023-24 Settlement data '!$B$7:$ET$32,K34,FALSE) -> 2023 | F34: =VLOOKUP(Text!$F$130,'2023-24 Settlement data '!$B$9:$EU$30,$K34,FALSE) ->  | K34: 10
B35: 69 | D35: =IF('iaith - language'!$K$1=2,VLOOKUP(B35,Text!$A$3:$C$402,2,0),VLOOKUP(B35,Text!$A$3:$C$402,3,0)) -> Poblogaeth 3 i 11 oed (amcanestyniad) | E35: =VLOOKUP(0,'2023-24 Settlement data '!$B$7:$ET$32,K35,FALSE) -> 2023 | F35: =VLOOKUP(Text!$F$130,'2023-24 Settlement data '!$B$9:$EU$30,$K35,FALSE) ->  | K35: 11
B36: 70 | D36: =IF('iaith - language'!$K$1=2,VLOOKUP(B36,Text!$A$3:$C$402,2,0),VLOOKUP(B36,Text!$A$3:$C$402,3,0)) -> Poblogaeth 3 i 16 oed (amcanestyniad) | E36: =VLOOKUP(0,'2023-24 Settlement data '!$B$7:$ET$32,K36,FALSE) -> 2023 | F36: =VLOOKUP(Text!$F$130,'2023-24 Settlement data '!$B$9:$EU$30,$K36,FALSE) ->  | K36: 12
B37: 71 | D37: =IF('iaith - language'!$K$1=2,VLOOKUP(B37,Text!$A$3:$C$402,2,0),VLOOKUP(B37,Text!$A$3:$C$402,3,0)) -> Poblogaeth 11 i 15 oed (amcanestyniad) | E37: =VLOOKUP(0,'2023-24 Settlement data '!$B$7:$ET$32,K37,FALSE) -> 2023 | F37: =VLOOKUP(Text!$F$130,'2023-24 Settlement data '!$B$9:$EU$30,$K37,FALSE) ->  | K37: 13
B38: 72 | D38: =IF('iaith - language'!$K$1=2,VLOOKUP(B38,Text!$A$3:$C$402,2,0),VLOOKUP(B38,Text!$A$3:$C$402,3,0)) -> Poblogaeth 11 i 20 oed (amcanestyniad) | E38: =VLOOKUP(0,'2023-24 Settlement data '!$B$7:$ET$32,K38,FALSE) -> 2023 | F38: =VLOOKUP(Text!$F$130,'2023-24 Settlement data '!$B$9:$EU$30,$K38,FALSE) ->  | K38: 14
B39: 73 | D39: =IF('iaith - language'!$K$1=2,VLOOKUP(B39,Text!$A$3:$C$402,2,0),VLOOKUP(B39,Text!$A$3:$C$402,3,0)) -> Poblogaeth 16 oed a throsodd (amcanestyniad) | E39: =VLOOKUP(0,'2023-24 Settlement data '!$B$7:$ET$32,K39,FALSE) -> 2023 | F39: =VLOOKUP(Text!$F$130,'2023-24 Settlement data '!$B$9:$EU$30,$K39,FALSE) ->  | K39: 15
B40: 74 | D40: =IF('iaith - language'!$K$1=2,VLOOKUP(B40,Text!$A$3:$C$402,2,0),VLOOKUP(B40,Text!$A$3:$C$402,3,0)) -> Poblogaeth 16 i 18 oed (amcanestyniad) | E40: =VLOOKUP(0,'2023-24 Settlement data '!$B$7:$ET$32,K40,FALSE) -> 2023 | F40: =VLOOKUP(Text!$F$130,'2023-24 Settlement data '!$B$9:$EU$30,$K40,FALSE) ->  | K40: 16
B41: 75 | D41: =IF('iaith - language'!$K$1=2,VLOOKUP(B41,Text!$A$3:$C$402,2,0),VLOOKUP(B41,Text!$A$3:$C$402,3,0)) -> Poblogaeth 0 i 17 oed (amcanestyniad) | E41: =VLOOKUP(0,'2023-24 Settlement data '!$B$7:$ET$32,K41,FALSE) -> 2023 | F41: =VLOOKUP(Text!$F$130,'2023-24 Settlement data '!$B$9:$EU$30,$K41,FALSE) ->  | K41: 17
B42: 76 | D42: =IF('iaith - language'!$K$1=2,VLOOKUP(B42,Text!$A$3:$C$402,2,0),VLOOKUP(B42,Text!$A$3:$C$402,3,0)) -> Poblogaeth 18 i 64 oed (amcanestyniad) | E42: =VLOOKUP(0,'2023-24 Settlement data '!$B$7:$ET$32,K42,FALSE) -> 2023 | F42: =VLOOKUP(Text!$F$130,'2023-24 Settlement data '!$B$9:$EU$30,$K42,FALSE) ->  | K42: 18
B43: 77 | D43: =IF('iaith - language'!$K$1=2,VLOOKUP(B43,Text!$A$3:$C$402,2,0),VLOOKUP(B43,Text!$A$3:$C$402,3,0)) -> Poblogaeth 18 oed a throsodd (amcanestyniad) | E43: =VLOOKUP(0,'2023-24 Settlement data '!$B$7:$ET$32,K43,FALSE) -> 2023 | F43: =VLOOKUP(Text!$F$130,'2023-24 Settlement data '!$B$9:$EU$30,$K43,FALSE) ->  | K43: 19
B44: 78 | D44: =IF('iaith - language'!$K$1=2,VLOOKUP(B44,Text!$A$3:$C$402,2,0),VLOOKUP(B44,Text!$A$3:$C$402,3,0)) -> Poblogaeth o dan 60 oed (amcanestyniad) | E44: =VLOOKUP(0,'2023-24 Settlement data '!$B$7:$ET$32,K44,FALSE) -> 2023 | F44: =VLOOKUP(Text!$F$130,'2023-24 Settlement data '!$B$9:$EU$30,$K44,FALSE) ->  | K44: 20
B45: 79 | D45: =IF('iaith - language'!$K$1=2,VLOOKUP(B45,Text!$A$3:$C$402,2,0),VLOOKUP(B45,Text!$A$3:$C$402,3,0)) -> Poblogaeth 60 oed a throsodd (amcanestyniad) | E45: =VLOOKUP(0,'2023-24 Settlement data '!$B$7:$ET$32,K45,FALSE) -> 2023 | F45: =VLOOKUP(Text!$F$130,'2023-24 Settlement data '!$B$9:$EU$30,$K45,FALSE) ->  | K45: 21
B46: 80 | D46: =IF('iaith - language'!$K$1=2,VLOOKUP(B46,Text!$A$3:$C$402,2,0),VLOOKUP(B46,Text!$A$3:$C$402,3,0)) -> Poblogaeth 85 oed a throsodd (amcanestyniad) | E46: =VLOOKUP(0,'2023-24 Settlement data '!$B$7:$ET$32,K46,FALSE) -> 2023 | F46: =VLOOKUP(Text!$F$130,'2023-24 Settlement data '!$B$9:$EU$30,$K46,FALSE) ->  | K46: 22
B47: 81 | D47: =IF('iaith - language'!$K$1=2,VLOOKUP(B47,Text!$A$3:$C$402,2,0),VLOOKUP(B47,Text!$A$3:$C$402,3,0)) -> Poblogaeth oedran gweithio (16-65G/B) (amcanestyniad) | E47: =VLOOKUP(0,'2023-24 Settlement data '!$B$7:$ET$32,K47,FALSE) -> 2023 | F47: =VLOOKUP(Text!$F$130,'2023-24 Settlement data '!$B$9:$EU$30,$K47,FALSE) ->  | K47: 23
A48: 45 | B48: 82 | C48: =IF('iaith - language'!$K$1=2,VLOOKUP(A48,Text!$A$3:$C$402,2,0),VLOOKUP(A48,Text!$A$3:$C$402,3,0)) -> DATA AMCANGYFRIFON POBLOGAETH | D48: =IF('iaith - language'!$K$1=2,VLOOKUP(B48,Text!$A$3:$C$402,2,0),VLOOKUP(B48,Text!$A$3:$C$402,3,0)) -> Amcangyfrifon Poblogaeth Ganol Blwyddyn, pob oed | E48: =VLOOKUP(0,'2023-24 Settlement data '!$B$7:$ET$32,K48,FALSE) -> 2020 | F48: =VLOOKUP(Text!$F$130,'2023-24 Settlement data '!$B$9:$EU$30,$K48,FALSE) ->  | G48: =IF('iaith - language'!K1=2,VLOOKUP(A29,Text!A3:C316,2),VLOOKUP(A29,Text!A3:C318,3)) -> Llywodraeth Cymru | K48: 24
B49: 83 | D49: =IF('iaith - language'!$K$1=2,VLOOKUP(B49,Text!$A$3:$C$402,2,0),VLOOKUP(B49,Text!$A$3:$C$402,3,0)) -> Amcangyfrifon Poblogaeth Ganol Blwyddyn, 18 oed a throsodd | E49: =VLOOKUP(0,'2023-24 Settlement data '!$B$7:$ET$32,K49,FALSE) -> 2020 | F49: =VLOOKUP(Text!$F$130,'2023-24 Settlement data '!$B$9:$EU$30,$K49,FALSE) ->  | K49: 25
B50: 84 | D50: =IF('iaith - language'!$K$1=2,VLOOKUP(B50,Text!$A$3:$C$402,2,0),VLOOKUP(B50,Text!$A$3:$C$402,3,0)) -> Amcangyfrifon Poblogaeth Ganol Blwyddyn, 65 oed a throsodd | E50: =VLOOKUP(0,'2023-24 Settlement data '!$B$7:$ET$32,K50,FALSE) -> 2020 | F50: =VLOOKUP(Text!$F$130,'2023-24 Settlement data '!$B$9:$EU$30,$K50,FALSE) ->  | K50: 26
A51: 46 | B51: 85 | C51: =IF('iaith - language'!$K$1=2,VLOOKUP(A51,Text!$A$3:$C$402,2,0),VLOOKUP(A51,Text!$A$3:$C$402,3,0)) -> DATA TAI - CYLLID CYFALAF CYFFREDINOL | D51: =IF('iaith - language'!$K$1=2,VLOOKUP(B51,Text!$A$3:$C$402,2,0),VLOOKUP(B51,Text!$A$3:$C$402,3,0)) -> Swm a wariwyd ar grantiau cyfleusterau i'r anabl wedi'u cwblhau (£s) | E51: =VLOOKUP(0,'2022-23 Settlement data'!$B$7:$ET$32,K51,FALSE) -> 2018-19 | F51: =VLOOKUP(Text!$F$130,'2023-24 Settlement data '!$B$9:$EU$30,$K51,FALSE) ->  | G51: =IF('iaith - language'!$K$1=2,VLOOKUP(J51,Text!$A$4:$C$198,2,FALSE),VLOOKUP(J51,Text!$A$4:$C$198,3,FALSE)) -> Llywodraeth Cymru | I51: Do not verify | J51: 29 | K51: 27
A52: 47 | B52: 87 | C52: =IF('iaith - language'!$K$1=2,VLOOKUP(A52,Text!$A$3:$C$402,2,0),VLOOKUP(A52,Text!$A$3:$C$402,3,0)) -> PRAESEPTAU DRAENIO TIR | D52: =IF('iaith - language'!$K$1=2,VLOOKUP(B52,Text!$A$3:$C$402,2,0),VLOOKUP(B52,Text!$A$3:$C$402,3,0)) -> Ardollau arbennig gan Fyrddau Draenio Mewnol | E52: =VLOOKUP(0,'2023-24 Settlement data '!$B$7:$ET$32,K52,FALSE) -> 2022-23 | F52: =VLOOKUP(Text!$F$130,'2023-24 Settlement data '!$B$9:$EU$30,$K52,FALSE) ->  | G52: =IF('iaith - language'!$K$1=2,VLOOKUP(J52,Text!$A$4:$C$198,2,FALSE),VLOOKUP(J52,Text!$A$4:$C$198,3,FALSE)) -> Llywodraeth Cymru | J52: 29 | K52: 28
A53: 48 | B53: 88 | C53: =IF('iaith - language'!$K$1=2,VLOOKUP(A53,Text!$A$3:$C$402,2,0),VLOOKUP(A53,Text!$A$3:$C$402,3,0)) -> HYD YR ARFORDIR A WARCHODIR | D53: =IF('iaith - language'!$K$1=2,VLOOKUP(B53,Text!$A$3:$C$402,2,0),VLOOKUP(B53,Text!$A$3:$C$402,3,0)) -> Hyd (km) | E53: =VLOOKUP(0,'2023-24 Settlement data '!$B$7:$ET$32,K53,FALSE) -> Mai 2022 | F53: =VLOOKUP(Text!$F$130,'2023-24 Settlement data '!$B$9:$EU$30,$K53,FALSE) ->  | G53: =IF('iaith - language'!$K$1=2,VLOOKUP(J53,Text!$A$4:$C$198,2,FALSE),VLOOKUP(J53,Text!$A$4:$C$198,3,FALSE)) -> Llywodraeth Cymru | J53: 29 | K53: 29
A54: 49 | B54: 89 | C54: =IF('iaith - language'!$K$1=2,VLOOKUP(A54,Text!$A$3:$C$402,2,0),VLOOKUP(A54,Text!$A$3:$C$402,3,0)) -> FFERMYDD | D54: =IF('iaith - language'!$K$1=2,VLOOKUP(B54,Text!$A$3:$C$402,2,0),VLOOKUP(B54,Text!$A$3:$C$402,3,0)) -> Nifer y ffermydd economaidd weithgar | E54: =VLOOKUP(0,'2023-24 Settlement data '!$B$7:$ET$32,K54,FALSE) -> 2021 | F54: =VLOOKUP(Text!$F$130,'2023-24 Settlement data '!$B$9:$EU$30,$K54,FALSE) ->  | G54: =IF('iaith - language'!$K$1=2,VLOOKUP(J54,Text!$A$4:$C$198,2,FALSE),VLOOKUP(J54,Text!$A$4:$C$198,3,FALSE)) -> Llywodraeth Cymru | J54: 29 | K54: 30
A55: 144 | B55: 145 | C55: =IF('iaith - language'!$K$1=2,VLOOKUP(A55,Text!$A$3:$C$402,2,0),VLOOKUP(A55,Text!$A$3:$C$402,3,0)) -> EIDDO MASNACHU | D55: =IF('iaith - language'!$K$1=2,VLOOKUP(B55,Text!$A$3:$C$402,2,0),VLOOKUP(B55,Text!$A$3:$C$402,3,0)) -> Nifer yr Eiddo Masnachu | E55: =VLOOKUP(0,'2023-24 Settlement data '!$B$7:$ET$32,K55,FALSE) -> Mawrth 2022 | F55: =VLOOKUP(Text!$F$130,'2023-24 Settlement data '!$B$9:$EU$30,$K55,FALSE) ->  | G55: =IF('iaith - language'!$K$1=2,VLOOKUP(J56,Text!$A$4:$C$198,2,FALSE),VLOOKUP(J56,Text!$A$4:$C$198,3,FALSE)) -> Asiantaeth y Swyddfa Brisio | J55: 115 | K55: 31
A56: 146 | B56: 147 | C56: =IF('iaith - language'!$K$1=2,VLOOKUP(A56,Text!$A$3:$C$402,2,0),VLOOKUP(A56,Text!$A$3:$C$402,3,0)) -> EIDDO BWYD | D56: =IF('iaith - language'!$K$1=2,VLOOKUP(B56,Text!$A$3:$C$402,2,0),VLOOKUP(B56,Text!$A$3:$C$402,3,0)) -> Nifer yr Eiddo Bwyd | E56: =VLOOKUP(0,'2023-24 Settlement data '!$B$7:$ET$32,K56,FALSE) -> Mawrth 2022 | F56: =VLOOKUP(Text!$F$130,'2023-24 Settlement data '!$B$9:$EU$30,$K56,FALSE) ->  | G56: =IF('iaith - language'!$K$1=2,VLOOKUP(J56,Text!$A$4:$C$198,2,FALSE),VLOOKUP(J56,Text!$A$4:$C$198,3,FALSE)) -> Asiantaeth y Swyddfa Brisio | J56: 153 | K56: 32
A57: 154 | B57: 143 | C57: =IF('iaith - language'!$K$1=2,VLOOKUP(A57,Text!$A$3:$C$402,2,0),VLOOKUP(A57,Text!$A$3:$C$402,3,0)) -> UNEDAU GOLEUADAU STRYD | D57: =IF('iaith - language'!$K$1=2,VLOOKUP(B57,Text!$A$3:$C$402,2,0),VLOOKUP(B57,Text!$A$3:$C$402,3,0)) -> Cyfanswm yr unedau goleuadau stryd | E57: =VLOOKUP(0,'2023-24 Settlement data '!$B$7:$ET$32,K57,FALSE) -> Ebrill 2022 | F57: =VLOOKUP(Text!$F$130,'2023-24 Settlement data '!$B$9:$EU$30,$K57,FALSE) ->  | G57: =IF('iaith - language'!$K$1=2,VLOOKUP(J57,Text!$A$4:$C$198,2,FALSE),VLOOKUP(J57,Text!$A$4:$C$198,3,FALSE)) -> Llywodraeth Cymru | J57: 29 | K57: 33
A58: 148 | B58: 149 | C58: =IF('iaith - language'!$K$1=2,VLOOKUP(A58,Text!$A$3:$C$402,2,0),VLOOKUP(A58,Text!$A$3:$C$402,3,0)) -> DATA MARWOLAETHAU | D58: =IF('iaith - language'!$K$1=2,VLOOKUP(B58,Text!$A$3:$C$402,2,0),VLOOKUP(B58,Text!$A$3:$C$402,3,0)) -> Nifer y marwolaethau wedi'u cofrestru | E58: =VLOOKUP(0,'2023-24 Settlement data '!$B$7:$ET$32,K58,FALSE) -> 2021 | F58: =VLOOKUP(Text!$F$130,'2023-24 Settlement data '!$B$9:$EU$30,$K58,FALSE) ->  | G58: =IF('iaith - language'!$K$1=2,VLOOKUP(J58,Text!$A$4:$C$198,2,FALSE),VLOOKUP(J58,Text!$A$4:$C$198,3,FALSE)) -> Y Swyddfa Ystadegau Gwladol | J58: 158 | K58: 34
A59: 150 | B59: 151 | C59: =IF('iaith - language'!$K$1=2,VLOOKUP(A59,Text!$A$3:$C$402,2,0),VLOOKUP(A59,Text!$A$3:$C$402,3,0)) -> DATA CYNLLUNIAU GOSTYNGIADAU'R DRETH GYNGOR | D59: =IF('iaith - language'!$K$1=2,VLOOKUP(B59,Text!$A$3:$C$402,2,0),VLOOKUP(B59,Text!$A$3:$C$402,3,0)) -> Llwyth achosion Cynlluniau Gostyngiadau'r Dreth Gyngor | E59: =VLOOKUP(0,'2023-24 Settlement data '!$B$7:$ET$32,K59,FALSE) -> 2021-22 | F59: =VLOOKUP(Text!$F$130,'2023-24 Settlement data '!$B$9:$EU$30,$K59,FALSE) ->  | G59: =IF('iaith - language'!$K$1=2,VLOOKUP(J59,Text!$A$4:$C$198,2,FALSE),VLOOKUP(J59,Text!$A$4:$C$198,3,FALSE)) -> Llywodraeth Cymru | J59: 29 | K59: 35
B60: 152 | D60: =IF('iaith - language'!$K$1=2,VLOOKUP(B60,Text!$A$3:$C$402,2,0),VLOOKUP(B60,Text!$A$3:$C$402,3,0)) -> Gwariant Cynlluniau Gostyngiadau'r Dreth Gyngor | E60: =VLOOKUP(0,'2023-24 Settlement data '!$B$7:$ET$32,K60,FALSE) -> 2021-22 | F60: =VLOOKUP(Text!$F$130,'2023-24 Settlement data '!$B$9:$EU$30,$K60,FALSE) ->  | K60: 36
B61: 152.5 | D61: =IF('iaith - language'!$K$1=2,VLOOKUP(B61,Text!$A$3:$C$402,2,0),VLOOKUP(B61,Text!$A$3:$C$402,3,0)) -> Cefnogaeth CTRS Covid-19 | E61: =VLOOKUP(0,'2023-24 Settlement data '!$B$7:$ET$32,K61,FALSE) -> 2021-22 | F61: =VLOOKUP(Text!$F$130,'2023-24 Settlement data '!$B$9:$EU$30,$K61,FALSE) ->  | K61: 37
A62: 159 | B62: 160 | C62: =IF('iaith - language'!$K$1=2,VLOOKUP(A62,Text!$A$3:$C$402,2,0),VLOOKUP(A62,Text!$A$3:$C$402,3,0)) -> LLONGAU SY'N CYRRAEDD PORTHLADDOEDD | D62: =IF('iaith - language'!$K$1=2,VLOOKUP(B62,Text!$A$3:$C$402,2,0),VLOOKUP(B62,Text!$A$3:$C$402,3,0)) -> Nifer y llongau sy'n cyrraedd porthladdoedd | E62: =VLOOKUP(0,'2023-24 Settlement data '!$B$7:$ET$32,K62,FALSE) -> 2021 | F62: =VLOOKUP(Text!$F$130,'2023-24 Settlement data '!$B$9:$EU$30,$K62,FALSE) ->  | G62: =IF('iaith - language'!$K$1=2,VLOOKUP(J62,Text!$A$4:$C$558,2,FALSE),VLOOKUP(J62,Text!$A$4:$C$558,3,FALSE)) -> Ystadegau morol a llongau, Yr Adran Drafnidiaeth | J62: 272 | K62: 38
A63: 161 | B63: 162 | C63: =IF('iaith - language'!$K$1=2,VLOOKUP(A63,Text!$A$3:$C$402,2,0),VLOOKUP(A63,Text!$A$3:$C$402,3,0)) -> DATA TWRISTIAETH | D63: =IF('iaith - language'!$K$1=2,VLOOKUP(B63,Text!$A$3:$C$402,2,0),VLOOKUP(B63,Text!$A$3:$C$402,3,0)) -> Nosweithiau twristiaid (miloedd) gan gynnwys AirBnb | E63: =VLOOKUP(0,'2023-24 Settlement data '!$B$7:$ET$32,K63,FALSE) -> 2019 | F63: =VLOOKUP(Text!$F$130,'2023-24 Settlement data '!$B$9:$EU$30,$K63,FALSE) ->  | G63: =IF('iaith - language'!$K$1=2,VLOOKUP(J63,Text!$A$4:$C$198,2,FALSE),VLOOKUP(J63,Text!$A$4:$C$198,3,FALSE)) -> Scarborough Tourism Economic Activity Monitor (STEAM) | J63: 164 | K63: 39
B64: 163 | D64: =IF('iaith - language'!$K$1=2,VLOOKUP(B64,Text!$A$3:$C$402,2,0),VLOOKUP(B64,Text!$A$3:$C$402,3,0)) -> Diwrnodau twristiaid (miloedd) | E64: =VLOOKUP(0,'2023-24 Settlement data '!$B$7:$ET$32,K64,FALSE) -> 2019 | F64: =VLOOKUP(Text!$F$130,'2023-24 Settlement data '!$B$9:$EU$30,$K64,FALSE) ->  | K64: 40
A65: 165 | B65: 166 | C65: =IF('iaith - language'!$K$1=2,VLOOKUP(A65,Text!$A$3:$C$402,2,0),VLOOKUP(A65,Text!$A$3:$C$402,3,0)) -> DATA AR GANRAN YR HAWLWYR BUDD-DAL DIWEITHDRA | D65: =IF('iaith - language'!$K$1=2,VLOOKUP(B65,Text!$A$3:$C$402,2,0),VLOOKUP(B65,Text!$A$3:$C$402,3,0)) -> Nifer yr hawlwyr | E65: =VLOOKUP(0,'2023-24 Settlement data '!$B$7:$ET$32,K65,FALSE) -> Hydref 2021 | F65: =VLOOKUP(Text!$F$130,'2023-24 Settlement data '!$B$9:$EU$30,$K65,FALSE) ->  | G65: =IF('iaith - language'!$K$1=2,VLOOKUP(B66,Text!$A$4:$C$198,2,FALSE),VLOOKUP(B66,Text!$A$4:$C$198,3,FALSE)) -> NOMIS ystadegau swyddogol y farchnad lafur | J65: 167 | K65: 41
B66: 209 | E66: =VLOOKUP(0,'2023-24 Settlement data '!$B$7:$ET$32,K66,FALSE) -> Tachwedd 2021 | F66: =VLOOKUP(Text!$F$130,'2023-24 Settlement data '!$B$9:$EU$30,$K66,FALSE) ->  | J66: =J65+1 -> 168 | K66: 42
E67: =VLOOKUP(0,'2023-24 Settlement data '!$B$7:$ET$32,K67,FALSE) -> Rhagfyr 2021 | F67: =VLOOKUP(Text!$F$130,'2023-24 Settlement data '!$B$9:$EU$30,$K67,FALSE) ->  | J67: 169 | K67: 43
E68: =VLOOKUP(0,'2023-24 Settlement data '!$B$7:$ET$32,K68,FALSE) -> Ionawr 2022 | F68: =VLOOKUP(Text!$F$130,'2023-24 Settlement data '!$B$9:$EU$30,$K68,FALSE) ->  | J68: 170 | K68: 44
E69: =VLOOKUP(0,'2023-24 Settlement data '!$B$7:$ET$32,K69,FALSE) -> Chwefror 2022 | F69: =VLOOKUP(Text!$F$130,'2023-24 Settlement data '!$B$9:$EU$30,$K69,FALSE) ->  | J69: 171 | K69: 45
E70: =VLOOKUP(0,'2023-24 Settlement data '!$B$7:$ET$32,K70,FALSE) -> Mawrth 2022 | F70: =VLOOKUP(Text!$F$130,'2023-24 Settlement data '!$B$9:$EU$30,$K70,FALSE) ->  | J70: 172 | K70: 46
E71: =VLOOKUP(0,'2023-24 Settlement data '!$B$7:$ET$32,K71,FALSE) -> Ebrill 2022 | F71: =VLOOKUP(Text!$F$130,'2023-24 Settlement data '!$B$9:$EU$30,$K71,FALSE) ->  | J71: 173 | K71: 47
E72: =VLOOKUP(0,'2023-24 Settlement data '!$B$7:$ET$32,K72,FALSE) -> Mai 2022 | F72: =VLOOKUP(Text!$F$130,'2023-24 Settlement data '!$B$9:$EU$30,$K72,FALSE) ->  | J72: 174 | K72: 48
E73: =VLOOKUP(0,'2023-24 Settlement data '!$B$7:$ET$32,K73,FALSE) -> Mehefin 2022 | F73: =VLOOKUP(Text!$F$130,'2023-24 Settlement data '!$B$9:$EU$30,$K73,FALSE) ->  | J73: 175 | K73: 49
E74: =VLOOKUP(0,'2023-24 Settlement data '!$B$7:$ET$32,K74,FALSE) -> Gorffennaf 2022 | F74: =VLOOKUP(Text!$F$130,'2023-24 Settlement data '!$B$9:$EU$30,$K74,FALSE) ->  | J74: 176 | K74: 50
E75: =VLOOKUP(0,'2023-24 Settlement data '!$B$7:$ET$32,K75,FALSE) -> Awst 2022 | F75: =VLOOKUP(Text!$F$130,'2023-24 Settlement data '!$B$9:$EU$30,$K75,FALSE) ->  | J75: 177 | K75: 51
A76: 179 | B76: 194 | C76: =IF('iaith - language'!$K$1=2,VLOOKUP(A76,Text!$A$3:$C$402,2,0),VLOOKUP(A76,Text!$A$3:$C$402,3,0)) -> DATA AR HAWLWYR BUDD-DALIADAU | D76: =IF('iaith - language'!$K$1=2,VLOOKUP(B76,Text!$A$3:$C$402,2,0),VLOOKUP(B76,Text!$A$3:$C$402,3,0)) -> Nifer yr Hawlwyr Cymhorthdal Incwm, 18-64 oed | E76: =VLOOKUP(0,'2023-24 Settlement data '!$B$7:$ET$32,K76,FALSE) -> Mai 2021 | F76: =VLOOKUP(Text!$F$130,'2023-24 Settlement data '!$B$9:$EU$30,$K76,FALSE) ->  | G76: =IF('iaith - language'!$K$1=2,VLOOKUP(B77,Text!$A$4:$C$198,2,FALSE),VLOOKUP(B77,Text!$A$4:$C$198,3,FALSE)) -> Yr Adran Gwaith a Phensiynau (DWP) | J76: 114 | K76: 52
B77: 208 | E77: =VLOOKUP(0,'2023-24 Settlement data '!$B$7:$ET$32,K77,FALSE) -> Awst 2021 | F77: =VLOOKUP(Text!$F$130,'2023-24 Settlement data '!$B$9:$EU$30,$K77,FALSE) ->  | J77: 182 | K77: 53
E78: =VLOOKUP(0,'2023-24 Settlement data '!$B$7:$ET$32,K78,FALSE) -> Tachwedd 2021 | F78: =VLOOKUP(Text!$F$130,'2023-24 Settlement data '!$B$9:$EU$30,$K78,FALSE) ->  | J78: 185 | K78: 54
E79: =VLOOKUP(0,'2023-24 Settlement data '!$B$7:$ET$32,K79,FALSE) -> Chwefror 2022 | F79: =VLOOKUP(Text!$F$130,'2023-24 Settlement data '!$B$9:$EU$30,$K79,FALSE) ->  | J79: 188 | K79: 55
B80: 195 | D80: =IF('iaith - language'!$K$1=2,VLOOKUP(B80,Text!$A$3:$C$402,2,0),VLOOKUP(B80,Text!$A$3:$C$402,3,0)) -> Nifer y Derbynwyr Lwfans Ceisio Swydd ar Sail Incwm, 18-64 oed | E80: =VLOOKUP(0,'2023-24 Settlement data '!$B$7:$ET$32,K80,FALSE) -> Mai 2021 | F80: =VLOOKUP(Text!$F$130,'2023-24 Settlement data '!$B$9:$EU$30,$K80,FALSE) ->  | G80: =IF('iaith - language'!$K$1=2,VLOOKUP(B81,Text!$A$4:$C$198,2,FALSE),VLOOKUP(B81,Text!$A$4:$C$198,3,FALSE)) -> NOMIS ystadegau swyddogol y farchnad lafur | J80: 114 | K80: 56
B81: 209 | E81: =VLOOKUP(0,'2023-24 Settlement data '!$B$7:$ET$32,K81,FALSE) -> Awst 2021 | F81: =VLOOKUP(Text!$F$130,'2023-24 Settlement data '!$B$9:$EU$30,$K81,FALSE) ->  | J81: 182 | K81: 57
E82: =VLOOKUP(0,'2023-24 Settlement data '!$B$7:$ET$32,K82,FALSE) -> Tachwedd 2021 | F82: =VLOOKUP(Text!$F$130,'2023-24 Settlement data '!$B$9:$EU$30,$K82,FALSE) ->  | J82: 185 | K82: 58
E83: =VLOOKUP(0,'2023-24 Settlement data '!$B$7:$ET$32,K83,FALSE) -> Chwefror 2022 | F83: =VLOOKUP(Text!$F$130,'2023-24 Settlement data '!$B$9:$EU$30,$K83,FALSE) ->  | J83: 188 | K83: 59
B84: 196 | D84: =IF('iaith - language'!$K$1=2,VLOOKUP(B84,Text!$A$3:$C$402,2,0),VLOOKUP(B84,Text!$A$3:$C$402,3,0)) -> Nifer yr hawlwyr Credyd Pensiwn, 18-64 oed | E84: =VLOOKUP(0,'2023-24 Settlement data '!$B$7:$ET$32,K84,FALSE) -> Mai 2021 | F84: =VLOOKUP(Text!$F$130,'2023-24 Settlement data '!$B$9:$EU$30,$K84,FALSE) ->  | G84: =IF('iaith - language'!$K$1=2,VLOOKUP(B85,Text!$A$4:$C$198,2,FALSE),VLOOKUP(B85,Text!$A$4:$C$198,3,FALSE)) -> Yr Adran Gwaith a Phensiynau (DWP) | J84: 114 | K84: 60
B85: 208 | E85: =VLOOKUP(0,'2023-24 Settlement data '!$B$7:$ET$32,K85,FALSE) -> Awst 2021 | F85: =VLOOKUP(Text!$F$130,'2023-24 Settlement data '!$B$9:$EU$30,$K85,FALSE) ->  | J85: 182 | K85: 61
E86: =VLOOKUP(0,'2023-24 Settlement data '!$B$7:$ET$32,K86,FALSE) -> Tachwedd 2021 | F86: =VLOOKUP(Text!$F$130,'2023-24 Settlement data '!$B$9:$EU$30,$K86,FALSE) ->  | J86: 185 | K86: 62
E87: =VLOOKUP(0,'2023-24 Settlement data '!$B$7:$ET$32,K87,FALSE) -> Chwefror 2022 | F87: =VLOOKUP(Text!$F$130,'2023-24 Settlement data '!$B$9:$EU$30,$K87,FALSE) ->  | J87: 188 | K87: 63
B88: 197 | D88: =IF('iaith - language'!$K$1=2,VLOOKUP(B88,Text!$A$3:$C$402,2,0),VLOOKUP(B88,Text!$A$3:$C$402,3,0)) -> Nifer y rhai sydd yn derbyn Credyd Cynhwysol (ddim mewn cyflogaeth) 18-64 oed | E88: =VLOOKUP(0,'2023-24 Settlement data '!$B$7:$ET$32,K88,FALSE) -> Mai 2021 | F88: =VLOOKUP(Text!$F$130,'2023-24 Settlement data '!$B$9:$EU$30,$K88,FALSE) ->  | G88: =IF('iaith - language'!$K$1=2,VLOOKUP(B89,Text!$A$4:$C$198,2,FALSE),VLOOKUP(B89,Text!$A$4:$C$198,3,FALSE)) -> Yr Adran Gwaith a Phensiynau (DWP) | J88: 114 | K88: 64
B89: 208 | E89: =VLOOKUP(0,'2023-24 Settlement data '!$B$7:$ET$32,K89,FALSE) -> Awst 2021 | F89: =VLOOKUP(Text!$F$130,'2023-24 Settlement data '!$B$9:$EU$30,$K89,FALSE) ->  | J89: 182 | K89: 65
E90: =VLOOKUP(0,'2023-24 Settlement data '!$B$7:$ET$32,K90,FALSE) -> Tachwedd 2021 | F90: =VLOOKUP(Text!$F$130,'2023-24 Settlement data '!$B$9:$EU$30,$K90,FALSE) ->  | J90: 185 | K90: 66
E91: =VLOOKUP(0,'2023-24 Settlement data '!$B$7:$ET$32,K91,FALSE) -> Chwefror 2022 | F91: =VLOOKUP(Text!$F$130,'2023-24 Settlement data '!$B$9:$EU$30,$K91,FALSE) ->  | J91: 188 | K91: 67
B92: 198 | D92: =IF('iaith - language'!$K$1=2,VLOOKUP(B92,Text!$A$3:$C$402,2,0),VLOOKUP(B92,Text!$A$3:$C$402,3,0)) -> Cyfanswm yr Hawlwyr Cymhorthdal Incwm | E92: =VLOOKUP(0,'2023-24 Settlement data '!$B$7:$ET$32,K92,FALSE) -> Mai 2021 | F92: =VLOOKUP(Text!$F$130,'2023-24 Settlement data '!$B$9:$EU$30,$K92,FALSE) ->  | G92: =IF('iaith - language'!$K$1=2,VLOOKUP(B93,Text!$A$4:$C$198,2,FALSE),VLOOKUP(B93,Text!$A$4:$C$198,3,FALSE)) -> Yr Adran Gwaith a Phensiynau (DWP) | J92: 114 | K92: 68
B93: 208 | E93: =VLOOKUP(0,'2023-24 Settlement data '!$B$7:$ET$32,K93,FALSE) -> Awst 2021 | F93: =VLOOKUP(Text!$F$130,'2023-24 Settlement data '!$B$9:$EU$30,$K93,FALSE) ->  | J93: 182 | K93: 69
E94: =VLOOKUP(0,'2023-24 Settlement data '!$B$7:$ET$32,K94,FALSE) -> Tachwedd 2021 | F94: =VLOOKUP(Text!$F$130,'2023-24 Settlement data '!$B$9:$EU$30,$K94,FALSE) ->  | J94: 185 | K94: 70
E95: =VLOOKUP(0,'2023-24 Settlement data '!$B$7:$ET$32,K95,FALSE) -> Chwefror 2022 | F95: =VLOOKUP(Text!$F$130,'2023-24 Settlement data '!$B$9:$EU$30,$K95,FALSE) ->  | J95: 188 | K95: 71
B96: 199 | D96: =IF('iaith - language'!$K$1=2,VLOOKUP(B96,Text!$A$3:$C$402,2,0),VLOOKUP(B96,Text!$A$3:$C$402,3,0)) -> Cyfanswm y Derbynwyr Lwfans Ceisio Swydd ar Sail Incwm | E96: =VLOOKUP(0,'2023-24 Settlement data '!$B$7:$ET$32,K96,FALSE) -> Mai 2021 | F96: =VLOOKUP(Text!$F$130,'2023-24 Settlement data '!$B$9:$EU$30,$K96,FALSE) ->  | G96: =IF('iaith - language'!$K$1=2,VLOOKUP(B97,Text!$A$4:$C$198,2,FALSE),VLOOKUP(B97,Text!$A$4:$C$198,3,FALSE)) -> NOMIS ystadegau swyddogol y farchnad lafur | J96: 114 | K96: =K95+1 -> 72
B97: 209 | E97: =VLOOKUP(0,'2023-24 Settlement data '!$B$7:$ET$32,K97,FALSE) -> Awst 2021 | F97: =VLOOKUP(Text!$F$130,'2023-24 Settlement data '!$B$9:$EU$30,$K97,FALSE) ->  | J97: 182 | K97: 73
E98: =VLOOKUP(0,'2023-24 Settlement data '!$B$7:$ET$32,K98,FALSE) -> Tachwedd 2021 | F98: =VLOOKUP(Text!$F$130,'2023-24 Settlement data '!$B$9:$EU$30,$K98,FALSE) ->  | J98: 185 | K98: 74
E99: =VLOOKUP(0,'2023-24 Settlement data '!$B$7:$ET$32,K99,FALSE) -> Chwefror 2022 | F99: =VLOOKUP(Text!$F$130,'2023-24 Settlement data '!$B$9:$EU$30,$K99,FALSE) ->  | J99: 188 | K99: 75
B100: 200 | D100: =IF('iaith - language'!$K$1=2,VLOOKUP(B100,Text!$A$3:$C$402,2,0),VLOOKUP(B100,Text!$A$3:$C$402,3,0)) -> Cyfanswm Hawlwyr Credyd Pensiwn | E100: =VLOOKUP(0,'2023-24 Settlement data '!$B$7:$ET$32,K100,FALSE) -> Mai 2021 | F100: =VLOOKUP(Text!$F$130,'2023-24 Settlement data '!$B$9:$EU$30,$K100,FALSE) ->  | G100: =IF('iaith - language'!$K$1=2,VLOOKUP(B101,Text!$A$4:$C$198,2,FALSE),VLOOKUP(B101,Text!$A$4:$C$198,3,FALSE)) -> Yr Adran Gwaith a Phensiynau (DWP) | J100: 114 | K100: 76
B101: 208 | E101: =VLOOKUP(0,'2023-24 Settlement data '!$B$7:$ET$32,K101,FALSE) -> Awst 2021 | F101: =VLOOKUP(Text!$F$130,'2023-24 Settlement data '!$B$9:$EU$30,$K101,FALSE) ->  | J101: 182 | K101: 77
E102: =VLOOKUP(0,'2023-24 Settlement data '!$B$7:$ET$32,K102,FALSE) -> Tachwedd 2021 | F102: =VLOOKUP(Text!$F$130,'2023-24 Settlement data '!$B$9:$EU$30,$K102,FALSE) ->  | J102: 185 | K102: 78
E103: =VLOOKUP(0,'2023-24 Settlement data '!$B$7:$ET$32,K103,FALSE) -> Chwefror 2022 | F103: =VLOOKUP(Text!$F$130,'2023-24 Settlement data '!$B$9:$EU$30,$K103,FALSE) ->  | J103: 188 | K103: 79
B104: 201 | D104: =IF('iaith - language'!$K$1=2,VLOOKUP(B104,Text!$A$3:$C$402,2,0),VLOOKUP(B104,Text!$A$3:$C$402,3,0)) -> Cyfanswm y rhai sy’n derbyn Credyd Cynhwysol (ddim mewn cyflogaeth) | E104: =VLOOKUP(0,'2023-24 Settlement data '!$B$7:$ET$32,K104,FALSE) -> Mai 2021 | F104: =VLOOKUP(Text!$F$130,'2023-24 Settlement data '!$B$9:$EU$30,$K104,FALSE) ->  | G104: =IF('iaith - language'!$K$1=2,VLOOKUP(B105,Text!$A$4:$C$198,2,FALSE),VLOOKUP(B105,Text!$A$4:$C$198,3,FALSE)) -> Yr Adran Gwaith a Phensiynau (DWP) | J104: 114 | K104: 80
B105: 208 | E105: =VLOOKUP(0,'2023-24 Settlement data '!$B$7:$ET$32,K105,FALSE) -> Awst 2021 | F105: =VLOOKUP(Text!$F$130,'2023-24 Settlement data '!$B$9:$EU$30,$K105,FALSE) ->  | J105: 182 | K105: 81
E106: =VLOOKUP(0,'2023-24 Settlement data '!$B$7:$ET$32,K106,FALSE) -> Tachwedd 2021 | F106: =VLOOKUP(Text!$F$130,'2023-24 Settlement data '!$B$9:$EU$30,$K106,FALSE) ->  | J106: 185 | K106: 82
E107: =VLOOKUP(0,'2023-24 Settlement data '!$B$7:$ET$32,K107,FALSE) -> Chwefror 2022 | F107: =VLOOKUP(Text!$F$130,'2023-24 Settlement data '!$B$9:$EU$30,$K107,FALSE) ->  | J107: 188 | K107: 83
B108: 202 | D108: =IF('iaith - language'!$K$1=2,VLOOKUP(B108,Text!$A$3:$C$402,2,0),VLOOKUP(B108,Text!$A$3:$C$402,3,0)) -> Nifer yr Hawlwyr Lwfans Anabledd Difrifol, 18-64 oed | E108: =VLOOKUP(0,'2023-24 Settlement data '!$B$7:$ET$32,K108,FALSE) -> Mai 2021 | F108: =VLOOKUP(Text!$F$130,'2023-24 Settlement data '!$B$9:$EU$30,$K108,FALSE) ->  | G108: =IF('iaith - language'!$K$1=2,VLOOKUP(B109,Text!$A$4:$C$198,2,FALSE),VLOOKUP(B109,Text!$A$4:$C$198,3,FALSE)) -> Yr Adran Gwaith a Phensiynau (DWP) | J108: 114 | K108: 84
B109: 208 | E109: =VLOOKUP(0,'2023-24 Settlement data '!$B$7:$ET$32,K109,FALSE) -> Awst 2021 | F109: =VLOOKUP(Text!$F$130,'2023-24 Settlement data '!$B$9:$EU$30,$K109,FALSE) ->  | J109: 182 | K109: 85
E110: =VLOOKUP(0,'2023-24 Settlement data '!$B$7:$ET$32,K110,FALSE) -> Tachwedd 2021 | F110: =VLOOKUP(Text!$F$130,'2023-24 Settlement data '!$B$9:$EU$30,$K110,FALSE) ->  | J110: 185 | K110: 86
E111: =VLOOKUP(0,'2023-24 Settlement data '!$B$7:$ET$32,K111,FALSE) -> Chwefror 2022 | F111: =VLOOKUP(Text!$F$130,'2023-24 Settlement data '!$B$9:$EU$30,$K111,FALSE) ->  | J111: 188 | K111: 87
B112: 203 | D112: =IF('iaith - language'!$K$1=2,VLOOKUP(B112,Text!$A$3:$C$402,2,0),VLOOKUP(B112,Text!$A$3:$C$402,3,0)) -> Nifer yr Hawlwyr Lwfans Byw i'r Anabl, 18-64 oed | E112: =VLOOKUP(0,'2023-24 Settlement data '!$B$7:$ET$32,K112,FALSE) -> Mai 2021 | F112: =VLOOKUP(Text!$F$130,'2023-24 Settlement data '!$B$9:$EU$30,$K112,FALSE) ->  | G112: =IF('iaith - language'!$K$1=2,VLOOKUP(B113,Text!$A$4:$C$198,2,FALSE),VLOOKUP(B113,Text!$A$4:$C$198,3,FALSE)) -> Yr Adran Gwaith a Phensiynau (DWP) | J112: 114 | K112: 88
B113: 208 | E113: =VLOOKUP(0,'2023-24 Settlement data '!$B$7:$ET$32,K113,FALSE) -> Awst 2021 | F113: =VLOOKUP(Text!$F$130,'2023-24 Settlement data '!$B$9:$EU$30,$K113,FALSE) ->  | J113: 182 | K113: 89
E114: =VLOOKUP(0,'2023-24 Settlement data '!$B$7:$ET$32,K114,FALSE) -> Tachwedd 2021 | F114: =VLOOKUP(Text!$F$130,'2023-24 Settlement data '!$B$9:$EU$30,$K114,FALSE) ->  | J114: 185 | K114: 90
E115: =VLOOKUP(0,'2023-24 Settlement data '!$B$7:$ET$32,K115,FALSE) -> Chwefror 2022 | F115: =VLOOKUP(Text!$F$130,'2023-24 Settlement data '!$B$9:$EU$30,$K115,FALSE) ->  | J115: 188 | K115: 91
B116: 204 | D116: =IF('iaith - language'!$K$1=2,VLOOKUP(B116,Text!$A$3:$C$402,2,0),VLOOKUP(B116,Text!$A$3:$C$402,3,0)) -> Nifer yr Hawlwyr Taliad Annibyniaeth Bersonol sydd yn 18-64 oed | E116: =VLOOKUP(0,'2023-24 Settlement data '!$B$7:$ET$32,K116,FALSE) -> Mai 2021 | F116: =VLOOKUP(Text!$F$130,'2023-24 Settlement data '!$B$9:$EU$30,$K116,FALSE) ->  | G116: =IF('iaith - language'!$K$1=2,VLOOKUP(B117,Text!$A$4:$C$198,2,FALSE),VLOOKUP(B117,Text!$A$4:$C$198,3,FALSE)) -> Yr Adran Gwaith a Phensiynau (DWP) | J116: 114 | K116: 92
B117: 208 | E117: =VLOOKUP(0,'2023-24 Settlement data '!$B$7:$ET$32,K117,FALSE) -> Awst 2021 | F117: =VLOOKUP(Text!$F$130,'2023-24 Settlement data '!$B$9:$EU$30,$K117,FALSE) ->  | J117: 182 | K117: 93
E118: =VLOOKUP(0,'2023-24 Settlement data '!$B$7:$ET$32,K118,FALSE) -> Tachwedd 2021 | F118: =VLOOKUP(Text!$F$130,'2023-24 Settlement data '!$B$9:$EU$30,$K118,FALSE) ->  | J118: 185 | K118: 94
E119: =VLOOKUP(0,'2023-24 Settlement data '!$B$7:$ET$32,K119,FALSE) -> Chwefror 2022 | F119: =VLOOKUP(Text!$F$130,'2023-24 Settlement data '!$B$9:$EU$30,$K119,FALSE) ->  | J119: 188 | K119: 95
B120: 205 | D120: =IF('iaith - language'!$K$1=2,VLOOKUP(B120,Text!$A$3:$C$402,2,0),VLOOKUP(B120,Text!$A$3:$C$402,3,0)) -> Hawlwyr Credyd Pensiwn, 65 oed a hŷn | E120: =VLOOKUP(0,'2023-24 Settlement data '!$B$7:$ET$32,K120,FALSE) -> Mai 2021 | F120: =VLOOKUP(Text!$F$130,'2023-24 Settlement data '!$B$9:$EU$30,$K120,FALSE) ->  | G120: =IF('iaith - language'!$K$1=2,VLOOKUP(B121,Text!$A$4:$C$198,2,FALSE),VLOOKUP(B121,Text!$A$4:$C$198,3,FALSE)) -> Yr Adran Gwaith a Phensiynau (DWP) | J120: 114 | K120: 96
B121: 208 | E121: =VLOOKUP(0,'2023-24 Settlement data '!$B$7:$ET$32,K121,FALSE) -> Awst 2021 | F121: =VLOOKUP(Text!$F$130,'2023-24 Settlement data '!$B$9:$EU$30,$K121,FALSE) ->  | J121: 182 | K121: 97
E122: =VLOOKUP(0,'2023-24 Settlement data '!$B$7:$ET$32,K122,FALSE) -> Tachwedd 2021 | F122: =VLOOKUP(Text!$F$130,'2023-24 Settlement data '!$B$9:$EU$30,$K122,FALSE) ->  | J122: 185 | K122: 98
E123: =VLOOKUP(0,'2023-24 Settlement data '!$B$7:$ET$32,K123,FALSE) -> Chwefror 2022 | F123: =VLOOKUP(Text!$F$130,'2023-24 Settlement data '!$B$9:$EU$30,$K123,FALSE) ->  | J123: 188 | K123: 99
B124: 206 | D124: =IF('iaith - language'!$K$1=2,VLOOKUP(B124,Text!$A$3:$C$402,2,0),VLOOKUP(B124,Text!$A$3:$C$402,3,0)) -> Cyfanswn yr hawlwyr Cymhorthdal Incwm, Lwfans Ceisio Gwaith, a Chredyd Pensiwn | E124: =VLOOKUP(0,'2023-24 Settlement data '!$B$7:$ET$32,K124,FALSE) -> Mai 2021 | F124: =VLOOKUP(Text!$F$130,'2023-24 Settlement data '!$B$9:$EU$30,$K124,FALSE) ->  | G124: =IF('iaith - language'!$K$1=2,VLOOKUP(B125,Text!$A$4:$C$198,2,FALSE),VLOOKUP(B125,Text!$A$4:$C$198,3,FALSE)) -> NOMIS ystadegau swyddogol y farchnad lafur a Yr Adran Gwaith a Phensiynau (DWP) | J124: 114 | K124: 100
B125: 210 | E125: =VLOOKUP(0,'2023-24 Settlement data '!$B$7:$ET$32,K125,FALSE) -> Awst 2021 | F125: =VLOOKUP(Text!$F$130,'2023-24 Settlement data '!$B$9:$EU$30,$K125,FALSE) ->  | J125: 182 | K125: 101
E126: =VLOOKUP(0,'2023-24 Settlement data '!$B$7:$ET$32,K126,FALSE) -> Tachwedd 2021 | F126: =VLOOKUP(Text!$F$130,'2023-24 Settlement data '!$B$9:$EU$30,$K126,FALSE) ->  | J126: 185 | K126: 102
E127: =VLOOKUP(0,'2023-24 Settlement data '!$B$7:$ET$32,K127,FALSE) -> Chwefror 2022 | F127: =VLOOKUP(Text!$F$130,'2023-24 Settlement data '!$B$9:$EU$30,$K127,FALSE) ->  | J127: 188 | K127: 103
A128: 271.5 | B128: 274 | C128: =IF('iaith - language'!$K$1=2,VLOOKUP(A128,Text!$A$3:$C$402,2,0),VLOOKUP(A128,Text!$A$3:$C$402,3,0)) -> Stoc eiddo treth cyngor | D128: =IF('iaith - language'!$K$1=2,VLOOKUP(A128,Text!$A$3:$C$402, 2, 0),VLOOKUP(A128,Text!$A$3:$C$402, 3,0)) -> Stoc eiddo treth cyngor | E128: =VLOOKUP(0,'2023-24 Settlement data '!$B$7:$ET$32,K128,FALSE) -> Mawrth 2022 | F128: =VLOOKUP(Text!$F$130,'2023-24 Settlement data '!$B$9:$EU$30,$K128,FALSE) ->  | G128: =IF('iaith - language'!$K$1=2,VLOOKUP(B128,Text!$A$4:$C$198,2,FALSE),VLOOKUP(B128,Text!$A$4:$C$198,3,FALSE)) -> Asiantaeth y Swyddfa Brisio | J128: 115 | K128: 104
A129: 40 | B129: 53 | C129: =IF('iaith - language'!$K$1=2,VLOOKUP(A129,Text!$A$3:$C$402,2,0),VLOOKUP(A129,Text!$A$3:$C$402,3,0)) -> DATA FFYRDD | D129: =IF('iaith - language'!$K$1=2,VLOOKUP(B129,Text!$A$3:$C$402,2,0),VLOOKUP(B129,Text!$A$3:$C$402,3,0)) -> Hyd ffyrdd A y sir (km) | E129: March 2022 | F129: =VLOOKUP(Text!$F$130,'2023-24 Settlement data '!$B$9:$EU$30,$K129,FALSE) ->  | G129: =IF('iaith - language'!$K$1=2,VLOOKUP(A130,Text!$A$4:$C$198,2,FALSE),VLOOKUP(A130,Text!$A$4:$C$198,3,FALSE)) -> Llywodraeth Cymru | K129: 105
A130: 29 | B130: 55 | D130: =IF('iaith - language'!$K$1=2,VLOOKUP(B130,Text!$A$3:$C$402,2,0),VLOOKUP(B130,Text!$A$3:$C$402,3,0)) -> Hyd ffyrdd B ac C (km) | F130: =VLOOKUP(Text!$F$130,'2023-24 Settlement data '!$B$9:$EU$30,$K130,FALSE) ->  | K130: 106
B131: 57 | D131: =IF('iaith - language'!$K$1=2,VLOOKUP(B131,Text!$A$3:$C$402,2,0),VLOOKUP(B131,Text!$A$3:$C$402,3,0)) -> Hyd is-ffyrdd â wyneb caled (km) | F131: =VLOOKUP(Text!$F$130,'2023-24 Settlement data '!$B$9:$EU$30,$K131,FALSE) ->  | K131: 107
B132: 54 | D132: =IF('iaith - language'!$K$1=2,VLOOKUP(B132,Text!$A$3:$C$402,2,0),VLOOKUP(B132,Text!$A$3:$C$402,3,0)) -> Hyd ffyrdd A y sir, adeiledig (km) | F132: =VLOOKUP(Text!$F$130,'2023-24 Settlement data '!$B$9:$EU$30,$K132,FALSE) ->  | K132: 108
B133: 56 | D133: =IF('iaith - language'!$K$1=2,VLOOKUP(B133,Text!$A$3:$C$402,2,0),VLOOKUP(B133,Text!$A$3:$C$402,3,0)) -> Hyd ffyrdd B ac C, adeiledig (km) | F133: =VLOOKUP(Text!$F$130,'2023-24 Settlement data '!$B$9:$EU$30,$K133,FALSE) ->  | K133: 109
B134: 58 | D134: =IF('iaith - language'!$K$1=2,VLOOKUP(B134,Text!$A$3:$C$402,2,0),VLOOKUP(B134,Text!$A$3:$C$402,3,0)) -> Hyd is-ffyrdd â wyneb caled, adeiledig (km) | F134: =VLOOKUP(Text!$F$130,'2023-24 Settlement data '!$B$9:$EU$30,$K134,FALSE) ->  | K134: 110
A136: 27 | C136: =IF('iaith - language'!$K$1=2,VLOOKUP(A136,Text!$A$3:$C$339,2,0),VLOOKUP(A136,Text!$A$3:$C$339,3,0)) -> Yr Is-adran Polisi Cyllid Llywodraeth Leol a Chynaliadwyedd, Llywodraeth Cymru
A138: 28 | B138: 271 | C138: =IF('iaith - language'!$K$1=2,VLOOKUP(A138,Text!$A$3:$C$339,2,0),VLOOKUP(A138,Text!$A$3:$C$339,3,0)) -> I'w ddychwelyd drwy e-bost i: | D138: LGFPSettlement@gov.wales

Sheet 2023-24 Settlement data
B1: 600 | C1: =IF('iaith - language'!$K$1=2,VLOOKUP(B1,Text!$A$1:$C$353,2,FALSE),VLOOKUP(B1,Text!$A$1:$C$353,3,FALSE)) -> Proses wirio data Cylch 1 - data i'w defnyddio ar gyfer Setliad 2023-24
D3: 51 | H3: 61 | I3: 62 | J3: 67 | K3: 68 | L3: 69 | M3: 70 | N3: 71 | O3: 72 | P3: 73 | Q3: 74 | R3: 75 | S3: 76 | T3: 77 | U3: 78 | V3: 79 | W3: 80 | X3: 81 | Y3: 82 | Z3: 83 | AA3: 84 | AB3: 86 | AC3: 90 | AD3: 91 | AE3: 92 | AF3: 145 | AG3: 147 | AH3: 143 | AI3: 149 | AJ3: 151 | AK3: 152 | AL3: 152.5 | AM3: 160 | AN3: 162 | AO3: 163 | AP3: 192 | BA3: 194 | BE3: 195 | BI3: 196 | BM3: 197 | BQ3: 198 | BU3: 199 | BY3: 200 | CC3: 201 | CG3: 202 | CK3: 203 | CO3: 204 | CS3: 205 | CW3: 206 | DA3: 271.5 | DB3: 53 | DC3: 55 | DD3: 57 | DE3: 54 | DF3: 56 | DG3: 58
D4: 601 | E4: =D4+1 -> 602 | F4: =E4+1 -> 603 | G4: 604 | H4: 605 | I4: 605 | AD4: 605 | AF4: 604 | AG4: 604 | AH4: 606 | AP4: 607 | AQ4: =AP4+1 -> 608 | AR4: =AQ4+1 -> 609 | AS4: 610 | AT4: 611 | AU4: 604 | AV4: 606 | AW4: 605 | AX4: 612 | AY4: =AX4+1 -> 613 | AZ4: 614 | BA4: 615 | BB4: 616 | BC4: 608 | BD4: 611 | BE4: =BA4 -> 615 | BF4: =BB4 -> 616 | BG4: 608 | BH4: 611 | BI4: =BE4 -> 615 | BJ4: =BF4 -> 616 | BK4: 608 | BL4: 611 | BM4: =BI4 -> 615 | BN4: =BJ4 -> 616 | BO4: 608 | BP4: 611 | BQ4: =BM4 -> 615 | BR4: =BN4 -> 616 | BS4: 608 | BT4: 611 | BU4: =BQ4 -> 615 | BV4: =BR4 -> 616 | BW4: 608 | BX4: 611 | BY4: =BU4 -> 615 | BZ4: =BV4 -> 616 | CA4: 608 | CB4: 611 | CC4: =BY4 -> 615 | CD4: =BZ4 -> 616 | CE4: 608 | CF4: 611 | CG4: =CC4 -> 615 | CH4: =CD4 -> 616 | CI4: 608 | CJ4: 611 | CK4: =CG4 -> 615 | CL4: =CH4 -> 616 | CM4: 608 | CN4: 611 | CO4: =CK4 -> 615 | CP4: =CL4 -> 616 | CQ4: 608 | CR4: 611 | CS4: =CO4 -> 615 | CT4: =CP4 -> 616 | CU4: 608 | CV4: 611 | CW4: =CS4 -> 615 | CX4: =CT4 -> 616 | CY4: 608 | CZ4: 611 | DA4: =G4 -> 604 | DB4: 604 | DC4: 604 | DD4: 604 | DE4: 604 | DF4: 604 | DG4: 604
D6: =IF('iaith - language'!$K$1=2,VLOOKUP(D3,Text!$A$3:$C$353,2,FALSE),VLOOKUP(D3,Text!$A$3:$C$353,3,FALSE)) -> Ceisiadau Cynllunio a Gafwyd | H6: =IF('iaith - language'!$K$1=2,VLOOKUP(H3,Text!$A$3:$C$353,2,FALSE),VLOOKUP(H3,Text!$A$3:$C$353,3,FALSE)) -> Stoc anheddau'r sector preifat | I6: =IF('iaith - language'!$K$1=2,VLOOKUP(I3,Text!$A$3:$C$353,2,FALSE),VLOOKUP(I3,Text!$A$3:$C$353,3,FALSE)) -> Arwynebedd tir (hectarau) | J6: =IF('iaith - language'!$K$1=2,VLOOKUP(J3,Text!$A$3:$C$353,2,FALSE),VLOOKUP(J3,Text!$A$3:$C$353,3,FALSE)) -> Cyfanswm y boblogaeth (amcanestyniad) | K6: =IF('iaith - language'!$K$1=2,VLOOKUP(K3,Text!$A$3:$C$353,2,FALSE),VLOOKUP(K3,Text!$A$3:$C$353,3,FALSE)) -> Poblogaeth 3 oed (amcanestyniad) | L6: =IF('iaith - language'!$K$1=2,VLOOKUP(L3,Text!$A$3:$C$353,2,FALSE),VLOOKUP(L3,Text!$A$3:$C$353,3,FALSE)) -> Poblogaeth 3 i 11 oed (amcanestyniad) | M6: =IF('iaith - language'!$K$1=2,VLOOKUP(M3,Text!$A$3:$C$353,2,FALSE),VLOOKUP(M3,Text!$A$3:$C$353,3,FALSE)) -> Poblogaeth 3 i 16 oed (amcanestyniad) | N6: =IF('iaith - language'!$K$1=2,VLOOKUP(N3,Text!$A$3:$C$353,2,FALSE),VLOOKUP(N3,Text!$A$3:$C$353,3,FALSE)) -> Poblogaeth 11 i 15 oed (amcanestyniad) | O6: =IF('iaith - language'!$K$1=2,VLOOKUP(O3,Text!$A$3:$C$353,2,FALSE),VLOOKUP(O3,Text!$A$3:$C$353,3,FALSE)) -> Poblogaeth 11 i 20 oed (amcanestyniad) | P6: =IF('iaith - language'!$K$1=2,VLOOKUP(P3,Text!$A$3:$C$353,2,FALSE),VLOOKUP(P3,Text!$A$3:$C$353,3,FALSE)) -> Poblogaeth 16 oed a throsodd (amcanestyniad) | Q6: =IF('iaith - language'!$K$1=2,VLOOKUP(Q3,Text!$A$3:$C$353,2,FALSE),VLOOKUP(Q3,Text!$A$3:$C$353,3,FALSE)) -> Poblogaeth 16 i 18 oed (amcanestyniad) | R6: =IF('iaith - language'!$K$1=2,VLOOKUP(R3,Text!$A$3:$C$353,2,FALSE),VLOOKUP(R3,Text!$A$3:$C$353,3,FALSE)) -> Poblogaeth 0 i 17 oed (amcanestyniad) | S6: =IF('iaith - language'!$K$1=2,VLOOKUP(S3,Text!$A$3:$C$353,2,FALSE),VLOOKUP(S3,Text!$A$3:$C$353,3,FALSE)) -> Poblogaeth 18 i 64 oed (amcanestyniad) | T6: =IF('iaith - language'!$K$1=2,VLOOKUP(T3,Text!$A$3:$C$353,2,FALSE),VLOOKUP(T3,Text!$A$3:$C$353,3,FALSE)) -> Poblogaeth 18 oed a throsodd (amcanestyniad) | U6: =IF('iaith - language'!$K$1=2,VLOOKUP(U3,Text!$A$3:$C$353,2,FALSE),VLOOKUP(U3,Text!$A$3:$C$353,3,FALSE)) -> Poblogaeth o dan 60 oed (amcanestyniad) | V6: =IF('iaith - language'!$K$1=2,VLOOKUP(V3,Text!$A$3:$C$353,2,FALSE),VLOOKUP(V3,Text!$A$3:$C$353,3,FALSE)) -> Poblogaeth 60 oed a throsodd (amcanestyniad) | W6: =IF('iaith - language'!$K$1=2,VLOOKUP(W3,Text!$A$3:$C$353,2,FALSE),VLOOKUP(W3,Text!$A$3:$C$353,3,FALSE)) -> Poblogaeth 85 oed a throsodd (amcanestyniad) | X6: =IF('iaith - language'!$K$1=2,VLOOKUP(X3,Text!$A$3:$C$353,2,FALSE),VLOOKUP(X3,Text!$A$3:$C$353,3,FALSE)) -> Poblogaeth oedran gweithio (16-65G/B) (amcanestyniad) | Y6: =IF('iaith - language'!$K$1=2,VLOOKUP(Y3,Text!$A$3:$C$353,2,FALSE),VLOOKUP(Y3,Text!$A$3:$C$353,3,FALSE)) -> Amcangyfrifon Poblogaeth Ganol Blwyddyn, pob oed | Z6: =IF('iaith - language'!$K$1=2,VLOOKUP(Z3,Text!$A$3:$C$353,2,FALSE),VLOOKUP(Z3,Text!$A$3:$C$353,3,FALSE)) -> Amcangyfrifon Poblogaeth Ganol Blwyddyn, 18 oed a throsodd | AA6: =IF('iaith - language'!$K$1=2,VLOOKUP(AA3,Text!$A$3:$C$353,2,FALSE),VLOOKUP(AA3,Text!$A$3:$C$353,3,FALSE)) -> Amcangyfrifon Poblogaeth Ganol Blwyddyn, 65 oed a throsodd | AB6: =IF('iaith - language'!$K$1=2,VLOOKUP(AB3,Text!$A$3:$C$353,2,FALSE),VLOOKUP(AB3,Text!$A$3:$C$353,3,FALSE)) -> Swm a wariwyd ar grantiau cyfleusterau i'r anabl wedi'u cwblhau (£s) | AC6: =IF('iaith - language'!$K$1=2,VLOOKUP(AC3,Text!$A$3:$C$353,2,FALSE),VLOOKUP(AC3,Text!$A$3:$C$353,3,FALSE)) -> Praeseptau Draenio Tir | AD6: =IF('iaith - language'!$K$1=2,VLOOKUP(AD3,Text!$A$3:$C$353,2,FALSE),VLOOKUP(AD3,Text!$A$3:$C$353,3,FALSE)) -> Hyd yr arfordir a warchodir | AE6: =IF('iaith - language'!$K$1=2,VLOOKUP(AE3,Text!$A$3:$C$353,2,FALSE),VLOOKUP(AE3,Text!$A$3:$C$353,3,FALSE)) -> Nifer y Ffermydd | AF6: =IF('iaith - language'!$K$1=2,VLOOKUP(AF3,Text!$A$3:$C$353,2,FALSE),VLOOKUP(AF3,Text!$A$3:$C$353,3,FALSE)) -> Nifer yr Eiddo Masnachu | AG6: =IF('iaith - language'!$K$1=2,VLOOKUP(AG3,Text!$A$3:$C$353,2,FALSE),VLOOKUP(AG3,Text!$A$3:$C$353,3,FALSE)) -> Nifer yr Eiddo Bwyd | AH6: =IF('iaith - language'!$K$1=2,VLOOKUP(AH3,Text!$A$3:$C$353,2,FALSE),VLOOKUP(AH3,Text!$A$3:$C$353,3,FALSE)) -> Cyfanswm yr unedau goleuadau stryd | AI6: =IF('iaith - language'!$K$1=2,VLOOKUP(AI3,Text!$A$3:$C$353,2,FALSE),VLOOKUP(AI3,Text!$A$3:$C$353,3,FALSE)) -> Nifer y marwolaethau wedi'u cofrestru | AJ6: =IF('iaith - language'!$K$1=2,VLOOKUP(AJ3,Text!$A$3:$C$353,2,FALSE),VLOOKUP(AJ3,Text!$A$3:$C$353,3,FALSE)) -> Llwyth achosion Cynlluniau Gostyngiadau'r Dreth Gyngor | AK6: =IF('iaith - language'!$K$1=2,VLOOKUP(AK3,Text!$A$3:$C$353,2,FALSE),VLOOKUP(AK3,Text!$A$3:$C$353,3,FALSE)) -> Gwariant Cynlluniau Gostyngiadau'r Dreth Gyngor | AL6: =IF('iaith - language'!$K$1=2,VLOOKUP(AL3,Text!$A$3:$C$353,2,FALSE),VLOOKUP(AL3,Text!$A$3:$C$353,3,FALSE)) -> Cefnogaeth CTRS Covid-19 | AM6: =IF('iaith - language'!$K$1=2,VLOOKUP(AM3,Text!$A$3:$C$353,2,FALSE),VLOOKUP(AM3,Text!$A$3:$C$353,3,FALSE)) -> Nifer y llongau sy'n cyrraedd porthladdoedd | AN6: =IF('iaith - language'!$K$1=2,VLOOKUP(AN3,Text!$A$3:$C$353,2,FALSE),VLOOKUP(AN3,Text!$A$3:$C$353,3,FALSE)) -> Nosweithiau twristiaid (miloedd) gan gynnwys AirBnb | AO6: =IF('iaith - language'!$K$1=2,VLOOKUP(AO3,Text!$A$3:$C$353,2,FALSE),VLOOKUP(AO3,Text!$A$3:$C$353,3,FALSE)) -> Diwrnodau twristiaid (miloedd) | AP6: =IF('iaith - language'!$K$1=2,VLOOKUP(AP3,Text!$A$3:$C$353,2,FALSE),VLOOKUP(AP3,Text!$A$3:$C$353,3,FALSE)) -> Data Hawlwyr Budd-dal | BA6: =IF('iaith - language'!$K$1=2,VLOOKUP(BA3,Text!$A$3:$C$353,2,FALSE),VLOOKUP(BA3,Text!$A$3:$C$353,3,FALSE)) -> Nifer yr Hawlwyr Cymhorthdal Incwm, 18-64 oed | BE6: =IF('iaith - language'!$K$1=2,VLOOKUP(BE3,Text!$A$3:$C$353,2,FALSE),VLOOKUP(BE3,Text!$A$3:$C$353,3,FALSE)) -> Nifer y Derbynwyr Lwfans Ceisio Swydd ar Sail Incwm, 18-64 oed | BI6: =IF('iaith - language'!$K$1=2,VLOOKUP(BI3,Text!$A$3:$C$353,2,FALSE),VLOOKUP(BI3,Text!$A$3:$C$353,3,FALSE)) -> Nifer yr hawlwyr Credyd Pensiwn, 18-64 oed | BM6: =IF('iaith - language'!$K$1=2,VLOOKUP(BM3,Text!$A$3:$C$353,2,FALSE),VLOOKUP(BM3,Text!$A$3:$C$353,3,FALSE)) -> Nifer y rhai sydd yn derbyn Credyd Cynhwysol (ddim mewn cyflogaeth) 18-64 oed | BQ6: =IF('iaith - language'!$K$1=2,VLOOKUP(BQ3,Text!$A$3:$C$353,2,FALSE),VLOOKUP(BQ3,Text!$A$3:$C$353,3,FALSE)) -> Cyfanswm yr Hawlwyr Cymhorthdal Incwm | BU6: =IF('iaith - language'!$K$1=2,VLOOKUP(BU3,Text!$A$3:$C$353,2,FALSE),VLOOKUP(BU3,Text!$A$3:$C$353,3,FALSE)) -> Cyfanswm y Derbynwyr Lwfans Ceisio Swydd ar Sail Incwm | BY6: =IF('iaith - language'!$K$1=2,VLOOKUP(BY3,Text!$A$3:$C$353,2,FALSE),VLOOKUP(BY3,Text!$A$3:$C$353,3,FALSE)) -> Cyfanswm Hawlwyr Credyd Pensiwn | CC6: =IF('iaith - language'!$K$1=2,VLOOKUP(CC3,Text!$A$3:$C$353,2,FALSE),VLOOKUP(CC3,Text!$A$3:$C$353,3,FALSE)) -> Cyfanswm y rhai sy’n derbyn Credyd Cynhwysol (ddim mewn cyflogaeth) | CG6: =IF('iaith - language'!$K$1=2,VLOOKUP(CG3,Text!$A$3:$C$353,2,FALSE),VLOOKUP(CG3,Text!$A$3:$C$353,3,FALSE)) -> Nifer yr Hawlwyr Lwfans Anabledd Difrifol, 18-64 oed | CK6: =IF('iaith - language'!$K$1=2,VLOOKUP(CK3,Text!$A$3:$C$353,2,FALSE),VLOOKUP(CK3,Text!$A$3:$C$353,3,FALSE)) -> Nifer yr Hawlwyr Lwfans Byw i'r Anabl, 18-64 oed | CO6: =IF('iaith - language'!$K$1=2,VLOOKUP(CO3,Text!$A$3:$C$353,2,FALSE),VLOOKUP(CO3,Text!$A$3:$C$353,3,FALSE)) -> Nifer yr Hawlwyr Taliad Annibyniaeth Bersonol sydd yn 18-64 oed | CS6: =IF('iaith - language'!$K$1=2,VLOOKUP(CS3,Text!$A$3:$C$353,2,FALSE),VLOOKUP(CS3,Text!$A$3:$C$353,3,FALSE)) -> Hawlwyr Credyd Pensiwn, 65 oed a hŷn | CW6: =IF('iaith - language'!$K$1=2,VLOOKUP(CW3,Text!$A$3:$C$353,2,FALSE),VLOOKUP(CW3,Text!$A$3:$C$353,3,FALSE)) -> Cyfanswn yr hawlwyr Cymhorthdal Incwm, Lwfans Ceisio Gwaith, a Chredyd Pensiwn | DA6: =IF('iaith - language'!$K$1=2,VLOOKUP(DA3,Text!$A$3:$C$353,2,FALSE),VLOOKUP(DA3,Text!$A$3:$C$353,3,FALSE)) -> Stoc eiddo treth cyngor | DB6: =IF('iaith - language'!$K$1=2,VLOOKUP(DB3,Text!$A$3:$C$353,2,FALSE),VLOOKUP(DB3,Text!$A$3:$C$353,3,FALSE)) -> Hyd ffyrdd A y sir (km) | DC6: =IF('iaith - language'!$K$1=2,VLOOKUP(DC3,Text!$A$3:$C$353,2,FALSE),VLOOKUP(DC3,Text!$A$3:$C$353,3,FALSE)) -> Hyd ffyrdd B ac C (km) | DD6: =IF('iaith - language'!$K$1=2,VLOOKUP(DD3,Text!$A$3:$C$353,2,FALSE),VLOOKUP(DD3,Text!$A$3:$C$353,3,FALSE)) -> Hyd is-ffyrdd â wyneb caled (km) | DE6: =IF('iaith - language'!$K$1=2,VLOOKUP(DE3,Text!$A$3:$C$353,2,FALSE),VLOOKUP(DE3,Text!$A$3:$C$353,3,FALSE)) -> Hyd ffyrdd A y sir, adeiledig (km) | DF6: =IF('iaith - language'!$K$1=2,VLOOKUP(DF3,Text!$A$3:$C$353,2,FALSE),VLOOKUP(DF3,Text!$A$3:$C$353,3,FALSE)) -> Hyd ffyrdd B ac C, adeiledig (km) | DG6: =IF('iaith - language'!$K$1=2,VLOOKUP(DG3,Text!$A$3:$C$353,2,FALSE),VLOOKUP(DG3,Text!$A$3:$C$353,3,FALSE)) -> Hyd is-ffyrdd â wyneb caled, adeiledig (km)
B7: 0 | D7: =IF('iaith - language'!$K$1=2,VLOOKUP(D$4,Text!$A$3:$C$458,2,FALSE),VLOOKUP(D$4,Text!$A$3:$C$458,3,FALSE)) -> Mehefin 2021 | E7: =IF('iaith - language'!$K$1=2,VLOOKUP(E$4,Text!$A$3:$C$458,2,FALSE),VLOOKUP(E$4,Text!$A$3:$C$458,3,FALSE)) -> Medi 2021 | F7: =IF('iaith - language'!$K$1=2,VLOOKUP(F$4,Text!$A$3:$C$458,2,FALSE),VLOOKUP(F$4,Text!$A$3:$C$458,3,FALSE)) -> Rhagfyr 2021 | G7: =IF('iaith - language'!$K$1=2,VLOOKUP(G$4,Text!$A$3:$C$458,2,FALSE),VLOOKUP(G$4,Text!$A$3:$C$458,3,FALSE)) -> Mawrth 2022 | H7: 2019-20 | I7: =IF('iaith - language'!$K$1=2,VLOOKUP(I$4,Text!$A$1:$C$458,2,FALSE),VLOOKUP(I$4,Text!$A$1:$C$458,3,FALSE)) -> Mai 2022 | J7: 2023 | K7: 2023 | L7: =K7 -> 2023 | M7: =L7 -> 2023 | N7: 2023 | O7: 2023 | P7: 2023 | Q7: 2023 | R7: 2023 | S7: 2023 | T7: 2023 | U7: 2023 | V7: 2023 | W7: 2023 | X7: 2023 | Y7: 2020 | Z7: 2020 | AA7: 2020 | AB7: 2018-19 | AC7: 2022-23 | AD7: =IF('iaith - language'!$K$1=2,VLOOKUP(AD$4,Text!$A$1:$C$458,2,FALSE),VLOOKUP(AD$4,Text!$A$1:$C$458,3,FALSE)) -> Mai 2022 | AE7: 2021 | AF7: =IF('iaith - language'!$K$1=2,VLOOKUP(AF$4,Text!$A$1:$C$458,2,FALSE),VLOOKUP(AF$4,Text!$A$1:$C$458,3,FALSE)) -> Mawrth 2022 | AG7: =IF('iaith - language'!$K$1=2,VLOOKUP(AG$4,Text!$A$1:$C$458,2,FALSE),VLOOKUP(AG$4,Text!$A$1:$C$458,3,FALSE)) -> Mawrth 2022 | AH7: =IF('iaith - language'!$K$1=2,VLOOKUP(AH$4,Text!$A$1:$C$458,2,FALSE),VLOOKUP(AH$4,Text!$A$1:$C$458,3,FALSE)) -> Ebrill 2022 | AI7: 2021 | AJ7: 2021-22 | AK7: 2021-22 | AL7: 2021-22 | AM7: 2021 | AN7: 2019 | AO7: 2019 | AP7: =IF('iaith - language'!$K$1=2,VLOOKUP(AP$4,Text!$A$1:$C$458,2,FALSE),VLOOKUP(AP$4,Text!$A$1:$C$458,3,FALSE)) -> Hydref 2021 | AQ7: =IF('iaith - language'!$K$1=2,VLOOKUP(AQ$4,Text!$A$1:$C$458,2,FALSE),VLOOKUP(AQ$4,Text!$A$1:$C$458,3,FALSE)) -> Tachwedd 2021 | AR7: =IF('iaith - language'!$K$1=2,VLOOKUP(AR$4,Text!$A$1:$C$458,2,FALSE),VLOOKUP(AR$4,Text!$A$1:$C$458,3,FALSE)) -> Rhagfyr 2021 | AS7: =IF('iaith - language'!$K$1=2,VLOOKUP(AS$4,Text!$A$1:$C$458,2,FALSE),VLOOKUP(AS$4,Text!$A$1:$C$458,3,FALSE)) -> Ionawr 2022 | AT7: =IF('iaith - language'!$K$1=2,VLOOKUP(AT$4,Text!$A$1:$C$458,2,FALSE),VLOOKUP(AT$4,Text!$A$1:$C$458,3,FALSE)) -> Chwefror 2022 | AU7: =IF('iaith - language'!$K$1=2,VLOOKUP(AU$4,Text!$A$1:$C$458,2,FALSE),VLOOKUP(AU$4,Text!$A$1:$C$458,3,FALSE)) -> Mawrth 2022 | AV7: =IF('iaith - language'!$K$1=2,VLOOKUP(AV$4,Text!$A$1:$C$458,2,FALSE),VLOOKUP(AV$4,Text!$A$1:$C$458,3,FALSE)) -> Ebrill 2022 | AW7: =IF('iaith - language'!$K$1=2,VLOOKUP(AW$4,Text!$A$1:$C$458,2,FALSE),VLOOKUP(AW$4,Text!$A$1:$C$458,3,FALSE)) -> Mai 2022 | AX7: =IF('iaith - language'!$K$1=2,VLOOKUP(AX$4,Text!$A$1:$C$458,2,FALSE),VLOOKUP(AX$4,Text!$A$1:$C$458,3,FALSE)) -> Mehefin 2022 | AY7: =IF('iaith - language'!$K$1=2,VLOOKUP(AY$4,Text!$A$1:$C$458,2,FALSE),VLOOKUP(AY$4,Text!$A$1:$C$458,3,FALSE)) -> Gorffennaf 2022 | AZ7: =IF('iaith - language'!$K$1=2,VLOOKUP(AZ$4,Text!$A$1:$C$458,2,FALSE),VLOOKUP(AZ$4,Text!$A$1:$C$458,3,FALSE)) -> Awst 2022 | BA7: =IF('iaith - language'!$K$1=2,VLOOKUP(BA$4,Text!$A$1:$C$458,2,FALSE),VLOOKUP(BA$4,Text!$A$1:$C$458,3,FALSE)) -> Mai 2021 | BB7: =IF('iaith - language'!$K$1=2,VLOOKUP(BB$4,Text!$A$1:$C$458,2,FALSE),VLOOKUP(BB$4,Text!$A$1:$C$458,3,FALSE)) -> Awst 2021 | BC7: =IF('iaith - language'!$K$1=2,VLOOKUP(BC$4,Text!$A$1:$C$458,2,FALSE),VLOOKUP(BC$4,Text!$A$1:$C$458,3,FALSE)) -> Tachwedd 2021 | BD7: =IF('iaith - language'!$K$1=2,VLOOKUP(BD$4,Text!$A$1:$C$458,2,FALSE),VLOOKUP(BD$4,Text!$A$1:$C$458,3,FALSE)) -> Chwefror 2022 | BE7: =IF('iaith - language'!$K$1=2,VLOOKUP(BE$4,Text!$A$1:$C$458,2,FALSE),VLOOKUP(BE$4,Text!$A$1:$C$458,3,FALSE)) -> Mai 2021 | BF7: =IF('iaith - language'!$K$1=2,VLOOKUP(BF$4,Text!$A$1:$C$458,2,FALSE),VLOOKUP(BF$4,Text!$A$1:$C$458,3,FALSE)) -> Awst 2021 | BG7: =IF('iaith - language'!$K$1=2,VLOOKUP(BG$4,Text!$A$1:$C$458,2,FALSE),VLOOKUP(BG$4,Text!$A$1:$C$458,3,FALSE)) -> Tachwedd 2021 | BH7: =IF('iaith - language'!$K$1=2,VLOOKUP(BH$4,Text!$A$1:$C$458,2,FALSE),VLOOKUP(BH$4,Text!$A$1:$C$458,3,FALSE)) -> Chwefror 2022 | BI7: =IF('iaith - language'!$K$1=2,VLOOKUP(BI$4,Text!$A$1:$C$458,2,FALSE),VLOOKUP(BI$4,Text!$A$1:$C$458,3,FALSE)) -> Mai 2021 | BJ7: =IF('iaith - language'!$K$1=2,VLOOKUP(BJ$4,Text!$A$1:$C$458,2,FALSE),VLOOKUP(BJ$4,Text!$A$1:$C$458,3,FALSE)) -> Awst 2021 | BK7: =IF('iaith - language'!$K$1=2,VLOOKUP(BK$4,Text!$A$1:$C$458,2,FALSE),VLOOKUP(BK$4,Text!$A$1:$C$458,3,FALSE)) -> Tachwedd 2021 | BL7: =IF('iaith - language'!$K$1=2,VLOOKUP(BL$4,Text!$A$1:$C$458,2,FALSE),VLOOKUP(BL$4,Text!$A$1:$C$458,3,FALSE)) -> Chwefror 2022 | BM7: =IF('iaith - language'!$K$1=2,VLOOKUP(BM$4,Text!$A$1:$C$458,2,FALSE),VLOOKUP(BM$4,Text!$A$1:$C$458,3,FALSE)) -> Mai 2021 | BN7: =IF('iaith - language'!$K$1=2,VLOOKUP(BN$4,Text!$A$1:$C$458,2,FALSE),VLOOKUP(BN$4,Text!$A$1:$C$458,3,FALSE)) -> Awst 2021 | BO7: =IF('iaith - language'!$K$1=2,VLOOKUP(BO$4,Text!$A$1:$C$458,2,FALSE),VLOOKUP(BO$4,Text!$A$1:$C$458,3,FALSE)) -> Tachwedd 2021 | BP7: =IF('iaith - language'!$K$1=2,VLOOKUP(BP$4,Text!$A$1:$C$458,2,FALSE),VLOOKUP(BP$4,Text!$A$1:$C$458,3,FALSE)) -> Chwefror 2022 | BQ7: =IF('iaith - language'!$K$1=2,VLOOKUP(BQ$4,Text!$A$1:$C$458,2,FALSE),VLOOKUP(BQ$4,Text!$A$1:$C$458,3,FALSE)) -> Mai 2021 | BR7: =IF('iaith - language'!$K$1=2,VLOOKUP(BR$4,Text!$A$1:$C$458,2,FALSE),VLOOKUP(BR$4,Text!$A$1:$C$458,3,FALSE)) -> Awst 2021 | BS7: =IF('iaith - language'!$K$1=2,VLOOKUP(BS$4,Text!$A$1:$C$458,2,FALSE),VLOOKUP(BS$4,Text!$A$1:$C$458,3,FALSE)) -> Tachwedd 2021 | BT7: =IF('iaith - language'!$K$1=2,VLOOKUP(BT$4,Text!$A$1:$C$458,2,FALSE),VLOOKUP(BT$4,Text!$A$1:$C$458,3,FALSE)) -> Chwefror 2022 | BU7: =IF('iaith - language'!$K$1=2,VLOOKUP(BU$4,Text!$A$1:$C$458,2,FALSE),VLOOKUP(BU$4,Text!$A$1:$C$458,3,FALSE)) -> Mai 2021 | BV7: =IF('iaith - language'!$K$1=2,VLOOKUP(BV$4,Text!$A$1:$C$458,2,FALSE),VLOOKUP(BV$4,Text!$A$1:$C$458,3,FALSE)) -> Awst 2021 | BW7: =IF('iaith - language'!$K$1=2,VLOOKUP(BW$4,Text!$A$1:$C$458,2,FALSE),VLOOKUP(BW$4,Text!$A$1:$C$458,3,FALSE)) -> Tachwedd 2021 | BX7: =IF('iaith - language'!$K$1=2,VLOOKUP(BX$4,Text!$A$1:$C$458,2,FALSE),VLOOKUP(BX$4,Text!$A$1:$C$458,3,FALSE)) -> Chwefror 2022 | BY7: =IF('iaith - language'!$K$1=2,VLOOKUP(BY$4,Text!$A$1:$C$458,2,FALSE),VLOOKUP(BY$4,Text!$A$1:$C$458,3,FALSE)) -> Mai 2021 | BZ7: =IF('iaith - language'!$K$1=2,VLOOKUP(BZ$4,Text!$A$1:$C$458,2,FALSE),VLOOKUP(BZ$4,Text!$A$1:$C$458,3,FALSE)) -> Awst 2021 | CA7: =IF('iaith - language'!$K$1=2,VLOOKUP(CA$4,Text!$A$1:$C$458,2,FALSE),VLOOKUP(CA$4,Text!$A$1:$C$458,3,FALSE)) -> Tachwedd 2021 | CB7: =IF('iaith - language'!$K$1=2,VLOOKUP(CB$4,Text!$A$1:$C$458,2,FALSE),VLOOKUP(CB$4,Text!$A$1:$C$458,3,FALSE)) -> Chwefror 2022 | CC7: =IF('iaith - language'!$K$1=2,VLOOKUP(CC$4,Text!$A$1:$C$458,2,FALSE),VLOOKUP(CC$4,Text!$A$1:$C$458,3,FALSE)) -> Mai 2021 | CD7: =IF('iaith - language'!$K$1=2,VLOOKUP(CD$4,Text!$A$1:$C$458,2,FALSE),VLOOKUP(CD$4,Text!$A$1:$C$458,3,FALSE)) -> Awst 2021 | CE7: =IF('iaith - language'!$K$1=2,VLOOKUP(CE$4,Text!$A$1:$C$458,2,FALSE),VLOOKUP(CE$4,Text!$A$1:$C$458,3,FALSE)) -> Tachwedd 2021 | CF7: =IF('iaith - language'!$K$1=2,VLOOKUP(CF$4,Text!$A$1:$C$458,2,FALSE),VLOOKUP(CF$4,Text!$A$1:$C$458,3,FALSE)) -> Chwefror 2022 | CG7: =IF('iaith - language'!$K$1=2,VLOOKUP(CG$4,Text!$A$1:$C$458,2,FALSE),VLOOKUP(CG$4,Text!$A$1:$C$458,3,FALSE)) -> Mai 2021 | CH7: =IF('iaith - language'!$K$1=2,VLOOKUP(CH$4,Text!$A$1:$C$458,2,FALSE),VLOOKUP(CH$4,Text!$A$1:$C$458,3,FALSE)) -> Awst 2021 | CI7: =IF('iaith - language'!$K$1=2,VLOOKUP(CI$4,Text!$A$1:$C$458,2,FALSE),VLOOKUP(CI$4,Text!$A$1:$C$458,3,FALSE)) -> Tachwedd 2021 | CJ7: =IF('iaith - language'!$K$1=2,VLOOKUP(CJ$4,Text!$A$1:$C$458,2,FALSE),VLOOKUP(CJ$4,Text!$A$1:$C$458,3,FALSE)) -> Chwefror 2022 | CK7: =IF('iaith - language'!$K$1=2,VLOOKUP(CK$4,Text!$A$1:$C$458,2,FALSE),VLOOKUP(CK$4,Text!$A$1:$C$458,3,FALSE)) -> Mai 2021 | CL7: =IF('iaith - language'!$K$1=2,VLOOKUP(CL$4,Text!$A$1:$C$458,2,FALSE),VLOOKUP(CL$4,Text!$A$1:$C$458,3,FALSE)) -> Awst 2021 | CM7: =IF('iaith - language'!$K$1=2,VLOOKUP(CM$4,Text!$A$1:$C$458,2,FALSE),VLOOKUP(CM$4,Text!$A$1:$C$458,3,FALSE)) -> Tachwedd 2021 | CN7: =IF('iaith - language'!$K$1=2,VLOOKUP(CN$4,Text!$A$1:$C$458,2,FALSE),VLOOKUP(CN$4,Text!$A$1:$C$458,3,FALSE)) -> Chwefror 2022 | CO7: =IF('iaith - language'!$K$1=2,VLOOKUP(CO$4,Text!$A$1:$C$458,2,FALSE),VLOOKUP(CO$4,Text!$A$1:$C$458,3,FALSE)) -> Mai 2021 | CP7: =IF('iaith - language'!$K$1=2,VLOOKUP(CP$4,Text!$A$1:$C$458,2,FALSE),VLOOKUP(CP$4,Text!$A$1:$C$458,3,FALSE)) -> Awst 2021 | CQ7: =IF('iaith - language'!$K$1=2,VLOOKUP(CQ$4,Text!$A$1:$C$458,2,FALSE),VLOOKUP(CQ$4,Text!$A$1:$C$458,3,FALSE)) -> Tachwedd 2021 | CR7: =IF('iaith - language'!$K$1=2,VLOOKUP(CR$4,Text!$A$1:$C$458,2,FALSE),VLOOKUP(CR$4,Text!$A$1:$C$458,3,FALSE)) -> Chwefror 2022 | CS7: =IF('iaith - language'!$K$1=2,VLOOKUP(CS$4,Text!$A$1:$C$458,2,FALSE),VLOOKUP(CS$4,Text!$A$1:$C$458,3,FALSE)) -> Mai 2021 | CT7: =IF('iaith - language'!$K$1=2,VLOOKUP(CT$4,Text!$A$1:$C$458,2,FALSE),VLOOKUP(CT$4,Text!$A$1:$C$458,3,FALSE)) -> Awst 2021 | CU7: =IF('iaith - language'!$K$1=2,VLOOKUP(CU$4,Text!$A$1:$C$458,2,FALSE),VLOOKUP(CU$4,Text!$A$1:$C$458,3,FALSE)) -> Tachwedd 2021 | CV7: =IF('iaith - language'!$K$1=2,VLOOKUP(CV$4,Text!$A$1:$C$458,2,FALSE),VLOOKUP(CV$4,Text!$A$1:$C$458,3,FALSE)) -> Chwefror 2022 | CW7: =IF('iaith - language'!$K$1=2,VLOOKUP(CW$4,Text!$A$1:$C$458,2,FALSE),VLOOKUP(CW$4,Text!$A$1:$C$458,3,FALSE)) -> Mai 2021 | CX7: =IF('iaith - language'!$K$1=2,VLOOKUP(CX$4,Text!$A$1:$C$458,2,FALSE),VLOOKUP(CX$4,Text!$A$1:$C$458,3,FALSE)) -> Awst 2021 | CY7: =IF('iaith - language'!$K$1=2,VLOOKUP(CY$4,Text!$A$1:$C$458,2,FALSE),VLOOKUP(CY$4,Text!$A$1:$C$458,3,FALSE)) -> Tachwedd 2021 | CZ7: =IF('iaith - language'!$K$1=2,VLOOKUP(CZ$4,Text!$A$1:$C$458,2,FALSE),VLOOKUP(CZ$4,Text!$A$1:$C$458,3,FALSE)) -> Chwefror 2022 | DA7: =IF('iaith - language'!$K$1=2,VLOOKUP(DA$4,Text!$A$1:$C$458,2,FALSE),VLOOKUP(DA$4,Text!$A$1:$C$458,3,FALSE)) -> Mawrth 2022 | DB7: =IF('iaith - language'!$K$1=2,VLOOKUP(DB$4,Text!$A$1:$C$458,2,FALSE),VLOOKUP(DB$4,Text!$A$1:$C$458,3,FALSE)) -> Mawrth 2022 | DC7: =IF('iaith - language'!$K$1=2,VLOOKUP(DC$4,Text!$A$1:$C$458,2,FALSE),VLOOKUP(DC$4,Text!$A$1:$C$458,3,FALSE)) -> Mawrth 2022 | DD7: =IF('iaith - language'!$K$1=2,VLOOKUP(DD$4,Text!$A$1:$C$458,2,FALSE),VLOOKUP(DD$4,Text!$A$1:$C$458,3,FALSE)) -> Mawrth 2022 | DE7: =IF('iaith - language'!$K$1=2,VLOOKUP(DE$4,Text!$A$1:$C$458,2,FALSE),VLOOKUP(DE$4,Text!$A$1:$C$458,3,FALSE)) -> Mawrth 2022 | DF7: =IF('iaith - language'!$K$1=2,VLOOKUP(DF$4,Text!$A$1:$C$458,2,FALSE),VLOOKUP(DF$4,Text!$A$1:$C$458,3,FALSE)) -> Mawrth 2022 | DG7: =IF('iaith - language'!$K$1=2,VLOOKUP(DG$4,Text!$A$1:$C$458,2,FALSE),VLOOKUP(DG$4,Text!$A$1:$C$458,3,FALSE)) -> Mawrth 2022
A9: 117 | B9: 2 | C9: =IF('iaith - language'!$K$1=2,VLOOKUP(A9,Text!$A$3:$C$353,2,FALSE),VLOOKUP(A9,Text!$A$3:$C$353,3,FALSE)) -> Sir Ynys Môn | D9: 200 | E9: 240 | F9: 228 | G9: N/A | H9: N/A | I9: 71,524 | J9: 69,842 | K9: 708 | L9: 6,726 | M9: 10,721 | N9: 4,052 | O9: 7,202 | P9: 57,856 | Q9: 2,155 | R9: 13,490 | S9: 37,431 | T9: 56,351 | U9: 45,487 | V9: 24,355 | W9: 2,366 | X9: 39,960 | Y9: 70,440 | Z9: 57,101 | AA9: 18,639 | AC9: 3,966 | AD9: 7.9 | AE9: 907 | AF9: 3,430 | AG9: 1,030 | AH9: 10,019 | AI9: 910 | AJ9: 5,744 | AK9: 6,293,928 | AL9: N/A | AM9: 2,891 | AN9: 5,514 | AO9: 707 | AP9: 1,700 | AQ9: 1,655 | AR9: 1,640 | AS9: 1,595 | AT9: 1,580 | AU9: 1,550 | AV9: 1,480 | AW9: 1,380 | AX9: 1,305 | AY9: 1,275 | AZ9: 1,265 | BA9: 292 | BB9: 277 | BC9: 252 | BD9: 235 | BE9: 235 | BF9: 206 | BG9: 184 | BH9: 182 | BI9: 0 | BJ9: 0 | BK9: 0 | BL9: 0 | BM9: 3,185 | BN9: 2,986 | BO9: 2,932 | BP9: 2,996 | BQ9: 298 | BR9: 279 | BS9: 259 | BT9: 243 | BU9: 246 | BV9: 212 | BW9: 188 | BX9: 188 | BY9: 2,223 | BZ9: 2,191 | CA9: 2,165 | CB9: 2,132 | CC9: 3,279 | CD9: 3,078 | CE9: 3,033 | CF9: 3,093 | CG9: 0 | CH9: 0 | CI9: 0 | CJ9: 0 | CK9: 75 | CL9: 72 | CM9: 75 | CN9: 74 | CO9: 2,749 | CP9: 2,786 | CQ9: 2,842 | CR9: 2,908 | CS9: 2,223 | CT9: 2,191 | CU9: 2,165 | CV9: 2,132 | CW9: 2,767 | CX9: 2,682 | CY9: 2,612 | CZ9: 2,563 | DA9: 35,380 | DB9: 145.50 | DC9: 484.40 | DD9: 558.50 | DE9: 28.10 | DF9: 59.60 | DG9: 180.90
A10: 118 | B10: 3 | C10: =IF('iaith - language'!$K$1=2,VLOOKUP(A10,Text!$A$3:$C$353,2,FALSE),VLOOKUP(A10,Text!$A$3:$C$353,3,FALSE)) -> Gwynedd | D10: 266 | E10: 377 | F10: 270 | G10: N/A | H10: N/A | I10: 254,829 | J10: 125,539 | K10: 1,223 | L10: 11,518 | M10: 18,638 | N10: 7,148 | O10: 15,965 | P10: 104,686 | Q10: 4,360 | R10: 23,749 | S10: 72,697 | T10: 101,790 | U10: 87,998 | V10: 37,541 | W10: 4,066 | X10: 77,235 | Y10: 125,171 | Z10: 101,957 | AA10: 28,562 | AC10: 121,122 | AD10: 20.1 | AE10: 1,775 | AF10: 8,470 | AG10: 2,520 | AH10: 17,962 | AI10: 1,368 | AJ10: 8,688 | AK10: 9,889,622 | AL10: N/A | AM10: 3 | AN10: 20,096 | AO10: 3,836 | AP10: 2,535 | AQ10: 2,510 | AR10: 2,505 | AS10: 2,555 | AT10: 2,570 | AU10: 2,420 | AV10: 2,135 | AW10: 1,975 | AX10: 1,890 | AY10: 1,885 | AZ10: 1,945 | BA10: 381 | BB10: 354 | BC10: 322 | BD10: 296 | BE10: 261 | BF10: 192 | BG10: 178 | BH10: 162 | BI10: 0 | BJ10: 0 | BK10: 0 | BL10: 0 | BM10: 5,165 | BN10: 4,672 | BO10: 4,613 | BP10: 4,815 | BQ10: 388 | BR10: 355 | BS10: 330 | BT10: 302 | BU10: 270 | BV10: 202 | BW10: 186 | BX10: 171 | BY10: 3,701 | BZ10: 3,649 | CA10: 3,573 | CB10: 3,539 | CC10: 5,290 | CD10: 4,795 | CE10: 4,733 | CF10: 4,943 | CG10: 0 | CH10: 0 | CI10: 0 | CJ10: 0 | CK10: 115 | CL10: 115 | CM10: 111 | CN10: 113 | CO10: 3,908 | CP10: 3,955 | CQ10: 4,015 | CR10: 4,119 | CS10: 3,701 | CT10: 3,649 | CU10: 3,573 | CV10: 3,539 | CW10: 4,359 | CX10: 4,206 | CY10: 4,089 | CZ10: 4,012 | DA10: 61,330 | DB10: 330.50 | DC10: 1,064.90 | DD10: 1,322.20 | DE10: 71.50 | DF10: 104.30 | DG10: 346.90
A11: 119 | B11: 4 | C11: =IF('iaith - language'!$K$1=2,VLOOKUP(A11,Text!$A$3:$C$353,2,FALSE),VLOOKUP(A11,Text!$A$3:$C$353,3,FALSE)) -> Conwy | D11: 231 | E11: 295 | F11: 256 | G11: N/A | H11: N/A | I11: 113,018 | J11: 118,625 | K11: 1,084 | L11: 10,678 | M11: 17,330 | N11: 6,698 | O11: 12,068 | P11: 99,493 | Q11: 3,814 | R11: 21,745 | S11: 62,662 | T11: 96,880 | U11: 75,101 | V11: 43,524 | W11: 5,236 | X11: 67,032 | Y11: 118,184 | Z11: 97,000 | AA11: 32,938 | AC11: 42,032 | AD11: 23.6 | AE11: 902 | AF11: 5,420 | AG11: 2,210 | AH11: 16,723 | AI11: 1,625 | AJ11: 9,892 | AK11: 11,100,717 | AL11: N/A | AM11: 45 | AN11: 11,135 | AO11: 7,220 | AP11: 2,980 | AQ11: 2,930 | AR11: 2,915 | AS11: 2,900 | AT11: 2,895 | AU11: 2,740 | AV11: 2,455 | AW11: 2,335 | AX11: 2,240 | AY11: 2,245 | AZ11: 2,265 | BA11: 482 | BB11: 442 | BC11: 407 | BD11: 379 | BE11: 334 | BF11: 235 | BG11: 206 | BH11: 210 | BI11: 0 | BJ11: 0 | BK11: 0 | BL11: 0 | BM11: 6,025 | BN11: 5,516 | BO11: 5,347 | BP11: 5,480 | BQ11: 481 | BR11: 452 | BS11: 417 | BT11: 389 | BU11: 344 | BV11: 246 | BW11: 218 | BX11: 216 | BY11: 3,901 | BZ11: 3,825 | CA11: 3,793 | CB11: 3,728 | CC11: 6,169 | CD11: 5,667 | CE11: 5,491 | CF11: 5,625 | CG11: 0 | CH11: 0 | CI11: 0 | CJ11: 0 | CK11: 136 | CL11: 137 | CM11: 135 | CN11: 129 | CO11: 5,090 | CP11: 5,137 | CQ11: 5,193 | CR11: 5,329 | CS11: 3,901 | CT11: 3,825 | CU11: 3,793 | CV11: 3,728 | CW11: 4,726 | CX11: 4,523 | CY11: 4,428 | CZ11: 4,333 | DA11: 57,850 | DB11: 117.50 | DC11: 663.60 | DD11: 897.20 | DE11: 51.60 | DF11: 102.80 | DG11: 419.60
A12: 120 | B12: 5 | C12: =IF('iaith - language'!$K$1=2,VLOOKUP(A12,Text!$A$3:$C$353,2,FALSE),VLOOKUP(A12,Text!$A$3:$C$353,3,FALSE)) -> Sir Ddinbych | D12: 241 | E12: 232 | F12: 218 | G12: N/A | H12: N/A | I12: 83,871 | J12: 96,198 | K12: 971 | L12: 9,596 | M12: 15,659 | N12: 6,052 | O12: 10,896 | P12: 78,896 | Q12: 3,380 | R12: 19,625 | S12: 52,263 | T12: 76,573 | U12: 64,678 | V12: 31,520 | W12: 2,845 | X12: 55,892 | Y12: 96,664 | Z12: 77,165 | AA12: 23,517 | AC12: 0 | AD12: 9.4 | AE12: 740 | AF12: 4,000 | AG12: 1,630 | AH12: 11,690 | AI12: 1,341 | AJ12: 8,992 | AK12: 10,569,301 | AL12: N/A | AM12: 0 | AN12: 7,467 | AO12: 4,401 | AP12: 2,570 | AQ12: 2,545 | AR12: 2,450 | AS12: 2,430 | AT12: 2,365 | AU12: 2,245 | AV12: 2,065 | AW12: 1,965 | AX12: 1,940 | AY12: 1,915 | AZ12: 1,980 | BA12: 487 | BB12: 450 | BC12: 426 | BD12: 407 | BE12: 197 | BF12: 170 | BG12: 154 | BH12: 151 | BI12: 0 | BJ12: 0 | BK12: 0 | BL12: 0 | BM12: 5,603 | BN12: 5,213 | BO12: 5,185 | BP12: 5,277 | BQ12: 495 | BR12: 456 | BS12: 434 | BT12: 411 | BU12: 202 | BV12: 171 | BW12: 162 | BX12: 160 | BY12: 3,383 | BZ12: 3,338 | CA12: 3,264 | CB12: 3,220 | CC12: 5,760 | CD12: 5,369 | CE12: 5,341 | CF12: 5,439 | CG12: 0 | CH12: 0 | CI12: 0 | CJ12: 0 | CK12: 155 | CL12: 156 | CM12: 148 | CN12: 142 | CO12: 5,130 | CP12: 5,239 | CQ12: 5,321 | CR12: 5,445 | CS12: 3,383 | CT12: 3,338 | CU12: 3,264 | CV12: 3,220 | CW12: 4,080 | CX12: 3,965 | CY12: 3,860 | CZ12: 3,791 | DA12: 45,820 | DB12: 139.80 | DC12: 655.30 | DD12: 623.40 | DE12: 29.70 | DF12: 49.90 | DG12: 222.20
A13: 121 | B13: 6 | C13: =IF('iaith - language'!$K$1=2,VLOOKUP(A13,Text!$A$3:$C$353,2,FALSE),VLOOKUP(A13,Text!$A$3:$C$353,3,FALSE)) -> Sir y Fflint | D13: 297 | E13: 293 | F13: 265 | G13: N/A | H13: N/A | I13: 43,983 | J13: 157,626 | K13: 1,685 | L13: 16,034 | M13: 26,095 | N13: 10,010 | O13: 18,209 | P13: 128,688 | Q13: 5,636 | R13: 32,776 | S13: 90,353 | T13: 124,850 | U13: 112,512 | V13: 45,114 | W13: 4,156 | X13: 96,061 | Y13: 156,847 | Z13: 124,648 | AA13: 33,294 | AC13: 0 | AD13: 2.8 | AE13: 509 | AF13: 5,200 | AG13: 1,670 | AH13: 20,432 | AI13: 1,646 | AJ13: 10,473 | AK13: 11,599,458 | AL13: N/A | AM13: 4 | AN13: 3,924 | AO13: 2,930 | AP13: 3,610 | AQ13: 3,475 | AR13: 3,380 | AS13: 3,365 | AT13: 3,395 | AU13: 3,240 | AV13: 3,015 | AW13: 2,905 | AX13: 2,775 | AY13: 2,700 | AZ13: 2,735 | BA13: 411 | BB13: 382 | BC13: 365 | BD13: 346 | BE13: 313 | BF13: 242 | BG13: 205 | BH13: 182 | BI13: 0 | BJ13: 0 | BK13: 0 | BL13: 0 | BM13: 7,735 | BN13: 7,374 | BO13: 7,167 | BP13: 7,199 | BQ13: 417 | BR13: 388 | BS13: 370 | BT13: 353 | BU13: 320 | BV13: 252 | BW13: 209 | BX13: 190 | BY13: 3,707 | BZ13: 3,660 | CA13: 3,600 | CB13: 3,558 | CC13: 7,913 | CD13: 7,555 | CE13: 7,345 | CF13: 7,386 | CG13: 0 | CH13: 0 | CI13: 0 | CJ13: 0 | CK13: 117 | CL13: 116 | CM13: 117 | CN13: 116 | CO13: 6,181 | CP13: 6,267 | CQ13: 6,354 | CR13: 6,502 | CS13: 3,707 | CT13: 3,660 | CU13: 3,600 | CV13: 3,558 | CW13: 4,444 | CX13: 4,300 | CY13: 4,179 | CZ13: 4,101 | DA13: 70,650 | DB13: 152.00 | DC13: 340.50 | DD13: 687.50 | DE13: 64.10 | DF13: 111.20 | DG13: 432.80
A14: 122 | B14: 7 | C14: =IF('iaith - language'!$K$1=2,VLOOKUP(A14,Text!$A$3:$C$353,2,FALSE),VLOOKUP(A14,Text!$A$3:$C$353,3,FALSE)) -> Wrecsam | D14: 301 | E14: 265 | F14: 245 | G14: N/A | H14: N/A | I14: 50,377 | J14: 136,419 | K14: 1,515 | L14: 14,262 | M14: 23,004 | N14: 8,730 | O14: 16,163 | P14: 110,833 | Q14: 4,951 | R14: 29,042 | S14: 78,821 | T14: 107,377 | U14: 99,165 | V14: 37,254 | W14: 3,520 | X14: 83,826 | Y14: 136,055 | Z14: 107,142 | AA14: 27,749 | AC14: 0 | AD14: 0.0 | AE14: 458 | AF14: 4,080 | AG14: 1,420 | AH14: 13,255 | AI14: 1,629 | AJ14: 11,097 | AK14: 11,641,100 | AL14: N/A | AM14: 0 | AN14: 1,198 | AO14: 1,544 | AP14: 3,525 | AQ14: 3,415 | AR14: 3,290 | AS14: 3,240 | AT14: 3,160 | AU14: 3,000 | AV14: 2,755 | AW14: 2,665 | AX14: 2,600 | AY14: 2,525 | AZ14: 2,635 | BA14: 539 | BB14: 498 | BC14: 468 | BD14: 444 | BE14: 239 | BF14: 184 | BG14: 129 | BH14: 139 | BI14: 0 | BJ14: 0 | BK14: 0 | BL14: 0 | BM14: 7,850 | BN14: 7,470 | BO14: 7,213 | BP14: 7,092 | BQ14: 546 | BR14: 511 | BS14: 478 | BT14: 454 | BU14: 245 | BV14: 190 | BW14: 131 | BX14: 140 | BY14: 3,499 | BZ14: 3,466 | CA14: 3,426 | CB14: 3,370 | CC14: 8,056 | CD14: 7,676 | CE14: 7,419 | CF14: 7,284 | CG14: 0 | CH14: 0 | CI14: 0 | CJ14: 0 | CK14: 165 | CL14: 168 | CM14: 164 | CN14: 163 | CO14: 6,107 | CP14: 6,199 | CQ14: 6,341 | CR14: 6,491 | CS14: 3,499 | CT14: 3,466 | CU14: 3,426 | CV14: 3,370 | CW14: 4,290 | CX14: 4,167 | CY14: 4,035 | CZ14: 3,964 | DA14: 61,140 | DB14: 110.00 | DC14: 513.00 | DD14: 520.10 | DE14: 30.70 | DF14: 126.40 | DG14: 298.40
A15: 123 | B15: 8 | C15: =IF('iaith - language'!$K$1=2,VLOOKUP(A15,Text!$A$3:$C$353,2,FALSE),VLOOKUP(A15,Text!$A$3:$C$353,3,FALSE)) -> Powys | D15: 421 | E15: 401 | F15: 364 | G15: N/A | H15: N/A | I15: 519,531 | J15: 132,597 | K15: 1,229 | L15: 11,595 | M15: 19,049 | N15: 7,320 | O15: 13,315 | P15: 111,509 | Q15: 4,300 | R15: 24,004 | S15: 70,565 | T15: 108,593 | U15: 83,492 | V15: 49,104 | W15: 5,108 | X15: 75,533 | Y15: 133,030 | Z15: 109,186 | AA15: 36,801 | AC15: 44,427 | AD15: 0.0 | AE15: 3,813 | AF15: 6,840 | AG15: 2,510 | AH15: 15,389 | AI15: 1,770 | AJ15: 9,422 | AK15: 10,644,333 | AL15: N/A | AM15: 0 | AN15: 9,103 | AO15: 3,011 | AP15: 2,190 | AQ15: 2,200 | AR15: 2,125 | AS15: 2,125 | AT15: 2,095 | AU15: 2,010 | AV15: 1,925 | AW15: 1,875 | AX15: 1,870 | AY15: 1,810 | AZ15: 1,790 | BA15: 323 | BB15: 297 | BC15: 279 | BD15: 256 | BE15: 191 | BF15: 153 | BG15: 114 | BH15: 109 | BI15: 0 | BJ15: 0 | BK15: 0 | BL15: 0 | BM15: 4,721 | BN15: 4,433 | BO15: 4,315 | BP15: 4,371 | BQ15: 327 | BR15: 305 | BS15: 284 | BT15: 265 | BU15: 207 | BV15: 168 | BW15: 122 | BX15: 119 | BY15: 3,498 | BZ15: 3,460 | CA15: 3,399 | CB15: 3,362 | CC15: 4,842 | CD15: 4,564 | CE15: 4,464 | CF15: 4,523 | CG15: 0 | CH15: 0 | CI15: 0 | CJ15: 0 | CK15: 117 | CL15: 119 | CM15: 113 | CN15: 111 | CO15: 4,728 | CP15: 4,766 | CQ15: 4,878 | CR15: 4,956 | CS15: 3,498 | CT15: 3,460 | CU15: 3,399 | CV15: 3,362 | CW15: 4,032 | CX15: 3,933 | CY15: 3,805 | CZ15: 3,746 | DA15: 65,690 | DB15: 242.60 | DC15: 2,708.20 | DD15: 2,128.40 | DE15: 34.40 | DF15: 114.30 | DG15: 219.90
A16: 124 | B16: 9 | C16: =IF('iaith - language'!$K$1=2,VLOOKUP(A16,Text!$A$3:$C$353,2,FALSE),VLOOKUP(A16,Text!$A$3:$C$353,3,FALSE)) -> Sir Ceredigion | D16: 279 | E16: 261 | F16: 202 | G16: N/A | H16: N/A | I16: 178,837 | J16: 70,909 | K16: 603 | L16: 6,004 | M16: 9,811 | N16: 3,793 | O16: 10,029 | P16: 60,171 | Q16: 2,366 | R16: 12,206 | S16: 39,485 | T16: 58,703 | U16: 46,412 | V16: 24,497 | W16: 2,700 | X16: 42,008 | Y16: 72,895 | Z16: 60,661 | AA16: 18,668 | AC16: 10,943 | AD16: 12.9 | AE16: 1,905 | AF16: 3,990 | AG16: 1,410 | AH16: 6,800 | AI16: 838 | AJ16: 5,409 | AK16: 6,264,194 | AL16: N/A | AM16: 0 | AN16: 7,197 | AO16: 1,576 | AP16: 1,320 | AQ16: 1,305 | AR16: 1,285 | AS16: 1,355 | AT16: 1,365 | AU16: 1,325 | AV16: 1,220 | AW16: 1,120 | AX16: 1,075 | AY16: 1,090 | AZ16: 1,120 | BA16: 171 | BB16: 162 | BC16: 150 | BD16: 136 | BE16: 89 | BF16: 63 | BG16: 69 | BH16: 61 | BI16: 0 | BJ16: 0 | BK16: 0 | BL16: 0 | BM16: 2,732 | BN16: 2,591 | BO16: 2,556 | BP16: 2,657 | BQ16: 170 | BR16: 161 | BS16: 155 | BT16: 143 | BU16: 93 | BV16: 65 | BW16: 70 | BX16: 60 | BY16: 2,002 | BZ16: 2,008 | CA16: 1,974 | CB16: 1,939 | CC16: 2,818 | CD16: 2,671 | CE16: 2,638 | CF16: 2,748 | CG16: 0 | CH16: 0 | CI16: 0 | CJ16: 0 | CK16: 29 | CL16: 27 | CM16: 29 | CN16: 29 | CO16: 2,753 | CP16: 2,773 | CQ16: 2,774 | CR16: 2,815 | CS16: 2,002 | CT16: 2,008 | CU16: 1,974 | CV16: 1,939 | CW16: 2,265 | CX16: 2,234 | CY16: 2,199 | CZ16: 2,142 | DA16: 35,750 | DB16: 158.30 | DC16: 1,166.60 | DD16: 826.10 | DE16: 34.40 | DF16: 100.80 | DG16: 124.70
A17: 125 | B17: 10 | C17: =IF('iaith - language'!$K$1=2,VLOOKUP(A17,Text!$A$3:$C$353,2,FALSE),VLOOKUP(A17,Text!$A$3:$C$353,3,FALSE)) -> Sir Benfro | D17: 237 | E17: 276 | F17: 247 | G17: N/A | H17: N/A | I17: 161,835 | J17: 126,580 | K17: 1,156 | L17: 11,657 | M17: 19,167 | N17: 7,609 | O17: 13,739 | P17: 105,539 | Q17: 4,222 | R17: 23,905 | S17: 67,958 | T17: 102,675 | U17: 81,876 | V17: 44,704 | W17: 4,739 | X17: 72,692 | Y17: 126,751 | Z17: 102,744 | AA17: 33,169 | AC17: 0 | AD17: 12.3 | AE17: 1,702 | AF17: 7,370 | AG17: 2,240 | AH17: 15,625 | AI17: 1,582 | AJ17: 9,495 | AK17: 9,504,469 | AL17: N/A | AM17: 2,116 | AN17: 14,583 | AO17: 2,052 | AP17: 2,815 | AQ17: 2,795 | AR17: 2,795 | AS17: 2,875 | AT17: 2,870 | AU17: 2,770 | AV17: 2,395 | AW17: 2,235 | AX17: 2,175 | AY17: 2,125 | AZ17: 2,150 | BA17: 516 | BB17: 486 | BC17: 447 | BD17: 419 | BE17: 329 | BF17: 283 | BG17: 263 | BH17: 246 | BI17: 0 | BJ17: 0 | BK17: 0 | BL17: 0 | BM17: 5,769 | BN17: 5,516 | BO17: 5,499 | BP17: 5,718 | BQ17: 529 | BR17: 494 | BS17: 447 | BT17: 422 | BU17: 340 | BV17: 289 | BW17: 271 | BX17: 249 | BY17: 3,761 | BZ17: 3,698 | CA17: 3,656 | CB17: 3,597 | CC17: 5,920 | CD17: 5,666 | CE17: 5,641 | CF17: 5,872 | CG17: 0 | CH17: 0 | CI17: 0 | CJ17: 0 | CK17: 64 | CL17: 70 | CM17: 64 | CN17: 64 | CO17: 5,571 | CP17: 5,634 | CQ17: 5,736 | CR17: 5,845 | CS17: 3,761 | CT17: 3,698 | CU17: 3,656 | CV17: 3,597 | CW17: 4,630 | CX17: 4,481 | CY17: 4,374 | CZ17: 4,268 | DA17: 62,140 | DB17: 160.50 | DC17: 1,220.50 | DD17: 1,105.60 | DE17: 55.60 | DF17: 171.40 | DG17: 330.80
A18: 126 | B18: 11 | C18: =IF('iaith - language'!$K$1=2,VLOOKUP(A18,Text!$A$3:$C$353,2,FALSE),VLOOKUP(A18,Text!$A$3:$C$353,3,FALSE)) -> Sir Gaerfyrddin | D18: 442 | E18: - | F18: 398 | G18: N/A | H18: N/A | I18: 237,112 | J18: 190,022 | K18: 1,940 | L18: 18,695 | M18: 30,302 | N18: 11,610 | O18: 21,415 | P18: 156,534 | Q18: 6,600 | R18: 38,021 | S18: 105,182 | T18: 152,001 | U18: 128,904 | V18: 61,117 | W18: 5,607 | X18: 112,450 | Y18: 190,073 | Z18: 152,810 | AA18: 45,693 | AC18: 0 | AD18: 9.1 | AE18: 2,974 | AF18: 7,050 | AG18: 2,690 | AH18: 20,667 | AI18: 2,592 | AJ18: 15,526 | AK18: 17,055,247 | AL18: N/A | AM18: 0 | AN18: 4,708 | AO18: 2,315 | AP18: 4,145 | AQ18: 3,925 | AR18: 3,780 | AS18: 3,760 | AT18: 3,700 | AU18: 3,530 | AV18: 3,310 | AW18: 3,295 | AX18: 3,170 | AY18: 3,125 | AZ18: 3,210 | BA18: 742 | BB18: 692 | BC18: 642 | BD18: 610 | BE18: 456 | BF18: 370 | BG18: 315 | BH18: 278 | BI18: 0 | BJ18: 0 | BK18: 0 | BL18: 0 | BM18: 8,699 | BN18: 8,609 | BO18: 8,361 | BP18: 8,409 | BQ18: 754 | BR18: 699 | BS18: 650 | BT18: 619 | BU18: 470 | BV18: 379 | BW18: 323 | BX18: 288 | BY18: 5,516 | BZ18: 5,466 | CA18: 5,394 | CB18: 5,305 | CC18: 8,920 | CD18: 8,833 | CE18: 8,581 | CF18: 8,645 | CG18: 0 | CH18: 0 | CI18: 0 | CJ18: 0 | CK18: 113 | CL18: 109 | CM18: 103 | CN18: 108 | CO18: 9,782 | CP18: 9,955 | CQ18: 10,157 | CR18: 10,336 | CS18: 5,515 | CT18: 5,463 | CU18: 5,387 | CV18: 5,308 | CW18: 6,740 | CX18: 6,544 | CY18: 6,367 | CZ18: 6,212 | DA18: 89,170 | DB18: 249.60 | DC18: 1,615.60 | DD18: 1,653.30 | DE18: 90.40 | DF18: 196.50 | DG18: 409.30
A19: 127 | B19: 12 | C19: =IF('iaith - language'!$K$1=2,VLOOKUP(A19,Text!$A$3:$C$353,2,FALSE),VLOOKUP(A19,Text!$A$3:$C$353,3,FALSE)) -> Abertawe | D19: 672 | E19: 550 | F19: 593 | G19: N/A | H19: N/A | I19: 37,761 | J19: 250,004 | K19: 2,551 | L19: 23,859 | M19: 37,707 | N19: 14,040 | O19: 31,557 | P19: 207,529 | Q19: 8,440 | R19: 47,970 | S19: 151,801 | T19: 202,034 | U19: 185,023 | V19: 64,982 | W19: 6,823 | X19: 160,173 | Y19: 246,563 | Z19: 199,723 | AA19: 48,958 | AC19: 0 | AD19: 7.9 | AE19: 366 | AF19: 7,680 | AG19: 2,930 | AH19: 29,153 | AI19: 2,747 | AJ19: 21,467 | AK19: 23,138,915 | AL19: N/A | AM19: 138 | AN19: 5,424 | AO19: 3,125 | AP19: 6,725 | AQ19: 6,445 | AR19: 6,275 | AS19: 6,110 | AT19: 6,105 | AU19: 5,850 | AV19: 5,650 | AW19: 5,465 | AX19: 5,395 | AY19: 5,285 | AZ19: 5,375 | BA19: 1,064 | BB19: 999 | BC19: 926 | BD19: 882 | BE19: 622 | BF19: 527 | BG19: 433 | BH19: 436 | BI19: 0 | BJ19: 0 | BK19: 0 | BL19: 0 | BM19: 14,403 | BN19: 13,986 | BO19: 13,636 | BP19: 13,767 | BQ19: 1,074 | BR19: 1,011 | BS19: 935 | BT19: 890 | BU19: 647 | BV19: 545 | BW19: 452 | BX19: 453 | BY19: 6,965 | BZ19: 6,894 | CA19: 6,821 | CB19: 6,708 | CC19: 14,714 | CD19: 14,307 | CE19: 13,985 | CF19: 14,134 | CG19: 0 | CH19: 0 | CI19: 0 | CJ19: 0 | CK19: 142 | CL19: 141 | CM19: 146 | CN19: 143 | CO19: 13,042 | CP19: 13,214 | CQ19: 13,386 | CR19: 13,673 | CS19: 6,965 | CT19: 6,894 | CU19: 6,821 | CV19: 6,708 | CW19: 8,686 | CX19: 8,450 | CY19: 8,208 | CZ19: 8,051 | DA19: 114,300 | DB19: 102.30 | DC19: 231.20 | DD19: 779.40 | DE19: 70.70 | DF19: 138.90 | DG19: 650.90
A20: 128 | B20: 13 | C20: =IF('iaith - language'!$K$1=2,VLOOKUP(A20,Text!$A$3:$C$353,2,FALSE),VLOOKUP(A20,Text!$A$3:$C$353,3,FALSE)) -> Castell-nedd Port Talbot | D20: 254 | E20: 203 | F20: 191 | G20: N/A | H20: N/A | I20: 44,227 | J20: 144,894 | K20: 1,524 | L20: 14,346 | M20: 22,740 | N20: 8,494 | O20: 16,430 | P20: 119,385 | Q20: 4,988 | R20: 28,823 | S20: 84,939 | T20: 116,071 | U20: 103,726 | V20: 41,168 | W20: 3,578 | X20: 90,177 | Y20: 144,386 | Z20: 116,296 | AA20: 30,254 | AC20: 0 | AD20: 2.9 | AE20: 219 | AF20: 4,040 | AG20: 1,780 | AH20: 19,547 | AI20: 1,839 | AJ20: 16,382 | AK20: 19,007,177 | AL20: N/A | AM20: 177 | AN20: 922 | AO20: 1,146 | AP20: 3,610 | AQ20: 3,475 | AR20: 3,380 | AS20: 3,365 | AT20: 3,395 | AU20: 3,240 | AV20: 3,015 | AW20: 2,905 | AX20: 2,775 | AY20: 2,700 | AZ20: 2,735 | BA20: 857 | BB20: 812 | BC20: 767 | BD20: 736 | BE20: 263 | BF20: 167 | BG20: 143 | BH20: 141 | BI20: 0 | BJ20: 0 | BK20: 0 | BL20: 0 | BM20: 8,962 | BN20: 8,769 | BO20: 8,664 | BP20: 8,792 | BQ20: 868 | BR20: 818 | BS20: 778 | BT20: 743 | BU20: 274 | BV20: 181 | BW20: 155 | BX20: 149 | BY20: 4,591 | BZ20: 4,528 | CA20: 4,453 | CB20: 4,362 | CC20: 9,150 | CD20: 8,984 | CE20: 8,866 | CF20: 9,002 | CG20: 0 | CH20: 0 | CI20: 0 | CJ20: 0 | CK20: 113 | CL20: 115 | CM20: 112 | CN20: 117 | CO20: 9,527 | CP20: 9,642 | CQ20: 9,770 | CR20: 9,953 | CS20: 4,591 | CT20: 4,528 | CU20: 4,453 | CV20: 4,362 | CW20: 5,733 | CX20: 5,527 | CY20: 5,386 | CZ20: 5,254 | DA20: 66,880 | DB20: 118.00 | DC20: 116.10 | DD20: 599.30 | DE20: 66.30 | DF20: 68.80 | DG20: 479.40
A21: 129 | B21: 14 | C21: =IF('iaith - language'!$K$1=2,VLOOKUP(A21,Text!$A$3:$C$353,2,FALSE),VLOOKUP(A21,Text!$A$3:$C$353,3,FALSE)) -> Pen-y-bont ar Ogwr | D21: 331 | E21: 278 | F21: 230 | G21: N/A | H21: N/A | I21: 25,079 | J21: 148,576 | K21: 1,638 | L21: 15,240 | M21: 23,904 | N21: 8,799 | O21: 16,239 | P21: 121,687 | Q21: 5,020 | R21: 30,301 | S21: 86,940 | T21: 118,274 | U21: 107,234 | V21: 41,342 | W21: 3,629 | X21: 92,165 | Y21: 147,539 | Z21: 118,204 | AA21: 30,168 | AC21: 0 | AD21: 2.4 | AE21: 194 | AF21: 5,090 | AG21: 1,790 | AH21: 19,761 | AI21: 1,717 | AJ21: 12,606 | AK21: 15,237,098 | AL21: N/A | AM21: 0 | AN21: 2,664 | AO21: 3,061 | AP21: 3,540 | AQ21: 3,455 | AR21: 3,330 | AS21: 3,330 | AT21: 3,320 | AU21: 3,195 | AV21: 2,985 | AW21: 2,900 | AX21: 2,890 | AY21: 2,815 | AZ21: 2,835 | BA21: 772 | BB21: 722 | BC21: 673 | BD21: 630 | BE21: 229 | BF21: 183 | BG21: 172 | BH21: 160 | BI21: 0 | BJ21: 0 | BK21: 0 | BL21: 0 | BM21: 8,069 | BN21: 7,798 | BO21: 7,534 | BP21: 7,625 | BQ21: 781 | BR21: 726 | BS21: 676 | BT21: 635 | BU21: 227 | BV21: 188 | BW21: 179 | BX21: 169 | BY21: 3,701 | BZ21: 3,676 | CA21: 3,605 | CB21: 3,559 | CC21: 8,279 | CD21: 8,029 | CE21: 7,762 | CF21: 7,853 | CG21: 0 | CH21: 0 | CI21: 0 | CJ21: 0 | CK21: 128 | CL21: 135 | CM21: 134 | CN21: 120 | CO21: 7,827 | CP21: 7,915 | CQ21: 8,051 | CR21: 8,226 | CS21: 3,701 | CT21: 3,676 | CU21: 3,605 | CV21: 3,559 | CW21: 4,709 | CX21: 4,590 | CY21: 4,460 | CZ21: 4,363 | DA21: 65,610 | DB21: 104.00 | DC21: 139.00 | DD21: 545.80 | DE21: 52.30 | DF21: 83.30 | DG21: 443.40
A22: 130 | B22: 15 | C22: =IF('iaith - language'!$K$1=2,VLOOKUP(A22,Text!$A$3:$C$353,2,FALSE),VLOOKUP(A22,Text!$A$3:$C$353,3,FALSE)) -> Bro Morgannwg | D22: 451 | E22: 413 | F22: 328 | G22: N/A | H22: N/A | I22: 33,126 | J22: 136,448 | K22: 1,510 | L22: 14,314 | M22: 22,797 | N22: 8,544 | O22: 15,363 | P22: 111,085 | Q22: 4,823 | R22: 28,638 | S22: 77,556 | T22: 107,810 | U22: 96,876 | V22: 39,572 | W22: 3,634 | X22: 82,522 | Y22: 135,295 | Z22: 107,403 | AA22: 28,838 | AC22: 0 | AD22: 4.0 | AE22: 285 | AF22: 3,590 | AG22: 1,540 | AH22: 15,740 | AI22: 1,467 | AJ22: 9,472 | AK22: 11,124,862 | AL22: N/A | AM22: 47 | AN22: 2,240 | AO22: 3,669 | AP22: 2,915 | AQ22: 2,865 | AR22: 2,725 | AS22: 2,670 | AT22: 2,720 | AU22: 2,640 | AV22: 2,555 | AW22: 2,445 | AX22: 2,445 | AY22: 2,355 | AZ22: 2,355 | BA22: 522 | BB22: 495 | BC22: 463 | BD22: 434 | BE22: 321 | BF22: 256 | BG22: 212 | BH22: 207 | BI22: 0 | BJ22: 0 | BK22: 0 | BL22: 0 | BM22: 5,941 | BN22: 5,693 | BO22: 5,488 | BP22: 5,577 | BQ22: 528 | BR22: 503 | BS22: 472 | BT22: 441 | BU22: 329 | BV22: 269 | BW22: 216 | BX22: 209 | BY22: 2,960 | BZ22: 2,948 | CA22: 2,895 | CB22: 2,853 | CC22: 6,065 | CD22: 5,831 | CE22: 5,633 | CF22: 5,714 | CG22: 0 | CH22: 0 | CI22: 0 | CJ22: 0 | CK22: 81 | CL22: 73 | CM22: 74 | CN22: 74 | CO22: 5,162 | CP22: 5,223 | CQ22: 5,351 | CR22: 5,516 | CS22: 2,960 | CT22: 2,948 | CU22: 2,895 | CV22: 2,853 | CW22: 3,817 | CX22: 3,720 | CY22: 3,583 | CZ22: 3,503 | DA22: 60,970 | DB22: 73.90 | DC22: 371.10 | DD22: 593.30 | DE22: 21.40 | DF22: 53.50 | DG22: 374.90
A23: 131 | B23: 16 | C23: =IF('iaith - language'!$K$1=2,VLOOKUP(A23,Text!$A$3:$C$353,2,FALSE),VLOOKUP(A23,Text!$A$3:$C$353,3,FALSE)) -> Rhondda Cynon Taf | D23: 453 | E23: 381 | F23: 334 | G23: N/A | H23: N/A | I23: 42,415 | J23: 243,406 | K23: 2,691 | L23: 25,066 | M23: 39,843 | N23: 14,955 | O23: 29,030 | P23: 198,506 | Q23: 8,508 | R23: 50,603 | S23: 144,714 | T23: 192,803 | U23: 180,178 | V23: 63,228 | W23: 5,613 | X23: 153,324 | Y23: 241,873 | Z23: 191,775 | AA23: 46,755 | AC23: 0 | AD23: 0.0 | AE23: 263 | AF23: 7,220 | AG23: 3,010 | AH23: 29,879 | AI23: 2,713 | AJ23: 24,082 | AK23: 25,150,072 | AL23: N/A | AM23: 0 | AN23: 1,283 | AO23: 1,575 | AP23: 6,480 | AQ23: 6,145 | AR23: 5,945 | AS23: 5,950 | AT23: 5,840 | AU23: 5,705 | AV23: 5,285 | AW23: 5,200 | AX23: 5,070 | AY23: 4,900 | AZ23: 4,825 | BA23: 1,551 | BB23: 1,434 | BC23: 1,314 | BD23: 1,241 | BE23: 586 | BF23: 401 | BG23: 258 | BH23: 276 | BI23: 0 | BJ23: 0 | BK23: 0 | BL23: 0 | BM23: 13,728 | BN23: 13,350 | BO23: 12,944 | BP23: 13,238 | BQ23: 1,569 | BR23: 1,450 | BS23: 1,326 | BT23: 1,252 | BU23: 605 | BV23: 412 | BW23: 259 | BX23: 280 | BY23: 7,221 | BZ23: 7,140 | CA23: 6,999 | CB23: 6,897 | CC23: 13,967 | CD23: 13,623 | CE23: 13,227 | CF23: 13,551 | CG23: 0 | CH23: 0 | CI23: 0 | CJ23: 0 | CK23: 218 | CL23: 207 | CM23: 195 | CN23: 193 | CO23: 14,251 | CP23: 14,468 | CQ23: 14,762 | CR23: 15,114 | CS23: 7,221 | CT23: 7,140 | CU23: 6,999 | CV23: 6,897 | CW23: 9,395 | CX23: 9,002 | CY23: 8,584 | CZ23: 8,429 | DA23: 110,810 | DB23: 165.40 | DC23: 199.70 | DD23: 930.50 | DE23: 76.10 | DF23: 127.80 | DG23: 794.70
A24: 132 | B24: 17 | C24: =IF('iaith - language'!$K$1=2,VLOOKUP(A24,Text!$A$3:$C$353,2,FALSE),VLOOKUP(A24,Text!$A$3:$C$353,3,FALSE)) -> Merthyr Tudful | D24: 120 | E24: 118 | F24: 80 | G24: N/A | H24: N/A | I24: 11,196 | J24: 61,080 | K24: 723 | L24: 6,792 | M24: 10,554 | N24: 3,808 | O24: 7,046 | P24: 49,188 | Q24: 2,080 | R24: 13,326 | S24: 35,882 | T24: 47,754 | U24: 45,125 | V24: 15,955 | W24: 1,330 | X24: 38,100 | Y24: 60,424 | Z24: 47,544 | AA24: 11,394 | AC24: 0 | AD24: 0.0 | AE24: 49 | AF24: 1,790 | AG24: 780 | AH24: 7,504 | AI24: 696 | AJ24: 6,058 | AK24: 6,742,440 | AL24: N/A | AM24: 0 | AN24: 552 | AO24: 1,160 | AP24: 1,750 | AQ24: 1,715 | AR24: 1,655 | AS24: 1,610 | AT24: 1,660 | AU24: 1,635 | AV24: 1,500 | AW24: 1,450 | AX24: 1,435 | AY24: 1,410 | AZ24: 1,425 | BA24: 388 | BB24: 366 | BC24: 346 | BD24: 320 | BE24: 166 | BF24: 147 | BG24: 118 | BH24: 111 | BI24: 0 | BJ24: 0 | BK24: 0 | BL24: 0 | BM24: 4,013 | BN24: 3,978 | BO24: 3,783 | BP24: 3,826 | BQ24: 383 | BR24: 370 | BS24: 346 | BT24: 327 | BU24: 170 | BV24: 155 | BW24: 124 | BX24: 120 | BY24: 1,843 | BZ24: 1,843 | CA24: 1,836 | CB24: 1,806 | CC24: 4,100 | CD24: 4,069 | CE24: 3,877 | CF24: 3,924 | CG24: 0 | CH24: 0 | CI24: 0 | CJ24: 0 | CK24: 72 | CL24: 75 | CM24: 77 | CN24: 72 | CO24: 3,988 | CP24: 4,044 | CQ24: 4,108 | CR24: 4,195 | CS24: 1,843 | CT24: 1,843 | CU24: 1,836 | CV24: 1,806 | CW24: 2,396 | CX24: 2,368 | CY24: 2,306 | CZ24: 2,253 | DA24: 27,490 | DB24: 27.60 | DC24: 52.80 | DD24: 222.00 | DE24: 22.20 | DF24: 40.70 | DG24: 191.50
A25: 133 | B25: 18 | C25: =IF('iaith - language'!$K$1=2,VLOOKUP(A25,Text!$A$3:$C$353,2,FALSE),VLOOKUP(A25,Text!$A$3:$C$353,3,FALSE)) -> Caerffili | D25: 305 | E25: 271 | F25: 221 | G25: N/A | H25: N/A | I25: 27,739 | J25: 182,236 | K25: 1,997 | L25: 18,616 | M25: 29,865 | N25: 11,268 | O25: 21,033 | P25: 148,682 | Q25: 6,277 | R25: 37,840 | S25: 107,174 | T25: 144,396 | U25: 133,340 | V25: 48,896 | W25: 4,158 | X25: 113,601 | Y25: 181,731 | Z25: 144,061 | AA25: 35,672 | AC25: 0 | AD25: 0.0 | AE25: 233 | AF25: 4,990 | AG25: 2,010 | AH25: 27,652 | AI25: 2,011 | AJ25: 16,244 | AK25: 15,312,917 | AL25: N/A | AM25: 0 | AN25: 933 | AO25: 1,421 | AP25: 4,950 | AQ25: 4,830 | AR25: 4,690 | AS25: 4,625 | AT25: 4,550 | AU25: 4,395 | AV25: 4,035 | AW25: 3,915 | AX25: 3,910 | AY25: 3,840 | AZ25: 3,910 | BA25: 978 | BB25: 916 | BC25: 844 | BD25: 792 | BE25: 636 | BF25: 538 | BG25: 475 | BH25: 419 | BI25: 0 | BJ25: 0 | BK25: 0 | BL25: 0 | BM25: 10,334 | BN25: 10,089 | BO25: 9,849 | BP25: 10,004 | BQ25: 987 | BR25: 927 | BS25: 857 | BT25: 802 | BU25: 661 | BV25: 552 | BW25: 488 | BX25: 438 | BY25: 5,464 | BZ25: 5,404 | CA25: 5,355 | CB25: 5,273 | CC25: 10,547 | CD25: 10,327 | CE25: 10,110 | CF25: 10,278 | CG25: 0 | CH25: 0 | CI25: 0 | CJ25: 0 | CK25: 126 | CL25: 117 | CM25: 120 | CN25: 119 | CO25: 11,004 | CP25: 11,242 | CQ25: 11,456 | CR25: 11,673 | CS25: 5,464 | CT25: 5,404 | CU25: 5,355 | CV25: 5,273 | CW25: 7,112 | CX25: 6,883 | CY25: 6,700 | CZ25: 6,513 | DA25: 80,230 | DB25: 96.70 | DC25: 217.30 | DD25: 859.10 | DE25: 30.40 | DF25: 130.00 | DG25: 697.40
A26: 134 | B26: 19 | C26: =IF('iaith - language'!$K$1=2,VLOOKUP(A26,Text!$A$3:$C$353,2,FALSE),VLOOKUP(A26,Text!$A$3:$C$353,3,FALSE)) -> Blaenau Gwent | D26: 102 | E26: 89 | F26: 74 | G26: N/A | H26: N/A | I26: 10,873 | J26: 69,508 | K26: 742 | L26: 6,758 | M26: 10,760 | N26: 3,977 | O26: 7,578 | P26: 57,350 | Q26: 2,356 | R26: 13,768 | S26: 41,434 | T26: 55,740 | U26: 50,381 | V26: 19,127 | W26: 1,569 | X26: 43,867 | Y26: 70,020 | Z26: 56,401 | AA26: 14,177 | AC26: 0 | AD26: 0.0 | AE26: 69 | AF26: 2,170 | AG26: 1,100 | AH26: 12,936 | AI26: 895 | AJ26: 8,597 | AK26: 9,739,938 | AL26: N/A | AM26: 0 | AN26: 418 | AO26: 574 | AP26: 2,245 | AQ26: 2,190 | AR26: 2,140 | AS26: 2,100 | AT26: 2,095 | AU26: 2,010 | AV26: 1,925 | AW26: 1,875 | AX26: 1,870 | AY26: 1,810 | AZ26: 1,790 | BA26: 428 | BB26: 399 | BC26: 368 | BD26: 353 | BE26: 238 | BF26: 202 | BG26: 163 | BH26: 118 | BI26: 0 | BJ26: 0 | BK26: 0 | BL26: 0 | BM26: 4,868 | BN26: 4,661 | BO26: 4,579 | BP26: 4,711 | BQ26: 436 | BR26: 402 | BS26: 375 | BT26: 361 | BU26: 250 | BV26: 209 | BW26: 170 | BX26: 128 | BY26: 2,404 | BZ26: 2,388 | CA26: 2,347 | CB26: 2,314 | CC26: 4,989 | CD26: 4,788 | CE26: 4,711 | CF26: 4,840 | CG26: 0 | CH26: 0 | CI26: 0 | CJ26: 0 | CK26: 54 | CL26: 49 | CM26: 49 | CN26: 53 | CO26: 4,827 | CP26: 4,883 | CQ26: 4,970 | CR26: 5,048 | CS26: 2,404 | CT26: 2,388 | CU26: 2,347 | CV26: 2,314 | CW26: 3,090 | CX26: 2,999 | CY26: 2,892 | CZ26: 2,803 | DA26: 33,000 | DB26: 51.00 | DC26: 67.70 | DD26: 389.80 | DE26: 20.20 | DF26: 47.00 | DG26: 387.80
A27: 135 | B27: 20 | C27: =IF('iaith - language'!$K$1=2,VLOOKUP(A27,Text!$A$3:$C$353,2,FALSE),VLOOKUP(A27,Text!$A$3:$C$353,3,FALSE)) -> Torfaen | D27: 169 | E27: 144 | F27: 97 | G27: N/A | H27: N/A | I27: 12,624 | J27: 94,354 | K27: 1,042 | L27: 9,845 | M27: 15,571 | N27: 5,774 | O27: 10,680 | P27: 76,882 | Q27: 3,330 | R27: 19,712 | S27: 54,502 | T27: 74,642 | U27: 67,891 | V27: 26,463 | W27: 2,568 | X27: 57,934 | Y27: 94,832 | Z27: 75,369 | AA27: 19,543 | AC27: 0 | AD27: 0.0 | AE27: 113 | AF27: 2,890 | AG27: 1,190 | AH27: 13,643 | AI27: 1,043 | AJ27: 9,932 | AK27: 10,218,388 | AL27: N/A | AM27: 0 | AN27: 495 | AO27: 864 | AP27: 2,685 | AQ27: 2,570 | AR27: 2,585 | AS27: 2,540 | AT27: 2,565 | AU27: 2,460 | AV27: 2,315 | AW27: 2,225 | AX27: 2,185 | AY27: 2,090 | AZ27: 2,090 | BA27: 381 | BB27: 364 | BC27: 345 | BD27: 331 | BE27: 153 | BF27: 121 | BG27: 91 | BH27: 88 | BI27: 0 | BJ27: 0 | BK27: 0 | BL27: 0 | BM27: 6,278 | BN27: 6,051 | BO27: 5,865 | BP27: 5,985 | BQ27: 393 | BR27: 372 | BS27: 347 | BT27: 333 | BU27: 153 | BV27: 119 | BW27: 92 | BX27: 89 | BY27: 2,645 | BZ27: 2,631 | CA27: 2,591 | CB27: 2,569 | CC27: 6,398 | CD27: 6,177 | CE27: 5,997 | CF27: 6,128 | CG27: 0 | CH27: 0 | CI27: 0 | CJ27: 0 | CK27: 58 | CL27: 56 | CM27: 51 | CN27: 54 | CO27: 5,631 | CP27: 5,733 | CQ27: 5,826 | CR27: 5,961 | CS27: 2,645 | CT27: 2,631 | CU27: 2,591 | CV27: 2,569 | CW27: 3,191 | CX27: 3,122 | CY27: 3,030 | CZ27: 2,991 | DA27: 42,800 | DB27: 26.30 | DC27: 101.60 | DD27: 326.10 | DE27: 16.20 | DF27: 70.80 | DG27: 292.80
A28: 136 | B28: 21 | C28: =IF('iaith - language'!$K$1=2,VLOOKUP(A28,Text!$A$3:$C$353,2,FALSE),VLOOKUP(A28,Text!$A$3:$C$353,3,FALSE)) -> Sir Fynwy | D28: 301 | E28: 303 | F28: 266 | G28: N/A | H28: N/A | I28: 85,033 | J28: 95,826 | K28: 851 | L28: 8,502 | M28: 14,149 | N28: 5,520 | O28: 9,978 | P28: 80,468 | Q28: 3,242 | R28: 17,604 | S28: 52,719 | T28: 78,222 | U28: 62,996 | V28: 32,829 | W28: 3,545 | X28: 56,302 | Y28: 95,164 | Z28: 77,843 | AA28: 24,340 | AC28: 93,511 | AD28: 0.0 | AE28: 997 | AF28: 3,190 | AG28: 1,220 | AH28: 10,900 | AI28: 1,114 | AJ28: 5,669 | AK28: 7,219,377 | AL28: N/A | AM28: 0 | AN28: 1,540 | AO28: 1,725 | AP28: 1,610 | AQ28: 1,530 | AR28: 1,475 | AS28: 1,445 | AT28: 1,475 | AU28: 1,410 | AV28: 1,310 | AW28: 1,320 | AX28: 1,290 | AY28: 1,330 | AZ28: 1,365 | BA28: 194 | BB28: 182 | BC28: 171 | BD28: 162 | BE28: 201 | BF28: 143 | BG28: 134 | BH28: 136 | BI28: 0 | BJ28: 0 | BK28: 0 | BL28: 0 | BM28: 3,202 | BN28: 2,998 | BO28: 2,851 | BP28: 2,878 | BQ28: 194 | BR28: 187 | BS28: 174 | BT28: 163 | BU28: 217 | BV28: 154 | BW28: 148 | BX28: 145 | BY28: 1,941 | BZ28: 1,915 | CA28: 1,887 | CB28: 1,863 | CC28: 3,280 | CD28: 3,076 | CE28: 2,930 | CF28: 2,961 | CG28: 0 | CH28: 0 | CI28: 0 | CJ28: 0 | CK28: 57 | CL28: 61 | CM28: 56 | CN28: 54 | CO28: 3,156 | CP28: 3,200 | CQ28: 3,238 | CR28: 3,294 | CS28: 1,933 | CT28: 1,910 | CU28: 1,882 | CV28: 1,854 | CW28: 2,352 | CX28: 2,256 | CY28: 2,209 | CZ28: 2,171 | DA28: 43,380 | DB28: 58.70 | DC28: 616.10 | DD28: 839.00 | DE28: 14.90 | DF28: 70.40 | DG28: 189.90
A29: 137 | B29: 22 | C29: =IF('iaith - language'!$K$1=2,VLOOKUP(A29,Text!$A$3:$C$353,2,FALSE),VLOOKUP(A29,Text!$A$3:$C$353,3,FALSE)) -> Casnewydd | D29: 301 | E29: - | F29: - | G29: N/A | H29: N/A | I29: 19,043 | J29: 159,298 | K29: 2,080 | L29: 19,059 | M29: 29,322 | N29: 10,509 | O29: 19,003 | P29: 125,847 | Q29: 5,582 | R29: 37,221 | S29: 94,486 | T29: 122,077 | U29: 122,053 | V29: 37,244 | W29: 3,472 | X29: 99,943 | Y29: 156,447 | Z29: 120,851 | AA29: 26,654 | AC29: 754,568 | AD29: 0.0 | AE29: 145 | AF29: 4,520 | AG29: 1,740 | AH29: 20,175 | AI29: 1,553 | AJ29: 12,553 | AK29: 12,396,582 | AL29: N/A | AM29: 509 | AN29: 1,698 | AO29: 3,880 | AP29: 5,860 | AQ29: 5,660 | AR29: 5,450 | AS29: 5,345 | AT29: 5,370 | AU29: 5,290 | AV29: 4,975 | AW29: 4,855 | AX29: 4,685 | AY29: 4,605 | AZ29: 4,630 | BA29: 727 | BB29: 691 | BC29: 641 | BD29: 612 | BE29: 442 | BF29: 374 | BG29: 303 | BH29: 297 | BI29: 0 | BJ29: 0 | BK29: 0 | BL29: 0 | BM29: 11,060 | BN29: 10,570 | BO29: 10,239 | BP29: 10,284 | BQ29: 740 | BR29: 698 | BS29: 646 | BT29: 620 | BU29: 446 | BV29: 381 | BW29: 310 | BX29: 307 | BY29: 3,994 | BZ29: 3,962 | CA29: 3,923 | CB29: 3,864 | CC29: 11,236 | CD29: 10,768 | CE29: 10,442 | CF29: 10,494 | CG29: 0 | CH29: 0 | CI29: 0 | CJ29: 0 | CK29: 82 | CL29: 83 | CM29: 80 | CN29: 75 | CO29: 7,937 | CP29: 8,060 | CQ29: 8,234 | CR29: 8,427 | CS29: 3,994 | CT29: 3,962 | CU29: 3,923 | CV29: 3,864 | CW29: 5,180 | CX29: 5,041 | CY29: 4,879 | CZ29: 4,791 | DA29: 70,160 | DB29: 50.60 | DC29: 196.00 | DD29: 461.50 | DE29: 21.40 | DF29: 77.90 | DG29: 461.20
A30: 138 | B30: 23 | C30: =IF('iaith - language'!$K$1=2,VLOOKUP(A30,Text!$A$3:$C$353,2,FALSE),VLOOKUP(A30,Text!$A$3:$C$353,3,FALSE)) -> Caerdydd | D30: 774 | E30: 698 | F30: 599 | G30: N/A | H30: N/A | I30: 14,230 | J30: 369,122 | K30: 3,976 | L30: 37,943 | M30: 59,772 | N30: 22,129 | O30: 52,202 | P30: 301,608 | Q30: 13,028 | R30: 75,980 | S30: 238,552 | T30: 293,142 | U30: 295,781 | V30: 73,341 | W30: 7,343 | X30: 250,389 | Y30: 369,202 | Z30: 293,830 | AA30: 52,807 | AC30: 139,318 | AD30: 2.4 | AE30: 59 | AF30: 12,820 | AG30: 4,090 | AH30: 42,578 | AI30: 3,039 | AJ30: 29,825 | AK30: 34,141,281 | AL30: N/A | AM30: 186 | AN30: 4,805 | AO30: 19,296 | AP30: 11,585 | AQ30: 11,210 | AR30: 10,805 | AS30: 10,705 | AT30: 10,830 | AU30: 10,595 | AV30: 9,695 | AW30: 9,365 | AX30: 9,295 | AY30: 9,195 | AZ30: 9,475 | BA30: 1,609 | BB30: 1,504 | BC30: 1,402 | BD30: 1,328 | BE30: 892 | BF30: 710 | BG30: 633 | BH30: 640 | BI30: 0 | BJ30: 0 | BK30: 0 | BL30: 0 | BM30: 23,360 | BN30: 22,079 | BO30: 21,144 | BP30: 21,343 | BQ30: 1,628 | BR30: 1,526 | BS30: 1,413 | BT30: 1,342 | BU30: 919 | BV30: 735 | BW30: 654 | BX30: 665 | BY30: 7,837 | BZ30: 7,759 | CA30: 7,683 | CB30: 7,595 | CC30: 23,742 | CD30: 22,495 | CE30: 21,595 | CF30: 21,823 | CG30: 0 | CH30: 0 | CI30: 0 | CJ30: 0 | CK30: 231 | CL30: 221 | CM30: 220 | CN30: 211 | CO30: 15,573 | CP30: 15,847 | CQ30: 16,218 | CR30: 16,571 | CS30: 7,837 | CT30: 7,759 | CU30: 7,683 | CV30: 7,595 | CW30: 10,384 | CX30: 10,020 | CY30: 9,750 | CZ30: 9,602 | DA30: 162,120 | DB30: 92.20 | DC30: 138.30 | DD30: 888.40 | DE30: 58.50 | DF30: 97.90 | DG30: 877.50
A32: 139 | C32: =IF('iaith - language'!$K$1=2,VLOOKUP(A32,Text!$A$3:$C$353,2,FALSE),VLOOKUP(A32,Text!$A$3:$C$353,3,FALSE)) -> Cyfanswm AU | D32: =SUM(D9:D31) -> 7,148 | E32: =SUM(E9:E31) -> 6,088 | F32: =SUM(F9:F31) -> 5,706 | G32: =SUM(G9:G31) -> 0 | H32: =SUM(H9:H30) -> 0 | I32: =SUM(I9:I31) -> 2,078,263 | J32: =SUM(J9:J30) -> 3,179,107 | K32: 33,441 | L32: 317,104 | M32: 506,762 | N32: 190,839 | O32: 375,139 | P32: 2,612,422 | Q32: 109,459 | R32: 640,350 | S32: 1,848,116 | T32: 2,538,757 | U32: 2,276,228 | V32: 902,879 | W32: 87,605 | X32: 1,961,185 | Y32: 3,169,586 | Z32: 2,539,714 | AA32: 668,590 | AB32: 0 | AC32: 1,209,887 | AD32: 117.61 | AE32: =SUM(AE9:AE30) -> 18,677 | AF32: =SUM(AF9:AF30) -> 115,840 | AG32: =SUM(AG9:AG30) -> 42,510 | AH32: =SUM(AH9:AH30) -> 398,030 | AI32: 36,135 | AJ32: 267,625 | AK32: 293,991,416 | AL32: =SUM(AL9:AL30) -> 0 | AM32: 6,116 | AN32: 107,900 | AO32: 71,088 | AP32: 81,345 | AQ32: 78,845 | AR32: 76,620 | AS32: 75,995 | AT32: 75,920 | AU32: 73,255 | AV32: 68,000 | AW32: 65,670 | AX32: 64,285 | AY32: =SUM(AY9:AY30) -> 63,030 | AZ32: =SUM(AZ9:AZ30) -> 63,905 | BA32: 13,815 | BB32: 12,924 | BC32: 12,018 | BD32: 11,349 | BE32: 7,393 | BF32: 5,867 | BG32: 4,952 | BH32: 4,749 | BI32: 0 | BJ32: 0 | BK32: 0 | BL32: 0 | BM32: 171,702 | BN32: 164,402 | BO32: 159,764 | BP32: 162,044 | BQ32: 13,986 | BR32: 13,090 | BS32: 12,169 | BT32: 11,510 | BU32: 7,635 | BV32: 6,074 | BW32: 5,127 | BX32: 4,933 | BY32: 86,757 | BZ32: 85,849 | CA32: 84,639 | CB32: 83,413 | CC32: 175,434 | CD32: 168,348 | CE32: 163,821 | CF32: 166,260 | CG32: 0 | CH32: 0 | CI32: 0 | CJ32: 0 | CK32: 2,448 | CL32: 2,422 | CM32: 2,373 | CN32: 2,334 | CO32: 153,924 | CP32: 156,182 | CQ32: 158,981 | CR32: =SUM(CR9:CR30) -> 162,397 | CS32: 86,748 | CT32: 85,841 | CU32: =SUM(CU9:CU30) -> 84,627 | CV32: 83,407 | CW32: 108,378 | CX32: 105,013 | CY32: 101,935 | CZ32: 99,856 | DA32: =SUM(DA9:DA30) -> 1,462,670 | DB32: =SUM(DB9:DB30) -> 2,773.00 | DC32: =SUM(DC9:DC30) -> 12,879.50 | DD32: 17,756.50 | DE32: 961.10 | DF32: 2,144.20 | DG32: 8,826.90
B35: 27 | D35: =IF('iaith - language'!K1=2,VLOOKUP(B35,Text!$A$3:$C$353,2),VLOOKUP(B35,Text!$A$3:$C$353,3)) -> Yr Is-adran Polisi Cyllid Llywodraeth Leol a Chynaliadwyedd, Llywodraeth Cymru
B36: 30 | D36: =IF('iaith - language'!K1=2,VLOOKUP(B36,Text!$A$3:$C$353,2),VLOOKUP(B36,Text!$A$3:$C$353,3)) -> Os oes gennych ymholiadau, cysylltwch â:
B37: 29 | D37: LGFPSettlement@Gov.Wales
B39: 33 | D39: =IF('iaith - language'!K1=2,VLOOKUP(B39,Text!$A$3:$C$353,2),VLOOKUP(B39,Text!$A$3:$C$353,3)) -> Nodiadau:
B40: 34 | D40: =IF('iaith - language'!K1=2,VLOOKUP(B40,Text!$A$3:$C$353,2),VLOOKUP(B40,Text!$A$3:$C$353,3)) -> 1 Caiff y set ddata hon ei chymryd fel cyfartaledd 3 blynedd yn y setliad.
B41: 273

Sheet 2022-23 Settlement data
B1: 300 | C1: =IF('iaith - language'!$K$1=2,VLOOKUP(B1,Text!$A$1:$C$353,2,FALSE),VLOOKUP(B1,Text!$A$1:$C$353,3,FALSE)) -> Data a ddefnyddiwyd yn Setliad 2022-23 – er gwybodaeth yn unig
D3: 51 | H3: 61 | I3: 62 | J3: 67 | K3: 68 | L3: 69 | M3: 70 | N3: 71 | O3: 72 | P3: 73 | Q3: 74 | R3: 75 | S3: 76 | T3: 77 | U3: 78 | V3: 79 | W3: 80 | X3: 81 | Y3: 82 | Z3: 83 | AA3: 84 | AB3: 86 | AC3: 90 | AD3: 91 | AE3: 92 | AF3: 145 | AG3: 147 | AH3: 143 | AI3: 149 | AJ3: 151 | AK3: 152 | AL3: 152.5 | AM3: 160 | AN3: 162 | AO3: 163 | AP3: 192 | BA3: 194 | BE3: 195 | BI3: 196 | BM3: 197 | BQ3: 198 | BU3: 199 | BY3: 200 | CC3: 201 | CG3: 202 | CK3: 203 | CO3: 204 | CS3: 205 | CW3: 206 | DA3: 271.5 | DB3: 53 | DC3: 55 | DD3: 57 | DE3: 54 | DF3: 56 | DG3: 58
D4: 301 | E4: =D4+1 -> 302 | F4: =E4+1 -> 303 | G4: 304 | H4: 305 | I4: 305 | AD4: 305 | AF4: 304 | AG4: 304 | AH4: 306 | AP4: 307 | AQ4: =AP4+1 -> 308 | AR4: =AQ4+1 -> 309 | AS4: 310 | AT4: 311 | AU4: 304 | AV4: 306 | AW4: 305 | AX4: 312 | AY4: =AX4+1 -> 313 | AZ4: 314 | BA4: 315 | BB4: 316 | BC4: =AQ4 -> 308 | BD4: =AT4 -> 311 | BE4: =BA4 -> 315 | BF4: =BB4 -> 316 | BG4: 308 | BH4: 311 | BI4: =BE4 -> 315 | BJ4: =BF4 -> 316 | BK4: =BG4 -> 308 | BL4: =BH4 -> 311 | BM4: =BI4 -> 315 | BN4: =BJ4 -> 316 | BO4: =BK4 -> 308 | BP4: =BL4 -> 311 | BQ4: =BM4 -> 315 | BR4: =BN4 -> 316 | BS4: =BO4 -> 308 | BT4: =BP4 -> 311 | BU4: =BQ4 -> 315 | BV4: =BR4 -> 316 | BW4: =BS4 -> 308 | BX4: =BT4 -> 311 | BY4: =BU4 -> 315 | BZ4: =BV4 -> 316 | CA4: =BW4 -> 308 | CB4: =BX4 -> 311 | CC4: =BY4 -> 315 | CD4: =BZ4 -> 316 | CE4: =CA4 -> 308 | CF4: =CB4 -> 311 | CG4: =CC4 -> 315 | CH4: =CD4 -> 316 | CI4: =CE4 -> 308 | CJ4: =CF4 -> 311 | CK4: =CG4 -> 315 | CL4: =CH4 -> 316 | CM4: =CI4 -> 308 | CN4: =CJ4 -> 311 | CO4: =CK4 -> 315 | CP4: =CL4 -> 316 | CQ4: =CM4 -> 308 | CR4: =CN4 -> 311 | CS4: =CO4 -> 315 | CT4: =CP4 -> 316 | CU4: =CQ4 -> 308 | CV4: =CR4 -> 311 | CW4: =CS4 -> 315 | CX4: =CT4 -> 316 | CY4: =CU4 -> 308 | CZ4: =CV4 -> 311 | DA4: =G4 -> 304 | DB4: 304 | DC4: 304 | DD4: 304 | DE4: 304 | DF4: 304 | DG4: 304
D6: =IF('iaith - language'!$K$1=2,VLOOKUP(D3,Text!$A$3:$C$353,2,FALSE),VLOOKUP(D3,Text!$A$3:$C$353,3,FALSE)) -> Ceisiadau Cynllunio a Gafwyd | H6: =IF('iaith - language'!$K$1=2,VLOOKUP(H3,Text!$A$3:$C$353,2,FALSE),VLOOKUP(H3,Text!$A$3:$C$353,3,FALSE)) -> Stoc anheddau'r sector preifat | I6: =IF('iaith - language'!$K$1=2,VLOOKUP(I3,Text!$A$3:$C$353,2,FALSE),VLOOKUP(I3,Text!$A$3:$C$353,3,FALSE)) -> Arwynebedd tir (hectarau) | J6: =IF('iaith - language'!$K$1=2,VLOOKUP(J3,Text!$A$3:$C$353,2,FALSE),VLOOKUP(J3,Text!$A$3:$C$353,3,FALSE)) -> Cyfanswm y boblogaeth (amcanestyniad) | K6: =IF('iaith - language'!$K$1=2,VLOOKUP(K3,Text!$A$3:$C$353,2,FALSE),VLOOKUP(K3,Text!$A$3:$C$353,3,FALSE)) -> Poblogaeth 3 oed (amcanestyniad) | L6: =IF('iaith - language'!$K$1=2,VLOOKUP(L3,Text!$A$3:$C$353,2,FALSE),VLOOKUP(L3,Text!$A$3:$C$353,3,FALSE)) -> Poblogaeth 3 i 11 oed (amcanestyniad) | M6: =IF('iaith - language'!$K$1=2,VLOOKUP(M3,Text!$A$3:$C$353,2,FALSE),VLOOKUP(M3,Text!$A$3:$C$353,3,FALSE)) -> Poblogaeth 3 i 16 oed (amcanestyniad) | N6: =IF('iaith - language'!$K$1=2,VLOOKUP(N3,Text!$A$3:$C$353,2,FALSE),VLOOKUP(N3,Text!$A$3:$C$353,3,FALSE)) -> Poblogaeth 11 i 15 oed (amcanestyniad) | O6: =IF('iaith - language'!$K$1=2,VLOOKUP(O3,Text!$A$3:$C$353,2,FALSE),VLOOKUP(O3,Text!$A$3:$C$353,3,FALSE)) -> Poblogaeth 11 i 20 oed (amcanestyniad) | P6: =IF('iaith - language'!$K$1=2,VLOOKUP(P3,Text!$A$3:$C$353,2,FALSE),VLOOKUP(P3,Text!$A$3:$C$353,3,FALSE)) -> Poblogaeth 16 oed a throsodd (amcanestyniad) | Q6: =IF('iaith - language'!$K$1=2,VLOOKUP(Q3,Text!$A$3:$C$353,2,FALSE),VLOOKUP(Q3,Text!$A$3:$C$353,3,FALSE)) -> Poblogaeth 16 i 18 oed (amcanestyniad) | R6: =IF('iaith - language'!$K$1=2,VLOOKUP(R3,Text!$A$3:$C$353,2,FALSE),VLOOKUP(R3,Text!$A$3:$C$353,3,FALSE)) -> Poblogaeth 0 i 17 oed (amcanestyniad) | S6: =IF('iaith - language'!$K$1=2,VLOOKUP(S3,Text!$A$3:$C$353,2,FALSE),VLOOKUP(S3,Text!$A$3:$C$353,3,FALSE)) -> Poblogaeth 18 i 64 oed (amcanestyniad) | T6: =IF('iaith - language'!$K$1=2,VLOOKUP(T3,Text!$A$3:$C$353,2,FALSE),VLOOKUP(T3,Text!$A$3:$C$353,3,FALSE)) -> Poblogaeth 18 oed a throsodd (amcanestyniad) | U6: =IF('iaith - language'!$K$1=2,VLOOKUP(U3,Text!$A$3:$C$353,2,FALSE),VLOOKUP(U3,Text!$A$3:$C$353,3,FALSE)) -> Poblogaeth o dan 60 oed (amcanestyniad) | V6: =IF('iaith - language'!$K$1=2,VLOOKUP(V3,Text!$A$3:$C$353,2,FALSE),VLOOKUP(V3,Text!$A$3:$C$353,3,FALSE)) -> Poblogaeth 60 oed a throsodd (amcanestyniad) | W6: =IF('iaith - language'!$K$1=2,VLOOKUP(W3,Text!$A$3:$C$353,2,FALSE),VLOOKUP(W3,Text!$A$3:$C$353,3,FALSE)) -> Poblogaeth 85 oed a throsodd (amcanestyniad) | X6: =IF('iaith - language'!$K$1=2,VLOOKUP(X3,Text!$A$3:$C$353,2,FALSE),VLOOKUP(X3,Text!$A$3:$C$353,3,FALSE)) -> Poblogaeth oedran gweithio (16-65G/B) (amcanestyniad) | Y6: =IF('iaith - language'!$K$1=2,VLOOKUP(Y3,Text!$A$3:$C$353,2,FALSE),VLOOKUP(Y3,Text!$A$3:$C$353,3,FALSE)) -> Amcangyfrifon Poblogaeth Ganol Blwyddyn, pob oed | Z6: =IF('iaith - language'!$K$1=2,VLOOKUP(Z3,Text!$A$3:$C$353,2,FALSE),VLOOKUP(Z3,Text!$A$3:$C$353,3,FALSE)) -> Amcangyfrifon Poblogaeth Ganol Blwyddyn, 18 oed a throsodd | AA6: =IF('iaith - language'!$K$1=2,VLOOKUP(AA3,Text!$A$3:$C$353,2,FALSE),VLOOKUP(AA3,Text!$A$3:$C$353,3,FALSE)) -> Amcangyfrifon Poblogaeth Ganol Blwyddyn, 65 oed a throsodd | AB6: =IF('iaith - language'!$K$1=2,VLOOKUP(AB3,Text!$A$3:$C$353,2,FALSE),VLOOKUP(AB3,Text!$A$3:$C$353,3,FALSE)) -> Swm a wariwyd ar grantiau cyfleusterau i'r anabl wedi'u cwblhau (£s) | AC6: =IF('iaith - language'!$K$1=2,VLOOKUP(AC3,Text!$A$3:$C$353,2,FALSE),VLOOKUP(AC3,Text!$A$3:$C$353,3,FALSE)) -> Praeseptau Draenio Tir | AD6: =IF('iaith - language'!$K$1=2,VLOOKUP(AD3,Text!$A$3:$C$353,2,FALSE),VLOOKUP(AD3,Text!$A$3:$C$353,3,FALSE)) -> Hyd yr arfordir a warchodir | AE6: =IF('iaith - language'!$K$1=2,VLOOKUP(AE3,Text!$A$3:$C$353,2,FALSE),VLOOKUP(AE3,Text!$A$3:$C$353,3,FALSE)) -> Nifer y Ffermydd | AF6: =IF('iaith - language'!$K$1=2,VLOOKUP(AF3,Text!$A$3:$C$353,2,FALSE),VLOOKUP(AF3,Text!$A$3:$C$353,3,FALSE)) -> Nifer yr Eiddo Masnachu | AG6: =IF('iaith - language'!$K$1=2,VLOOKUP(AG3,Text!$A$3:$C$353,2,FALSE),VLOOKUP(AG3,Text!$A$3:$C$353,3,FALSE)) -> Nifer yr Eiddo Bwyd | AH6: =IF('iaith - language'!$K$1=2,VLOOKUP(AH3,Text!$A$3:$C$353,2,FALSE),VLOOKUP(AH3,Text!$A$3:$C$353,3,FALSE)) -> Cyfanswm yr unedau goleuadau stryd | AI6: =IF('iaith - language'!$K$1=2,VLOOKUP(AI3,Text!$A$3:$C$353,2,FALSE),VLOOKUP(AI3,Text!$A$3:$C$353,3,FALSE)) -> Nifer y marwolaethau wedi'u cofrestru | AJ6: =IF('iaith - language'!$K$1=2,VLOOKUP(AJ3,Text!$A$3:$C$353,2,FALSE),VLOOKUP(AJ3,Text!$A$3:$C$353,3,FALSE)) -> Llwyth achosion Cynlluniau Gostyngiadau'r Dreth Gyngor | AK6: =IF('iaith - language'!$K$1=2,VLOOKUP(AK3,Text!$A$3:$C$353,2,FALSE),VLOOKUP(AK3,Text!$A$3:$C$353,3,FALSE)) -> Gwariant Cynlluniau Gostyngiadau'r Dreth Gyngor | AL6: =IF('iaith - language'!$K$1=2,VLOOKUP(AL3,Text!$A$3:$C$353,2,FALSE),VLOOKUP(AL3,Text!$A$3:$C$353,3,FALSE)) -> Cefnogaeth CTRS Covid-19 | AM6: =IF('iaith - language'!$K$1=2,VLOOKUP(AM3,Text!$A$3:$C$353,2,FALSE),VLOOKUP(AM3,Text!$A$3:$C$353,3,FALSE)) -> Nifer y llongau sy'n cyrraedd porthladdoedd | AN6: =IF('iaith - language'!$K$1=2,VLOOKUP(AN3,Text!$A$3:$C$353,2,FALSE),VLOOKUP(AN3,Text!$A$3:$C$353,3,FALSE)) -> Nosweithiau twristiaid (miloedd) gan gynnwys AirBnb | AO6: =IF('iaith - language'!$K$1=2,VLOOKUP(AO3,Text!$A$3:$C$353,2,FALSE),VLOOKUP(AO3,Text!$A$3:$C$353,3,FALSE)) -> Diwrnodau twristiaid (miloedd) | AP6: =IF('iaith - language'!$K$1=2,VLOOKUP(AP3,Text!$A$3:$C$353,2,FALSE),VLOOKUP(AP3,Text!$A$3:$C$353,3,FALSE)) -> Data Hawlwyr Budd-dal | BA6: =IF('iaith - language'!$K$1=2,VLOOKUP(BA3,Text!$A$3:$C$353,2,FALSE),VLOOKUP(BA3,Text!$A$3:$C$353,3,FALSE)) -> Nifer yr Hawlwyr Cymhorthdal Incwm, 18-64 oed | BE6: =IF('iaith - language'!$K$1=2,VLOOKUP(BE3,Text!$A$3:$C$353,2,FALSE),VLOOKUP(BE3,Text!$A$3:$C$353,3,FALSE)) -> Nifer y Derbynwyr Lwfans Ceisio Swydd ar Sail Incwm, 18-64 oed | BI6: =IF('iaith - language'!$K$1=2,VLOOKUP(BI3,Text!$A$3:$C$353,2,FALSE),VLOOKUP(BI3,Text!$A$3:$C$353,3,FALSE)) -> Nifer yr hawlwyr Credyd Pensiwn, 18-64 oed | BM6: =IF('iaith - language'!$K$1=2,VLOOKUP(BM3,Text!$A$3:$C$353,2,FALSE),VLOOKUP(BM3,Text!$A$3:$C$353,3,FALSE)) -> Nifer y rhai sydd yn derbyn Credyd Cynhwysol (ddim mewn cyflogaeth) 18-64 oed | BQ6: =IF('iaith - language'!$K$1=2,VLOOKUP(BQ3,Text!$A$3:$C$353,2,FALSE),VLOOKUP(BQ3,Text!$A$3:$C$353,3,FALSE)) -> Cyfanswm yr Hawlwyr Cymhorthdal Incwm | BU6: =IF('iaith - language'!$K$1=2,VLOOKUP(BU3,Text!$A$3:$C$353,2,FALSE),VLOOKUP(BU3,Text!$A$3:$C$353,3,FALSE)) -> Cyfanswm y Derbynwyr Lwfans Ceisio Swydd ar Sail Incwm | BY6: =IF('iaith - language'!$K$1=2,VLOOKUP(BY3,Text!$A$3:$C$353,2,FALSE),VLOOKUP(BY3,Text!$A$3:$C$353,3,FALSE)) -> Cyfanswm Hawlwyr Credyd Pensiwn | CC6: =IF('iaith - language'!$K$1=2,VLOOKUP(CC3,Text!$A$3:$C$353,2,FALSE),VLOOKUP(CC3,Text!$A$3:$C$353,3,FALSE)) -> Cyfanswm y rhai sy’n derbyn Credyd Cynhwysol (ddim mewn cyflogaeth) | CG6: =IF('iaith - language'!$K$1=2,VLOOKUP(CG3,Text!$A$3:$C$353,2,FALSE),VLOOKUP(CG3,Text!$A$3:$C$353,3,FALSE)) -> Nifer yr Hawlwyr Lwfans Anabledd Difrifol, 18-64 oed | CK6: =IF('iaith - language'!$K$1=2,VLOOKUP(CK3,Text!$A$3:$C$353,2,FALSE),VLOOKUP(CK3,Text!$A$3:$C$353,3,FALSE)) -> Nifer yr Hawlwyr Lwfans Byw i'r Anabl, 18-64 oed | CO6: =IF('iaith - language'!$K$1=2,VLOOKUP(CO3,Text!$A$3:$C$353,2,FALSE),VLOOKUP(CO3,Text!$A$3:$C$353,3,FALSE)) -> Nifer yr Hawlwyr Taliad Annibyniaeth Bersonol sydd yn 18-64 oed | CS6: =IF('iaith - language'!$K$1=2,VLOOKUP(CS3,Text!$A$3:$C$353,2,FALSE),VLOOKUP(CS3,Text!$A$3:$C$353,3,FALSE)) -> Hawlwyr Credyd Pensiwn, 65 oed a hŷn | CW6: =IF('iaith - language'!$K$1=2,VLOOKUP(CW3,Text!$A$3:$C$353,2,FALSE),VLOOKUP(CW3,Text!$A$3:$C$353,3,FALSE)) -> Cyfanswn yr hawlwyr Cymhorthdal Incwm, Lwfans Ceisio Gwaith, a Chredyd Pensiwn | DA6: =IF('iaith - language'!$K$1=2,VLOOKUP(DA3,Text!$A$3:$C$353,2,FALSE),VLOOKUP(DA3,Text!$A$3:$C$353,3,FALSE)) -> Stoc eiddo treth cyngor | DB6: =IF('iaith - language'!$K$1=2,VLOOKUP(DB3,Text!$A$3:$C$353,2,FALSE),VLOOKUP(DB3,Text!$A$3:$C$353,3,FALSE)) -> Hyd ffyrdd A y sir (km) | DC6: =IF('iaith - language'!$K$1=2,VLOOKUP(DC3,Text!$A$3:$C$353,2,FALSE),VLOOKUP(DC3,Text!$A$3:$C$353,3,FALSE)) -> Hyd ffyrdd B ac C (km) | DD6: =IF('iaith - language'!$K$1=2,VLOOKUP(DD3,Text!$A$3:$C$353,2,FALSE),VLOOKUP(DD3,Text!$A$3:$C$353,3,FALSE)) -> Hyd is-ffyrdd â wyneb caled (km) | DE6: =IF('iaith - language'!$K$1=2,VLOOKUP(DE3,Text!$A$3:$C$353,2,FALSE),VLOOKUP(DE3,Text!$A$3:$C$353,3,FALSE)) -> Hyd ffyrdd A y sir, adeiledig (km) | DF6: =IF('iaith - language'!$K$1=2,VLOOKUP(DF3,Text!$A$3:$C$353,2,FALSE),VLOOKUP(DF3,Text!$A$3:$C$353,3,FALSE)) -> Hyd ffyrdd B ac C, adeiledig (km) | DG6: =IF('iaith - language'!$K$1=2,VLOOKUP(DG3,Text!$A$3:$C$353,2,FALSE),VLOOKUP(DG3,Text!$A$3:$C$353,3,FALSE)) -> Hyd is-ffyrdd â wyneb caled, adeiledig (km)
B7: 0 | D7: =IF('iaith - language'!$K$1=2,VLOOKUP(D$4,Text!$A$3:$C$458,2,FALSE),VLOOKUP(D$4,Text!$A$3:$C$458,3,FALSE)) -> Mehefin 2020 | E7: =IF('iaith - language'!$K$1=2,VLOOKUP(E$4,Text!$A$3:$C$458,2,FALSE),VLOOKUP(E$4,Text!$A$3:$C$458,3,FALSE)) -> Medi 2020 | F7: =IF('iaith - language'!$K$1=2,VLOOKUP(F$4,Text!$A$3:$C$458,2,FALSE),VLOOKUP(F$4,Text!$A$3:$C$458,3,FALSE)) -> Rhagfyr 2020 | G7: =IF('iaith - language'!$K$1=2,VLOOKUP(G$4,Text!$A$3:$C$458,2,FALSE),VLOOKUP(G$4,Text!$A$3:$C$458,3,FALSE)) -> Mawrth 2021 | H7: 2019-20 | I7: =IF('iaith - language'!$K$1=2,VLOOKUP(I$4,Text!$A$1:$C$458,2,FALSE),VLOOKUP(I$4,Text!$A$1:$C$458,3,FALSE)) -> Mai 2021 | J7: 2022 | K7: 2022 | L7: =K7 -> 2022 | M7: =L7 -> 2022 | N7: 2022 | O7: 2022 | P7: 2022 | Q7: 2022 | R7: 2022 | S7: 2022 | T7: 2022 | U7: 2022 | V7: 2022 | W7: 2022 | X7: 2022 | Y7: 2020 | Z7: 2020 | AA7: 2020 | AB7: 2018-19 | AC7: 2021-22 | AD7: =IF('iaith - language'!$K$1=2,VLOOKUP(AD$4,Text!$A$1:$C$458,2,FALSE),VLOOKUP(AD$4,Text!$A$1:$C$458,3,FALSE)) -> Mai 2021 | AE7: 2020 | AF7: =IF('iaith - language'!$K$1=2,VLOOKUP(AF$4,Text!$A$1:$C$458,2,FALSE),VLOOKUP(AF$4,Text!$A$1:$C$458,3,FALSE)) -> Mawrth 2021 | AG7: =IF('iaith - language'!$K$1=2,VLOOKUP(AG$4,Text!$A$1:$C$458,2,FALSE),VLOOKUP(AG$4,Text!$A$1:$C$458,3,FALSE)) -> Mawrth 2021 | AH7: =IF('iaith - language'!$K$1=2,VLOOKUP(AH$4,Text!$A$1:$C$458,2,FALSE),VLOOKUP(AH$4,Text!$A$1:$C$458,3,FALSE)) -> Ebrill 2021 | AI7: 2020 | AJ7: 2020-21 | AK7: 2020-21 | AL7: 2020-21 | AM7: 2020 | AN7: 2019 | AO7: 2019 | AP7: =IF('iaith - language'!$K$1=2,VLOOKUP(AP$4,Text!$A$1:$C$458,2,FALSE),VLOOKUP(AP$4,Text!$A$1:$C$458,3,FALSE)) -> Hydref 2020 | AQ7: =IF('iaith - language'!$K$1=2,VLOOKUP(AQ$4,Text!$A$1:$C$458,2,FALSE),VLOOKUP(AQ$4,Text!$A$1:$C$458,3,FALSE)) -> Tachwedd 2020 | AR7: =IF('iaith - language'!$K$1=2,VLOOKUP(AR$4,Text!$A$1:$C$458,2,FALSE),VLOOKUP(AR$4,Text!$A$1:$C$458,3,FALSE)) -> Rhagfyr 2020 | AS7: =IF('iaith - language'!$K$1=2,VLOOKUP(AS$4,Text!$A$1:$C$458,2,FALSE),VLOOKUP(AS$4,Text!$A$1:$C$458,3,FALSE)) -> Ionawr 2021 | AT7: =IF('iaith - language'!$K$1=2,VLOOKUP(AT$4,Text!$A$1:$C$458,2,FALSE),VLOOKUP(AT$4,Text!$A$1:$C$458,3,FALSE)) -> Chwefror 2021 | AU7: =IF('iaith - language'!$K$1=2,VLOOKUP(AU$4,Text!$A$1:$C$458,2,FALSE),VLOOKUP(AU$4,Text!$A$1:$C$458,3,FALSE)) -> Mawrth 2021 | AV7: =IF('iaith - language'!$K$1=2,VLOOKUP(AV$4,Text!$A$1:$C$458,2,FALSE),VLOOKUP(AV$4,Text!$A$1:$C$458,3,FALSE)) -> Ebrill 2021 | AW7: =IF('iaith - language'!$K$1=2,VLOOKUP(AW$4,Text!$A$1:$C$458,2,FALSE),VLOOKUP(AW$4,Text!$A$1:$C$458,3,FALSE)) -> Mai 2021 | AX7: =IF('iaith - language'!$K$1=2,VLOOKUP(AX$4,Text!$A$1:$C$458,2,FALSE),VLOOKUP(AX$4,Text!$A$1:$C$458,3,FALSE)) -> Mehefin 2021 | AY7: =IF('iaith - language'!$K$1=2,VLOOKUP(AY$4,Text!$A$1:$C$458,2,FALSE),VLOOKUP(AY$4,Text!$A$1:$C$458,3,FALSE)) -> Gorffennaf 2021 | AZ7: =IF('iaith - language'!$K$1=2,VLOOKUP(AZ$4,Text!$A$1:$C$458,2,FALSE),VLOOKUP(AZ$4,Text!$A$1:$C$458,3,FALSE)) -> Awst 2021 | BA7: =IF('iaith - language'!$K$1=2,VLOOKUP(BA$4,Text!$A$1:$C$458,2,FALSE),VLOOKUP(BA$4,Text!$A$1:$C$458,3,FALSE)) -> Mai 2020 | BB7: =IF('iaith - language'!$K$1=2,VLOOKUP(BB$4,Text!$A$1:$C$458,2,FALSE),VLOOKUP(BB$4,Text!$A$1:$C$458,3,FALSE)) -> Awst 2020 | BC7: =IF('iaith - language'!$K$1=2,VLOOKUP(BC$4,Text!$A$1:$C$458,2,FALSE),VLOOKUP(BC$4,Text!$A$1:$C$458,3,FALSE)) -> Tachwedd 2020 | BD7: =IF('iaith - language'!$K$1=2,VLOOKUP(BD$4,Text!$A$1:$C$458,2,FALSE),VLOOKUP(BD$4,Text!$A$1:$C$458,3,FALSE)) -> Chwefror 2021 | BE7: =IF('iaith - language'!$K$1=2,VLOOKUP(BE$4,Text!$A$1:$C$458,2,FALSE),VLOOKUP(BE$4,Text!$A$1:$C$458,3,FALSE)) -> Mai 2020 | BF7: =IF('iaith - language'!$K$1=2,VLOOKUP(BF$4,Text!$A$1:$C$458,2,FALSE),VLOOKUP(BF$4,Text!$A$1:$C$458,3,FALSE)) -> Awst 2020 | BG7: =IF('iaith - language'!$K$1=2,VLOOKUP(BG$4,Text!$A$1:$C$458,2,FALSE),VLOOKUP(BG$4,Text!$A$1:$C$458,3,FALSE)) -> Tachwedd 2020 | BH7: =IF('iaith - language'!$K$1=2,VLOOKUP(BH$4,Text!$A$1:$C$458,2,FALSE),VLOOKUP(BH$4,Text!$A$1:$C$458,3,FALSE)) -> Chwefror 2021 | BI7: =IF('iaith - language'!$K$1=2,VLOOKUP(BI$4,Text!$A$1:$C$458,2,FALSE),VLOOKUP(BI$4,Text!$A$1:$C$458,3,FALSE)) -> Mai 2020 | BJ7: =IF('iaith - language'!$K$1=2,VLOOKUP(BJ$4,Text!$A$1:$C$458,2,FALSE),VLOOKUP(BJ$4,Text!$A$1:$C$458,3,FALSE)) -> Awst 2020 | BK7: =IF('iaith - language'!$K$1=2,VLOOKUP(BK$4,Text!$A$1:$C$458,2,FALSE),VLOOKUP(BK$4,Text!$A$1:$C$458,3,FALSE)) -> Tachwedd 2020 | BL7: =IF('iaith - language'!$K$1=2,VLOOKUP(BL$4,Text!$A$1:$C$458,2,FALSE),VLOOKUP(BL$4,Text!$A$1:$C$458,3,FALSE)) -> Chwefror 2021 | BM7: =IF('iaith - language'!$K$1=2,VLOOKUP(BM$4,Text!$A$1:$C$458,2,FALSE),VLOOKUP(BM$4,Text!$A$1:$C$458,3,FALSE)) -> Mai 2020 | BN7: =IF('iaith - language'!$K$1=2,VLOOKUP(BN$4,Text!$A$1:$C$458,2,FALSE),VLOOKUP(BN$4,Text!$A$1:$C$458,3,FALSE)) -> Awst 2020 | BO7: =IF('iaith - language'!$K$1=2,VLOOKUP(BO$4,Text!$A$1:$C$458,2,FALSE),VLOOKUP(BO$4,Text!$A$1:$C$458,3,FALSE)) -> Tachwedd 2020 | BP7: =IF('iaith - language'!$K$1=2,VLOOKUP(BP$4,Text!$A$1:$C$458,2,FALSE),VLOOKUP(BP$4,Text!$A$1:$C$458,3,FALSE)) -> Chwefror 2021 | BQ7: =IF('iaith - language'!$K$1=2,VLOOKUP(BQ$4,Text!$A$1:$C$458,2,FALSE),VLOOKUP(BQ$4,Text!$A$1:$C$458,3,FALSE)) -> Mai 2020 | BR7: =IF('iaith - language'!$K$1=2,VLOOKUP(BR$4,Text!$A$1:$C$458,2,FALSE),VLOOKUP(BR$4,Text!$A$1:$C$458,3,FALSE)) -> Awst 2020 | BS7: =IF('iaith - language'!$K$1=2,VLOOKUP(BS$4,Text!$A$1:$C$458,2,FALSE),VLOOKUP(BS$4,Text!$A$1:$C$458,3,FALSE)) -> Tachwedd 2020 | BT7: =IF('iaith - language'!$K$1=2,VLOOKUP(BT$4,Text!$A$1:$C$458,2,FALSE),VLOOKUP(BT$4,Text!$A$1:$C$458,3,FALSE)) -> Chwefror 2021 | BU7: =IF('iaith - language'!$K$1=2,VLOOKUP(BU$4,Text!$A$1:$C$458,2,FALSE),VLOOKUP(BU$4,Text!$A$1:$C$458,3,FALSE)) -> Mai 2020 | BV7: =IF('iaith - language'!$K$1=2,VLOOKUP(BV$4,Text!$A$1:$C$458,2,FALSE),VLOOKUP(BV$4,Text!$A$1:$C$458,3,FALSE)) -> Awst 2020 | BW7: =IF('iaith - language'!$K$1=2,VLOOKUP(BW$4,Text!$A$1:$C$458,2,FALSE),VLOOKUP(BW$4,Text!$A$1:$C$458,3,FALSE)) -> Tachwedd 2020 | BX7: =IF('iaith - language'!$K$1=2,VLOOKUP(BX$4,Text!$A$1:$C$458,2,FALSE),VLOOKUP(BX$4,Text!$A$1:$C$458,3,FALSE)) -> Chwefror 2021 | BY7: =IF('iaith - language'!$K$1=2,VLOOKUP(BY$4,Text!$A$1:$C$458,2,FALSE),VLOOKUP(BY$4,Text!$A$1:$C$458,3,FALSE)) -> Mai 2020 | BZ7: =IF('iaith - language'!$K$1=2,VLOOKUP(BZ$4,Text!$A$1:$C$458,2,FALSE),VLOOKUP(BZ$4,Text!$A$1:$C$458,3,FALSE)) -> Awst 2020 | CA7: =IF('iaith - language'!$K$1=2,VLOOKUP(CA$4,Text!$A$1:$C$458,2,FALSE),VLOOKUP(CA$4,Text!$A$1:$C$458,3,FALSE)) -> Tachwedd 2020 | CB7: =IF('iaith - language'!$K$1=2,VLOOKUP(CB$4,Text!$A$1:$C$458,2,FALSE),VLOOKUP(CB$4,Text!$A$1:$C$458,3,FALSE)) -> Chwefror 2021 | CC7: =IF('iaith - language'!$K$1=2,VLOOKUP(CC$4,Text!$A$1:$C$458,2,FALSE),VLOOKUP(CC$4,Text!$A$1:$C$458,3,FALSE)) -> Mai 2020 | CD7: =IF('iaith - language'!$K$1=2,VLOOKUP(CD$4,Text!$A$1:$C$458,2,FALSE),VLOOKUP(CD$4,Text!$A$1:$C$458,3,FALSE)) -> Awst 2020 | CE7: =IF('iaith - language'!$K$1=2,VLOOKUP(CE$4,Text!$A$1:$C$458,2,FALSE),VLOOKUP(CE$4,Text!$A$1:$C$458,3,FALSE)) -> Tachwedd 2020 | CF7: =IF('iaith - language'!$K$1=2,VLOOKUP(CF$4,Text!$A$1:$C$458,2,FALSE),VLOOKUP(CF$4,Text!$A$1:$C$458,3,FALSE)) -> Chwefror 2021 | CG7: =IF('iaith - language'!$K$1=2,VLOOKUP(CG$4,Text!$A$1:$C$458,2,FALSE),VLOOKUP(CG$4,Text!$A$1:$C$458,3,FALSE)) -> Mai 2020 | CH7: =IF('iaith - language'!$K$1=2,VLOOKUP(CH$4,Text!$A$1:$C$458,2,FALSE),VLOOKUP(CH$4,Text!$A$1:$C$458,3,FALSE)) -> Awst 2020 | CI7: =IF('iaith - language'!$K$1=2,VLOOKUP(CI$4,Text!$A$1:$C$458,2,FALSE),VLOOKUP(CI$4,Text!$A$1:$C$458,3,FALSE)) -> Tachwedd 2020 | CJ7: =IF('iaith - language'!$K$1=2,VLOOKUP(CJ$4,Text!$A$1:$C$458,2,FALSE),VLOOKUP(CJ$4,Text!$A$1:$C$458,3,FALSE)) -> Chwefror 2021 | CK7: =IF('iaith - language'!$K$1=2,VLOOKUP(CK$4,Text!$A$1:$C$458,2,FALSE),VLOOKUP(CK$4,Text!$A$1:$C$458,3,FALSE)) -> Mai 2020 | CL7: =IF('iaith - language'!$K$1=2,VLOOKUP(CL$4,Text!$A$1:$C$458,2,FALSE),VLOOKUP(CL$4,Text!$A$1:$C$458,3,FALSE)) -> Awst 2020 | CM7: =IF('iaith - language'!$K$1=2,VLOOKUP(CM$4,Text!$A$1:$C$458,2,FALSE),VLOOKUP(CM$4,Text!$A$1:$C$458,3,FALSE)) -> Tachwedd 2020 | CN7: =IF('iaith - language'!$K$1=2,VLOOKUP(CN$4,Text!$A$1:$C$458,2,FALSE),VLOOKUP(CN$4,Text!$A$1:$C$458,3,FALSE)) -> Chwefror 2021 | CO7: =IF('iaith - language'!$K$1=2,VLOOKUP(CO$4,Text!$A$1:$C$458,2,FALSE),VLOOKUP(CO$4,Text!$A$1:$C$458,3,FALSE)) -> Mai 2020 | CP7: =IF('iaith - language'!$K$1=2,VLOOKUP(CP$4,Text!$A$1:$C$458,2,FALSE),VLOOKUP(CP$4,Text!$A$1:$C$458,3,FALSE)) -> Awst 2020 | CQ7: =IF('iaith - language'!$K$1=2,VLOOKUP(CQ$4,Text!$A$1:$C$458,2,FALSE),VLOOKUP(CQ$4,Text!$A$1:$C$458,3,FALSE)) -> Tachwedd 2020 | CR7: =IF('iaith - language'!$K$1=2,VLOOKUP(CR$4,Text!$A$1:$C$458,2,FALSE),VLOOKUP(CR$4,Text!$A$1:$C$458,3,FALSE)) -> Chwefror 2021 | CS7: =IF('iaith - language'!$K$1=2,VLOOKUP(CS$4,Text!$A$1:$C$458,2,FALSE),VLOOKUP(CS$4,Text!$A$1:$C$458,3,FALSE)) -> Mai 2020 | CT7: =IF('iaith - language'!$K$1=2,VLOOKUP(CT$4,Text!$A$1:$C$458,2,FALSE),VLOOKUP(CT$4,Text!$A$1:$C$458,3,FALSE)) -> Awst 2020 | CU7: =IF('iaith - language'!$K$1=2,VLOOKUP(CU$4,Text!$A$1:$C$458,2,FALSE),VLOOKUP(CU$4,Text!$A$1:$C$458,3,FALSE)) -> Tachwedd 2020 | CV7: =IF('iaith - language'!$K$1=2,VLOOKUP(CV$4,Text!$A$1:$C$458,2,FALSE),VLOOKUP(CV$4,Text!$A$1:$C$458,3,FALSE)) -> Chwefror 2021 | CW7: =IF('iaith - language'!$K$1=2,VLOOKUP(CW$4,Text!$A$1:$C$458,2,FALSE),VLOOKUP(CW$4,Text!$A$1:$C$458,3,FALSE)) -> Mai 2020 | CX7: =IF('iaith - language'!$K$1=2,VLOOKUP(CX$4,Text!$A$1:$C$458,2,FALSE),VLOOKUP(CX$4,Text!$A$1:$C$458,3,FALSE)) -> Awst 2020 | CY7: =IF('iaith - language'!$K$1=2,VLOOKUP(CY$4,Text!$A$1:$C$458,2,FALSE),VLOOKUP(CY$4,Text!$A$1:$C$458,3,FALSE)) -> Tachwedd 2020 | CZ7: =IF('iaith - language'!$K$1=2,VLOOKUP(CZ$4,Text!$A$1:$C$458,2,FALSE),VLOOKUP(CZ$4,Text!$A$1:$C$458,3,FALSE)) -> Chwefror 2021 | DA7: =IF('iaith - language'!$K$1=2,VLOOKUP(DA$4,Text!$A$1:$C$458,2,FALSE),VLOOKUP(DA$4,Text!$A$1:$C$458,3,FALSE)) -> Mawrth 2021 | DB7: =IF('iaith - language'!$K$1=2,VLOOKUP(DB$4,Text!$A$1:$C$458,2,FALSE),VLOOKUP(DB$4,Text!$A$1:$C$458,3,FALSE)) -> Mawrth 2021 | DC7: =IF('iaith - language'!$K$1=2,VLOOKUP(DC$4,Text!$A$1:$C$458,2,FALSE),VLOOKUP(DC$4,Text!$A$1:$C$458,3,FALSE)) -> Mawrth 2021 | DD7: =IF('iaith - language'!$K$1=2,VLOOKUP(DD$4,Text!$A$1:$C$458,2,FALSE),VLOOKUP(DD$4,Text!$A$1:$C$458,3,FALSE)) -> Mawrth 2021 | DE7: =IF('iaith - language'!$K$1=2,VLOOKUP(DE$4,Text!$A$1:$C$458,2,FALSE),VLOOKUP(DE$4,Text!$A$1:$C$458,3,FALSE)) -> Mawrth 2021 | DF7: =IF('iaith - language'!$K$1=2,VLOOKUP(DF$4,Text!$A$1:$C$458,2,FALSE),VLOOKUP(DF$4,Text!$A$1:$C$458,3,FALSE)) -> Mawrth 2021 | DG7: =IF('iaith - language'!$K$1=2,VLOOKUP(DG$4,Text!$A$1:$C$458,2,FALSE),VLOOKUP(DG$4,Text!$A$1:$C$458,3,FALSE)) -> Mawrth 2021
A9: 117 | B9: 2 | C9: =IF('iaith - language'!$K$1=2,VLOOKUP(A9,Text!$A$3:$C$353,2,FALSE),VLOOKUP(A9,Text!$A$3:$C$353,3,FALSE)) -> Sir Ynys Môn | D9: 137 | E9: 178 | F9: 217 | G9: 226 | H9: N/A | I9: 71,521 | J9: 69,864 | K9: 703 | L9: 6,826 | M9: 10,757 | N9: 3,996 | O9: 7,081 | P9: 57,811 | Q9: 2,111 | R9: 13,482 | S9: 37,656 | T9: 56,381 | U9: 45,838 | V9: 24,025 | W9: 2,298 | X9: 40,088 | Y9: 70,440 | Z9: 57,101 | AA9: 18,639 | AC9: 3,673 | AD9: 7.9 | AE9: 932 | AF9: 3,320 | AG9: 1,030 | AH9: 9,978 | AI9: 877 | AJ9: 5,706 | AK9: 6,325,769 | AL9: 227,911 | AM9: 2,811 | AN9: 5,514 | AO9: 707 | AP9: 2,355 | AQ9: 2,400 | AR9: 2,350 | AS9: 2,310 | AT9: 2,390 | AU9: 2,380 | AV9: 2,330 | AW9: 2,205 | AX9: 2,045 | AY9: 1,955 | AZ9: 1,870 | BA9: 389 | BB9: 368 | BC9: 338 | BD9: 315 | BE9: 424 | BF9: 412 | BG9: 335 | BH9: 307 | BI9: 0 | BJ9: 0 | BK9: 0 | BL9: 0 | BM9: 3,167 | BN9: 3,234 | BO9: 3,191 | BP9: 3,356 | BQ9: 398 | BR9: 369 | BS9: 344 | BT9: 318 | BU9: 433 | BV9: 425 | BW9: 343 | BX9: 318 | BY9: 2,364 | BZ9: 2,344 | CA9: 2,310 | CB9: 2,270 | CC9: 3,109 | CD9: 3,176 | CE9: 3,123 | CF9: 3,265 | CG9: 0 | CH9: 0 | CI9: 0 | CJ9: 0 | CK9: 95 | CL9: 83 | CM9: 73 | CN9: 77 | CO9: 2,688 | CP9: 2,725 | CQ9: 2,755 | CR9: 2,751 | CS9: 2,364 | CT9: 2,344 | CU9: 2,310 | CV9: 2,270 | CW9: 3,195 | CX9: 3,138 | CY9: 2,997 | CZ9: 2,906 | DA9: 35,260 | DB9: 145.52 | DC9: 484.44 | DD9: 558.21 | DE9: 28.07 | DF9: 59.57 | DG9: 180.57
A10: 118 | B10: 3 | C10: =IF('iaith - language'!$K$1=2,VLOOKUP(A10,Text!$A$3:$C$353,2,FALSE),VLOOKUP(A10,Text!$A$3:$C$353,3,FALSE)) -> Gwynedd | D10: 188 | E10: 214 | F10: 268 | G10: 282 | H10: N/A | I10: 254,829 | J10: 125,220 | K10: 1,190 | L10: 11,611 | M10: 18,769 | N10: 7,106 | O10: 15,692 | P10: 104,270 | Q10: 4,145 | R10: 23,711 | S10: 72,710 | T10: 101,509 | U10: 88,111 | V10: 37,109 | W10: 4,060 | X10: 77,066 | Y10: 125,171 | Z10: 101,957 | AA10: 28,562 | AC10: 118,626 | AD10: 20.1 | AE10: 1,815 | AF10: 8,140 | AG10: 2,520 | AH10: 17,654 | AI10: 1,428 | AJ10: 9,442 | AK10: 10,128,723 | AL10: 512,904 | AM10: 2 | AN10: 20,096 | AO10: 3,836 | AP10: 3,730 | AQ10: 3,805 | AR10: 3,875 | AS10: 3,930 | AT10: 4,145 | AU10: 4,045 | AV10: 3,880 | AW10: 3,430 | AX10: 3,065 | AY10: 2,925 | AZ10: 2,715 | BA10: 507 | BB10: 473 | BC10: 442 | BD10: 418 | BE10: 495 | BF10: 488 | BG10: 470 | BH10: 430 | BI10: 0 | BJ10: 0 | BK10: 0 | BL10: 0 | BM10: 5,336 | BN10: 5,340 | BO10: 5,147 | BP10: 5,713 | BQ10: 508 | BR10: 477 | BS10: 446 | BT10: 426 | BU10: 506 | BV10: 495 | BW10: 486 | BX10: 439 | BY10: 3,921 | BZ10: 3,867 | CA10: 3,806 | CB10: 3,742 | CC10: 5,230 | CD10: 5,227 | CE10: 5,044 | CF10: 5,584 | CG10: 0 | CH10: 0 | CI10: 0 | CJ10: 0 | CK10: 155 | CL10: 140 | CM10: 125 | CN10: 122 | CO10: 3,671 | CP10: 3,737 | CQ10: 3,777 | CR10: 3,840 | CS10: 3,921 | CT10: 3,867 | CU10: 3,806 | CV10: 3,742 | CW10: 4,935 | CX10: 4,839 | CY10: 4,738 | CZ10: 4,607 | DA10: 61,490 | DB10: 330.50 | DC10: 1,064.90 | DD10: 1,322.32 | DE10: 71.50 | DF10: 104.30 | DG10: 346.90
A11: 119 | B11: 4 | C11: =IF('iaith - language'!$K$1=2,VLOOKUP(A11,Text!$A$3:$C$353,2,FALSE),VLOOKUP(A11,Text!$A$3:$C$353,3,FALSE)) -> Conwy | D11: 195 | E11: 274 | F11: 243 | G11: 295 | H11: N/A | I11: 113,018 | J11: 118,320 | K11: 1,071 | L11: 10,803 | M11: 17,347 | N11: 6,580 | O11: 11,832 | P11: 99,145 | Q11: 3,756 | R11: 21,745 | S11: 62,852 | T11: 96,576 | U11: 75,529 | V11: 42,791 | W11: 5,188 | X11: 67,118 | Y11: 118,184 | Z11: 97,000 | AA11: 32,938 | AC11: 38,951 | AD11: 23.6 | AE11: 928 | AF11: 5,340 | AG11: 2,200 | AH11: 16,772 | AI11: 1,587 | AJ11: 10,871 | AK11: 11,284,903 | AL11: 591,653 | AM11: 50 | AN11: 11,135 | AO11: 7,220 | AP11: 4,190 | AQ11: 4,260 | AR11: 4,325 | AS11: 4,285 | AT11: 4,380 | AU11: 4,330 | AV11: 4,265 | AW11: 4,020 | AX11: 3,655 | AY11: 3,415 | AZ11: 3,195 | BA11: 596 | BB11: 567 | BC11: 548 | BD11: 515 | BE11: 620 | BF11: 598 | BG11: 519 | BH11: 498 | BI11: 0 | BJ11: 0 | BK11: 0 | BL11: 0 | BM11: 6,236 | BN11: 6,156 | BO11: 5,984 | BP11: 6,464 | BQ11: 598 | BR11: 572 | BS11: 550 | BT11: 523 | BU11: 634 | BV11: 611 | BW11: 534 | BX11: 510 | BY11: 4,079 | BZ11: 4,038 | CA11: 4,006 | CB11: 3,941 | CC11: 6,113 | CD11: 6,036 | CE11: 5,865 | CF11: 6,323 | CG11: 0 | CH11: 0 | CI11: 0 | CJ11: 0 | CK11: 171 | CL11: 150 | CM11: 136 | CN11: 131 | CO11: 4,947 | CP11: 4,986 | CQ11: 5,015 | CR11: 5,029 | CS11: 4,079 | CT11: 4,038 | CU11: 4,006 | CV11: 3,941 | CW11: 5,311 | CX11: 5,221 | CY11: 5,090 | CZ11: 4,974 | DA11: 57,610 | DB11: 117.40 | DC11: 664.60 | DD11: 897.20 | DE11: 51.50 | DF11: 102.60 | DG11: 419.50
A12: 120 | B12: 5 | C12: =IF('iaith - language'!$K$1=2,VLOOKUP(A12,Text!$A$3:$C$353,2,FALSE),VLOOKUP(A12,Text!$A$3:$C$353,3,FALSE)) -> Sir Ddinbych | D12: 168 | E12: 200 | F12: 209 | G12: 218 | H12: N/A | I12: 83,872 | J12: 96,021 | K12: 960 | L12: 9,756 | M12: 15,689 | N12: 6,006 | O12: 10,736 | P12: 78,652 | Q12: 3,268 | R12: 19,642 | S12: 52,357 | T12: 76,378 | U12: 65,020 | V12: 31,000 | W12: 2,779 | X12: 55,921 | Y12: 96,664 | Z12: 77,165 | AA12: 23,517 | AC12: 0 | AD12: 9.4 | AE12: 753 | AF12: 4,000 | AG12: 1,640 | AH12: 11,629 | AI12: 1,338 | AJ12: 9,698 | AK12: 11,029,382 | AL12: 676,185 | AM12: 0 | AN12: 7,467 | AO12: 4,401 | AP12: 3,500 | AQ12: 3,555 | AR12: 3,530 | AS12: 3,470 | AT12: 3,600 | AU12: 3,615 | AV12: 3,520 | AW12: 3,310 | AX12: 3,045 | AY12: 2,880 | AZ12: 2,795 | BA12: 630 | BB12: 597 | BC12: 555 | BD12: 526 | BE12: 370 | BF12: 374 | BG12: 286 | BH12: 268 | BI12: 0 | BJ12: 0 | BK12: 0 | BL12: 0 | BM12: 5,569 | BN12: 5,609 | BO12: 5,669 | BP12: 5,965 | BQ12: 640 | BR12: 605 | BS12: 563 | BT12: 533 | BU12: 377 | BV12: 387 | BW12: 305 | BX12: 280 | BY12: 3,566 | BZ12: 3,514 | CA12: 3,477 | CB12: 3,412 | CC12: 5,453 | CD12: 5,492 | CE12: 5,539 | CF12: 5,822 | CG12: 0 | CH12: 0 | CI12: 0 | CJ12: 0 | CK12: 203 | CL12: 182 | CM12: 163 | CN12: 160 | CO12: 4,890 | CP12: 4,969 | CQ12: 5,034 | CR12: 5,078 | CS12: 3,566 | CT12: 3,514 | CU12: 3,477 | CV12: 3,412 | CW12: 4,583 | CX12: 4,506 | CY12: 4,345 | CZ12: 4,225 | DA12: 45,360 | DB12: 139.80 | DC12: 655.30 | DD12: 623.42 | DE12: 29.70 | DF12: 49.90 | DG12: 222.24
A13: 121 | B13: 6 | C13: =IF('iaith - language'!$K$1=2,VLOOKUP(A13,Text!$A$3:$C$353,2,FALSE),VLOOKUP(A13,Text!$A$3:$C$353,3,FALSE)) -> Sir y Fflint | D13: 210 | E13: 254 | F13: 284 | G13: 308 | H13: N/A | I13: 43,983 | J13: 157,264 | K13: 1,659 | L13: 16,158 | M13: 26,054 | N13: 10,021 | O13: 17,918 | P13: 128,160 | Q13: 5,388 | R13: 32,796 | S13: 90,355 | T13: 124,468 | U13: 112,833 | V13: 44,431 | W13: 3,993 | X13: 95,899 | Y13: 156,847 | Z13: 124,648 | AA13: 33,294 | AC13: 0 | AD13: 2.8 | AE13: 522 | AF13: 5,120 | AG13: 1,670 | AH13: 20,392 | AI13: 1,765 | AJ13: 10,857 | AK13: 11,536,663 | AL13: 304,483 | AM13: 4 | AN13: 3,924 | AO13: 2,930 | AP13: 4,920 | AQ13: 4,985 | AR13: 4,845 | AS13: 4,820 | AT13: 5,035 | AU13: 5,000 | AV13: 4,880 | AW13: 4,465 | AX13: 4,080 | AY13: 3,985 | AZ13: 3,845 | BA13: 530 | BB13: 498 | BC13: 466 | BD13: 445 | BE13: 569 | BF13: 694 | BG13: 562 | BH13: 507 | BI13: 0 | BJ13: 0 | BK13: 0 | BL13: 0 | BM13: 7,724 | BN13: 7,798 | BO13: 7,760 | BP13: 8,188 | BQ13: 539 | BR13: 507 | BS13: 474 | BT13: 445 | BU13: 580 | BV13: 709 | BW13: 581 | BX13: 518 | BY13: 3,903 | BZ13: 3,854 | CA13: 3,819 | CB13: 3,746 | CC13: 7,587 | CD13: 7,642 | CE13: 7,578 | CF13: 8,006 | CG13: 0 | CH13: 0 | CI13: 0 | CJ13: 0 | CK13: 150 | CL13: 128 | CM13: 120 | CN13: 113 | CO13: 5,796 | CP13: 5,945 | CQ13: 6,011 | CR13: 6,096 | CS13: 3,903 | CT13: 3,854 | CU13: 3,819 | CV13: 3,746 | CW13: 5,022 | CX13: 5,070 | CY13: 4,874 | CZ13: 4,709 | DA13: 70,100 | DB13: 152.00 | DC13: 340.50 | DD13: 686.90 | DE13: 64.10 | DF13: 111.20 | DG13: 432.20
A14: 122 | B14: 7 | C14: =IF('iaith - language'!$K$1=2,VLOOKUP(A14,Text!$A$3:$C$353,2,FALSE),VLOOKUP(A14,Text!$A$3:$C$353,3,FALSE)) -> Wrecsam | D14: 23 | E14: 143 | F14: 235 | G14: 290 | H14: N/A | I14: 50,377 | J14: 136,535 | K14: 1,505 | L14: 14,569 | M14: 23,177 | N14: 8,730 | O14: 15,924 | P14: 110,609 | Q14: 4,767 | R14: 29,214 | S14: 79,110 | T14: 107,321 | U14: 99,823 | V14: 36,711 | W14: 3,460 | X14: 83,969 | Y14: 136,055 | Z14: 107,142 | AA14: 27,749 | AC14: 0 | AD14: 0.0 | AE14: 472 | AF14: 4,060 | AG14: 1,430 | AH14: 13,203 | AI14: 1,590 | AJ14: 11,648 | AK14: 11,249,948 | AL14: 456,398 | AM14: 0 | AN14: 1,198 | AO14: 1,544 | AP14: 4,745 | AQ14: 4,830 | AR14: 4,715 | AS14: 4,790 | AT14: 4,955 | AU14: 4,900 | AV14: 4,795 | AW14: 4,450 | AX14: 4,100 | AY14: 4,030 | AZ14: 3,820 | BA14: 722 | BB14: 671 | BC14: 618 | BD14: 586 | BE14: 404 | BF14: 539 | BG14: 455 | BH14: 381 | BI14: 0 | BJ14: 0 | BK14: 0 | BL14: 0 | BM14: 7,858 | BN14: 7,813 | BO14: 7,793 | BP14: 8,232 | BQ14: 727 | BR14: 684 | BS14: 624 | BT14: 588 | BU14: 406 | BV14: 546 | BW14: 465 | BX14: 387 | BY14: 3,758 | BZ14: 3,699 | CA14: 3,645 | CB14: 3,551 | CC14: 7,722 | CD14: 7,658 | CE14: 7,620 | CF14: 8,044 | CG14: 0 | CH14: 0 | CI14: 0 | CJ14: 0 | CK14: 215 | CL14: 205 | CM14: 179 | CN14: 172 | CO14: 5,817 | CP14: 5,905 | CQ14: 5,971 | CR14: 6,013 | CS14: 3,758 | CT14: 3,699 | CU14: 3,645 | CV14: 3,551 | CW14: 4,891 | CX14: 4,929 | CY14: 4,734 | CZ14: 4,526 | DA14: 60,930 | DB14: 110.00 | DC14: 513.00 | DD14: 519.00 | DE14: 30.70 | DF14: 126.40 | DG14: 297.30
A15: 123 | B15: 8 | C15: =IF('iaith - language'!$K$1=2,VLOOKUP(A15,Text!$A$3:$C$353,2,FALSE),VLOOKUP(A15,Text!$A$3:$C$353,3,FALSE)) -> Powys | D15: 330 | E15: 399 | F15: 395 | G15: 433 | H15: N/A | I15: 519,531 | J15: 132,538 | K15: 1,214 | L15: 11,722 | M15: 19,065 | N15: 7,360 | O15: 13,287 | P15: 111,372 | Q15: 4,242 | R15: 24,069 | S15: 70,911 | T15: 108,468 | U15: 84,277 | V15: 48,261 | W15: 5,013 | X15: 75,852 | Y15: 133,030 | Z15: 109,186 | AA15: 36,801 | AC15: 44,427 | AD15: 0.0 | AE15: 3,916 | AF15: 6,740 | AG15: 2,520 | AH15: 15,664 | AI15: 1,725 | AJ15: 10,214 | AK15: 11,076,131 | AL15: 628,861 | AM15: 0 | AN15: 9,103 | AO15: 3,011 | AP15: 3,365 | AQ15: 3,375 | AR15: 3,260 | AS15: 3,235 | AT15: 3,325 | AU15: 3,305 | AV15: 3,150 | AW15: 2,970 | AX15: 2,665 | AY15: 2,570 | AZ15: 2,425 | BA15: 407 | BB15: 383 | BC15: 355 | BD15: 347 | BE15: 457 | BF15: 571 | BG15: 420 | BH15: 313 | BI15: 0 | BJ15: 0 | BK15: 0 | BL15: 0 | BM15: 4,814 | BN15: 4,728 | BO15: 4,672 | BP15: 4,968 | BQ15: 412 | BR15: 385 | BS15: 365 | BT15: 352 | BU15: 470 | BV15: 594 | BW15: 445 | BX15: 331 | BY15: 3,680 | BZ15: 3,651 | CA15: 3,633 | CB15: 3,574 | CC15: 4,707 | CD15: 4,628 | CE15: 4,563 | CF15: 4,853 | CG15: 0 | CH15: 0 | CI15: 0 | CJ15: 0 | CK15: 146 | CL15: 132 | CM15: 127 | CN15: 122 | CO15: 4,507 | CP15: 4,576 | CQ15: 4,625 | CR15: 4,654 | CS15: 3,680 | CT15: 3,651 | CU15: 3,633 | CV15: 3,574 | CW15: 4,562 | CX15: 4,630 | CY15: 4,443 | CZ15: 4,257 | DA15: 65,260 | DB15: 242.60 | DC15: 2,708.20 | DD15: 2,127.60 | DE15: 34.40 | DF15: 114.30 | DG15: 219.30
A16: 124 | B16: 9 | C16: =IF('iaith - language'!$K$1=2,VLOOKUP(A16,Text!$A$3:$C$353,2,FALSE),VLOOKUP(A16,Text!$A$3:$C$353,3,FALSE)) -> Sir Ceredigion | D16: 191 | E16: 258 | F16: 271 | G16: 279 | H16: N/A | I16: 178,838 | J16: 71,151 | K16: 602 | L16: 6,159 | M16: 9,837 | N16: 3,775 | O16: 9,872 | P16: 60,337 | Q16: 2,359 | R16: 12,245 | S16: 39,917 | T16: 58,906 | U16: 46,964 | V16: 24,187 | W16: 2,662 | X16: 42,358 | Y16: 72,895 | Z16: 60,661 | AA16: 18,668 | AC16: 11,325 | AD16: 12.9 | AE16: 1,969 | AF16: 3,910 | AG16: 1,400 | AH16: 6,824 | AI16: 877 | AJ16: 5,740 | AK16: 6,319,565 | AL16: 353,848 | AM16: 0 | AN16: 7,197 | AO16: 1,576 | AP16: 1,800 | AQ16: 1,850 | AR16: 1,875 | AS16: 1,855 | AT16: 1,900 | AU16: 1,925 | AV16: 1,845 | AW16: 1,720 | AX16: 1,585 | AY16: 1,470 | AZ16: 1,415 | BA16: 233 | BB16: 213 | BC16: 196 | BD16: 190 | BE16: 183 | BF16: 175 | BG16: 159 | BH16: 146 | BI16: 0 | BJ16: 0 | BK16: 0 | BL16: 0 | BM16: 2,732 | BN16: 2,777 | BO16: 2,769 | BP16: 2,985 | BQ16: 232 | BR16: 221 | BS16: 200 | BT16: 190 | BU16: 192 | BV16: 182 | BW16: 170 | BX16: 155 | BY16: 2,082 | BZ16: 2,057 | CA16: 2,042 | CB16: 2,011 | CC16: 2,683 | CD16: 2,712 | CE16: 2,704 | CF16: 2,907 | CG16: 0 | CH16: 0 | CI16: 0 | CJ16: 0 | CK16: 43 | CL16: 35 | CM16: 31 | CN16: 30 | CO16: 2,673 | CP16: 2,690 | CQ16: 2,709 | CR16: 2,730 | CS16: 2,082 | CT16: 2,057 | CU16: 2,042 | CV16: 2,011 | CW16: 2,506 | CX16: 2,460 | CY16: 2,412 | CZ16: 2,356 | DA16: 35,620 | DB16: 158.30 | DC16: 1,166.63 | DD16: 826.10 | DE16: 34.40 | DF16: 100.83 | DG16: 124.70
A17: 125 | B17: 10 | C17: =IF('iaith - language'!$K$1=2,VLOOKUP(A17,Text!$A$3:$C$353,2,FALSE),VLOOKUP(A17,Text!$A$3:$C$353,3,FALSE)) -> Sir Benfro | D17: 195 | E17: 220 | F17: 208 | G17: 265 | H17: N/A | I17: 161,834 | J17: 126,301 | K17: 1,141 | L17: 11,885 | M17: 19,293 | N17: 7,471 | O17: 13,464 | P17: 105,138 | Q17: 4,164 | R17: 24,011 | S17: 68,132 | T17: 102,290 | U17: 82,518 | V17: 43,783 | W17: 4,613 | X17: 72,755 | Y17: 126,751 | Z17: 102,744 | AA17: 33,169 | AC17: 0 | AD17: 12.3 | AE17: 1,760 | AF17: 7,130 | AG17: 2,240 | AH17: 15,467 | AI17: 1,559 | AJ17: 10,225 | AK17: 9,670,981 | AL17: 151,672 | AM17: 2,325 | AN17: 14,583 | AO17: 2,052 | AP17: 3,945 | AQ17: 3,930 | AR17: 4,000 | AS17: 3,950 | AT17: 4,140 | AU17: 4,045 | AV17: 3,925 | AW17: 3,605 | AX17: 3,275 | AY17: 3,135 | AZ17: 3,035 | BA17: 669 | BB17: 637 | BC17: 594 | BD17: 568 | BE17: 524 | BF17: 506 | BG17: 471 | BH17: 441 | BI17: 0 | BJ17: 0 | BK17: 0 | BL17: 0 | BM17: 6,159 | BN17: 6,064 | BO17: 5,938 | BP17: 6,289 | BQ17: 683 | BR17: 639 | BS17: 608 | BT17: 577 | BU17: 542 | BV17: 520 | BW17: 483 | BX17: 449 | BY17: 3,914 | BZ17: 3,887 | CA17: 3,863 | CB17: 3,783 | CC17: 6,036 | CD17: 5,944 | CE17: 5,798 | CF17: 6,134 | CG17: 0 | CH17: 0 | CI17: 0 | CJ17: 0 | CK17: 76 | CL17: 75 | CM17: 68 | CN17: 66 | CO17: 5,346 | CP17: 5,400 | CQ17: 5,444 | CR17: 5,506 | CS17: 3,914 | CT17: 3,887 | CU17: 3,863 | CV17: 3,783 | CW17: 5,139 | CX17: 5,046 | CY17: 4,954 | CZ17: 4,809 | DA17: 61,930 | DB17: 160.54 | DC17: 1,220.46 | DD17: 1,103.05 | DE17: 54.07 | DF17: 167.81 | DG17: 325.43
A18: 126 | B18: 11 | C18: =IF('iaith - language'!$K$1=2,VLOOKUP(A18,Text!$A$3:$C$353,2,FALSE),VLOOKUP(A18,Text!$A$3:$C$353,3,FALSE)) -> Sir Gaerfyrddin | D18: 315 | E18: 334 | F18: 412 | G18: 445 | H18: N/A | I18: 237,110 | J18: 189,525 | K18: 1,913 | L18: 18,937 | M18: 30,273 | N18: 11,516 | O18: 21,053 | P18: 155,890 | Q18: 6,335 | R18: 37,981 | S18: 105,399 | T18: 151,544 | U18: 129,449 | V18: 60,076 | W18: 5,560 | X18: 112,387 | Y18: 190,073 | Z18: 152,810 | AA18: 45,693 | AC18: 0 | AD18: 9.1 | AE18: 3,090 | AF18: 6,990 | AG18: 2,690 | AH18: 20,642 | AI18: 2,404 | AJ18: 16,201 | AK18: 17,011,763 | AL18: 713,157 | AM18: 0 | AN18: 4,708 | AO18: 2,315 | AP18: 5,795 | AQ18: 5,775 | AR18: 5,615 | AS18: 5,510 | AT18: 5,815 | AU18: 5,735 | AV18: 5,665 | AW18: 5,220 | AX18: 4,820 | AY18: 4,780 | AZ18: 4,585 | BA18: 986 | BB18: 921 | BC18: 851 | BD18: 803 | BE18: 856 | BF18: 888 | BG18: 707 | BH18: 627 | BI18: 0 | BJ18: 0 | BK18: 0 | BL18: 0 | BM18: 8,329 | BN18: 8,532 | BO18: 8,521 | BP18: 9,110 | BQ18: 996 | BR18: 937 | BS18: 865 | BT18: 820 | BU18: 877 | BV18: 913 | BW18: 732 | BX18: 646 | BY18: 5,855 | BZ18: 5,824 | CA18: 5,732 | CB18: 5,593 | CC18: 8,172 | CD18: 8,356 | CE18: 8,327 | CF18: 8,881 | CG18: 0 | CH18: 0 | CI18: 0 | CJ18: 0 | CK18: 141 | CL18: 130 | CM18: 119 | CN18: 118 | CO18: 9,362 | CP18: 9,478 | CQ18: 9,558 | CR18: 9,698 | CS18: 5,850 | CT18: 5,817 | CU18: 5,728 | CV18: 5,590 | CW18: 7,728 | CX18: 7,674 | CY18: 7,329 | CZ18: 7,059 | DA18: 88,750 | DB18: 249.60 | DC18: 1,615.60 | DD18: 1,619.80 | DE18: 90.40 | DF18: 196.50 | DG18: 407.20
A19: 127 | B19: 12 | C19: =IF('iaith - language'!$K$1=2,VLOOKUP(A19,Text!$A$3:$C$353,2,FALSE),VLOOKUP(A19,Text!$A$3:$C$353,3,FALSE)) -> Abertawe | D19: 411 | E19: 528 | F19: 504 | G19: 645 | H19: N/A | I19: 37,761 | J19: 249,275 | K19: 2,499 | L19: 23,960 | M19: 37,636 | N19: 13,739 | O19: 30,988 | P19: 206,811 | Q19: 8,350 | R19: 47,832 | S19: 151,781 | T19: 201,443 | U19: 184,857 | V19: 64,418 | W19: 6,749 | X19: 159,946 | Y19: 246,563 | Z19: 199,723 | AA19: 48,958 | AC19: 0 | AD19: 7.9 | AE19: 379 | AF19: 7,650 | AG19: 2,930 | AH19: 28,839 | AI19: 3,009 | AJ19: 22,852 | AK19: 23,182,640 | AL19: 677,426 | AM19: 135 | AN19: 5,424 | AO19: 3,125 | AP19: 8,725 | AQ19: 8,860 | AR19: 8,655 | AS19: 8,405 | AT19: 8,795 | AU19: 8,835 | AV19: 8,780 | AW19: 8,265 | AX19: 7,705 | AY19: 7,555 | AZ19: 7,250 | BA19: 1,327 | BB19: 1,255 | BC19: 1,173 | BD19: 1,126 | BE19: 955 | BF19: 1,024 | BG19: 902 | BH19: 846 | BI19: 0 | BJ19: 0 | BK19: 0 | BL19: 0 | BM19: 14,165 | BN19: 14,304 | BO19: 14,124 | BP19: 14,782 | BQ19: 1,335 | BR19: 1,266 | BS19: 1,184 | BT19: 1,136 | BU19: 971 | BV19: 1,047 | BW19: 922 | BX19: 870 | BY19: 7,239 | BZ19: 7,166 | CA19: 7,116 | CB19: 7,027 | CC19: 13,928 | CD19: 14,039 | CE19: 13,844 | CF19: 14,495 | CG19: 0 | CH19: 0 | CI19: 0 | CJ19: 0 | CK19: 163 | CL19: 159 | CM19: 151 | CN19: 143 | CO19: 12,381 | CP19: 12,516 | CQ19: 12,649 | CR19: 12,831 | CS19: 7,239 | CT19: 7,166 | CU19: 7,116 | CV19: 7,027 | CW19: 9,545 | CX19: 9,479 | CY19: 9,222 | CZ19: 9,033 | DA19: 113,970 | DB19: 102.30 | DC19: 231.20 | DD19: 778.80 | DE19: 70.70 | DF19: 138.90 | DG19: 650.30
A20: 128 | B20: 13 | C20: =IF('iaith - language'!$K$1=2,VLOOKUP(A20,Text!$A$3:$C$353,2,FALSE),VLOOKUP(A20,Text!$A$3:$C$353,3,FALSE)) -> Castell-nedd Port Talbot | D20: 173 | E20: 204 | F20: 195 | G20: 254 | H20: N/A | I20: 44,227 | J20: 144,447 | K20: 1,501 | L20: 14,393 | M20: 22,684 | N20: 8,320 | O20: 16,088 | P20: 118,963 | Q20: 4,874 | R20: 28,800 | S20: 84,952 | T20: 115,647 | U20: 103,872 | V20: 40,575 | W20: 3,544 | X20: 90,112 | Y20: 144,386 | Z20: 116,296 | AA20: 30,254 | AC20: 0 | AD20: 2.9 | AE20: 226 | AF20: 4,030 | AG20: 1,780 | AH20: 19,477 | AI20: 1,902 | AJ20: 17,318 | AK20: 19,556,958 | AL20: 603,775 | AM20: 168 | AN20: 922 | AO20: 1,146 | AP20: 5,020 | AQ20: 4,950 | AR20: 4,845 | AS20: 4,700 | AT20: 4,875 | AU20: 4,805 | AV20: 4,750 | AW20: 4,475 | AX20: 4,110 | AY20: 4,055 | AZ20: 3,900 | BA20: 1,086 | BB20: 1,024 | BC20: 974 | BD20: 915 | BE20: 449 | BF20: 555 | BG20: 457 | BH20: 375 | BI20: 0 | BJ20: 0 | BK20: 0 | BL20: 0 | BM20: 9,028 | BN20: 9,097 | BO20: 8,829 | BP20: 9,238 | BQ20: 1,098 | BR20: 1,042 | BS20: 986 | BT20: 928 | BU20: 460 | BV20: 564 | BW20: 474 | BX20: 389 | BY20: 4,877 | BZ20: 4,819 | CA20: 4,759 | CB20: 4,658 | CC20: 8,893 | CD20: 8,951 | CE20: 8,655 | CF20: 9,057 | CG20: 0 | CH20: 0 | CI20: 0 | CJ20: 0 | CK20: 136 | CL20: 129 | CM20: 123 | CN20: 114 | CO20: 9,265 | CP20: 9,321 | CQ20: 9,375 | CR20: 9,429 | CS20: 4,877 | CT20: 4,819 | CU20: 4,759 | CV20: 4,658 | CW20: 6,435 | CX20: 6,425 | CY20: 6,219 | CZ20: 5,975 | DA20: 66,760 | DB20: 118.00 | DC20: 116.10 | DD20: 598.80 | DE20: 66.30 | DF20: 68.80 | DG20: 478.90
A21: 129 | B21: 14 | C21: =IF('iaith - language'!$K$1=2,VLOOKUP(A21,Text!$A$3:$C$353,2,FALSE),VLOOKUP(A21,Text!$A$3:$C$353,3,FALSE)) -> Pen-y-bont ar Ogwr | D21: 167 | E21: 256 | F21: 275 | G21: 265 | H21: N/A | I21: 25,079 | J21: 147,892 | K21: 1,614 | L21: 15,365 | M21: 23,801 | N21: 8,595 | O21: 15,911 | P21: 121,065 | Q21: 4,925 | R21: 30,172 | S21: 86,863 | T21: 117,720 | U21: 107,275 | V21: 40,617 | W21: 3,540 | X21: 91,930 | Y21: 147,539 | Z21: 118,204 | AA21: 30,168 | AC21: 0 | AD21: 2.4 | AE21: 201 | AF21: 5,060 | AG21: 1,770 | AH21: 19,761 | AI21: 1,878 | AJ21: 13,049 | AK21: 15,298,283 | AL21: 325,469 | AM21: 0 | AN21: 2,664 | AO21: 3,061 | AP21: 4,970 | AQ21: 5,070 | AR21: 4,990 | AS21: 4,870 | AT21: 5,055 | AU21: 4,945 | AV21: 4,825 | AW21: 4,465 | AX21: 4,095 | AY21: 3,990 | AZ21: 3,850 | BA21: 1,001 | BB21: 941 | BC21: 871 | BD21: 820 | BE21: 463 | BF21: 565 | BG21: 492 | BH21: 425 | BI21: 0 | BJ21: 0 | BK21: 0 | BL21: 0 | BM21: 8,042 | BN21: 8,064 | BO21: 8,031 | BP21: 8,472 | BQ21: 1,011 | BR21: 951 | BS21: 880 | BT21: 834 | BU21: 468 | BV21: 572 | BW21: 493 | BX21: 430 | BY21: 3,923 | BZ21: 3,866 | CA21: 3,814 | CB21: 3,724 | CC21: 7,891 | CD21: 7,894 | CE21: 7,859 | CF21: 8,281 | CG21: 0 | CH21: 0 | CI21: 0 | CJ21: 0 | CK21: 285 | CL21: 216 | CM21: 145 | CN21: 136 | CO21: 7,505 | CP21: 7,611 | CQ21: 7,737 | CR21: 7,761 | CS21: 3,923 | CT21: 3,866 | CU21: 3,814 | CV21: 3,724 | CW21: 5,402 | CX21: 5,389 | CY21: 5,187 | CZ21: 4,988 | DA21: 65,290 | DB21: 104.00 | DC21: 139.00 | DD21: 545.60 | DE21: 52.30 | DF21: 83.30 | DG21: 443.20
A22: 130 | B22: 15 | C22: =IF('iaith - language'!$K$1=2,VLOOKUP(A22,Text!$A$3:$C$353,2,FALSE),VLOOKUP(A22,Text!$A$3:$C$353,3,FALSE)) -> Bro Morgannwg | D22: 300 | E22: 389 | F22: 380 | G22: 399 | H22: N/A | I22: 33,126 | J22: 135,617 | K22: 1,481 | L22: 14,300 | M22: 22,627 | N22: 8,430 | O22: 15,030 | P22: 110,295 | Q22: 4,628 | R22: 28,496 | S22: 77,392 | T22: 107,121 | U22: 96,757 | V22: 38,860 | W22: 3,535 | X22: 82,239 | Y22: 135,295 | Z22: 107,403 | AA22: 28,838 | AC22: 0 | AD22: 4.0 | AE22: 301 | AF22: 3,580 | AG22: 1,550 | AH22: 15,743 | AI22: 1,419 | AJ22: 9,754 | AK22: 11,048,902 | AL22: 458,005 | AM22: 48 | AN22: 2,240 | AO22: 3,669 | AP22: 4,185 | AQ22: 4,230 | AR22: 4,185 | AS22: 4,105 | AT22: 4,255 | AU22: 4,275 | AV22: 4,150 | AW22: 3,875 | AX22: 3,610 | AY22: 3,495 | AZ22: 3,275 | BA22: 689 | BB22: 641 | BC22: 585 | BD22: 557 | BE22: 520 | BF22: 582 | BG22: 483 | BH22: 433 | BI22: 0 | BJ22: 0 | BK22: 0 | BL22: 0 | BM22: 5,687 | BN22: 5,824 | BO22: 5,919 | BP22: 6,247 | BQ22: 699 | BR22: 650 | BS22: 594 | BT22: 563 | BU22: 526 | BV22: 593 | BW22: 499 | BX22: 448 | BY22: 3,129 | BZ22: 3,083 | CA22: 3,046 | CB22: 2,985 | CC22: 5,601 | CD22: 5,726 | CE22: 5,793 | CF22: 6,111 | CG22: 0 | CH22: 0 | CI22: 0 | CJ22: 0 | CK22: 175 | CL22: 132 | CM22: 88 | CN22: 78 | CO22: 4,885 | CP22: 4,939 | CQ22: 5,019 | CR22: 5,087 | CS22: 3,129 | CT22: 3,083 | CU22: 3,046 | CV22: 2,985 | CW22: 4,354 | CX22: 4,326 | CY22: 4,139 | CZ22: 3,996 | DA22: 60,420 | DB22: 73.90 | DC22: 369.10 | DD22: 592.30 | DE22: 21.40 | DF22: 53.50 | DG22: 373.90
A23: 131 | B23: 16 | C23: =IF('iaith - language'!$K$1=2,VLOOKUP(A23,Text!$A$3:$C$353,2,FALSE),VLOOKUP(A23,Text!$A$3:$C$353,3,FALSE)) -> Rhondda Cynon Taf | D23: 228 | E23: 403 | F23: 330 | G23: 469 | H23: N/A | I23: 42,415 | J23: 242,784 | K23: 2,645 | L23: 25,364 | M23: 39,944 | N23: 14,725 | O23: 28,494 | P23: 197,795 | Q23: 8,295 | R23: 50,650 | S23: 144,680 | T23: 192,133 | U23: 180,290 | V23: 62,494 | W23: 5,494 | X23: 153,071 | Y23: 241,873 | Z23: 191,775 | AA23: 46,755 | AC23: 0 | AD23: 0.0 | AE23: 268 | AF23: 6,970 | AG23: 3,020 | AH23: 30,022 | AI23: 3,104 | AJ23: 25,704 | AK23: 25,465,977 | AL23: 1,022,529 | AM23: 0 | AN23: 1,283 | AO23: 1,575 | AP23: 9,185 | AQ23: 9,100 | AR23: 9,025 | AS23: 8,745 | AT23: 9,065 | AU23: 8,975 | AV23: 8,720 | AW23: 8,095 | AX23: 7,440 | AY23: 7,210 | AZ23: 7,020 | BA23: 2,005 | BB23: 1,882 | BC23: 1,743 | BD23: 1,653 | BE23: 1,139 | BF23: 1,191 | BG23: 1,038 | BH23: 834 | BI23: 0 | BJ23: 0 | BK23: 0 | BL23: 0 | BM23: 13,944 | BN23: 13,793 | BO23: 13,557 | BP23: 14,242 | BQ23: 2,020 | BR23: 1,897 | BS23: 1,762 | BT23: 1,678 | BU23: 1,162 | BV23: 1,212 | BW23: 1,066 | BX23: 865 | BY23: 7,697 | BZ23: 7,585 | CA23: 7,458 | CB23: 7,309 | CC23: 13,763 | CD23: 13,616 | CE23: 13,363 | CF23: 14,035 | CG23: 0 | CH23: 0 | CI23: 0 | CJ23: 0 | CK23: 473 | CL23: 376 | CM23: 255 | CN23: 234 | CO23: 13,498 | CP23: 13,707 | CQ23: 13,914 | CR23: 14,109 | CS23: 7,697 | CT23: 7,585 | CU23: 7,458 | CV23: 7,309 | CW23: 10,879 | CX23: 10,694 | CY23: 10,286 | CZ23: 9,852 | DA23: 110,350 | DB23: 165.40 | DC23: 199.70 | DD23: 929.70 | DE23: 76.10 | DF23: 127.80 | DG23: 793.90
A24: 132 | B24: 17 | C24: =IF('iaith - language'!$K$1=2,VLOOKUP(A24,Text!$A$3:$C$353,2,FALSE),VLOOKUP(A24,Text!$A$3:$C$353,3,FALSE)) -> Merthyr Tudful | D24: 65 | E24: 105 | F24: 94 | G24: 124 | H24: N/A | I24: 11,196 | J24: 60,919 | K24: 717 | L24: 6,815 | M24: 10,492 | N24: 3,742 | O24: 6,877 | P24: 49,017 | Q24: 1,977 | R24: 13,256 | S24: 36,016 | T24: 47,663 | U24: 45,184 | V24: 15,736 | W24: 1,297 | X24: 38,036 | Y24: 60,424 | Z24: 47,544 | AA24: 11,394 | AC24: 0 | AD24: 0.0 | AE24: 50 | AF24: 1,800 | AG24: 780 | AH24: 7,504 | AI24: 773 | AJ24: 6,341 | AK24: 6,899,703 | AL24: 132,902 | AM24: 0 | AN24: 552 | AO24: 1,160 | AP24: 2,430 | AQ24: 2,425 | AR24: 2,375 | AS24: 2,355 | AT24: 2,410 | AU24: 2,400 | AV24: 2,330 | AW24: 2,185 | AX24: 2,035 | AY24: 1,990 | AZ24: 1,935 | BA24: 515 | BB24: 471 | BC24: 442 | BD24: 411 | BE24: 297 | BF24: 298 | BG24: 236 | BH24: 216 | BI24: 0 | BJ24: 0 | BK24: 0 | BL24: 0 | BM24: 4,074 | BN24: 4,054 | BO24: 3,978 | BP24: 4,172 | BQ24: 515 | BR24: 477 | BS24: 439 | BT24: 409 | BU24: 305 | BV24: 306 | BW24: 246 | BX24: 222 | BY24: 1,957 | BZ24: 1,945 | CA24: 1,907 | CB24: 1,869 | CC24: 4,009 | CD24: 3,982 | CE24: 3,895 | CF24: 4,091 | CG24: 0 | CH24: 0 | CI24: 0 | CJ24: 0 | CK24: 156 | CL24: 122 | CM24: 85 | CN24: 79 | CO24: 3,807 | CP24: 3,898 | CQ24: 3,928 | CR24: 3,944 | CS24: 1,957 | CT24: 1,945 | CU24: 1,907 | CV24: 1,869 | CW24: 2,777 | CX24: 2,728 | CY24: 2,592 | CZ24: 2,500 | DA24: 27,430 | DB24: 27.60 | DC24: 51.20 | DD24: 222.00 | DE24: 22.20 | DF24: 39.10 | DG24: 191.50
A25: 133 | B25: 18 | C25: =IF('iaith - language'!$K$1=2,VLOOKUP(A25,Text!$A$3:$C$353,2,FALSE),VLOOKUP(A25,Text!$A$3:$C$353,3,FALSE)) -> Caerffili | D25: 213 | E25: 240 | F25: 226 | G25: 280 | H25: N/A | I25: 27,739 | J25: 182,060 | K25: 1,970 | L25: 18,799 | M25: 29,970 | N25: 11,258 | O25: 20,886 | P25: 148,324 | Q25: 6,242 | R25: 37,901 | S25: 107,394 | T25: 144,159 | U25: 133,848 | V25: 48,212 | W25: 4,037 | X25: 113,745 | Y25: 181,731 | Z25: 144,061 | AA25: 35,672 | AC25: 0 | AD25: 0.0 | AE25: 241 | AF25: 4,890 | AG25: 2,030 | AH25: 27,652 | AI25: 2,122 | AJ25: 16,714 | AK25: 15,053,608 | AL25: 331,389 | AM25: 0 | AN25: 933 | AO25: 1,421 | AP25: 6,550 | AQ25: 6,630 | AR25: 6,475 | AS25: 6,405 | AT25: 6,655 | AU25: 6,560 | AV25: 6,425 | AW25: 6,135 | AX25: 5,735 | AY25: 5,600 | AZ25: 5,415 | BA25: 1,289 | BB25: 1,202 | BC25: 1,119 | BD25: 1,053 | BE25: 1,004 | BF25: 1,061 | BG25: 934 | BH25: 844 | BI25: 0 | BJ25: 0 | BK25: 0 | BL25: 0 | BM25: 9,997 | BN25: 10,163 | BO25: 10,085 | BP25: 10,625 | BQ25: 1,300 | BR25: 1,216 | BS25: 1,130 | BT25: 1,073 | BU25: 1,021 | BV25: 1,082 | BW25: 956 | BX25: 872 | BY25: 5,777 | BZ25: 5,743 | CA25: 5,651 | CB25: 5,535 | CC25: 9,857 | CD25: 10,011 | CE25: 9,906 | CF25: 10,436 | CG25: 0 | CH25: 0 | CI25: 0 | CJ25: 0 | CK25: 248 | CL25: 197 | CM25: 146 | CN25: 128 | CO25: 10,421 | CP25: 10,594 | CQ25: 10,756 | CR25: 10,850 | CS25: 5,777 | CT25: 5,743 | CU25: 5,651 | CV25: 5,535 | CW25: 8,098 | CX25: 8,041 | CY25: 7,737 | CZ25: 7,480 | DA25: 79,870 | DB25: 96.75 | DC25: 217.23 | DD25: 858.90 | DE25: 30.43 | DF25: 130.00 | DG25: 697.20
A26: 134 | B26: 19 | C26: =IF('iaith - language'!$K$1=2,VLOOKUP(A26,Text!$A$3:$C$353,2,FALSE),VLOOKUP(A26,Text!$A$3:$C$353,3,FALSE)) -> Blaenau Gwent | D26: 55 | E26: 76 | F26: 64 | G26: 78 | H26: N/A | I26: 10,873 | J26: 69,548 | K26: 734 | L26: 6,825 | M26: 10,831 | N26: 3,978 | O26: 7,477 | P26: 57,350 | Q26: 2,302 | R26: 13,790 | S26: 41,546 | T26: 55,758 | U26: 50,702 | V26: 18,846 | W26: 1,572 | X26: 43,996 | Y26: 70,020 | Z26: 56,401 | AA26: 14,177 | AC26: 0 | AD26: 0.0 | AE26: 71 | AF26: 2,170 | AG26: 1,100 | AH26: 12,934 | AI26: 978 | AJ26: 9,260 | AK26: 9,814,751 | AL26: 312,089 | AM26: 0 | AN26: 418 | AO26: 574 | AP26: 2,880 | AQ26: 2,865 | AR26: 2,800 | AS26: 2,740 | AT26: 2,860 | AU26: 2,855 | AV26: 2,815 | AW26: 2,700 | AX26: 2,555 | AY26: 2,495 | AZ26: 2,450 | BA26: 570 | BB26: 535 | BC26: 500 | BD26: 466 | BE26: 350 | BF26: 364 | BG26: 327 | BH26: 303 | BI26: 0 | BJ26: 0 | BK26: 0 | BL26: 0 | BM26: 4,742 | BN26: 4,795 | BO26: 4,743 | BP26: 4,978 | BQ26: 573 | BR26: 545 | BS26: 507 | BT26: 471 | BU26: 359 | BV26: 373 | BW26: 340 | BX26: 306 | BY26: 2,560 | BZ26: 2,534 | CA26: 2,478 | CB26: 2,421 | CC26: 4,672 | CD26: 4,719 | CE26: 4,654 | CF26: 4,874 | CG26: 0 | CH26: 0 | CI26: 0 | CJ26: 0 | CK26: 58 | CL26: 49 | CM26: 55 | CN26: 52 | CO26: 4,581 | CP26: 4,663 | CQ26: 4,733 | CR26: 4,756 | CS26: 2,560 | CT26: 2,534 | CU26: 2,478 | CV26: 2,421 | CW26: 3,492 | CX26: 3,452 | CY26: 3,325 | CZ26: 3,198 | DA26: 32,870 | DB26: 51.03 | DC26: 67.64 | DD26: 389.68 | DE26: 20.19 | DF26: 46.96 | DG26: 387.78
A27: 135 | B27: 20 | C27: =IF('iaith - language'!$K$1=2,VLOOKUP(A27,Text!$A$3:$C$353,2,FALSE),VLOOKUP(A27,Text!$A$3:$C$353,3,FALSE)) -> Torfaen | D27: 93 | E27: 126 | F27: 139 | G27: 137 | H27: N/A | I27: 12,624 | J27: 94,111 | K27: 1,026 | L27: 9,928 | M27: 15,595 | N27: 5,708 | O27: 10,496 | P27: 76,621 | Q27: 3,198 | R27: 19,743 | S27: 54,544 | T27: 74,368 | U27: 68,067 | V27: 26,044 | W27: 2,536 | X27: 57,881 | Y27: 94,832 | Z27: 75,369 | AA27: 19,543 | AC27: 0 | AD27: 0.0 | AE27: 118 | AF27: 2,830 | AG27: 1,190 | AH27: 13,632 | AI27: 1,165 | AJ27: 10,389 | AK27: 10,130,548 | AL27: 238,831 | AM27: 0 | AN27: 495 | AO27: 864 | AP27: 3,475 | AQ27: 3,475 | AR27: 3,425 | AS27: 3,405 | AT27: 3,565 | AU27: 3,545 | AV27: 3,465 | AW27: 3,235 | AX27: 3,085 | AY27: 2,995 | AZ27: 2,890 | BA27: 492 | BB27: 463 | BC27: 439 | BD27: 409 | BE27: 281 | BF27: 322 | BG27: 270 | BH27: 255 | BI27: 0 | BJ27: 0 | BK27: 0 | BL27: 0 | BM27: 6,338 | BN27: 6,401 | BO27: 6,264 | BP27: 6,520 | BQ27: 496 | BR27: 465 | BS27: 447 | BT27: 422 | BU27: 281 | BV27: 327 | BW27: 279 | BX27: 259 | BY27: 2,780 | BZ27: 2,761 | CA27: 2,720 | CB27: 2,658 | CC27: 6,234 | CD27: 6,285 | CE27: 6,144 | CF27: 6,392 | CG27: 0 | CH27: 0 | CI27: 0 | CJ27: 0 | CK27: 66 | CL27: 59 | CM27: 60 | CN27: 57 | CO27: 5,334 | CP27: 5,420 | CQ27: 5,482 | CR27: 5,520 | CS27: 2,780 | CT27: 2,761 | CU27: 2,720 | CV27: 2,658 | CW27: 3,557 | CX27: 3,553 | CY27: 3,446 | CZ27: 3,339 | DA27: 42,470 | DB27: 26.30 | DC27: 101.60 | DD27: 323.90 | DE27: 16.20 | DF27: 70.80 | DG27: 290.60
A28: 136 | B28: 21 | C28: =IF('iaith - language'!$K$1=2,VLOOKUP(A28,Text!$A$3:$C$353,2,FALSE),VLOOKUP(A28,Text!$A$3:$C$353,3,FALSE)) -> Sir Fynwy | D28: 214 | E28: 307 | F28: 283 | G28: 322 | H28: N/A | I28: 85,033 | J28: 95,489 | K28: 834 | L28: 8,599 | M28: 14,137 | N28: 5,575 | O28: 9,886 | P28: 80,015 | Q28: 3,136 | R28: 17,597 | S28: 52,805 | T28: 77,891 | U28: 63,337 | V28: 32,151 | W28: 3,479 | X28: 56,284 | Y28: 95,164 | Z28: 77,843 | AA28: 24,340 | AC28: 93,511 | AD28: 0.0 | AE28: 1,014 | AF28: 3,190 | AG28: 1,220 | AH28: 10,900 | AI28: 1,058 | AJ28: 6,168 | AK28: 7,234,639 | AL28: 348,120 | AM28: 0 | AN28: 1,540 | AO28: 1,725 | AP28: 2,155 | AQ28: 2,155 | AR28: 2,145 | AS28: 2,120 | AT28: 2,245 | AU28: 2,235 | AV28: 2,175 | AW28: 2,030 | AX28: 1,845 | AY28: 1,800 | AZ28: 1,710 | BA28: 242 | BB28: 229 | BC28: 220 | BD28: 207 | BE28: 328 | BF28: 342 | BG28: 273 | BH28: 285 | BI28: 0 | BJ28: 0 | BK28: 0 | BL28: 0 | BM28: 3,200 | BN28: 3,242 | BO28: 3,205 | BP28: 3,409 | BQ28: 241 | BR28: 236 | BS28: 222 | BT28: 208 | BU28: 344 | BV28: 357 | BW28: 289 | BX28: 303 | BY28: 1,995 | BZ28: 1,984 | CA28: 1,987 | CB28: 1,955 | CC28: 3,133 | CD28: 3,167 | CE28: 3,127 | CF28: 3,333 | CG28: 0 | CH28: 0 | CI28: 0 | CJ28: 0 | CK28: 77 | CL28: 66 | CM28: 65 | CN28: 65 | CO28: 2,968 | CP28: 3,024 | CQ28: 3,047 | CR28: 3,120 | CS28: 1,991 | CT28: 1,983 | CU28: 1,982 | CV28: 1,952 | CW28: 2,580 | CX28: 2,577 | CY28: 2,498 | CZ28: 2,466 | DA28: 42,910 | DB28: 58.70 | DC28: 611.54 | DD28: 839.02 | DE28: 14.90 | DF28: 65.84 | DG28: 189.90
A29: 137 | B29: 22 | C29: =IF('iaith - language'!$K$1=2,VLOOKUP(A29,Text!$A$3:$C$353,2,FALSE),VLOOKUP(A29,Text!$A$3:$C$353,3,FALSE)) -> Casnewydd | D29: 209 | E29: 270 | F29: 262 | G29: 309 | H29: N/A | I29: 19,043 | J29: 158,154 | K29: 2,044 | L29: 18,989 | M29: 28,945 | N29: 10,233 | O29: 18,576 | P29: 124,990 | Q29: 5,464 | R29: 36,857 | S29: 94,073 | T29: 121,297 | U29: 121,578 | V29: 36,576 | W29: 3,458 | X29: 99,392 | Y29: 156,447 | Z29: 120,851 | AA29: 26,654 | AC29: 754,568 | AD29: 0.0 | AE29: 149 | AF29: 4,510 | AG29: 1,820 | AH29: 20,175 | AI29: 1,699 | AJ29: 13,168 | AK29: 12,665,258 | AL29: 272,960 | AM29: 429 | AN29: 1,698 | AO29: 3,880 | AP29: 7,200 | AQ29: 7,165 | AR29: 7,075 | AS29: 7,035 | AT29: 7,395 | AU29: 7,365 | AV29: 7,270 | AW29: 6,910 | AX29: 6,590 | AY29: 6,505 | AZ29: 6,250 | BA29: 915 | BB29: 858 | BC29: 808 | BD29: 772 | BE29: 711 | BF29: 770 | BG29: 635 | BH29: 581 | BI29: 0 | BJ29: 0 | BK29: 0 | BL29: 0 | BM29: 10,351 | BN29: 10,713 | BO29: 10,701 | BP29: 11,354 | BQ29: 923 | BR29: 869 | BS29: 823 | BT29: 782 | BU29: 724 | BV29: 785 | BW29: 648 | BX29: 592 | BY29: 4,215 | BZ29: 4,157 | CA29: 4,100 | CB29: 4,036 | CC29: 10,212 | CD29: 10,559 | CE29: 10,535 | CF29: 11,182 | CG29: 0 | CH29: 0 | CI29: 0 | CJ29: 0 | CK29: 104 | CL29: 95 | CM29: 89 | CN29: 91 | CO29: 7,352 | CP29: 7,447 | CQ29: 7,594 | CR29: 7,745 | CS29: 4,215 | CT29: 4,157 | CU29: 4,100 | CV29: 4,036 | CW29: 5,862 | CX29: 5,811 | CY29: 5,571 | CZ29: 5,410 | DA29: 69,690 | DB29: 51.30 | DC29: 189.10 | DD29: 417.16 | DE29: 29.30 | DF29: 71.80 | DG29: 348.86
A30: 138 | B30: 23 | C30: =IF('iaith - language'!$K$1=2,VLOOKUP(A30,Text!$A$3:$C$353,2,FALSE),VLOOKUP(A30,Text!$A$3:$C$353,3,FALSE)) -> Caerdydd | D30: 441 | E30: 627 | F30: 676 | G30: 736 | H30: N/A | I30: 14,230 | J30: 368,090 | K30: 3,912 | L30: 38,611 | M30: 59,953 | N30: 21,790 | O30: 50,928 | P30: 300,207 | Q30: 12,416 | R30: 75,837 | S30: 238,438 | T30: 292,253 | U30: 295,805 | V30: 72,285 | W30: 7,285 | X30: 249,788 | Y30: 369,202 | Z30: 293,830 | AA30: 52,807 | AC30: 139,318 | AD30: 2.4 | AE30: 62 | AF30: 12,690 | AG30: 4,100 | AH30: 42,563 | AI30: 3,142 | AJ30: 31,661 | AK30: 35,557,841 | AL30: 1,598,361 | AM30: 204 | AN30: 4,805 | AO30: 19,296 | AP30: 15,600 | AQ30: 15,935 | AR30: 15,830 | AS30: 15,510 | AT30: 16,135 | AU30: 16,075 | AV30: 15,810 | AW30: 15,050 | AX30: 13,915 | AY30: 13,430 | AZ30: 12,810 | BA30: 2,128 | BB30: 1,993 | BC30: 1,839 | BD30: 1,717 | BE30: 1,495 | BF30: 1,676 | BG30: 1,414 | BH30: 1,234 | BI30: 0 | BJ30: 0 | BK30: 0 | BL30: 0 | BM30: 21,464 | BN30: 22,271 | BO30: 22,704 | BP30: 24,024 | BQ30: 2,136 | BR30: 2,003 | BS30: 1,854 | BT30: 1,731 | BU30: 1,526 | BV30: 1,707 | BW30: 1,446 | BX30: 1,272 | BY30: 8,289 | BZ30: 8,214 | CA30: 8,114 | CB30: 7,932 | CC30: 21,194 | CD30: 21,992 | CE30: 22,381 | CF30: 23,678 | CG30: 0 | CH30: 0 | CI30: 0 | CJ30: 0 | CK30: 501 | CL30: 393 | CM30: 272 | CN30: 241 | CO30: 14,520 | CP30: 14,833 | CQ30: 15,153 | CR30: 15,363 | CS30: 8,289 | CT30: 8,214 | CU30: 8,114 | CV30: 7,932 | CW30: 11,951 | CX30: 11,924 | CY30: 11,414 | CZ30: 10,935 | DA30: 160,640 | DB30: 92.20 | DC30: 138.30 | DD30: 887.60 | DE30: 58.50 | DF30: 97.90 | DG30: 876.70
A32: 139 | C32: =IF('iaith - language'!$K$1=2,VLOOKUP(A32,Text!$A$3:$C$353,2,FALSE),VLOOKUP(A32,Text!$A$3:$C$353,3,FALSE)) -> Cyfanswm AU | D32: =SUM(D9:D31) -> 4,521 | E32: =SUM(E9:E31) -> 6,005 | F32: =SUM(F9:F31) -> 6,170 | G32: =SUM(G9:G31) -> 7,059 | H32: =SUM(H9:H30) -> 0 | I32: =SUM(I9:I31) -> 2,078,260 | J32: =SUM(J9:J30) -> 3,171,125 | K32: 32,935 | L32: 320,373 | M32: 506,877 | N32: 188,654 | O32: 368,494 | P32: 2,602,835 | Q32: 106,341 | R32: 639,829 | S32: 1,849,885 | T32: 2,531,296 | U32: 2,281,934 | V32: 889,192 | W32: 86,153 | X32: 1,959,832 | Y32: 3,169,586 | Z32: 2,539,714 | AA32: 668,590 | AB32: 0 | AC32: 1,204,399 | AD32: 117.61 | AE32: =SUM(AE9:AE30) -> 19,237 | AF32: =SUM(AF9:AF30) -> 114,120 | AG32: =SUM(AG9:AG30) -> 42,630 | AH32: =SUM(AH9:AH30) -> 397,427 | AI32: 37,399 | AJ32: 282,980 | AK32: 297,542,936 | AL32: =SUM(AL9:AL30) -> 10,938,929 | AM32: 6,176 | AN32: 107,900 | AO32: 71,088 | AP32: 110,720 | AQ32: 111,625 | AR32: 110,215 | AS32: 108,550 | AT32: 112,995 | AU32: 112,150 | AV32: 109,770 | AW32: 102,815 | AX32: 95,055 | AY32: =SUM(AY9:AY30) -> 92,265 | AZ32: =SUM(AZ9:AZ30) -> 88,455 | BA32: 17,928 | BB32: 16,822 | BC32: 15,676 | BD32: 14,819 | BE32: 12,894 | BF32: 13,995 | BG32: 11,845 | BH32: 10,549 | BI32: 0 | BJ32: 0 | BK32: 0 | BL32: 0 | BM32: 168,956 | BN32: 170,772 | BO32: 169,584 | BP32: 179,333 | BQ32: 18,080 | BR32: 17,013 | BS32: 15,867 | BT32: 15,007 | BU32: 13,164 | BV32: 14,307 | BW32: 12,202 | BX32: 10,861 | BY32: 91,560 | BZ32: 90,592 | CA32: 89,483 | CB32: 87,732 | CC32: 166,199 | CD32: 167,812 | CE32: 166,317 | CF32: 175,784 | CG32: 0 | CH32: 0 | CI32: 0 | CJ32: 0 | CK32: 3,837 | CL32: 3,253 | CM32: 2,675 | CN32: 2,529 | CO32: 146,214 | CP32: 148,384 | CQ32: 150,286 | CR32: =SUM(CR9:CR30) -> 151,910 | CS32: 91,551 | CT32: 90,584 | CU32: =SUM(CU9:CU30) -> 89,474 | CV32: 87,726 | CW32: 122,804 | CX32: 121,912 | CY32: 117,552 | CZ32: 113,600 | DA32: =SUM(DA9:DA30) -> 1,454,980 | DB32: =SUM(DB9:DB30) -> 2,773.74 | DC32: =SUM(DC9:DC30) -> 12,865.34 | DD32: 17,667.05 | DE32: 967.36 | DF32: 2,128.12 | DG32: 8,698.07
B35: 27 | D35: =IF('iaith - language'!K1=2,VLOOKUP(B35,Text!$A$3:$C$353,2),VLOOKUP(B35,Text!$A$3:$C$353,3)) -> Yr Is-adran Polisi Cyllid Llywodraeth Leol a Chynaliadwyedd, Llywodraeth Cymru
B36: 30 | D36: =IF('iaith - language'!K1=2,VLOOKUP(B36,Text!$A$3:$C$353,2),VLOOKUP(B36,Text!$A$3:$C$353,3)) -> Os oes gennych ymholiadau, cysylltwch â:
B37: 29 | D37: LGFPSettlement@Gov.Wales
B39: 33 | D39: =IF('iaith - language'!K1=2,VLOOKUP(B39,Text!$A$3:$C$353,2),VLOOKUP(B39,Text!$A$3:$C$353,3)) -> Nodiadau:
B40: 34 | D40: =IF('iaith - language'!K1=2,VLOOKUP(B40,Text!$A$3:$C$353,2),VLOOKUP(B40,Text!$A$3:$C$353,3)) -> 1 Caiff y set ddata hon ei chymryd fel cyfartaledd 3 blynedd yn y setliad.
B41: 273

Sheet 2021-22 Settlement data
B1: 400 | C1: =IF('iaith - language'!$K$1=2,VLOOKUP(B1,Text!$A$1:$C$353,2,FALSE),VLOOKUP(B1,Text!$A$1:$C$353,3,FALSE)) -> Data a ddefnyddiwyd yn Setliad 2021-22 – er gwybodaeth yn unig
D3: 51 | H3: 61 | I3: 62 | J3: 67 | K3: 68 | L3: 69 | M3: 70 | N3: 71 | O3: 72 | P3: 73 | Q3: 74 | R3: 75 | S3: 76 | T3: 77 | U3: 78 | V3: 79 | W3: 80 | X3: 81 | Y3: 82 | Z3: 83 | AA3: 84 | AB3: 86 | AC3: 90 | AD3: 91 | AE3: 92 | AF3: 145 | AG3: 147 | AH3: 143 | AI3: 149 | AJ3: 151 | AK3: 152 | AL3: 160 | AM3: 162 | AN3: 163 | AO3: 192 | AZ3: 194 | BD3: 195 | BH3: 196 | BL3: 197 | BP3: 198 | BT3: 199 | BX3: 200 | CB3: 201 | CF3: 202 | CJ3: 203 | CN3: 204 | CR3: 205 | CV3: 206 | CZ3: 271.5 | DA3: 59
D4: 401 | E4: =D4+1 -> 402 | F4: =E4+1 -> 403 | G4: 404 | H4: 112 | I4: 405 | AD4: 405 | AF4: 404 | AG4: 115 | AH4: 113 | AO4: 407 | AP4: =AO4+1 -> 408 | AQ4: =AP4+1 -> 409 | AR4: 410 | AS4: 411 | AT4: =AO4-3 -> 404 | AU4: =AO4-1 -> 406 | AV4: =AU4-1 -> 405 | AW4: =AS4+1 -> 412 | AX4: =AW4+1 -> 413 | AY4: =AX4+1 -> 414 | AZ4: =AY4+1 -> 415 | BA4: =AZ4+1 -> 416 | BB4: =AP4 -> 408 | BC4: =AS4 -> 411 | BD4: =AZ4 -> 415 | BE4: =BA4 -> 416 | BF4: 408 | BG4: 411 | BH4: 415 | BI4: 416 | BJ4: 408 | BK4: 411 | BL4: 415 | BM4: 416 | BN4: 408 | BO4: 411 | BP4: 415 | BQ4: 416 | BR4: 408 | BS4: 411 | BT4: 415 | BU4: 416 | BV4: 408 | BW4: 411 | BX4: 415 | BY4: 416 | BZ4: 408 | CA4: 411 | CB4: 415 | CC4: 416 | CD4: 408 | CE4: 411 | CF4: 415 | CG4: 416 | CH4: 408 | CI4: 411 | CJ4: 415 | CK4: 416 | CL4: 408 | CM4: 411 | CN4: 415 | CO4: 416 | CP4: 408 | CQ4: 411 | CR4: 415 | CS4: 416 | CT4: 408 | CU4: 411 | CV4: 415 | CW4: 416 | CX4: 408 | CY4: 411 | CZ4: 404
D6: =IF('iaith - language'!$K$1=2,VLOOKUP(D3,Text!$A$3:$C$353,2,FALSE),VLOOKUP(D3,Text!$A$3:$C$353,3,FALSE)) -> Ceisiadau Cynllunio a Gafwyd | H6: =IF('iaith - language'!$K$1=2,VLOOKUP(H3,Text!$A$3:$C$353,2,FALSE),VLOOKUP(H3,Text!$A$3:$C$353,3,FALSE)) -> Stoc anheddau'r sector preifat | I6: =IF('iaith - language'!$K$1=2,VLOOKUP(I3,Text!$A$3:$C$353,2,FALSE),VLOOKUP(I3,Text!$A$3:$C$353,3,FALSE)) -> Arwynebedd tir (hectarau) | J6: =IF('iaith - language'!$K$1=2,VLOOKUP(J3,Text!$A$3:$C$353,2,FALSE),VLOOKUP(J3,Text!$A$3:$C$353,3,FALSE)) -> Cyfanswm y boblogaeth (amcanestyniad) | K6: =IF('iaith - language'!$K$1=2,VLOOKUP(K3,Text!$A$3:$C$353,2,FALSE),VLOOKUP(K3,Text!$A$3:$C$353,3,FALSE)) -> Poblogaeth 3 oed (amcanestyniad) | L6: =IF('iaith - language'!$K$1=2,VLOOKUP(L3,Text!$A$3:$C$353,2,FALSE),VLOOKUP(L3,Text!$A$3:$C$353,3,FALSE)) -> Poblogaeth 3 i 11 oed (amcanestyniad) | M6: =IF('iaith - language'!$K$1=2,VLOOKUP(M3,Text!$A$3:$C$353,2,FALSE),VLOOKUP(M3,Text!$A$3:$C$353,3,FALSE)) -> Poblogaeth 3 i 16 oed (amcanestyniad) | N6: =IF('iaith - language'!$K$1=2,VLOOKUP(N3,Text!$A$3:$C$353,2,FALSE),VLOOKUP(N3,Text!$A$3:$C$353,3,FALSE)) -> Poblogaeth 11 i 15 oed (amcanestyniad) | O6: =IF('iaith - language'!$K$1=2,VLOOKUP(O3,Text!$A$3:$C$353,2,FALSE),VLOOKUP(O3,Text!$A$3:$C$353,3,FALSE)) -> Poblogaeth 11 i 20 oed (amcanestyniad) | P6: =IF('iaith - language'!$K$1=2,VLOOKUP(P3,Text!$A$3:$C$353,2,FALSE),VLOOKUP(P3,Text!$A$3:$C$353,3,FALSE)) -> Poblogaeth 16 oed a throsodd (amcanestyniad) | Q6: =IF('iaith - language'!$K$1=2,VLOOKUP(Q3,Text!$A$3:$C$353,2,FALSE),VLOOKUP(Q3,Text!$A$3:$C$353,3,FALSE)) -> Poblogaeth 16 i 18 oed (amcanestyniad) | R6: =IF('iaith - language'!$K$1=2,VLOOKUP(R3,Text!$A$3:$C$353,2,FALSE),VLOOKUP(R3,Text!$A$3:$C$353,3,FALSE)) -> Poblogaeth 0 i 17 oed (amcanestyniad) | S6: =IF('iaith - language'!$K$1=2,VLOOKUP(S3,Text!$A$3:$C$353,2,FALSE),VLOOKUP(S3,Text!$A$3:$C$353,3,FALSE)) -> Poblogaeth 18 i 64 oed (amcanestyniad) | T6: =IF('iaith - language'!$K$1=2,VLOOKUP(T3,Text!$A$3:$C$353,2,FALSE),VLOOKUP(T3,Text!$A$3:$C$353,3,FALSE)) -> Poblogaeth 18 oed a throsodd (amcanestyniad) | U6: =IF('iaith - language'!$K$1=2,VLOOKUP(U3,Text!$A$3:$C$353,2,FALSE),VLOOKUP(U3,Text!$A$3:$C$353,3,FALSE)) -> Poblogaeth o dan 60 oed (amcanestyniad) | V6: =IF('iaith - language'!$K$1=2,VLOOKUP(V3,Text!$A$3:$C$353,2,FALSE),VLOOKUP(V3,Text!$A$3:$C$353,3,FALSE)) -> Poblogaeth 60 oed a throsodd (amcanestyniad) | W6: =IF('iaith - language'!$K$1=2,VLOOKUP(W3,Text!$A$3:$C$353,2,FALSE),VLOOKUP(W3,Text!$A$3:$C$353,3,FALSE)) -> Poblogaeth 85 oed a throsodd (amcanestyniad) | X6: =IF('iaith - language'!$K$1=2,VLOOKUP(X3,Text!$A$3:$C$353,2,FALSE),VLOOKUP(X3,Text!$A$3:$C$353,3,FALSE)) -> Poblogaeth oedran gweithio (16-65G/B) (amcanestyniad) | Y6: =IF('iaith - language'!$K$1=2,VLOOKUP(Y3,Text!$A$3:$C$353,2,FALSE),VLOOKUP(Y3,Text!$A$3:$C$353,3,FALSE)) -> Amcangyfrifon Poblogaeth Ganol Blwyddyn, pob oed | Z6: =IF('iaith - language'!$K$1=2,VLOOKUP(Z3,Text!$A$3:$C$353,2,FALSE),VLOOKUP(Z3,Text!$A$3:$C$353,3,FALSE)) -> Amcangyfrifon Poblogaeth Ganol Blwyddyn, 18 oed a throsodd | AA6: =IF('iaith - language'!$K$1=2,VLOOKUP(AA3,Text!$A$3:$C$353,2,FALSE),VLOOKUP(AA3,Text!$A$3:$C$353,3,FALSE)) -> Amcangyfrifon Poblogaeth Ganol Blwyddyn, 65 oed a throsodd | AB6: =IF('iaith - language'!$K$1=2,VLOOKUP(AB3,Text!$A$3:$C$353,2,FALSE),VLOOKUP(AB3,Text!$A$3:$C$353,3,FALSE)) -> Swm a wariwyd ar grantiau cyfleusterau i'r anabl wedi'u cwblhau (£s) | AC6: =IF('iaith - language'!$K$1=2,VLOOKUP(AC3,Text!$A$3:$C$353,2,FALSE),VLOOKUP(AC3,Text!$A$3:$C$353,3,FALSE)) -> Praeseptau Draenio Tir | AD6: =IF('iaith - language'!$K$1=2,VLOOKUP(AD3,Text!$A$3:$C$353,2,FALSE),VLOOKUP(AD3,Text!$A$3:$C$353,3,FALSE)) -> Hyd yr arfordir a warchodir | AE6: =IF('iaith - language'!$K$1=2,VLOOKUP(AE3,Text!$A$3:$C$353,2,FALSE),VLOOKUP(AE3,Text!$A$3:$C$353,3,FALSE)) -> Nifer y Ffermydd | AF6: =IF('iaith - language'!$K$1=2,VLOOKUP(AF3,Text!$A$3:$C$353,2,FALSE),VLOOKUP(AF3,Text!$A$3:$C$353,3,FALSE)) -> Nifer yr Eiddo Masnachu | AG6: =IF('iaith - language'!$K$1=2,VLOOKUP(AG3,Text!$A$3:$C$353,2,FALSE),VLOOKUP(AG3,Text!$A$3:$C$353,3,FALSE)) -> Nifer yr Eiddo Bwyd | AH6: =IF('iaith - language'!$K$1=2,VLOOKUP(AH3,Text!$A$3:$C$353,2,FALSE),VLOOKUP(AH3,Text!$A$3:$C$353,3,FALSE)) -> Cyfanswm yr unedau goleuadau stryd | AI6: =IF('iaith - language'!$K$1=2,VLOOKUP(AI3,Text!$A$3:$C$353,2,FALSE),VLOOKUP(AI3,Text!$A$3:$C$353,3,FALSE)) -> Nifer y marwolaethau wedi'u cofrestru | AJ6: =IF('iaith - language'!$K$1=2,VLOOKUP(AJ3,Text!$A$3:$C$353,2,FALSE),VLOOKUP(AJ3,Text!$A$3:$C$353,3,FALSE)) -> Llwyth achosion Cynlluniau Gostyngiadau'r Dreth Gyngor | AK6: =IF('iaith - language'!$K$1=2,VLOOKUP(AK3,Text!$A$3:$C$353,2,FALSE),VLOOKUP(AK3,Text!$A$3:$C$353,3,FALSE)) -> Gwariant Cynlluniau Gostyngiadau'r Dreth Gyngor | AL6: =IF('iaith - language'!$K$1=2,VLOOKUP(AL3,Text!$A$3:$C$353,2,FALSE),VLOOKUP(AL3,Text!$A$3:$C$353,3,FALSE)) -> Nifer y llongau sy'n cyrraedd porthladdoedd | AM6: =IF('iaith - language'!$K$1=2,VLOOKUP(AM3,Text!$A$3:$C$353,2,FALSE),VLOOKUP(AM3,Text!$A$3:$C$353,3,FALSE)) -> Nosweithiau twristiaid (miloedd) gan gynnwys AirBnb | AN6: =IF('iaith - language'!$K$1=2,VLOOKUP(AN3,Text!$A$3:$C$353,2,FALSE),VLOOKUP(AN3,Text!$A$3:$C$353,3,FALSE)) -> Diwrnodau twristiaid (miloedd) | AO6: =IF('iaith - language'!$K$1=2,VLOOKUP(AO3,Text!$A$3:$C$353,2,FALSE),VLOOKUP(AO3,Text!$A$3:$C$353,3,FALSE)) -> Data Hawlwyr Budd-dal | AZ6: =IF('iaith - language'!$K$1=2,VLOOKUP(AZ3,Text!$A$3:$C$353,2,FALSE),VLOOKUP(AZ3,Text!$A$3:$C$353,3,FALSE)) -> Nifer yr Hawlwyr Cymhorthdal Incwm, 18-64 oed | BD6: =IF('iaith - language'!$K$1=2,VLOOKUP(BD3,Text!$A$3:$C$353,2,FALSE),VLOOKUP(BD3,Text!$A$3:$C$353,3,FALSE)) -> Nifer y Derbynwyr Lwfans Ceisio Swydd ar Sail Incwm, 18-64 oed | BH6: =IF('iaith - language'!$K$1=2,VLOOKUP(BH3,Text!$A$3:$C$353,2,FALSE),VLOOKUP(BH3,Text!$A$3:$C$353,3,FALSE)) -> Nifer yr hawlwyr Credyd Pensiwn, 18-64 oed | BL6: =IF('iaith - language'!$K$1=2,VLOOKUP(BL3,Text!$A$3:$C$353,2,FALSE),VLOOKUP(BL3,Text!$A$3:$C$353,3,FALSE)) -> Nifer y rhai sydd yn derbyn Credyd Cynhwysol (ddim mewn cyflogaeth) 18-64 oed | BP6: =IF('iaith - language'!$K$1=2,VLOOKUP(BP3,Text!$A$3:$C$353,2,FALSE),VLOOKUP(BP3,Text!$A$3:$C$353,3,FALSE)) -> Cyfanswm yr Hawlwyr Cymhorthdal Incwm | BT6: =IF('iaith - language'!$K$1=2,VLOOKUP(BT3,Text!$A$3:$C$353,2,FALSE),VLOOKUP(BT3,Text!$A$3:$C$353,3,FALSE)) -> Cyfanswm y Derbynwyr Lwfans Ceisio Swydd ar Sail Incwm | BX6: =IF('iaith - language'!$K$1=2,VLOOKUP(BX3,Text!$A$3:$C$353,2,FALSE),VLOOKUP(BX3,Text!$A$3:$C$353,3,FALSE)) -> Cyfanswm Hawlwyr Credyd Pensiwn | CB6: =IF('iaith - language'!$K$1=2,VLOOKUP(CB3,Text!$A$3:$C$353,2,FALSE),VLOOKUP(CB3,Text!$A$3:$C$353,3,FALSE)) -> Cyfanswm y rhai sy’n derbyn Credyd Cynhwysol (ddim mewn cyflogaeth) | CF6: =IF('iaith - language'!$K$1=2,VLOOKUP(CF3,Text!$A$3:$C$353,2,FALSE),VLOOKUP(CF3,Text!$A$3:$C$353,3,FALSE)) -> Nifer yr Hawlwyr Lwfans Anabledd Difrifol, 18-64 oed | CJ6: =IF('iaith - language'!$K$1=2,VLOOKUP(CJ3,Text!$A$3:$C$353,2,FALSE),VLOOKUP(CJ3,Text!$A$3:$C$353,3,FALSE)) -> Nifer yr Hawlwyr Lwfans Byw i'r Anabl, 18-64 oed | CN6: =IF('iaith - language'!$K$1=2,VLOOKUP(CN3,Text!$A$3:$C$353,2,FALSE),VLOOKUP(CN3,Text!$A$3:$C$353,3,FALSE)) -> Nifer yr Hawlwyr Taliad Annibyniaeth Bersonol sydd yn 18-64 oed | CR6: =IF('iaith - language'!$K$1=2,VLOOKUP(CR3,Text!$A$3:$C$353,2,FALSE),VLOOKUP(CR3,Text!$A$3:$C$353,3,FALSE)) -> Hawlwyr Credyd Pensiwn, 65 oed a hŷn | CV6: =IF('iaith - language'!$K$1=2,VLOOKUP(CV3,Text!$A$3:$C$353,2,FALSE),VLOOKUP(CV3,Text!$A$3:$C$353,3,FALSE)) -> Cyfanswn yr hawlwyr Cymhorthdal Incwm, Lwfans Ceisio Gwaith, a Chredyd Pensiwn | CZ6: =IF('iaith - language'!$K$1=2,VLOOKUP(CZ3,Text!$A$3:$C$353,2,FALSE),VLOOKUP(CZ3,Text!$A$3:$C$353,3,FALSE)) -> Stoc eiddo treth cyngor | DA6: =IF('iaith - language'!$K$1=2,VLOOKUP(DA3,Text!$A$3:$C$353,2,FALSE),VLOOKUP(DA3,Text!$A$3:$C$353,3,FALSE)) -> Llif traffig (cerbydau)
B7: 0 | D7: =IF('iaith - language'!$K$1=2,VLOOKUP(D$4,Text!$A$3:$C$458,2,FALSE),VLOOKUP(D$4,Text!$A$3:$C$458,3,FALSE)) -> Mehefin 2019 | E7: =IF('iaith - language'!$K$1=2,VLOOKUP(E$4,Text!$A$3:$C$458,2,FALSE),VLOOKUP(E$4,Text!$A$3:$C$458,3,FALSE)) -> Medi 2019 | F7: =IF('iaith - language'!$K$1=2,VLOOKUP(F$4,Text!$A$3:$C$458,2,FALSE),VLOOKUP(F$4,Text!$A$3:$C$458,3,FALSE)) -> Rhagfyr 2019 | G7: =IF('iaith - language'!$K$1=2,VLOOKUP(G$4,Text!$A$3:$C$458,2,FALSE),VLOOKUP(G$4,Text!$A$3:$C$458,3,FALSE)) -> Mawrth 2020 | H7: 2019-20 | I7: =IF('iaith - language'!$K$1=2,VLOOKUP(I$4,Text!$A$1:$C$458,2,FALSE),VLOOKUP(I$4,Text!$A$1:$C$458,3,FALSE)) -> Mai 2020 | J7: 2021 | K7: 2021 | L7: 2021 | M7: 2021 | N7: 2021 | O7: 2021 | P7: 2021 | Q7: 2021 | R7: 2021 | S7: 2021 | T7: 2021 | U7: 2021 | V7: 2021 | W7: 2021 | X7: 2021 | Y7: 2019 | Z7: 2019 | AA7: 2019 | AB7: 2018-19 | AC7: 2020-21 | AD7: =IF('iaith - language'!$K$1=2,VLOOKUP(AD$4,Text!$A$1:$C$458,2,FALSE),VLOOKUP(AD$4,Text!$A$1:$C$458,3,FALSE)) -> Mai 2020 | AE7: 2019 | AF7: =IF('iaith - language'!$K$1=2,VLOOKUP(AF$4,Text!$A$1:$C$458,2,FALSE),VLOOKUP(AF$4,Text!$A$1:$C$458,3,FALSE)) -> Mawrth 2020 | AG7: =IF('iaith - language'!$K$1=2,VLOOKUP(AG$4,Text!$A$1:$C$458,2,FALSE),VLOOKUP(AG$4,Text!$A$1:$C$458,3,FALSE)) ->  | AH7: =IF('iaith - language'!$K$1=2,VLOOKUP(AH$4,Text!$A$1:$C$458,2,FALSE),VLOOKUP(AH$4,Text!$A$1:$C$458,3,FALSE)) ->  | AI7: 2019 | AJ7: 2019-20 | AK7: 2019-20 | AL7: 2019 | AM7: 2019 | AN7: 2019 | AO7: =IF('iaith - language'!$K$1=2,VLOOKUP(AO$4,Text!$A$1:$C$458,2,FALSE),VLOOKUP(AO$4,Text!$A$1:$C$458,3,FALSE)) -> Hydref 2019 | AP7: =IF('iaith - language'!$K$1=2,VLOOKUP(AP$4,Text!$A$1:$C$458,2,FALSE),VLOOKUP(AP$4,Text!$A$1:$C$458,3,FALSE)) -> Tachwedd 2019 | AQ7: =IF('iaith - language'!$K$1=2,VLOOKUP(AQ$4,Text!$A$1:$C$458,2,FALSE),VLOOKUP(AQ$4,Text!$A$1:$C$458,3,FALSE)) -> Rhagfyr 2019 | AR7: =IF('iaith - language'!$K$1=2,VLOOKUP(AR$4,Text!$A$1:$C$458,2,FALSE),VLOOKUP(AR$4,Text!$A$1:$C$458,3,FALSE)) -> Ionawr 2020 | AS7: =IF('iaith - language'!$K$1=2,VLOOKUP(AS$4,Text!$A$1:$C$458,2,FALSE),VLOOKUP(AS$4,Text!$A$1:$C$458,3,FALSE)) -> Chwefror 2020 | AT7: =IF('iaith - language'!$K$1=2,VLOOKUP(AT$4,Text!$A$1:$C$458,2,FALSE),VLOOKUP(AT$4,Text!$A$1:$C$458,3,FALSE)) -> Mawrth 2020 | AU7: =IF('iaith - language'!$K$1=2,VLOOKUP(AU$4,Text!$A$1:$C$458,2,FALSE),VLOOKUP(AU$4,Text!$A$1:$C$458,3,FALSE)) -> Ebrill 2020 | AV7: =IF('iaith - language'!$K$1=2,VLOOKUP(AV$4,Text!$A$1:$C$458,2,FALSE),VLOOKUP(AV$4,Text!$A$1:$C$458,3,FALSE)) -> Mai 2020 | AW7: =IF('iaith - language'!$K$1=2,VLOOKUP(AW$4,Text!$A$1:$C$458,2,FALSE),VLOOKUP(AW$4,Text!$A$1:$C$458,3,FALSE)) -> Mehefin 2020 | AX7: =IF('iaith - language'!$K$1=2,VLOOKUP(AX$4,Text!$A$1:$C$458,2,FALSE),VLOOKUP(AX$4,Text!$A$1:$C$458,3,FALSE)) -> Gorffennaf 2020 | AY7: =IF('iaith - language'!$K$1=2,VLOOKUP(AY$4,Text!$A$1:$C$458,2,FALSE),VLOOKUP(AY$4,Text!$A$1:$C$458,3,FALSE)) -> Awst 2020 | AZ7: =IF('iaith - language'!$K$1=2,VLOOKUP(AZ$4,Text!$A$1:$C$458,2,FALSE),VLOOKUP(AZ$4,Text!$A$1:$C$458,3,FALSE)) -> Mai 2019 | BA7: =IF('iaith - language'!$K$1=2,VLOOKUP(BA$4,Text!$A$1:$C$458,2,FALSE),VLOOKUP(BA$4,Text!$A$1:$C$458,3,FALSE)) -> Awst 2019 | BB7: =IF('iaith - language'!$K$1=2,VLOOKUP(BB$4,Text!$A$1:$C$458,2,FALSE),VLOOKUP(BB$4,Text!$A$1:$C$458,3,FALSE)) -> Tachwedd 2019 | BC7: =IF('iaith - language'!$K$1=2,VLOOKUP(BC$4,Text!$A$1:$C$458,2,FALSE),VLOOKUP(BC$4,Text!$A$1:$C$458,3,FALSE)) -> Chwefror 2020 | BD7: =IF('iaith - language'!$K$1=2,VLOOKUP(BD$4,Text!$A$1:$C$458,2,FALSE),VLOOKUP(BD$4,Text!$A$1:$C$458,3,FALSE)) -> Mai 2019 | BE7: =IF('iaith - language'!$K$1=2,VLOOKUP(BE$4,Text!$A$1:$C$458,2,FALSE),VLOOKUP(BE$4,Text!$A$1:$C$458,3,FALSE)) -> Awst 2019 | BF7: =IF('iaith - language'!$K$1=2,VLOOKUP(BF$4,Text!$A$1:$C$458,2,FALSE),VLOOKUP(BF$4,Text!$A$1:$C$458,3,FALSE)) -> Tachwedd 2019 | BG7: =IF('iaith - language'!$K$1=2,VLOOKUP(BG$4,Text!$A$1:$C$458,2,FALSE),VLOOKUP(BG$4,Text!$A$1:$C$458,3,FALSE)) -> Chwefror 2020 | BH7: =IF('iaith - language'!$K$1=2,VLOOKUP(BH$4,Text!$A$1:$C$458,2,FALSE),VLOOKUP(BH$4,Text!$A$1:$C$458,3,FALSE)) -> Mai 2019 | BI7: =IF('iaith - language'!$K$1=2,VLOOKUP(BI$4,Text!$A$1:$C$458,2,FALSE),VLOOKUP(BI$4,Text!$A$1:$C$458,3,FALSE)) -> Awst 2019 | BJ7: =IF('iaith - language'!$K$1=2,VLOOKUP(BJ$4,Text!$A$1:$C$458,2,FALSE),VLOOKUP(BJ$4,Text!$A$1:$C$458,3,FALSE)) -> Tachwedd 2019 | BK7: =IF('iaith - language'!$K$1=2,VLOOKUP(BK$4,Text!$A$1:$C$458,2,FALSE),VLOOKUP(BK$4,Text!$A$1:$C$458,3,FALSE)) -> Chwefror 2020 | BL7: =IF('iaith - language'!$K$1=2,VLOOKUP(BL$4,Text!$A$1:$C$458,2,FALSE),VLOOKUP(BL$4,Text!$A$1:$C$458,3,FALSE)) -> Mai 2019 | BM7: =IF('iaith - language'!$K$1=2,VLOOKUP(BM$4,Text!$A$1:$C$458,2,FALSE),VLOOKUP(BM$4,Text!$A$1:$C$458,3,FALSE)) -> Awst 2019 | BN7: =IF('iaith - language'!$K$1=2,VLOOKUP(BN$4,Text!$A$1:$C$458,2,FALSE),VLOOKUP(BN$4,Text!$A$1:$C$458,3,FALSE)) -> Tachwedd 2019 | BO7: =IF('iaith - language'!$K$1=2,VLOOKUP(BO$4,Text!$A$1:$C$458,2,FALSE),VLOOKUP(BO$4,Text!$A$1:$C$458,3,FALSE)) -> Chwefror 2020 | BP7: =IF('iaith - language'!$K$1=2,VLOOKUP(BP$4,Text!$A$1:$C$458,2,FALSE),VLOOKUP(BP$4,Text!$A$1:$C$458,3,FALSE)) -> Mai 2019 | BQ7: =IF('iaith - language'!$K$1=2,VLOOKUP(BQ$4,Text!$A$1:$C$458,2,FALSE),VLOOKUP(BQ$4,Text!$A$1:$C$458,3,FALSE)) -> Awst 2019 | BR7: =IF('iaith - language'!$K$1=2,VLOOKUP(BR$4,Text!$A$1:$C$458,2,FALSE),VLOOKUP(BR$4,Text!$A$1:$C$458,3,FALSE)) -> Tachwedd 2019 | BS7: =IF('iaith - language'!$K$1=2,VLOOKUP(BS$4,Text!$A$1:$C$458,2,FALSE),VLOOKUP(BS$4,Text!$A$1:$C$458,3,FALSE)) -> Chwefror 2020 | BT7: =IF('iaith - language'!$K$1=2,VLOOKUP(BT$4,Text!$A$1:$C$458,2,FALSE),VLOOKUP(BT$4,Text!$A$1:$C$458,3,FALSE)) -> Mai 2019 | BU7: =IF('iaith - language'!$K$1=2,VLOOKUP(BU$4,Text!$A$1:$C$458,2,FALSE),VLOOKUP(BU$4,Text!$A$1:$C$458,3,FALSE)) -> Awst 2019 | BV7: =IF('iaith - language'!$K$1=2,VLOOKUP(BV$4,Text!$A$1:$C$458,2,FALSE),VLOOKUP(BV$4,Text!$A$1:$C$458,3,FALSE)) -> Tachwedd 2019 | BW7: =IF('iaith - language'!$K$1=2,VLOOKUP(BW$4,Text!$A$1:$C$458,2,FALSE),VLOOKUP(BW$4,Text!$A$1:$C$458,3,FALSE)) -> Chwefror 2020 | BX7: =IF('iaith - language'!$K$1=2,VLOOKUP(BX$4,Text!$A$1:$C$458,2,FALSE),VLOOKUP(BX$4,Text!$A$1:$C$458,3,FALSE)) -> Mai 2019 | BY7: =IF('iaith - language'!$K$1=2,VLOOKUP(BY$4,Text!$A$1:$C$458,2,FALSE),VLOOKUP(BY$4,Text!$A$1:$C$458,3,FALSE)) -> Awst 2019 | BZ7: =IF('iaith - language'!$K$1=2,VLOOKUP(BZ$4,Text!$A$1:$C$458,2,FALSE),VLOOKUP(BZ$4,Text!$A$1:$C$458,3,FALSE)) -> Tachwedd 2019 | CA7: =IF('iaith - language'!$K$1=2,VLOOKUP(CA$4,Text!$A$1:$C$458,2,FALSE),VLOOKUP(CA$4,Text!$A$1:$C$458,3,FALSE)) -> Chwefror 2020 | CB7: =IF('iaith - language'!$K$1=2,VLOOKUP(CB$4,Text!$A$1:$C$458,2,FALSE),VLOOKUP(CB$4,Text!$A$1:$C$458,3,FALSE)) -> Mai 2019 | CC7: =IF('iaith - language'!$K$1=2,VLOOKUP(CC$4,Text!$A$1:$C$458,2,FALSE),VLOOKUP(CC$4,Text!$A$1:$C$458,3,FALSE)) -> Awst 2019 | CD7: =IF('iaith - language'!$K$1=2,VLOOKUP(CD$4,Text!$A$1:$C$458,2,FALSE),VLOOKUP(CD$4,Text!$A$1:$C$458,3,FALSE)) -> Tachwedd 2019 | CE7: =IF('iaith - language'!$K$1=2,VLOOKUP(CE$4,Text!$A$1:$C$458,2,FALSE),VLOOKUP(CE$4,Text!$A$1:$C$458,3,FALSE)) -> Chwefror 2020 | CF7: =IF('iaith - language'!$K$1=2,VLOOKUP(CF$4,Text!$A$1:$C$458,2,FALSE),VLOOKUP(CF$4,Text!$A$1:$C$458,3,FALSE)) -> Mai 2019 | CG7: =IF('iaith - language'!$K$1=2,VLOOKUP(CG$4,Text!$A$1:$C$458,2,FALSE),VLOOKUP(CG$4,Text!$A$1:$C$458,3,FALSE)) -> Awst 2019 | CH7: =IF('iaith - language'!$K$1=2,VLOOKUP(CH$4,Text!$A$1:$C$458,2,FALSE),VLOOKUP(CH$4,Text!$A$1:$C$458,3,FALSE)) -> Tachwedd 2019 | CI7: =IF('iaith - language'!$K$1=2,VLOOKUP(CI$4,Text!$A$1:$C$458,2,FALSE),VLOOKUP(CI$4,Text!$A$1:$C$458,3,FALSE)) -> Chwefror 2020 | CJ7: =IF('iaith - language'!$K$1=2,VLOOKUP(CJ$4,Text!$A$1:$C$458,2,FALSE),VLOOKUP(CJ$4,Text!$A$1:$C$458,3,FALSE)) -> Mai 2019 | CK7: =IF('iaith - language'!$K$1=2,VLOOKUP(CK$4,Text!$A$1:$C$458,2,FALSE),VLOOKUP(CK$4,Text!$A$1:$C$458,3,FALSE)) -> Awst 2019 | CL7: =IF('iaith - language'!$K$1=2,VLOOKUP(CL$4,Text!$A$1:$C$458,2,FALSE),VLOOKUP(CL$4,Text!$A$1:$C$458,3,FALSE)) -> Tachwedd 2019 | CM7: =IF('iaith - language'!$K$1=2,VLOOKUP(CM$4,Text!$A$1:$C$458,2,FALSE),VLOOKUP(CM$4,Text!$A$1:$C$458,3,FALSE)) -> Chwefror 2020 | CN7: =IF('iaith - language'!$K$1=2,VLOOKUP(CN$4,Text!$A$1:$C$458,2,FALSE),VLOOKUP(CN$4,Text!$A$1:$C$458,3,FALSE)) -> Mai 2019 | CO7: =IF('iaith - language'!$K$1=2,VLOOKUP(CO$4,Text!$A$1:$C$458,2,FALSE),VLOOKUP(CO$4,Text!$A$1:$C$458,3,FALSE)) -> Awst 2019 | CP7: =IF('iaith - language'!$K$1=2,VLOOKUP(CP$4,Text!$A$1:$C$458,2,FALSE),VLOOKUP(CP$4,Text!$A$1:$C$458,3,FALSE)) -> Tachwedd 2019 | CQ7: =IF('iaith - language'!$K$1=2,VLOOKUP(CQ$4,Text!$A$1:$C$458,2,FALSE),VLOOKUP(CQ$4,Text!$A$1:$C$458,3,FALSE)) -> Chwefror 2020 | CR7: =IF('iaith - language'!$K$1=2,VLOOKUP(CR$4,Text!$A$1:$C$458,2,FALSE),VLOOKUP(CR$4,Text!$A$1:$C$458,3,FALSE)) -> Mai 2019 | CS7: =IF('iaith - language'!$K$1=2,VLOOKUP(CS$4,Text!$A$1:$C$458,2,FALSE),VLOOKUP(CS$4,Text!$A$1:$C$458,3,FALSE)) -> Awst 2019 | CT7: =IF('iaith - language'!$K$1=2,VLOOKUP(CT$4,Text!$A$1:$C$458,2,FALSE),VLOOKUP(CT$4,Text!$A$1:$C$458,3,FALSE)) -> Tachwedd 2019 | CU7: =IF('iaith - language'!$K$1=2,VLOOKUP(CU$4,Text!$A$1:$C$458,2,FALSE),VLOOKUP(CU$4,Text!$A$1:$C$458,3,FALSE)) -> Chwefror 2020 | CV7: =IF('iaith - language'!$K$1=2,VLOOKUP(CV$4,Text!$A$1:$C$458,2,FALSE),VLOOKUP(CV$4,Text!$A$1:$C$458,3,FALSE)) -> Mai 2019 | CW7: =IF('iaith - language'!$K$1=2,VLOOKUP(CW$4,Text!$A$1:$C$458,2,FALSE),VLOOKUP(CW$4,Text!$A$1:$C$458,3,FALSE)) -> Awst 2019 | CX7: =IF('iaith - language'!$K$1=2,VLOOKUP(CX$4,Text!$A$1:$C$458,2,FALSE),VLOOKUP(CX$4,Text!$A$1:$C$458,3,FALSE)) -> Tachwedd 2019 | CY7: =IF('iaith - language'!$K$1=2,VLOOKUP(CY$4,Text!$A$1:$C$458,2,FALSE),VLOOKUP(CY$4,Text!$A$1:$C$458,3,FALSE)) -> Chwefror 2020 | CZ7: =IF('iaith - language'!$K$1=2,VLOOKUP(CZ$4,Text!$A$1:$C$458,2,FALSE),VLOOKUP(CZ$4,Text!$A$1:$C$458,3,FALSE)) -> Mawrth 2020 | DA7: 2019
A9: 117 | B9: 2 | C9: =IF('iaith - language'!$K$1=2,VLOOKUP(A9,Text!$A$3:$C$353,2,FALSE),VLOOKUP(A9,Text!$A$3:$C$353,3,FALSE)) -> Sir Ynys Môn | D9: 232 | E9: 229 | F9: 166 | G9: 228 | H9: 30,106 | I9: 71,521 | J9: 69,879 | K9: 709 | L9: 6,910 | M9: 10,722 | N9: 3,931 | O9: 6,962 | P9: 57,767 | Q9: 2,047 | R9: 13,499 | S9: 37,833 | T9: 56,380 | U9: 46,087 | V9: 23,793 | W9: 2,279 | X9: 40,238 | Y9: 70,043 | Z9: 56,637 | AA9: 18,358 | AB9: 511,637 | AC9: 3,673 | AD9: 7.9 | AE9: 940 | AF9: 3,060 | AG9: 1,030 | AH9: 9,925 | AI9: 803 | AJ9: 5,739 | AK9: 5,777,761 | AL9: 3,108 | AM9: 4,921 | AN9: 707 | AO9: 1,120 | AP9: 1,195 | AQ9: 1,265 | AR9: 1,255 | AS9: 1,340 | AT9: 1,335 | AU9: 2,310 | AV9: 2,615 | AW9: 2,535 | AX9: 2,630 | AY9: 2,635 | AZ9: 541 | BA9: 488 | BB9: 442 | BC9: 406 | BD9: 407 | BE9: 339 | BF9: 308 | BG9: 325 | BH9: 0 | BI9: 0 | BJ9: 0 | BK9: 0 | BL9: 779 | BM9: 1,034 | BN9: 1,334 | BO9: 1,630 | BP9: 545 | BQ9: 496 | BR9: 448 | BS9: 413 | BT9: 412 | BU9: 350 | BV9: 326 | BW9: 334 | BX9: 2,501 | BY9: 2,466 | BZ9: 2,432 | CA9: 2,405 | CB9: 784 | CC9: 1,052 | CD9: 1,362 | CE9: 1,663 | CF9: 0 | CG9: 0 | CH9: 0 | CI9: 0 | CJ9: 124 | CK9: 119 | CL9: 116 | CM9: 113 | CN9: 2,559 | CO9: 2,585 | CP9: 2,621 | CQ9: 2,629 | CR9: 2,501 | CS9: 2,466 | CT9: 2,432 | CU9: 2,405 | CV9: 3,458 | CW9: 3,312 | CX9: 3,206 | CY9: 3,152 | CZ9: 35,260 | DA9: 217,272,310
A10: 118 | B10: 3 | C10: =IF('iaith - language'!$K$1=2,VLOOKUP(A10,Text!$A$3:$C$353,2,FALSE),VLOOKUP(A10,Text!$A$3:$C$353,3,FALSE)) -> Gwynedd | D10: 240 | E10: 257 | F10: 243 | G10: 245 | H10: 53,873 | I10: 254,829 | J10: 124,936 | K10: 1,171 | L10: 11,755 | M10: 18,775 | N10: 7,146 | O10: 15,553 | P10: 103,863 | Q10: 3,906 | R10: 23,593 | S10: 72,791 | T10: 101,343 | U10: 88,241 | V10: 36,695 | W10: 4,038 | X10: 76,832 | Y10: 124,560 | Z10: 101,246 | AA10: 28,380 | AB10: 621,659 | AC10: 118,626 | AD10: 20.1 | AE10: 1,817 | AF10: 7,680 | AG10: 2,520 | AH10: 17,611 | AI10: 1,405 | AJ10: 8,978 | AK10: 9,516,566 | AL10: 2 | AM10: 18,538 | AN10: 3,836 | AO10: 1,590 | AP10: 1,745 | AQ10: 1,830 | AR10: 1,915 | AS10: 2,015 | AT10: 1,985 | AU10: 3,810 | AV10: 4,305 | AW10: 4,215 | AX10: 4,365 | AY10: 4,345 | AZ10: 726 | BA10: 647 | BB10: 585 | BC10: 552 | BD10: 492 | BE10: 417 | BF10: 364 | BG10: 352 | BH10: 0 | BI10: 0 | BJ10: 0 | BK10: 0 | BL10: 1,160 | BM10: 1,649 | BN10: 2,066 | BO10: 2,635 | BP10: 730 | BQ10: 649 | BR10: 587 | BS10: 551 | BT10: 491 | BU10: 425 | BV10: 370 | BW10: 361 | BX10: 4,085 | BY10: 4,038 | BZ10: 4,014 | CA10: 3,962 | CB10: 1,192 | CC10: 1,680 | CD10: 2,108 | CE10: 2,684 | CF10: 0 | CG10: 0 | CH10: 0 | CI10: 0 | CJ10: 207 | CK10: 197 | CL10: 186 | CM10: 185 | CN10: 3,438 | CO10: 3,457 | CP10: 3,490 | CQ10: 3,519 | CR10: 4,085 | CS10: 4,038 | CT10: 4,014 | CU10: 3,962 | CV10: 5,306 | CW10: 5,112 | CX10: 4,971 | CY10: 4,874 | CZ10: 61,600 | DA10: 452,803,255
A11: 119 | B11: 4 | C11: =IF('iaith - language'!$K$1=2,VLOOKUP(A11,Text!$A$3:$C$353,2,FALSE),VLOOKUP(A11,Text!$A$3:$C$353,3,FALSE)) -> Conwy | D11: 319 | E11: 221 | F11: 225 | G11: 211 | H11: 51,664 | I11: 113,018 | J11: 118,001 | K11: 1,083 | L11: 10,925 | M11: 17,323 | N11: 6,473 | O11: 11,611 | P11: 98,783 | Q11: 3,596 | R11: 21,720 | S11: 62,992 | T11: 96,280 | U11: 75,869 | V11: 42,131 | W11: 5,144 | X11: 67,107 | Y11: 117,203 | Z11: 95,925 | AA11: 32,732 | AB11: 1,008,372 | AC11: 38,951 | AD11: 23.6 | AE11: 919 | AF11: 5,180 | AG11: 2,210 | AH11: 16,711 | AI11: 1,566 | AJ11: 10,103 | AK11: 10,181,187 | AL11: 74 | AM11: 10,628 | AN11: 7,220 | AO11: 2,050 | AP11: 2,160 | AQ11: 2,220 | AR11: 2,285 | AS11: 2,350 | AT11: 2,335 | AU11: 4,225 | AV11: 4,655 | AW11: 4,620 | AX11: 4,740 | AY11: 4,705 | AZ11: 793 | BA11: 714 | BB11: 667 | BC11: 631 | BD11: 470 | BE11: 384 | BF11: 361 | BG11: 372 | BH11: 0 | BI11: 0 | BJ11: 0 | BK11: 0 | BL11: 2,291 | BM11: 2,630 | BN11: 3,020 | BO11: 3,462 | BP11: 796 | BQ11: 718 | BR11: 674 | BS11: 631 | BT11: 477 | BU11: 397 | BV11: 369 | BW11: 384 | BX11: 4,293 | BY11: 4,235 | BZ11: 4,183 | CA11: 4,139 | CB11: 2,322 | CC11: 2,667 | CD11: 3,070 | CE11: 3,527 | CF11: 0 | CG11: 0 | CH11: 0 | CI11: 0 | CJ11: 240 | CK11: 229 | CL11: 222 | CM11: 210 | CN11: 4,604 | CO11: 4,639 | CP11: 4,740 | CQ11: 4,775 | CR11: 4,289 | CS11: 4,235 | CT11: 4,182 | CU11: 4,139 | CV11: 5,566 | CW11: 5,350 | CX11: 5,226 | CY11: 5,154 | CZ11: 57,530 | DA11: 227,310,450
A12: 120 | B12: 5 | C12: =IF('iaith - language'!$K$1=2,VLOOKUP(A12,Text!$A$3:$C$353,2,FALSE),VLOOKUP(A12,Text!$A$3:$C$353,3,FALSE)) -> Sir Ddinbych | D12: 227 | E12: 185 | F12: 197 | G12: 195 | H12: 37,893 | I12: 83,872 | J12: 95,836 | K12: 968 | L12: 9,890 | M12: 15,683 | N12: 5,875 | O12: 10,512 | P12: 78,411 | Q12: 3,154 | R12: 19,582 | S12: 52,515 | T12: 76,254 | U12: 65,354 | V12: 30,481 | W12: 2,717 | X12: 55,927 | Y12: 95,696 | Z12: 76,246 | AA12: 23,237 | AB12: 1,294,656 | AC12: 0 | AD12: 9.4 | AE12: 759 | AF12: 3,960 | AG12: 1,660 | AH12: 11,572 | AI12: 1,234 | AJ12: 9,378 | AK12: 9,938,698 | AL12: 0 | AM12: 7,262 | AN12: 4,401 | AO12: 1,855 | AP12: 1,900 | AQ12: 1,935 | AR12: 1,995 | AS12: 2,020 | AT12: 1,970 | AU12: 3,395 | AV12: 3,765 | AW12: 3,610 | AX12: 3,780 | AY12: 3,830 | AZ12: 856 | BA12: 781 | BB12: 715 | BC12: 674 | BD12: 283 | BE12: 233 | BF12: 211 | BG12: 202 | BH12: 0 | BI12: 0 | BJ12: 0 | BK12: 0 | BL12: 2,331 | BM12: 2,751 | BN12: 3,043 | BO12: 3,438 | BP12: 858 | BQ12: 788 | BR12: 714 | BS12: 682 | BT12: 285 | BU12: 236 | BV12: 211 | BW12: 216 | BX12: 3,741 | BY12: 3,710 | BZ12: 3,674 | CA12: 3,626 | CB12: 2,356 | CC12: 2,780 | CD12: 3,084 | CE12: 3,503 | CF12: 0 | CG12: 0 | CH12: 0 | CI12: 0 | CJ12: 257 | CK12: 263 | CL12: 247 | CM12: 237 | CN12: 4,599 | CO12: 4,652 | CP12: 4,732 | CQ12: 4,747 | CR12: 3,741 | CS12: 3,710 | CT12: 3,674 | CU12: 3,626 | CV12: 4,884 | CW12: 4,734 | CX12: 4,599 | CY12: 4,524 | CZ12: 45,030 | DA12: 328,966,615
A13: 121 | B13: 6 | C13: =IF('iaith - language'!$K$1=2,VLOOKUP(A13,Text!$A$3:$C$353,2,FALSE),VLOOKUP(A13,Text!$A$3:$C$353,3,FALSE)) -> Sir y Fflint | D13: 281 | E13: 269 | F13: 233 | G13: 274 | H13: 58,797 | I13: 43,983 | J13: 156,862 | K13: 1,655 | L13: 16,396 | M13: 26,065 | N13: 9,857 | O13: 17,650 | P13: 127,775 | Q13: 5,208 | R13: 32,698 | S13: 90,437 | T13: 124,164 | U13: 113,138 | V13: 43,725 | W13: 3,841 | X13: 95,831 | Y13: 156,100 | Z13: 123,785 | AA13: 33,068 | AB13: 376,520 | AC13: 0 | AD13: 2.3 | AE13: 518 | AF13: 5,070 | AG13: 1,690 | AH13: 20,375 | AI13: 1,546 | AJ13: 10,476 | AK13: 10,706,747 | AL13: 7 | AM13: 3,893 | AN13: 2,930 | AO13: 2,600 | AP13: 2,570 | AQ13: 2,580 | AR13: 2,570 | AS13: 2,665 | AT13: 2,620 | AU13: 4,585 | AV13: 5,245 | AW13: 5,065 | AX13: 5,190 | AY13: 5,310 | AZ13: 721 | BA13: 663 | BB13: 603 | BC13: 560 | BD13: 288 | BE13: 267 | BF13: 246 | BG13: 263 | BH13: 0 | BI13: 0 | BJ13: 0 | BK13: 0 | BL13: 3,821 | BM13: 4,133 | BN13: 4,385 | BO13: 4,767 | BP13: 724 | BQ13: 665 | BR13: 605 | BS13: 561 | BT13: 291 | BU13: 271 | BV13: 246 | BW13: 267 | BX13: 4,134 | BY13: 4,079 | BZ13: 4,052 | CA13: 3,957 | CB13: 3,871 | CC13: 4,197 | CD13: 4,446 | CE13: 4,852 | CF13: 0 | CG13: 0 | CH13: 0 | CI13: 0 | CJ13: 994 | CK13: 819 | CL13: 546 | CM13: 252 | CN13: 4,702 | CO13: 4,969 | CP13: 5,361 | CQ13: 5,590 | CR13: 4,134 | CS13: 4,079 | CT13: 4,052 | CU13: 3,957 | CV13: 5,149 | CW13: 5,015 | CX13: 4,903 | CY13: 4,785 | CZ13: 69,620 | DA13: 506,912,069
A14: 122 | B14: 7 | C14: =IF('iaith - language'!$K$1=2,VLOOKUP(A14,Text!$A$3:$C$353,2,FALSE),VLOOKUP(A14,Text!$A$3:$C$353,3,FALSE)) -> Wrecsam | D14: 204 | E14: 228 | F14: 187 | G14: 183 | H14: 47,473 | I14: 50,377 | J14: 136,642 | K14: 1,531 | L14: 14,858 | M14: 23,289 | N14: 8,596 | O14: 15,608 | P14: 110,483 | Q14: 4,541 | R14: 29,272 | S14: 79,448 | T14: 107,370 | U14: 100,414 | V14: 36,228 | W14: 3,410 | X14: 84,152 | Y14: 135,957 | Z14: 106,892 | AA14: 27,438 | AB14: 1,166,703 | AC14: 0 | AD14: 0.0 | AE14: 477 | AF14: 4,020 | AG14: 1,450 | AH14: 13,162 | AI14: 1,382 | AJ14: 11,104 | AK14: 10,097,276 | AL14: 0 | AM14: 1,128 | AN14: 1,544 | AO14: 2,585 | AP14: 2,705 | AQ14: 2,665 | AR14: 2,650 | AS14: 2,630 | AT14: 2,615 | AU14: 4,520 | AV14: 5,140 | AW14: 4,920 | AX14: 5,055 | AY14: 5,195 | AZ14: 981 | BA14: 911 | BB14: 822 | BC14: 771 | BD14: 242 | BE14: 219 | BF14: 195 | BG14: 180 | BH14: 0 | BI14: 0 | BJ14: 0 | BK14: 0 | BL14: 3,776 | BM14: 4,117 | BN14: 4,487 | BO14: 4,814 | BP14: 981 | BQ14: 915 | BR14: 825 | BS14: 781 | BT14: 240 | BU14: 223 | BV14: 200 | BW14: 186 | BX14: 3,992 | BY14: 3,949 | BZ14: 3,893 | CA14: 3,848 | CB14: 3,815 | CC14: 4,172 | CD14: 4,555 | CE14: 4,895 | CF14: 0 | CG14: 0 | CH14: 0 | CI14: 0 | CJ14: 276 | CK14: 271 | CL14: 263 | CM14: 248 | CN14: 5,325 | CO14: 5,403 | CP14: 5,502 | CQ14: 5,613 | CR14: 3,992 | CS14: 3,949 | CT14: 3,893 | CU14: 3,848 | CV14: 5,213 | CW14: 5,087 | CX14: 4,918 | CY14: 4,815 | CZ14: 60,750 | DA14: 262,054,458
A15: 123 | B15: 8 | C15: =IF('iaith - language'!$K$1=2,VLOOKUP(A15,Text!$A$3:$C$353,2,FALSE),VLOOKUP(A15,Text!$A$3:$C$353,3,FALSE)) -> Powys | D15: 353 | E15: 354 | F15: 371 | G15: 373 | H15: 56,298 | I15: 519,531 | J15: 132,475 | K15: 1,231 | L15: 11,794 | M15: 19,107 | N15: 7,251 | O15: 13,146 | P15: 111,262 | Q15: 4,168 | R15: 24,080 | S15: 71,302 | T15: 108,395 | U15: 84,902 | V15: 47,573 | W15: 4,940 | X15: 76,150 | Y15: 132,435 | Z15: 108,508 | AA15: 36,376 | AB15: 821,413 | AC15: 44,427 | AD15: 0.0 | AE15: 3,944 | AF15: 6,420 | AG15: 2,520 | AH15: 15,971 | AI15: 1,603 | AJ15: 9,404 | AK15: 9,777,441 | AL15: 0 | AM15: 8,007 | AN15: 3,011 | AO15: 1,285 | AP15: 1,335 | AQ15: 1,330 | AR15: 1,365 | AS15: 1,420 | AT15: 1,425 | AU15: 2,880 | AV15: 3,635 | AW15: 3,460 | AX15: 3,585 | AY15: 3,710 | AZ15: 570 | BA15: 524 | BB15: 469 | BC15: 431 | BD15: 217 | BE15: 207 | BF15: 188 | BG15: 196 | BH15: 0 | BI15: 0 | BJ15: 0 | BK15: 0 | BL15: 1,263 | BM15: 1,576 | BN15: 1,921 | BO15: 2,249 | BP15: 577 | BQ15: 528 | BR15: 470 | BS15: 431 | BT15: 223 | BU15: 214 | BV15: 190 | BW15: 203 | BX15: 3,890 | BY15: 3,840 | BZ15: 3,792 | CA15: 3,735 | CB15: 1,286 | CC15: 1,597 | CD15: 1,955 | CE15: 2,284 | CF15: 0 | CG15: 0 | CH15: 0 | CI15: 0 | CJ15: 574 | CK15: 539 | CL15: 412 | CM15: 233 | CN15: 3,874 | CO15: 3,966 | CP15: 4,210 | CQ15: 4,338 | CR15: 3,890 | CS15: 3,840 | CT15: 3,792 | CU15: 3,735 | CV15: 4,690 | CW15: 4,582 | CX15: 4,452 | CY15: 4,369 | CZ15: 65,030 | DA15: 265,637,687
A16: 124 | B16: 9 | C16: =IF('iaith - language'!$K$1=2,VLOOKUP(A16,Text!$A$3:$C$353,2,FALSE),VLOOKUP(A16,Text!$A$3:$C$353,3,FALSE)) -> Sir Ceredigion | D16: 127 | E16: 218 | F16: 249 | G16: 265 | H16: 32,309 | I16: 178,838 | J16: 71,491 | K16: 609 | L16: 6,255 | M16: 9,841 | N16: 3,645 | O16: 9,733 | P16: 60,623 | Q16: 2,338 | R16: 12,312 | S16: 40,381 | T16: 59,179 | U16: 47,550 | V16: 23,941 | W16: 2,617 | X16: 42,848 | Y16: 72,695 | Z16: 60,456 | AA16: 18,434 | AB16: 1,239,561 | AC16: 11,325 | AD16: 12.9 | AE16: 1,983 | AF16: 3,680 | AG16: 1,390 | AH16: 6,781 | AI16: 790 | AJ16: 5,376 | AK16: 5,707,209 | AL16: 0 | AM16: 6,596 | AN16: 1,576 | AO16: 770 | AP16: 800 | AQ16: 815 | AR16: 820 | AS16: 845 | AT16: 830 | AU16: 1,730 | AV16: 2,010 | AW16: 1,890 | AX16: 2,030 | AY16: 2,045 | AZ16: 352 | BA16: 299 | BB16: 259 | BC16: 250 | BD16: 176 | BE16: 139 | BF16: 123 | BG16: 115 | BH16: 0 | BI16: 0 | BJ16: 0 | BK16: 0 | BL16: 632 | BM16: 857 | BN16: 1,079 | BO16: 1,350 | BP16: 351 | BQ16: 302 | BR16: 266 | BS16: 250 | BT16: 182 | BU16: 149 | BV16: 129 | BW16: 124 | BX16: 2,140 | BY16: 2,123 | BZ16: 2,104 | CA16: 2,082 | CB16: 638 | CC16: 867 | CD16: 1,096 | CE16: 1,374 | CF16: 0 | CG16: 0 | CH16: 0 | CI16: 0 | CJ16: 327 | CK16: 308 | CL16: 222 | CM16: 82 | CN16: 2,336 | CO16: 2,364 | CP16: 2,508 | CQ16: 2,587 | CR16: 2,140 | CS16: 2,123 | CT16: 2,104 | CU16: 2,082 | CV16: 2,673 | CW16: 2,574 | CX16: 2,499 | CY16: 2,456 | CZ16: 35,590 | DA16: 154,183,531
A17: 125 | B17: 10 | C17: =IF('iaith - language'!$K$1=2,VLOOKUP(A17,Text!$A$3:$C$353,2,FALSE),VLOOKUP(A17,Text!$A$3:$C$353,3,FALSE)) -> Sir Benfro | D17: 244 | E17: 228 | F17: 202 | G17: 284 | H17: 54,757 | I17: 161,834 | J17: 125,989 | K17: 1,161 | L17: 12,100 | M17: 19,378 | N17: 7,370 | O17: 13,283 | P17: 104,670 | Q17: 4,007 | R17: 24,066 | S17: 68,249 | T17: 101,922 | U17: 83,074 | V17: 42,915 | W17: 4,565 | X17: 72,777 | Y17: 125,818 | Z17: 101,871 | AA17: 32,738 | AB17: 991,206 | AC17: 0 | AD17: 12.3 | AE17: 1,768 | AF17: 6,800 | AG17: 2,220 | AH17: 15,472 | AI17: 1,524 | AJ17: 10,297 | AK17: 9,122,193 | AL17: 2,595 | AM17: 13,549 | AN17: 2,052 | AO17: 1,920 | AP17: 2,015 | AQ17: 2,085 | AR17: 2,180 | AS17: 2,210 | AT17: 2,225 | AU17: 4,160 | AV17: 4,480 | AW17: 4,330 | AX17: 4,490 | AY17: 4,590 | AZ17: 919 | BA17: 834 | BB17: 765 | BC17: 715 | BD17: 537 | BE17: 444 | BF17: 408 | BG17: 385 | BH17: 0 | BI17: 0 | BJ17: 0 | BK17: 0 | BL17: 1,916 | BM17: 2,320 | BN17: 2,750 | BO17: 3,337 | BP17: 928 | BQ17: 836 | BR17: 774 | BS17: 719 | BT17: 541 | BU17: 450 | BV17: 420 | BW17: 395 | BX17: 4,142 | BY17: 4,077 | BZ17: 4,040 | CA17: 3,971 | CB17: 1,941 | CC17: 2,349 | CD17: 2,795 | CE17: 3,396 | CF17: 0 | CG17: 0 | CH17: 0 | CI17: 0 | CJ17: 304 | CK17: 298 | CL17: 205 | CM17: 106 | CN17: 4,893 | CO17: 4,982 | CP17: 5,158 | CQ17: 5,232 | CR17: 4,142 | CS17: 4,077 | CT17: 4,040 | CU17: 3,971 | CV17: 5,611 | CW17: 5,363 | CX17: 5,234 | CY17: 5,085 | CZ17: 61,790 | DA17: 272,411,317
A18: 126 | B18: 11 | C18: =IF('iaith - language'!$K$1=2,VLOOKUP(A18,Text!$A$3:$C$353,2,FALSE),VLOOKUP(A18,Text!$A$3:$C$353,3,FALSE)) -> Sir Gaerfyrddin | D18: 357 | E18: 450 | F18: 384 | G18: 366 | H18: 76,053 | I18: 237,110 | J18: 189,021 | K18: 1,934 | L18: 19,122 | M18: 30,196 | N18: 11,244 | O18: 20,666 | P18: 155,372 | Q18: 6,187 | R18: 37,840 | S18: 105,625 | T18: 151,181 | U18: 129,957 | V18: 59,065 | W18: 5,478 | X18: 112,366 | Y18: 188,771 | Z18: 151,377 | AA18: 44,843 | AB18: 1,807,775 | AC18: 0 | AD18: 9.1 | AE18: 3,116 | AF18: 6,700 | AG18: 2,690 | AH18: 20,554 | AI18: 2,210 | AJ18: 15,787 | AK18: 15,592,867 | AL18: 0 | AM18: 4,181 | AN18: 2,275 | AO18: 2,950 | AP18: 3,035 | AQ18: 3,020 | AR18: 3,025 | AS18: 3,025 | AT18: 3,045 | AU18: 5,480 | AV18: 6,135 | AW18: 5,940 | AX18: 6,155 | AY18: 6,315 | AZ18: 1,376 | BA18: 1,255 | BB18: 1,136 | BC18: 1,060 | BD18: 1,041 | BE18: 876 | BF18: 768 | BG18: 657 | BH18: 0 | BI18: 0 | BJ18: 0 | BK18: 0 | BL18: 2,068 | BM18: 3,048 | BN18: 3,799 | BO18: 4,378 | BP18: 1,383 | BQ18: 1,265 | BR18: 1,143 | BS18: 1,066 | BT18: 1,042 | BU18: 892 | BV18: 783 | BW18: 673 | BX18: 6,142 | BY18: 6,094 | BZ18: 6,025 | CA18: 5,926 | CB18: 2,101 | CC18: 3,089 | CD18: 3,873 | CE18: 4,461 | CF18: 0 | CG18: 0 | CH18: 0 | CI18: 0 | CJ18: 557 | CK18: 534 | CL18: 373 | CM18: 185 | CN18: 8,288 | CO18: 8,510 | CP18: 8,867 | CQ18: 9,076 | CR18: 6,141 | CS18: 6,094 | CT18: 6,024 | CU18: 5,930 | CV18: 8,567 | CW18: 8,251 | CX18: 7,951 | CY18: 7,665 | CZ18: 88,380 | DA18: 487,664,913
A19: 127 | B19: 12 | C19: =IF('iaith - language'!$K$1=2,VLOOKUP(A19,Text!$A$3:$C$353,2,FALSE),VLOOKUP(A19,Text!$A$3:$C$353,3,FALSE)) -> Abertawe | D19: 536 | E19: 568 | F19: 503 | G19: 464 | H19: 90,771 | I19: 37,761 | J19: 248,586 | K19: 2,492 | L19: 24,053 | M19: 37,530 | N19: 13,569 | O19: 30,700 | P19: 206,182 | Q19: 8,235 | R19: 47,735 | S19: 151,690 | T19: 200,851 | U19: 184,927 | V19: 63,659 | W19: 6,715 | X19: 159,653 | Y19: 246,993 | Z19: 200,005 | AA19: 48,720 | AB19: 3,211,165 | AC19: 0 | AD19: 7.9 | AE19: 383 | AF19: 7,480 | AG19: 2,930 | AH19: 28,775 | AI19: 2,510 | AJ19: 22,416 | AK19: 21,463,457 | AL19: 139 | AM19: 5,247 | AN19: 3,125 | AO19: 5,230 | AP19: 5,215 | AQ19: 5,200 | AR19: 5,185 | AS19: 5,320 | AT19: 5,335 | AU19: 8,425 | AV19: 9,300 | AW19: 8,995 | AX19: 9,225 | AY19: 9,485 | AZ19: 1,752 | BA19: 1,607 | BB19: 1,497 | BC19: 1,410 | BD19: 732 | BE19: 690 | BF19: 633 | BG19: 664 | BH19: 0 | BI19: 0 | BJ19: 0 | BK19: 0 | BL19: 7,264 | BM19: 7,923 | BN19: 8,333 | BO19: 9,191 | BP19: 1,757 | BQ19: 1,620 | BR19: 1,508 | BS19: 1,418 | BT19: 740 | BU19: 702 | BV19: 647 | BW19: 676 | BX19: 7,650 | BY19: 7,543 | BZ19: 7,488 | CA19: 7,377 | CB19: 7,363 | CC19: 8,028 | CD19: 8,458 | CE19: 9,351 | CF19: 0 | CG19: 0 | CH19: 0 | CI19: 0 | CJ19: 704 | CK19: 673 | CL19: 480 | CM19: 228 | CN19: 11,120 | CO19: 11,362 | CP19: 11,802 | CQ19: 12,083 | CR19: 7,646 | CS19: 7,540 | CT19: 7,484 | CU19: 7,377 | CV19: 10,147 | CW19: 9,865 | CX19: 9,643 | CY19: 9,471 | CZ19: 113,700 | DA19: 623,268,564
A20: 128 | B20: 13 | C20: =IF('iaith - language'!$K$1=2,VLOOKUP(A20,Text!$A$3:$C$353,2,FALSE),VLOOKUP(A20,Text!$A$3:$C$353,3,FALSE)) -> Castell-nedd Port Talbot | D20: 216 | E20: 222 | F20: 168 | G20: 203 | H20: 53,376 | I20: 44,227 | J20: 144,003 | K20: 1,503 | L20: 14,405 | M20: 22,642 | N20: 8,220 | O20: 15,870 | P20: 118,544 | Q20: 4,654 | R20: 28,647 | S20: 85,020 | T20: 115,356 | U20: 103,934 | V20: 40,069 | W20: 3,505 | X20: 89,994 | Y20: 143,315 | Z20: 115,254 | AA20: 29,981 | AB20: 2,642,266 | AC20: 0 | AD20: 2.9 | AE20: 225 | AF20: 3,930 | AG20: 1,790 | AH20: 19,415 | AI20: 1,601 | AJ20: 17,011 | AK20: 17,801,746 | AL20: 165 | AM20: 858 | AN20: 1,146 | AO20: 2,945 | AP20: 3,015 | AQ20: 3,015 | AR20: 2,970 | AS20: 2,995 | AT20: 3,020 | AU20: 4,955 | AV20: 5,380 | AW20: 5,215 | AX20: 5,285 | AY20: 5,475 | AZ20: 1,390 | BA20: 1,305 | BB20: 1,200 | BC20: 1,144 | BD20: 336 | BE20: 315 | BF20: 275 | BG20: 265 | BH20: 0 | BI20: 0 | BJ20: 0 | BK20: 0 | BL20: 4,778 | BM20: 5,222 | BN20: 5,631 | BO20: 6,100 | BP20: 1,403 | BQ20: 1,312 | BR20: 1,205 | BS20: 1,151 | BT20: 344 | BU20: 321 | BV20: 281 | BW20: 276 | BX20: 5,153 | BY20: 5,092 | BZ20: 5,034 | CA20: 4,943 | CB20: 4,826 | CC20: 5,280 | CD20: 5,699 | CE20: 6,181 | CF20: 0 | CG20: 0 | CH20: 0 | CI20: 0 | CJ20: 561 | CK20: 537 | CL20: 381 | CM20: 183 | CN20: 8,472 | CO20: 8,594 | CP20: 8,890 | CQ20: 9,055 | CR20: 5,153 | CS20: 5,092 | CT20: 5,034 | CU20: 4,943 | CV20: 6,900 | CW20: 6,725 | CX20: 6,520 | CY20: 6,370 | CZ20: 66,650 | DA20: 398,746,500
A21: 129 | B21: 14 | C21: =IF('iaith - language'!$K$1=2,VLOOKUP(A21,Text!$A$3:$C$353,2,FALSE),VLOOKUP(A21,Text!$A$3:$C$353,3,FALSE)) -> Pen-y-bont ar Ogwr | D21: 220 | E21: 248 | F21: 206 | G21: 236 | H21: 55,857 | I21: 25,079 | J21: 147,165 | K21: 1,593 | L21: 15,327 | M21: 23,645 | N21: 8,369 | O21: 15,606 | P21: 120,409 | Q21: 4,756 | R21: 30,001 | S21: 86,707 | T21: 117,164 | U21: 107,288 | V21: 39,878 | W21: 3,452 | X21: 91,633 | Y21: 147,049 | Z21: 117,680 | AA21: 29,880 | AB21: 1,540,971 | AC21: 0 | AD21: 2.4 | AE21: 198 | AF21: 4,960 | AG21: 1,790 | AH21: 19,420 | AI21: 1,634 | AJ21: 13,155 | AK21: 14,582,208 | AL21: 0 | AM21: 2,612 | AN21: 3,061 | AO21: 2,575 | AP21: 2,580 | AQ21: 2,535 | AR21: 2,555 | AS21: 2,635 | AT21: 2,635 | AU21: 4,620 | AV21: 5,230 | AW21: 5,055 | AX21: 5,200 | AY21: 5,325 | AZ21: 1,387 | BA21: 1,282 | BB21: 1,154 | BC21: 1,072 | BD21: 276 | BE21: 239 | BF21: 216 | BG21: 220 | BH21: 0 | BI21: 0 | BJ21: 0 | BK21: 0 | BL21: 3,308 | BM21: 3,851 | BN21: 4,248 | BO21: 4,870 | BP21: 1,395 | BQ21: 1,289 | BR21: 1,163 | BS21: 1,083 | BT21: 274 | BU21: 242 | BV21: 227 | BW21: 218 | BX21: 4,136 | BY21: 4,101 | BZ21: 4,053 | CA21: 3,992 | CB21: 3,342 | CC21: 3,901 | CD21: 4,317 | CE21: 4,962 | CF21: 0 | CG21: 0 | CH21: 0 | CI21: 0 | CJ21: 1,640 | CK21: 1,243 | CL21: 694 | CM21: 438 | CN21: 5,997 | CO21: 6,526 | CP21: 7,055 | CQ21: 7,222 | CR21: 4,136 | CS21: 4,101 | CT21: 4,053 | CU21: 3,992 | CV21: 5,805 | CW21: 5,632 | CX21: 5,443 | CY21: 5,293 | CZ21: 65,030 | DA21: 478,016,019
A22: 130 | B22: 15 | C22: =IF('iaith - language'!$K$1=2,VLOOKUP(A22,Text!$A$3:$C$353,2,FALSE),VLOOKUP(A22,Text!$A$3:$C$353,3,FALSE)) -> Bro Morgannwg | D22: 362 | E22: 362 | F22: 376 | G22: 393 | H22: 52,759 | I22: 33,126 | J22: 134,749 | K22: 1,472 | L22: 14,351 | M22: 22,499 | N22: 8,275 | O22: 14,782 | P22: 109,591 | Q22: 4,517 | R22: 28,248 | S22: 77,294 | T22: 106,501 | U22: 96,657 | V22: 38,092 | W22: 3,486 | X22: 82,025 | Y22: 133,587 | Z22: 105,935 | AA22: 28,347 | AB22: 1,059,563 | AC22: 0 | AD22: 4.0 | AE22: 305 | AF22: 3,390 | AG22: 1,500 | AH22: 15,960 | AI22: 1,333 | AJ22: 9,549 | AK22: 10,097,254 | AL22: 65 | AM22: 2,143 | AN22: 3,669 | AO22: 2,040 | AP22: 2,065 | AQ22: 2,030 | AR22: 2,065 | AS22: 2,095 | AT22: 2,080 | AU22: 3,865 | AV22: 4,350 | AW22: 4,250 | AX22: 4,405 | AY22: 4,500 | AZ22: 965 | BA22: 867 | BB22: 783 | BC22: 733 | BD22: 414 | BE22: 358 | BF22: 288 | BG22: 248 | BH22: 0 | BI22: 0 | BJ22: 0 | BK22: 0 | BL22: 1,679 | BM22: 2,194 | BN22: 2,697 | BO22: 3,079 | BP22: 968 | BQ22: 867 | BR22: 790 | BS22: 746 | BT22: 420 | BU22: 365 | BV22: 293 | BW22: 249 | BX22: 3,250 | BY22: 3,209 | BZ22: 3,170 | CA22: 3,150 | CB22: 1,694 | CC22: 2,222 | CD22: 2,733 | CE22: 3,142 | CF22: 0 | CG22: 0 | CH22: 0 | CI22: 0 | CJ22: 1,092 | CK22: 872 | CL22: 489 | CM22: 279 | CN22: 3,790 | CO22: 4,173 | CP22: 4,500 | CQ22: 4,699 | CR22: 3,250 | CS22: 3,209 | CT22: 3,170 | CU22: 3,150 | CV22: 4,638 | CW22: 4,441 | CX22: 4,253 | CY22: 4,145 | CZ22: 59,830 | DA22: 356,623,056
A23: 131 | B23: 16 | C23: =IF('iaith - language'!$K$1=2,VLOOKUP(A23,Text!$A$3:$C$353,2,FALSE),VLOOKUP(A23,Text!$A$3:$C$353,3,FALSE)) -> Rhondda Cynon Taf | D23: 289 | E23: 273 | F23: 249 | G23: 291 | H23: 92,930 | I23: 42,415 | J23: 242,158 | K23: 2,640 | L23: 25,619 | M23: 39,981 | N23: 14,529 | O23: 28,037 | P23: 197,024 | Q23: 8,041 | R23: 50,506 | S23: 144,663 | T23: 191,653 | U23: 180,545 | V23: 61,613 | W23: 5,441 | X23: 152,606 | Y23: 241,264 | Z23: 191,160 | AA23: 46,628 | AB23: 3,553,848 | AC23: 0 | AD23: 0.0 | AE23: 272 | AF23: 6,660 | AG23: 3,060 | AH23: 29,724 | AI23: 2,611 | AJ23: 24,747 | AK23: 24,441,288 | AL23: 0 | AM23: 1,227 | AN23: 1,575 | AO23: 4,605 | AP23: 4,735 | AQ23: 4,750 | AR23: 4,760 | AS23: 4,845 | AT23: 4,785 | AU23: 8,760 | AV23: 10,010 | AW23: 9,555 | AX23: 9,665 | AY23: 9,995 | AZ23: 2,758 | BA23: 2,531 | BB23: 2,294 | BC23: 2,146 | BD23: 1,201 | BE23: 1,052 | BF23: 851 | BG23: 774 | BH23: 0 | BI23: 0 | BJ23: 0 | BK23: 0 | BL23: 4,067 | BM23: 5,383 | BN23: 6,338 | BO23: 7,458 | BP23: 2,780 | BQ23: 2,541 | BR23: 2,305 | BS23: 2,153 | BT23: 1,218 | BU23: 1,066 | BV23: 863 | BW23: 787 | BX23: 8,230 | BY23: 8,131 | BZ23: 8,018 | CA23: 7,885 | CB23: 4,105 | CC23: 5,447 | CD23: 6,419 | CE23: 7,552 | CF23: 0 | CG23: 0 | CH23: 0 | CI23: 0 | CJ23: 2,936 | CK23: 2,344 | CL23: 1,421 | CM23: 833 | CN23: 10,551 | CO23: 11,463 | CP23: 12,464 | CQ23: 12,866 | CR23: 8,230 | CS23: 8,131 | CT23: 8,018 | CU23: 7,885 | CV23: 12,228 | CW23: 11,738 | CX23: 11,186 | CY23: 10,825 | CZ23: 109,980 | DA23: 731,830,938
A24: 132 | B24: 17 | C24: =IF('iaith - language'!$K$1=2,VLOOKUP(A24,Text!$A$3:$C$353,2,FALSE),VLOOKUP(A24,Text!$A$3:$C$353,3,FALSE)) -> Merthyr Tudful | D24: 94 | E24: 94 | F24: 74 | G24: 80 | H24: 21,274 | I24: 11,196 | J24: 60,751 | K24: 728 | L24: 6,801 | M24: 10,393 | N24: 3,657 | O24: 6,733 | P24: 48,886 | Q24: 1,951 | R24: 13,153 | S24: 36,060 | T24: 47,598 | U24: 45,306 | V24: 15,446 | W24: 1,284 | X24: 38,004 | Y24: 60,326 | Z24: 47,469 | AA24: 11,386 | AB24: 607,333 | AC24: 0 | AD24: 0.0 | AE24: 49 | AF24: 1,760 | AG24: 780 | AH24: 7,475 | AI24: 640 | AJ24: 6,297 | AK24: 6,234,442 | AL24: 0 | AM24: 494 | AN24: 1,297 | AO24: 1,465 | AP24: 1,500 | AQ24: 1,510 | AR24: 1,495 | AS24: 1,455 | AT24: 1,425 | AU24: 2,480 | AV24: 2,745 | AW24: 2,630 | AX24: 2,705 | AY24: 2,740 | AZ24: 698 | BA24: 635 | BB24: 579 | BC24: 549 | BD24: 273 | BE24: 206 | BF24: 225 | BG24: 206 | BH24: 0 | BI24: 0 | BJ24: 0 | BK24: 0 | BL24: 1,641 | BM24: 1,977 | BN24: 2,222 | BO24: 2,477 | BP24: 702 | BQ24: 637 | BR24: 579 | BS24: 551 | BT24: 275 | BU24: 205 | BV24: 229 | BW24: 208 | BX24: 2,094 | BY24: 2,065 | BZ24: 2,044 | CA24: 2,003 | CB24: 1,657 | CC24: 1,997 | CD24: 2,252 | CE24: 2,513 | CF24: 0 | CG24: 0 | CH24: 0 | CI24: 0 | CJ24: 860 | CK24: 694 | CL24: 437 | CM24: 287 | CN24: 2,916 | CO24: 3,179 | CP24: 3,473 | CQ24: 3,597 | CR24: 2,094 | CS24: 2,065 | CT24: 2,044 | CU24: 2,003 | CV24: 3,071 | CW24: 2,907 | CX24: 2,852 | CY24: 2,762 | CZ24: 27,440 | DA24: 65,692,803
A25: 133 | B25: 18 | C25: =IF('iaith - language'!$K$1=2,VLOOKUP(A25,Text!$A$3:$C$353,2,FALSE),VLOOKUP(A25,Text!$A$3:$C$353,3,FALSE)) -> Caerffili | D25: 263 | E25: 204 | F25: 194 | G25: 232 | H25: 64,599 | I25: 27,739 | J25: 181,846 | K25: 1,971 | L25: 19,134 | M25: 29,996 | N25: 11,182 | O25: 20,714 | P25: 147,959 | Q25: 6,182 | R25: 38,036 | S25: 107,564 | T25: 143,810 | U25: 134,304 | V25: 47,542 | W25: 3,973 | X25: 113,802 | Y25: 181,075 | Z25: 143,125 | AA25: 35,549 | AB25: 862,496 | AC25: 0 | AD25: 0.0 | AE25: 243 | AF25: 4,710 | AG25: 2,050 | AH25: 27,653 | AI25: 1,803 | AJ25: 16,720 | AK25: 13,784,522 | AL25: 0 | AM25: 921 | AN25: 1,421 | AO25: 3,610 | AP25: 3,615 | AQ25: 3,550 | AR25: 3,495 | AS25: 3,640 | AT25: 3,630 | AU25: 6,240 | AV25: 7,000 | AW25: 6,790 | AX25: 7,005 | AY25: 7,115 | AZ25: 1,827 | BA25: 1,660 | BB25: 1,501 | BC25: 1,391 | BD25: 914 | BE25: 807 | BF25: 651 | BG25: 657 | BH25: 0 | BI25: 0 | BJ25: 0 | BK25: 0 | BL25: 3,614 | BM25: 4,472 | BN25: 5,103 | BO25: 5,840 | BP25: 1,836 | BQ25: 1,665 | BR25: 1,507 | BS25: 1,399 | BT25: 926 | BU25: 814 | BV25: 668 | BW25: 669 | BX25: 6,128 | BY25: 6,068 | BZ25: 5,985 | CA25: 5,899 | CB25: 3,659 | CC25: 4,521 | CD25: 5,172 | CE25: 5,931 | CF25: 0 | CG25: 0 | CH25: 0 | CI25: 0 | CJ25: 1,762 | CK25: 1,376 | CL25: 726 | CM25: 404 | CN25: 8,556 | CO25: 9,183 | CP25: 9,793 | CQ25: 10,010 | CR25: 6,128 | CS25: 6,068 | CT25: 5,985 | CU25: 5,899 | CV25: 8,890 | CW25: 8,547 | CX25: 8,160 | CY25: 7,967 | CZ25: 79,560 | DA25: 539,912,462
A26: 134 | B26: 19 | C26: =IF('iaith - language'!$K$1=2,VLOOKUP(A26,Text!$A$3:$C$353,2,FALSE),VLOOKUP(A26,Text!$A$3:$C$353,3,FALSE)) -> Blaenau Gwent | D26: 83 | E26: 94 | F26: 76 | G26: 74 | H26: 24,993 | I26: 10,873 | J26: 69,583 | K26: 744 | L26: 6,923 | M26: 10,827 | N26: 3,984 | O26: 7,383 | P26: 57,287 | Q26: 2,163 | R26: 13,767 | S26: 41,734 | T26: 55,816 | U26: 51,007 | V26: 18,576 | W26: 1,543 | X26: 43,995 | Y26: 69,862 | Z26: 56,285 | AA26: 14,192 | AB26: 241,023 | AC26: 0 | AD26: 0.0 | AE26: 71 | AF26: 2,110 | AG26: 1,080 | AH26: 12,936 | AI26: 796 | AJ26: 8,892 | AK26: 8,988,272 | AL26: 0 | AM26: 386 | AN26: 558 | AO26: 1,660 | AP26: 1,725 | AQ26: 1,705 | AR26: 1,665 | AS26: 1,740 | AT26: 1,750 | AU26: 2,785 | AV26: 3,135 | AW26: 3,115 | AX26: 3,140 | AY26: 3,120 | AZ26: 792 | BA26: 733 | BB26: 649 | BC26: 605 | BD26: 340 | BE26: 287 | BF26: 245 | BG26: 229 | BH26: 0 | BI26: 0 | BJ26: 0 | BK26: 0 | BL26: 1,896 | BM26: 2,285 | BN26: 2,599 | BO26: 2,997 | BP26: 791 | BQ26: 734 | BR26: 655 | BS26: 610 | BT26: 346 | BU26: 292 | BV26: 251 | BW26: 239 | BX26: 2,730 | BY26: 2,705 | BZ26: 2,676 | CA26: 2,613 | CB26: 1,918 | CC26: 2,320 | CD26: 2,638 | CE26: 3,039 | CF26: 0 | CG26: 0 | CH26: 0 | CI26: 0 | CJ26: 440 | CK26: 362 | CL26: 143 | CM26: 80 | CN26: 3,935 | CO26: 4,148 | CP26: 4,375 | CQ26: 4,437 | CR26: 2,730 | CS26: 2,705 | CT26: 2,676 | CU26: 2,613 | CV26: 3,867 | CW26: 3,731 | CX26: 3,582 | CY26: 3,462 | CZ26: 32,760 | DA26: 190,681,332
A27: 135 | B27: 20 | C27: =IF('iaith - language'!$K$1=2,VLOOKUP(A27,Text!$A$3:$C$353,2,FALSE),VLOOKUP(A27,Text!$A$3:$C$353,3,FALSE)) -> Torfaen | D27: 149 | E27: 134 | F27: 119 | G27: 115 | H27: 32,151 | I27: 12,624 | J27: 93,856 | K27: 1,020 | L27: 10,022 | M27: 15,612 | N27: 5,651 | O27: 10,289 | P27: 76,322 | Q27: 3,028 | R27: 19,613 | S27: 54,632 | T27: 74,243 | U27: 68,237 | V27: 25,618 | W27: 2,521 | X27: 57,779 | Y27: 93,961 | Z27: 74,510 | AA27: 19,336 | AB27: 1,093,186 | AC27: 0 | AD27: 0.0 | AE27: 119 | AF27: 2,780 | AG27: 1,200 | AH27: 13,622 | AI27: 1,016 | AJ27: 10,074 | AK27: 9,282,004 | AL27: 0 | AM27: 475 | AN27: 887 | AO27: 1,955 | AP27: 2,020 | AQ27: 1,995 | AR27: 1,955 | AS27: 2,025 | AT27: 2,035 | AU27: 3,360 | AV27: 3,755 | AW27: 3,600 | AX27: 3,720 | AY27: 3,830 | AZ27: 637 | BA27: 585 | BB27: 545 | BC27: 519 | BD27: 112 | BE27: 111 | BF27: 105 | BG27: 126 | BH27: 0 | BI27: 0 | BJ27: 0 | BK27: 0 | BL27: 3,417 | BM27: 3,685 | BN27: 3,934 | BO27: 4,191 | BP27: 637 | BQ27: 586 | BR27: 550 | BS27: 520 | BT27: 112 | BU27: 109 | BV27: 107 | BW27: 127 | BX27: 2,960 | BY27: 2,901 | BZ27: 2,869 | CA27: 2,830 | CB27: 3,462 | CC27: 3,725 | CD27: 3,983 | CE27: 4,251 | CF27: 0 | CG27: 0 | CH27: 0 | CI27: 0 | CJ27: 508 | CK27: 418 | CL27: 154 | CM27: 89 | CN27: 4,570 | CO27: 4,850 | CP27: 5,105 | CQ27: 5,203 | CR27: 2,960 | CS27: 2,901 | CT27: 2,869 | CU27: 2,830 | CV27: 3,709 | CW27: 3,596 | CX27: 3,526 | CY27: 3,477 | CZ27: 42,260 | DA27: 168,657,494
A28: 136 | B28: 21 | C28: =IF('iaith - language'!$K$1=2,VLOOKUP(A28,Text!$A$3:$C$353,2,FALSE),VLOOKUP(A28,Text!$A$3:$C$353,3,FALSE)) -> Sir Fynwy | D28: 310 | E28: 307 | F28: 276 | G28: 241 | H28: 36,781 | I28: 85,033 | J28: 95,134 | K28: 812 | L28: 8,670 | M28: 14,144 | N28: 5,467 | O28: 9,788 | P28: 79,669 | Q28: 3,123 | R28: 17,610 | S28: 52,893 | T28: 77,524 | U28: 63,691 | V28: 31,442 | W28: 3,412 | X28: 56,271 | Y28: 94,590 | Z28: 77,230 | AA28: 23,891 | AB28: 531,580 | AC28: 93,511 | AD28: 0.0 | AE28: 1,031 | AF28: 3,130 | AG28: 1,230 | AH28: 10,900 | AI28: 990 | AJ28: 5,780 | AK28: 6,410,233 | AL28: 0 | AM28: 1,338 | AN28: 1,725 | AO28: 950 | AP28: 950 | AQ28: 970 | AR28: 965 | AS28: 980 | AT28: 975 | AU28: 2,035 | AV28: 2,345 | AW28: 2,260 | AX28: 2,320 | AY28: 2,395 | AZ28: 357 | BA28: 324 | BB28: 289 | BC28: 261 | BD28: 194 | BE28: 183 | BF28: 161 | BG28: 173 | BH28: 0 | BI28: 0 | BJ28: 0 | BK28: 0 | BL28: 1,116 | BM28: 1,284 | BN28: 1,425 | BO28: 1,625 | BP28: 356 | BQ28: 325 | BR28: 289 | BS28: 261 | BT28: 211 | BU28: 196 | BV28: 176 | BW28: 187 | BX28: 2,066 | BY28: 2,055 | BZ28: 2,041 | CA28: 2,025 | CB28: 1,130 | CC28: 1,302 | CD28: 1,446 | CE28: 1,657 | CF28: 0 | CG28: 0 | CH28: 0 | CI28: 0 | CJ28: 364 | CK28: 269 | CL28: 117 | CM28: 87 | CN28: 2,614 | CO28: 2,757 | CP28: 2,876 | CQ28: 2,909 | CR28: 2,061 | CS28: 2,055 | CT28: 2,037 | CU28: 2,023 | CV28: 2,633 | CW28: 2,576 | CX28: 2,506 | CY28: 2,473 | CZ28: 42,630 | DA28: 149,785,899
A29: 137 | B29: 22 | C29: =IF('iaith - language'!$K$1=2,VLOOKUP(A29,Text!$A$3:$C$353,2,FALSE),VLOOKUP(A29,Text!$A$3:$C$353,3,FALSE)) -> Casnewydd | D29: 281 | E29: 241 | F29: 284 | G29: 276 | H29: 55,328 | I29: 19,043 | J29: 156,972 | K29: 2,013 | L29: 18,872 | M29: 28,571 | N29: 9,923 | O29: 18,164 | P29: 124,168 | Q29: 5,345 | R29: 36,432 | S29: 93,626 | T29: 120,540 | U29: 120,975 | V29: 35,997 | W29: 3,382 | X29: 98,725 | Y29: 154,676 | Z29: 119,331 | AA29: 26,670 | AB29: 692,436 | AC29: 754,568 | AD29: 0.0 | AE29: 150 | AF29: 4,530 | AG29: 1,860 | AH29: 19,832 | AI29: 1,440 | AJ29: 13,260 | AK29: 11,234,252 | AL29: 491 | AM29: 1,649 | AN29: 3,880 | AO29: 3,795 | AP29: 3,810 | AQ29: 3,790 | AR29: 3,785 | AS29: 3,870 | AT29: 3,990 | AU29: 6,145 | AV29: 7,190 | AW29: 7,140 | AX29: 7,290 | AY29: 7,480 | AZ29: 1,261 | BA29: 1,155 | BB29: 1,031 | BC29: 981 | BD29: 517 | BE29: 495 | BF29: 407 | BG29: 392 | BH29: 0 | BI29: 0 | BJ29: 0 | BK29: 0 | BL29: 5,022 | BM29: 5,603 | BN29: 5,979 | BO29: 6,583 | BP29: 1,264 | BQ29: 1,157 | BR29: 1,030 | BS29: 980 | BT29: 521 | BU29: 499 | BV29: 411 | BW29: 394 | BX29: 4,440 | BY29: 4,391 | BZ29: 4,353 | CA29: 4,286 | CB29: 5,079 | CC29: 5,676 | CD29: 6,054 | CE29: 6,675 | CF29: 0 | CG29: 0 | CH29: 0 | CI29: 0 | CJ29: 696 | CK29: 530 | CL29: 211 | CM29: 128 | CN29: 6,375 | CO29: 6,733 | CP29: 7,080 | CQ29: 7,181 | CR29: 4,440 | CS29: 4,391 | CT29: 4,353 | CU29: 4,286 | CV29: 6,225 | CW29: 6,047 | CX29: 5,794 | CY29: 5,660 | CZ29: 69,380 | DA29: 347,087,925
A30: 138 | B30: 23 | C30: =IF('iaith - language'!$K$1=2,VLOOKUP(A30,Text!$A$3:$C$353,2,FALSE),VLOOKUP(A30,Text!$A$3:$C$353,3,FALSE)) -> Caerdydd | D30: 698 | E30: 681 | F30: 622 | G30: 648 | H30: 127,623 | I30: 14,230 | J30: 367,190 | K30: 3,961 | L30: 39,117 | M30: 59,822 | N30: 21,299 | O30: 49,922 | P30: 299,071 | Q30: 11,876 | R30: 75,599 | S30: 238,577 | T30: 291,591 | U30: 296,005 | V30: 71,185 | W30: 7,281 | X30: 249,185 | Y30: 366,903 | Z30: 292,013 | AA30: 52,192 | AB30: 6,445,028 | AC30: 139,318 | AD30: 2.4 | AE30: 61 | AF30: 12,530 | AG30: 4,170 | AH30: 42,487 | AI30: 2,746 | AJ30: 30,499 | AK30: 31,124,206 | AL30: 211 | AM30: 4,192 | AN30: 19,296 | AO30: 7,845 | AP30: 8,030 | AQ30: 8,155 | AR30: 8,065 | AS30: 8,260 | AT30: 8,225 | AU30: 13,470 | AV30: 15,660 | AW30: 15,440 | AX30: 16,005 | AY30: 16,460 | AZ30: 2,848 | BA30: 2,651 | BB30: 2,405 | BC30: 2,256 | BD30: 1,208 | BE30: 1,069 | BF30: 907 | BG30: 855 | BH30: 7 | BI30: 7 | BJ30: 5 | BK30: 0 | BL30: 8,981 | BM30: 10,423 | BN30: 11,651 | BO30: 13,004 | BP30: 2,849 | BQ30: 2,657 | BR30: 2,410 | BS30: 2,264 | BT30: 1,219 | BU30: 1,075 | BV30: 922 | BW30: 880 | BX30: 8,766 | BY30: 8,635 | BZ30: 8,559 | CA30: 8,456 | CB30: 9,087 | CC30: 10,531 | CD30: 11,780 | CE30: 13,162 | CF30: 0 | CG30: 0 | CH30: 0 | CI30: 0 | CJ30: 3,009 | CK30: 2,340 | CL30: 1,427 | CM30: 834 | CN30: 11,412 | CO30: 12,456 | CP30: 13,458 | CQ30: 13,915 | CR30: 8,763 | CS30: 8,628 | CT30: 8,552 | CU30: 8,456 | CV30: 12,834 | CW30: 12,367 | CX30: 11,891 | CY30: 11,600 | CZ30: 159,610 | DA30: 947,109,742
A32: 139 | C32: =IF('iaith - language'!$K$1=2,VLOOKUP(A32,Text!$A$3:$C$353,2,FALSE),VLOOKUP(A32,Text!$A$3:$C$353,3,FALSE)) -> Cyfanswm AU | D32: =SUM(D9:D31) -> 6,085 | E32: =SUM(E9:E31) -> 6,067 | F32: =SUM(F9:F31) -> 5,604 | G32: =SUM(G9:G31) -> 5,877 | H32: =SUM(H9:H30) -> 1,207,664 | I32: =SUM(I9:I31) -> 2,078,260 | J32: =SUM(J9:J30) -> 3,163,124 | K32: 33,003 | L32: 323,299 | M32: 506,041 | N32: 185,513 | O32: 362,710 | P32: 2,594,122 | Q32: 103,024 | R32: 638,008 | S32: 1,852,033 | T32: 2,525,116 | U32: 2,287,462 | V32: 875,662 | W32: 85,023 | X32: 1,957,899 | Y32: =SUM(Y9:Y30) -> 3,152,879 | Z32: 2,522,940 | AA32: 662,376 | AB32: 32,320,397 | AC32: 1,204,399 | AD32: 117.16 | AE32: 19,348 | AF32: =SUM(AF9:AF30) -> 110,540 | AG32: =SUM(AG9:AG30) -> 42,820 | AH32: =SUM(AH9:AH30) -> 396,333 | AI32: 33,183 | AJ32: 275,042 | AK32: 271,861,829 | AL32: 6,857 | AM32: 100,244 | AN32: 71,192 | AO32: =SUM(AO9:AO30) -> 57,400 | AP32: 58,720 | AQ32: 58,950 | AR32: 59,020 | AS32: 60,380 | AT32: 60,270 | AU32: 104,235 | AV32: 118,085 | AW32: 114,630 | AX32: =SUM(AX9:AX30) -> 117,985 | AY32: =SUM(AY9:AY30) -> 120,600 | AZ32: 24,507 | BA32: 22,451 | BB32: 20,390 | BC32: 19,117 | BD32: 10,670 | BE32: 9,337 | BF32: 8,136 | BG32: 7,856 | BH32: 7 | BI32: 7 | BJ32: 5 | BK32: 0 | BL32: 66,820 | BM32: 78,417 | BN32: 88,044 | BO32: 99,475 | BP32: 24,611 | BQ32: 22,552 | BR32: 20,497 | BS32: 19,221 | BT32: 10,790 | BU32: 9,493 | BV32: 8,319 | BW32: 8,053 | BX32: 96,663 | BY32: 95,507 | BZ32: 94,499 | CA32: 93,110 | CB32: 67,628 | CC32: 79,400 | CD32: 89,295 | CE32: 101,055 | CF32: 0 | CG32: 0 | CH32: 0 | CI32: 0 | CJ32: 18,432 | CK32: 15,235 | CL32: 9,472 | CM32: 5,721 | CN32: 124,926 | CO32: 130,951 | CP32: =SUM(CP9:CP30) -> 138,060 | CQ32: 141,283 | CR32: 96,646 | CS32: 95,497 | CT32: 94,482 | CU32: 93,112 | CV32: 132,064 | CW32: 127,552 | CX32: 123,315 | CY32: 120,384 | CZ32: =SUM(CZ9:CZ30) -> 1,449,410 | DA32: =SUM(DA9:DA30) -> 8,172,629,338
B35: 27 | D35: =IF('iaith - language'!K1=2,VLOOKUP(B35,Text!$A$3:$C$353,2),VLOOKUP(B35,Text!$A$3:$C$353,3)) -> Yr Is-adran Polisi Cyllid Llywodraeth Leol a Chynaliadwyedd, Llywodraeth Cymru
B36: 30 | D36: =IF('iaith - language'!K1=2,VLOOKUP(B36,Text!$A$3:$C$353,2),VLOOKUP(B36,Text!$A$3:$C$353,3)) -> Os oes gennych ymholiadau, cysylltwch â:
B37: 29 | D37: LGFPSettlement@Gov.Wales
B39: 33 | D39: =IF('iaith - language'!K1=2,VLOOKUP(B39,Text!$A$3:$C$353,2),VLOOKUP(B39,Text!$A$3:$C$353,3)) -> Nodiadau:
B40: 34 | D40: =IF('iaith - language'!K1=2,VLOOKUP(B40,Text!$A$3:$C$353,2),VLOOKUP(B40,Text!$A$3:$C$353,3)) -> 1 Caiff y set ddata hon ei chymryd fel cyfartaledd 3 blynedd yn y setliad.
B41: 273

Sheet 2020-21 Settlement data (hidden)
A1: 500 | C1: =IF('iaith - language'!$K$1=2,VLOOKUP(A1,Text!A3:C470,2,FALSE),VLOOKUP(A1,Text!A3:C469,3,FALSE)) -> Data a ddefnyddiwyd yn Setliad 2020-21 – er gwybodaeth yn unig
D3: 51 | H3: 61 | I3: 62 | J3: 82 | K3: 83 | L3: 84 | M3: 86 | N3: 90 | O3: 91 | P3: 92 | Q3: 145 | R3: 147 | S3: 143 | T3: 149 | U3: 151 | V3: 152 | W3: 160 | X3: 162 | Y3: 163 | Z3: 192 | AK3: 194 | AO3: 195 | AS3: 196 | AW3: 197 | BA3: 198 | BE3: 199 | BI3: 200 | BM3: 201 | BQ3: 202 | BU3: 203 | BY3: 204 | CC3: 205 | CG3: 206 | CK3: 207 | CO3: 271.5 | CP3: 59
D4: 501 | E4: =D4+1 -> 502 | F4: =E4+1 -> 503 | G4: =F4+1 -> 504 | H4: 238 | I4: 504 | O4: 505 | Q4: =I4 -> 504 | R4: =Q4 -> 504 | S4: 506 | Z4: 507 | AA4: =Z4+1 -> 508 | AB4: =AA4+1 -> 509 | AC4: 510 | AD4: 511 | AE4: =Z4-3 -> 504 | AF4: =Z4-1 -> 506 | AG4: =AF4-1 -> 505 | AH4: =AD4+1 -> 512 | AI4: 513 | AJ4: 514 | AK4: 515 | AL4: 516 | AM4: =AA4 -> 508 | AN4: =AD4 -> 511 | AO4: =AK4 -> 515 | AP4: =AL4 -> 516 | AQ4: 508 | AR4: 511 | AS4: 515 | AT4: 516 | AU4: 508 | AV4: 511 | AW4: 515 | AX4: 516 | AY4: 508 | AZ4: 511 | BA4: 515 | BB4: 516 | BC4: 508 | BD4: 511 | BE4: 515 | BF4: 516 | BG4: 508 | BH4: 511 | BI4: 515 | BJ4: 516 | BK4: 508 | BL4: 511 | BM4: 515 | BN4: 516 | BO4: 508 | BP4: 511 | BQ4: 515 | BR4: 516 | BS4: 508 | BT4: 511 | BU4: 515 | BV4: 516 | BW4: 508 | BX4: 511 | BY4: 515 | BZ4: 516 | CA4: 508 | CB4: 511 | CC4: 515 | CD4: 516 | CE4: 508 | CF4: 511 | CG4: 515 | CH4: 516 | CI4: 508 | CJ4: 511 | CK4: 515 | CL4: 516 | CM4: 508 | CN4: 511 | CO4: 504
D6: =IF('iaith - language'!$K$1=2,VLOOKUP(D3,Text!$A$3:$C$386,2,FALSE),VLOOKUP(D3,Text!$A$3:$C$386,3, FALSE)) -> Ceisiadau Cynllunio a Gafwyd | H6: =IF('iaith - language'!$K$1=2,VLOOKUP(H3,Text!$A$3:$C$386,2,FALSE),VLOOKUP(H3,Text!$A$3:$C$386,3, FALSE)) -> Stoc anheddau'r sector preifat | I6: =IF('iaith - language'!$K$1=2,VLOOKUP(I3,Text!$A$3:$C$386,2,FALSE),VLOOKUP(I3,Text!$A$3:$C$386,3, FALSE)) -> Arwynebedd tir (hectarau) | J6: =IF('iaith - language'!$K$1=2,VLOOKUP(J3,Text!$A$3:$C$386,2,FALSE),VLOOKUP(J3,Text!$A$3:$C$386,3, FALSE)) -> Amcangyfrifon Poblogaeth Ganol Blwyddyn, pob oed | K6: =IF('iaith - language'!$K$1=2,VLOOKUP(K3,Text!$A$3:$C$386,2,FALSE),VLOOKUP(K3,Text!$A$3:$C$386,3, FALSE)) -> Amcangyfrifon Poblogaeth Ganol Blwyddyn, 18 oed a throsodd | L6: =IF('iaith - language'!$K$1=2,VLOOKUP(L3,Text!$A$3:$C$386,2,FALSE),VLOOKUP(L3,Text!$A$3:$C$386,3, FALSE)) -> Amcangyfrifon Poblogaeth Ganol Blwyddyn, 65 oed a throsodd | M6: =IF('iaith - language'!$K$1=2,VLOOKUP(M3,Text!$A$3:$C$386,2,FALSE),VLOOKUP(M3,Text!$A$3:$C$386,3, FALSE)) -> Swm a wariwyd ar grantiau cyfleusterau i'r anabl wedi'u cwblhau (£s) | N6: =IF('iaith - language'!$K$1=2,VLOOKUP(N3,Text!$A$3:$C$386,2,FALSE),VLOOKUP(N3,Text!$A$3:$C$386,3, FALSE)) -> Praeseptau Draenio Tir | O6: =IF('iaith - language'!$K$1=2,VLOOKUP(O3,Text!$A$3:$C$386,2,FALSE),VLOOKUP(O3,Text!$A$3:$C$386,3, FALSE)) -> Hyd yr arfordir a warchodir | P6: =IF('iaith - language'!$K$1=2,VLOOKUP(P3,Text!$A$3:$C$386,2,FALSE),VLOOKUP(P3,Text!$A$3:$C$386,3, FALSE)) -> Nifer y Ffermydd | Q6: =IF('iaith - language'!$K$1=2,VLOOKUP(Q3,Text!$A$3:$C$386,2,FALSE),VLOOKUP(Q3,Text!$A$3:$C$386,3, FALSE)) -> Nifer yr Eiddo Masnachu | R6: =IF('iaith - language'!$K$1=2,VLOOKUP(R3,Text!$A$3:$C$386,2,FALSE),VLOOKUP(R3,Text!$A$3:$C$386,3, FALSE)) -> Nifer yr Eiddo Bwyd | S6: =IF('iaith - language'!$K$1=2,VLOOKUP(S3,Text!$A$3:$C$386,2,FALSE),VLOOKUP(S3,Text!$A$3:$C$386,3, FALSE)) -> Cyfanswm yr unedau goleuadau stryd | T6: =IF('iaith - language'!$K$1=2,VLOOKUP(T3,Text!$A$3:$C$386,2,FALSE),VLOOKUP(T3,Text!$A$3:$C$386,3, FALSE)) -> Nifer y marwolaethau wedi'u cofrestru | U6: =IF('iaith - language'!$K$1=2,VLOOKUP(U3,Text!$A$3:$C$386,2,FALSE),VLOOKUP(U3,Text!$A$3:$C$386,3, FALSE)) -> Llwyth achosion Cynlluniau Gostyngiadau'r Dreth Gyngor | V6: =IF('iaith - language'!$K$1=2,VLOOKUP(V3,Text!$A$3:$C$386,2,FALSE),VLOOKUP(V3,Text!$A$3:$C$386,3, FALSE)) -> Gwariant Cynlluniau Gostyngiadau'r Dreth Gyngor | W6: =IF('iaith - language'!$K$1=2,VLOOKUP(W3,Text!$A$3:$C$386,2,FALSE),VLOOKUP(W3,Text!$A$3:$C$386,3, FALSE)) -> Nifer y llongau sy'n cyrraedd porthladdoedd | X6: =IF('iaith - language'!$K$1=2,VLOOKUP(X3,Text!$A$3:$C$386,2,FALSE),VLOOKUP(X3,Text!$A$3:$C$386,3, FALSE)) -> Nosweithiau twristiaid (miloedd) gan gynnwys AirBnb | Y6: =IF('iaith - language'!$K$1=2,VLOOKUP(Y3,Text!$A$3:$C$386,2,FALSE),VLOOKUP(Y3,Text!$A$3:$C$386,3, FALSE)) -> Diwrnodau twristiaid (miloedd) | Z6: =IF('iaith - language'!$K$1=2,VLOOKUP(Z3,Text!$A$3:$C$386,2,FALSE),VLOOKUP(Z3,Text!$A$3:$C$386,3, FALSE)) -> Data Hawlwyr Budd-dal | AK6: =IF('iaith - language'!$K$1=2,VLOOKUP(AK3,Text!$A$3:$C$386,2,FALSE),VLOOKUP(AK3,Text!$A$3:$C$386,3, FALSE)) -> Nifer yr Hawlwyr Cymhorthdal Incwm, 18-64 oed | AO6: =IF('iaith - language'!$K$1=2,VLOOKUP(AO3,Text!$A$3:$C$386,2,FALSE),VLOOKUP(AO3,Text!$A$3:$C$386,3, FALSE)) -> Nifer y Derbynwyr Lwfans Ceisio Swydd ar Sail Incwm, 18-64 oed | AS6: =IF('iaith - language'!$K$1=2,VLOOKUP(AS3,Text!$A$3:$C$386,2,FALSE),VLOOKUP(AS3,Text!$A$3:$C$386,3, FALSE)) -> Nifer yr hawlwyr Credyd Pensiwn, 18-64 oed | AW6: =IF('iaith - language'!$K$1=2,VLOOKUP(AW3,Text!$A$3:$C$386,2,FALSE),VLOOKUP(AW3,Text!$A$3:$C$386,3, FALSE)) -> Nifer y rhai sydd yn derbyn Credyd Cynhwysol (ddim mewn cyflogaeth) 18-64 oed | BA6: =IF('iaith - language'!$K$1=2,VLOOKUP(BA3,Text!$A$3:$C$386,2,FALSE),VLOOKUP(BA3,Text!$A$3:$C$386,3, FALSE)) -> Cyfanswm yr Hawlwyr Cymhorthdal Incwm | BE6: =IF('iaith - language'!$K$1=2,VLOOKUP(BE3,Text!$A$3:$C$386,2,FALSE),VLOOKUP(BE3,Text!$A$3:$C$386,3, FALSE)) -> Cyfanswm y Derbynwyr Lwfans Ceisio Swydd ar Sail Incwm | BI6: =IF('iaith - language'!$K$1=2,VLOOKUP(BI3,Text!$A$3:$C$386,2,FALSE),VLOOKUP(BI3,Text!$A$3:$C$386,3, FALSE)) -> Cyfanswm Hawlwyr Credyd Pensiwn | BM6: =IF('iaith - language'!$K$1=2,VLOOKUP(BM3,Text!$A$3:$C$386,2,FALSE),VLOOKUP(BM3,Text!$A$3:$C$386,3, FALSE)) -> Cyfanswm y rhai sy’n derbyn Credyd Cynhwysol (ddim mewn cyflogaeth) | BQ6: =IF('iaith - language'!$K$1=2,VLOOKUP(BQ3,Text!$A$3:$C$386,2,FALSE),VLOOKUP(BQ3,Text!$A$3:$C$386,3, FALSE)) -> Nifer yr Hawlwyr Lwfans Anabledd Difrifol, 18-64 oed | BU6: =IF('iaith - language'!$K$1=2,VLOOKUP(BU3,Text!$A$3:$C$386,2,FALSE),VLOOKUP(BU3,Text!$A$3:$C$386,3, FALSE)) -> Nifer yr Hawlwyr Lwfans Byw i'r Anabl, 18-64 oed | BY6: =IF('iaith - language'!$K$1=2,VLOOKUP(BY3,Text!$A$3:$C$386,2,FALSE),VLOOKUP(BY3,Text!$A$3:$C$386,3, FALSE)) -> Nifer yr Hawlwyr Taliad Annibyniaeth Bersonol sydd yn 18-64 oed | CC6: =IF('iaith - language'!$K$1=2,VLOOKUP(CC3,Text!$A$3:$C$386,2,FALSE),VLOOKUP(CC3,Text!$A$3:$C$386,3, FALSE)) -> Hawlwyr Credyd Pensiwn, 65 oed a hŷn | CG6: =IF('iaith - language'!$K$1=2,VLOOKUP(CG3,Text!$A$3:$C$386,2,FALSE),VLOOKUP(CG3,Text!$A$3:$C$386,3, FALSE)) -> Cyfanswn yr hawlwyr Cymhorthdal Incwm, Lwfans Ceisio Gwaith, a Chredyd Pensiwn | CK6: =IF('iaith - language'!$K$1=2,VLOOKUP(CK3,Text!$A$3:$C$386,2,FALSE),VLOOKUP(CK3,Text!$A$3:$C$386,3, FALSE)) -> Pobl (18-64) sy'n hawlio Lwfans Anabledd Difrifol a Lwfans Byw i'r Anabl | CO6: =IF('iaith - language'!$K$1=2,VLOOKUP(CO3,Text!$A$3:$C$386,2,FALSE),VLOOKUP(CO3,Text!$A$3:$C$386,3, FALSE)) -> Stoc eiddo treth cyngor | CP6: =IF('iaith - language'!$K$1=2,VLOOKUP(CP3,Text!$A$3:$C$386,2,FALSE),VLOOKUP(CP3,Text!$A$3:$C$386,3, FALSE)) -> Llif traffig (cerbydau)
D7: =IF('iaith - language'!$K$1=2,VLOOKUP(D4,Text!$A$3:$C$267,2,FALSE),VLOOKUP(D4,Text!$A$3:$C$267,3,FALSE)) -> Mehefin 2018 | E7: =IF('iaith - language'!$K$1=2,VLOOKUP(E4,Text!$A$3:$C$267,2,FALSE),VLOOKUP(E4,Text!$A$3:$C$267,3,FALSE)) -> Medi 2018 | F7: =IF('iaith - language'!$K$1=2,VLOOKUP(F4,Text!$A$3:$C$267,2,FALSE),VLOOKUP(F4,Text!$A$3:$C$267,3,FALSE)) -> Rhagfyr 2018 | G7: =IF('iaith - language'!$K$1=2,VLOOKUP(G4,Text!$A$3:$C$267,2,FALSE),VLOOKUP(G4,Text!$A$3:$C$267,3,FALSE)) -> Mawrth 2019 | H7: 2018-19 | I7: =IF('iaith - language'!$K$1=2,VLOOKUP(I4,Text!$A$3:$C$267,2,FALSE),VLOOKUP(I4,Text!$A$3:$C$267,3,FALSE)) -> Mawrth 2019 | J7: 2018 | K7: 2018 | L7: 2018 | M7: 2017-2018 | N7: 2019-2020 | O7: =IF('iaith - language'!$K$1=2,VLOOKUP(O4,Text!$A$3:$C$267,2,FALSE),VLOOKUP(O4,Text!$A$3:$C$267,3,FALSE)) -> Mai 2019 | P7: 2018 | Q7: =IF('iaith - language'!$K$1=2,VLOOKUP(Q4,Text!$A$3:$C$267,2,FALSE),VLOOKUP(Q4,Text!$A$3:$C$267,3,FALSE)) -> Mawrth 2019 | R7: =IF('iaith - language'!$K$1=2,VLOOKUP(R4,Text!$A$3:$C$267,2,FALSE),VLOOKUP(R4,Text!$A$3:$C$267,3,FALSE)) -> Mawrth 2019 | S7: =IF('iaith - language'!$K$1=2,VLOOKUP(S4,Text!$A$3:$C$267,2,FALSE),VLOOKUP(S4,Text!$A$3:$C$267,3,FALSE)) -> Ebrill 2019 | T7: 2018 | U7: 2018-2019 | V7: 2018-2019 | W7: 2018 | X7: 2018 | Y7: 2018 | Z7: =IF('iaith - language'!$K$1=2,VLOOKUP(Z4,Text!$A$3:$C$267,2,FALSE),VLOOKUP(Z4,Text!$A$3:$C$267,3,FALSE)) -> Hydref 2018 | AA7: =IF('iaith - language'!$K$1=2,VLOOKUP(AA4,Text!$A$3:$C$267,2,FALSE),VLOOKUP(AA4,Text!$A$3:$C$267,3,FALSE)) -> Tachwedd 2018 | AB7: =IF('iaith - language'!$K$1=2,VLOOKUP(AB4,Text!$A$3:$C$267,2,FALSE),VLOOKUP(AB4,Text!$A$3:$C$267,3,FALSE)) -> Rhagfyr 2018 | AC7: =IF('iaith - language'!$K$1=2,VLOOKUP(AC4,Text!$A$3:$C$267,2,FALSE),VLOOKUP(AC4,Text!$A$3:$C$267,3,FALSE)) -> Ionawr 2019 | AD7: =IF('iaith - language'!$K$1=2,VLOOKUP(AD4,Text!$A$3:$C$267,2,FALSE),VLOOKUP(AD4,Text!$A$3:$C$267,3,FALSE)) -> Chwefror 2019 | AE7: =IF('iaith - language'!$K$1=2,VLOOKUP(AE4,Text!$A$3:$C$267,2,FALSE),VLOOKUP(AE4,Text!$A$3:$C$267,3,FALSE)) -> Mawrth 2019 | AF7: =IF('iaith - language'!$K$1=2,VLOOKUP(AF4,Text!$A$3:$C$267,2,FALSE),VLOOKUP(AF4,Text!$A$3:$C$267,3,FALSE)) -> Ebrill 2019 | AG7: =IF('iaith - language'!$K$1=2,VLOOKUP(AG4,Text!$A$3:$C$267,2,FALSE),VLOOKUP(AG4,Text!$A$3:$C$267,3,FALSE)) -> Mai 2019 | AH7: =IF('iaith - language'!$K$1=2,VLOOKUP(AH4,Text!$A$3:$C$267,2,FALSE),VLOOKUP(AH4,Text!$A$3:$C$267,3,FALSE)) -> Mehefin 2019 | AI7: =IF('iaith - language'!$K$1=2,VLOOKUP(AI4,Text!$A$3:$C$267,2,FALSE),VLOOKUP(AI4,Text!$A$3:$C$267,3,FALSE)) -> Gorffennaf 2019 | AJ7: =IF('iaith - language'!$K$1=2,VLOOKUP(AJ4,Text!$A$3:$C$267,2,FALSE),VLOOKUP(AJ4,Text!$A$3:$C$267,3,FALSE)) -> Awst 2019 | AK7: =IF('iaith - language'!$K$1=2,VLOOKUP(AK4,Text!$A$3:$C$267,2,FALSE),VLOOKUP(AK4,Text!$A$3:$C$267,3,FALSE)) -> Mai 2018 | AL7: =IF('iaith - language'!$K$1=2,VLOOKUP(AL4,Text!$A$3:$C$267,2,FALSE),VLOOKUP(AL4,Text!$A$3:$C$267,3,FALSE)) -> Awst 2018 | AM7: =IF('iaith - language'!$K$1=2,VLOOKUP(AM4,Text!$A$3:$C$267,2,FALSE),VLOOKUP(AM4,Text!$A$3:$C$267,3,FALSE)) -> Tachwedd 2018 | AN7: =IF('iaith - language'!$K$1=2,VLOOKUP(AN4,Text!$A$3:$C$267,2,FALSE),VLOOKUP(AN4,Text!$A$3:$C$267,3,FALSE)) -> Chwefror 2019 | AO7: =IF('iaith - language'!$K$1=2,VLOOKUP(AO4,Text!$A$3:$C$267,2,FALSE),VLOOKUP(AO4,Text!$A$3:$C$267,3,FALSE)) -> Mai 2018 | AP7: =IF('iaith - language'!$K$1=2,VLOOKUP(AP4,Text!$A$3:$C$267,2,FALSE),VLOOKUP(AP4,Text!$A$3:$C$267,3,FALSE)) -> Awst 2018 | AQ7: =IF('iaith - language'!$K$1=2,VLOOKUP(AQ4,Text!$A$3:$C$267,2,FALSE),VLOOKUP(AQ4,Text!$A$3:$C$267,3,FALSE)) -> Tachwedd 2018 | AR7: =IF('iaith - language'!$K$1=2,VLOOKUP(AR4,Text!$A$3:$C$267,2,FALSE),VLOOKUP(AR4,Text!$A$3:$C$267,3,FALSE)) -> Chwefror 2019 | AS7: =IF('iaith - language'!$K$1=2,VLOOKUP(AS4,Text!$A$3:$C$267,2,FALSE),VLOOKUP(AS4,Text!$A$3:$C$267,3,FALSE)) -> Mai 2018 | AT7: =IF('iaith - language'!$K$1=2,VLOOKUP(AT4,Text!$A$3:$C$267,2,FALSE),VLOOKUP(AT4,Text!$A$3:$C$267,3,FALSE)) -> Awst 2018 | AU7: =IF('iaith - language'!$K$1=2,VLOOKUP(AU4,Text!$A$3:$C$267,2,FALSE),VLOOKUP(AU4,Text!$A$3:$C$267,3,FALSE)) -> Tachwedd 2018 | AV7: =IF('iaith - language'!$K$1=2,VLOOKUP(AV4,Text!$A$3:$C$267,2,FALSE),VLOOKUP(AV4,Text!$A$3:$C$267,3,FALSE)) -> Chwefror 2019 | AW7: =IF('iaith - language'!$K$1=2,VLOOKUP(AW4,Text!$A$3:$C$267,2,FALSE),VLOOKUP(AW4,Text!$A$3:$C$267,3,FALSE)) -> Mai 2018 | AX7: =IF('iaith - language'!$K$1=2,VLOOKUP(AX4,Text!$A$3:$C$267,2,FALSE),VLOOKUP(AX4,Text!$A$3:$C$267,3,FALSE)) -> Awst 2018 | AY7: =IF('iaith - language'!$K$1=2,VLOOKUP(AY4,Text!$A$3:$C$267,2,FALSE),VLOOKUP(AY4,Text!$A$3:$C$267,3,FALSE)) -> Tachwedd 2018 | AZ7: =IF('iaith - language'!$K$1=2,VLOOKUP(AZ4,Text!$A$3:$C$267,2,FALSE),VLOOKUP(AZ4,Text!$A$3:$C$267,3,FALSE)) -> Chwefror 2019 | BA7: =IF('iaith - language'!$K$1=2,VLOOKUP(BA4,Text!$A$3:$C$267,2,FALSE),VLOOKUP(BA4,Text!$A$3:$C$267,3,FALSE)) -> Mai 2018 | BB7: =IF('iaith - language'!$K$1=2,VLOOKUP(BB4,Text!$A$3:$C$267,2,FALSE),VLOOKUP(BB4,Text!$A$3:$C$267,3,FALSE)) -> Awst 2018 | BC7: =IF('iaith - language'!$K$1=2,VLOOKUP(BC4,Text!$A$3:$C$267,2,FALSE),VLOOKUP(BC4,Text!$A$3:$C$267,3,FALSE)) -> Tachwedd 2018 | BD7: =IF('iaith - language'!$K$1=2,VLOOKUP(BD4,Text!$A$3:$C$267,2,FALSE),VLOOKUP(BD4,Text!$A$3:$C$267,3,FALSE)) -> Chwefror 2019 | BE7: =IF('iaith - language'!$K$1=2,VLOOKUP(BE4,Text!$A$3:$C$267,2,FALSE),VLOOKUP(BE4,Text!$A$3:$C$267,3,FALSE)) -> Mai 2018 | BF7: =IF('iaith - language'!$K$1=2,VLOOKUP(BF4,Text!$A$3:$C$267,2,FALSE),VLOOKUP(BF4,Text!$A$3:$C$267,3,FALSE)) -> Awst 2018 | BG7: =IF('iaith - language'!$K$1=2,VLOOKUP(BG4,Text!$A$3:$C$267,2,FALSE),VLOOKUP(BG4,Text!$A$3:$C$267,3,FALSE)) -> Tachwedd 2018 | BH7: =IF('iaith - language'!$K$1=2,VLOOKUP(BH4,Text!$A$3:$C$267,2,FALSE),VLOOKUP(BH4,Text!$A$3:$C$267,3,FALSE)) -> Chwefror 2019 | BI7: =IF('iaith - language'!$K$1=2,VLOOKUP(BI4,Text!$A$3:$C$267,2,FALSE),VLOOKUP(BI4,Text!$A$3:$C$267,3,FALSE)) -> Mai 2018 | BJ7: =IF('iaith - language'!$K$1=2,VLOOKUP(BJ4,Text!$A$3:$C$267,2,FALSE),VLOOKUP(BJ4,Text!$A$3:$C$267,3,FALSE)) -> Awst 2018 | BK7: =IF('iaith - language'!$K$1=2,VLOOKUP(BK4,Text!$A$3:$C$267,2,FALSE),VLOOKUP(BK4,Text!$A$3:$C$267,3,FALSE)) -> Tachwedd 2018 | BL7: =IF('iaith - language'!$K$1=2,VLOOKUP(BL4,Text!$A$3:$C$267,2,FALSE),VLOOKUP(BL4,Text!$A$3:$C$267,3,FALSE)) -> Chwefror 2019 | BM7: =IF('iaith - language'!$K$1=2,VLOOKUP(BM4,Text!$A$3:$C$267,2,FALSE),VLOOKUP(BM4,Text!$A$3:$C$267,3,FALSE)) -> Mai 2018 | BN7: =IF('iaith - language'!$K$1=2,VLOOKUP(BN4,Text!$A$3:$C$267,2,FALSE),VLOOKUP(BN4,Text!$A$3:$C$267,3,FALSE)) -> Awst 2018 | BO7: =IF('iaith - language'!$K$1=2,VLOOKUP(BO4,Text!$A$3:$C$267,2,FALSE),VLOOKUP(BO4,Text!$A$3:$C$267,3,FALSE)) -> Tachwedd 2018 | BP7: =IF('iaith - language'!$K$1=2,VLOOKUP(BP4,Text!$A$3:$C$267,2,FALSE),VLOOKUP(BP4,Text!$A$3:$C$267,3,FALSE)) -> Chwefror 2019 | BQ7: =IF('iaith - language'!$K$1=2,VLOOKUP(BQ4,Text!$A$3:$C$267,2,FALSE),VLOOKUP(BQ4,Text!$A$3:$C$267,3,FALSE)) -> Mai 2018 | BR7: =IF('iaith - language'!$K$1=2,VLOOKUP(BR4,Text!$A$3:$C$267,2,FALSE),VLOOKUP(BR4,Text!$A$3:$C$267,3,FALSE)) -> Awst 2018 | BS7: =IF('iaith - language'!$K$1=2,VLOOKUP(BS4,Text!$A$3:$C$267,2,FALSE),VLOOKUP(BS4,Text!$A$3:$C$267,3,FALSE)) -> Tachwedd 2018 | BT7: =IF('iaith - language'!$K$1=2,VLOOKUP(BT4,Text!$A$3:$C$267,2,FALSE),VLOOKUP(BT4,Text!$A$3:$C$267,3,FALSE)) -> Chwefror 2019 | BU7: =IF('iaith - language'!$K$1=2,VLOOKUP(BU4,Text!$A$3:$C$267,2,FALSE),VLOOKUP(BU4,Text!$A$3:$C$267,3,FALSE)) -> Mai 2018 | BV7: =IF('iaith - language'!$K$1=2,VLOOKUP(BV4,Text!$A$3:$C$267,2,FALSE),VLOOKUP(BV4,Text!$A$3:$C$267,3,FALSE)) -> Awst 2018 | BW7: =IF('iaith - language'!$K$1=2,VLOOKUP(BW4,Text!$A$3:$C$267,2,FALSE),VLOOKUP(BW4,Text!$A$3:$C$267,3,FALSE)) -> Tachwedd 2018 | BX7: =IF('iaith - language'!$K$1=2,VLOOKUP(BX4,Text!$A$3:$C$267,2,FALSE),VLOOKUP(BX4,Text!$A$3:$C$267,3,FALSE)) -> Chwefror 2019 | BY7: =IF('iaith - language'!$K$1=2,VLOOKUP(BY4,Text!$A$3:$C$267,2,FALSE),VLOOKUP(BY4,Text!$A$3:$C$267,3,FALSE)) -> Mai 2018 | BZ7: =IF('iaith - language'!$K$1=2,VLOOKUP(BZ4,Text!$A$3:$C$267,2,FALSE),VLOOKUP(BZ4,Text!$A$3:$C$267,3,FALSE)) -> Awst 2018 | CA7: =IF('iaith - language'!$K$1=2,VLOOKUP(CA4,Text!$A$3:$C$267,2,FALSE),VLOOKUP(CA4,Text!$A$3:$C$267,3,FALSE)) -> Tachwedd 2018 | CB7: =IF('iaith - language'!$K$1=2,VLOOKUP(CB4,Text!$A$3:$C$267,2,FALSE),VLOOKUP(CB4,Text!$A$3:$C$267,3,FALSE)) -> Chwefror 2019 | CC7: =IF('iaith - language'!$K$1=2,VLOOKUP(CC4,Text!$A$3:$C$267,2,FALSE),VLOOKUP(CC4,Text!$A$3:$C$267,3,FALSE)) -> Mai 2018 | CD7: =IF('iaith - language'!$K$1=2,VLOOKUP(CD4,Text!$A$3:$C$267,2,FALSE),VLOOKUP(CD4,Text!$A$3:$C$267,3,FALSE)) -> Awst 2018 | CE7: =IF('iaith - language'!$K$1=2,VLOOKUP(CE4,Text!$A$3:$C$267,2,FALSE),VLOOKUP(CE4,Text!$A$3:$C$267,3,FALSE)) -> Tachwedd 2018 | CF7: =IF('iaith - language'!$K$1=2,VLOOKUP(CF4,Text!$A$3:$C$267,2,FALSE),VLOOKUP(CF4,Text!$A$3:$C$267,3,FALSE)) -> Chwefror 2019 | CG7: =IF('iaith - language'!$K$1=2,VLOOKUP(CG4,Text!$A$3:$C$267,2,FALSE),VLOOKUP(CG4,Text!$A$3:$C$267,3,FALSE)) -> Mai 2018 | CH7: =IF('iaith - language'!$K$1=2,VLOOKUP(CH4,Text!$A$3:$C$267,2,FALSE),VLOOKUP(CH4,Text!$A$3:$C$267,3,FALSE)) -> Awst 2018 | CI7: =IF('iaith - language'!$K$1=2,VLOOKUP(CI4,Text!$A$3:$C$267,2,FALSE),VLOOKUP(CI4,Text!$A$3:$C$267,3,FALSE)) -> Tachwedd 2018 | CJ7: =IF('iaith - language'!$K$1=2,VLOOKUP(CJ4,Text!$A$3:$C$267,2,FALSE),VLOOKUP(CJ4,Text!$A$3:$C$267,3,FALSE)) -> Chwefror 2019 | CK7: =IF('iaith - language'!$K$1=2,VLOOKUP(CK4,Text!$A$3:$C$267,2,FALSE),VLOOKUP(CK4,Text!$A$3:$C$267,3,FALSE)) -> Mai 2018 | CL7: =IF('iaith - language'!$K$1=2,VLOOKUP(CL4,Text!$A$3:$C$267,2,FALSE),VLOOKUP(CL4,Text!$A$3:$C$267,3,FALSE)) -> Awst 2018 | CM7: =IF('iaith - language'!$K$1=2,VLOOKUP(CM4,Text!$A$3:$C$267,2,FALSE),VLOOKUP(CM4,Text!$A$3:$C$267,3,FALSE)) -> Tachwedd 2018 | CN7: =IF('iaith - language'!$K$1=2,VLOOKUP(CN4,Text!$A$3:$C$267,2,FALSE),VLOOKUP(CN4,Text!$A$3:$C$267,3,FALSE)) -> Chwefror 2019 | CO7: =IF('iaith - language'!$K$1=2,VLOOKUP(CO4,Text!$A$3:$C$267,2,FALSE),VLOOKUP(CO4,Text!$A$3:$C$267,3,FALSE)) -> Mawrth 2019 | CP7: 2018
A9: 117 | B9: 2 | C9: =IF('iaith - language'!$K$1=2,VLOOKUP(A9,Text!$A$3:$C$353,2,FALSE),VLOOKUP(A9,Text!$A$3:$C$353,3,FALSE)) -> Sir Ynys Môn | D9: 235 | E9: 212 | F9: 219 | G9: 247 | H9: 30,091 | I9: 71,480.18 | J9: 69,961 | K9: 56,521 | L9: 17,992 | M9: 701,491 | N9: 3,375 | O9: 7.90 | P9: 904 | Q9: 2,860 | R9: 1,020 | S9: 9,925 | T9: 862 | U9: 5,848 | V9: 5,381,002 | W9: 3,069 | X9: 5,086 | Y9: 701 | Z9: 835 | AA9: 825 | AB9: 810 | AC9: 880 | AD9: 970 | AE9: 1,045 | AF9: 1,080 | AG9: 1,050 | AH9: 1,085 | AI9: 1,085 | AJ9: 1,085 | AK9: 652 | AL9: 668 | AM9: 647 | AN9: 598 | AO9: 500 | AP9: 400 | AQ9: 400 | AR9: 500 | AS9: 24 | AT9: 9 | AU9: 0 | AV9: 0 | AW9: 268 | AX9: 228 | AY9: 216 | AZ9: 485 | BA9: 660 | BB9: 679 | BC9: 654 | BD9: 601 | BE9: 500 | BF9: 400 | BG9: 400 | BH9: 500 | BI9: 2,675 | BJ9: 2,631 | BK9: 2,599 | BL9: 2,554 | BM9: 270 | BN9: 228 | BO9: 216 | BP9: 490 | BQ9: 0 | BR9: 0 | BS9: 0 | BT9: 0 | BU9: 138 | BV9: 135 | BW9: 125 | BX9: 125 | BY9: 2492 | BZ9: 2498 | CA9: 2543 | CB9: 2538 | CC9: 2,649 | CD9: 2,619 | CE9: 2,599 | CF9: 2,554 | CG9: 3835 | CH9: 3710 | CI9: 3653 | CJ9: 3655 | CK9: 138 | CL9: 135 | CM9: 125 | CN9: 125 | CO9: 35,200 | CP9: 216,630,757
A10: 118 | B10: 3 | C10: =IF('iaith - language'!$K$1=2,VLOOKUP(A10,Text!$A$3:$C$353,2,FALSE),VLOOKUP(A10,Text!$A$3:$C$353,3,FALSE)) -> Gwynedd | D10: 257 | E10: 256 | F10: 268 | G10: 288 | H10: 53,710 | I10: 254,789.17 | J10: 124,178 | K10: 100,757 | L10: 28,171 | M10: 548,905 | N10: 109,336 | O10: 20.14 | P10: 1,742 | Q10: 7,380 | R10: 2,530 | S10: 17,611 | T10: 1,415 | U10: 9,367 | V10: 9,324,573 | W10: 4 | X10: 18,725 | Y10: 3,802 | Z10: 1,130 | AA10: 1,150 | AB10: 1,235 | AC10: 1,380 | AD10: 1,440 | AE10: 1,435 | AF10: 1,425 | AG10: 1,395 | AH10: 1,470 | AI10: 1,500 | AJ10: 1,555 | AK10: 901 | AL10: 901 | AM10: 911 | AN10: 829 | AO10: 500 | AP10: 500 | AQ10: 500 | AR10: 700 | AS10: 40 | AT10: 10 | AU10: 0 | AV10: 0 | AW10: 386 | AX10: 329 | AY10: 325 | AZ10: 811 | BA10: 914 | BB10: 908 | BC10: 920 | BD10: 841 | BE10: 500 | BF10: 500 | BG10: 500 | BH10: 700 | BI10: 4,380 | BJ10: 4,329 | BK10: 4,250 | BL10: 4,163 | BM10: 386 | BN10: 329 | BO10: 328 | BP10: 820 | BQ10: 0 | BR10: 0 | BS10: 0 | BT10: 0 | BU10: 227 | BV10: 214 | BW10: 213 | BX10: 213 | BY10: 3383 | BZ10: 3412 | CA10: 3473 | CB10: 3445 | CC10: 4,344 | CD10: 4,315 | CE10: 4,250 | CF10: 4,163 | CG10: 5794 | CH10: 5737 | CI10: 5670 | CJ10: 5704 | CK10: 227 | CL10: 214 | CM10: 213 | CN10: 213 | CO10: 61,610 | CP10: 450,314,275
A11: 119 | B11: 4 | C11: =IF('iaith - language'!$K$1=2,VLOOKUP(A11,Text!$A$3:$C$353,2,FALSE),VLOOKUP(A11,Text!$A$3:$C$353,3,FALSE)) -> Conwy | D11: 258 | E11: 250 | F11: 195 | G11: 213 | H11: 51,433 | I11: 113,019.73 | J11: 117,181 | K11: 95,778 | L11: 32,154 | M11: 1,186,631 | N11: 33,810 | O11: 23.59 | P11: 889 | Q11: 5,040 | R11: 2,200 | S11: 16,594 | T11: 1,646 | U11: 10,252 | V11: 9,576,115 | W11: 67 | X11: 10,573 | Y11: 6,914 | Z11: 1,500 | AA11: 1,610 | AB11: 1,775 | AC11: 1,900 | AD11: 2,050 | AE11: 2,130 | AF11: 2,105 | AG11: 2,015 | AH11: 2,025 | AI11: 1,990 | AJ11: 2,010 | AK11: 1,082 | AL11: 1,024 | AM11: 948 | AN11: 873 | AO11: 700 | AP11: 500 | AQ11: 500 | AR11: 500 | AS11: 44 | AT11: 19 | AU11: 0 | AV11: 0 | AW11: 485 | AX11: 878 | AY11: 1419 | AZ11: 2068 | BA11: 1,085 | BB11: 1,028 | BC11: 951 | BD11: 873 | BE11: 700 | BF11: 500 | BG11: 500 | BH11: 500 | BI11: 4,600 | BJ11: 4,524 | BK11: 4,454 | BL11: 4,375 | BM11: 485 | BN11: 891 | BO11: 1435 | BP11: 2086 | BQ11: 6 | BR11: 6 | BS11: 6 | BT11: 0 | BU11: 266 | BV11: 254 | BW11: 247 | BX11: 241 | BY11: 4500 | BZ11: 4535 | CA11: 4585 | CB11: 4577 | CC11: 4,553 | CD11: 4,502 | CE11: 4,452 | CF11: 4,376 | CG11: 6385 | CH11: 6052 | CI11: 5905 | CJ11: 5748 | CK11: 272 | CL11: 260 | CM11: 253 | CN11: 241 | CO11: 57,370 | CP11: 219,982,900
A12: 120 | B12: 5 | C12: =IF('iaith - language'!$K$1=2,VLOOKUP(A12,Text!$A$3:$C$353,2,FALSE),VLOOKUP(A12,Text!$A$3:$C$353,3,FALSE)) -> Sir Ddinbych | D12: 247 | E12: 239 | F12: 214 | G12: 244 | H12: 37,770 | I12: 83,856.94 | J12: 95,330 | K12: 75,917 | L12: 22,959 | M12: 912,126 | N12: 0 | O12: 9.40 | P12: 751 | Q12: 3,940 | R12: 1,670 | S12: 11,582 | T12: 1,249 | U12: 9,559 | V12: 9,544,848 | W12: 0 | X12: 7,192 | Y12: 4,375 | Z12: 1,430 | AA12: 1,515 | AB12: 1,565 | AC12: 1,640 | AD12: 1,755 | AE12: 1,760 | AF12: 1,790 | AG12: 1,760 | AH12: 1,825 | AI12: 1,810 | AJ12: 1,815 | AK12: 1,136 | AL12: 1,058 | AM12: 1,000 | AN12: 931 | AO12: 600 | AP12: 500 | AQ12: 300 | AR12: 200 | AS12: 33 | AT12: 9 | AU12: 0 | AV12: 0 | AW12: 586 | AX12: 1050 | AY12: 1553 | AZ12: 2030 | BA12: 1,142 | BB12: 1,061 | BC12: 998 | BD12: 933 | BE12: 600 | BF12: 500 | BG12: 300 | BH12: 200 | BI12: 3,973 | BJ12: 3,925 | BK12: 3,862 | BL12: 3,788 | BM12: 587 | BN12: 1056 | BO12: 1565 | BP12: 2050 | BQ12: 9 | BR12: 0 | BS12: 0 | BT12: 0 | BU12: 291 | BV12: 288 | BW12: 271 | BX12: 259 | BY12: 4417 | BZ12: 4473 | CA12: 4558 | CB12: 4527 | CC12: 3,939 | CD12: 3,917 | CE12: 3,862 | CF12: 3,788 | CG12: 5715 | CH12: 5486 | CI12: 5160 | CJ12: 4921 | CK12: 300 | CL12: 288 | CM12: 271 | CN12: 259 | CO12: 44,900 | CP12: 327,398,829
A13: 121 | B13: 6 | C13: =IF('iaith - language'!$K$1=2,VLOOKUP(A13,Text!$A$3:$C$353,2,FALSE),VLOOKUP(A13,Text!$A$3:$C$353,3,FALSE)) -> Sir y Fflint | D13: 299 | E13: 276 | F13: 274 | G13: 306 | H13: 58,597 | I13: 43,972.39 | J13: 155,593 | K13: 123,396 | L13: 32,652 | M13: 615,580 | N13: 0 | O13: 2.31 | P13: 523 | Q13: 5,030 | R13: 1,710 | S13: 20,391 | T13: 1,529 | U13: 10,752 | V13: 10,108,921 | W13: 8 | X13: 3,859 | Y13: 2,870 | Z13: 2,265 | AA13: 2,240 | AB13: 2,265 | AC13: 2,300 | AD13: 2,440 | AE13: 2,510 | AF13: 2,435 | AG13: 2,470 | AH13: 2,550 | AI13: 2,565 | AJ13: 2,595 | AK13: 969 | AL13: 922 | AM13: 842 | AN13: 784 | AO13: 200 | AP13: 100 | AQ13: 200 | AR13: 200 | AS13: 32 | AT13: 5 | AU13: 0 | AV13: 0 | AW13: 2505 | AX13: 2847 | AY13: 3113 | AZ13: 3519 | BA13: 969 | BB13: 922 | BC13: 842 | BD13: 786 | BE13: 200 | BF13: 100 | BG13: 200 | BH13: 200 | BI13: 4,431 | BJ13: 4,364 | BK13: 4,273 | BL13: 4,179 | BM13: 2522 | BN13: 2877 | BO13: 3142 | BP13: 3559 | BQ13: 0 | BR13: 0 | BS13: 0 | BT13: 0 | BU13: 1616 | BV13: 1417 | BW13: 1210 | BX13: 1071 | BY13: 4110 | BZ13: 4305 | CA13: 4567 | CB13: 4641 | CC13: 4,397 | CD13: 4,354 | CE13: 4,273 | CF13: 4,179 | CG13: 5600 | CH13: 5386 | CI13: 5315 | CJ13: 5165 | CK13: 1616 | CL13: 1417 | CM13: 1210 | CN13: 1071 | CO13: 69,130 | CP13: 506,239,908
A14: 122 | B14: 7 | C14: =IF('iaith - language'!$K$1=2,VLOOKUP(A14,Text!$A$3:$C$353,2,FALSE),VLOOKUP(A14,Text!$A$3:$C$353,3,FALSE)) -> Wrecsam | D14: 250 | E14: 249 | F14: 233 | G14: 222 | H14: 47,428 | I14: 50,377.35 | J14: 136,126 | K14: 106,926 | L14: 26,959 | M14: 1,653,046 | N14: 0 | O14: 0.00 | P14: 473 | Q14: 3,990 | R14: 1,450 | S14: 13,159 | T14: 1,455 | U14: 11,445 | V14: 9,933,453 | W14: 0 | X14: 1,111 | Y14: 1,523 | Z14: 2,245 | AA14: 2,270 | AB14: 2,250 | AC14: 2,320 | AD14: 2,370 | AE14: 2,435 | AF14: 2,465 | AG14: 2,480 | AH14: 2,535 | AI14: 2,525 | AJ14: 2,545 | AK14: 1,333 | AL14: 1,240 | AM14: 1,158 | AN14: 1,100 | AO14: 400 | AP14: 300 | AQ14: 200 | AR14: 200 | AS14: 35 | AT14: 15 | AU14: 0 | AV14: 0 | AW14: 1937 | AX14: 2521 | AY14: 2949 | AZ14: 3326 | BA14: 1,335 | BB14: 1,240 | BC14: 1,158 | BD14: 1,100 | BE14: 400 | BF14: 300 | BG14: 200 | BH14: 200 | BI14: 4,306 | BJ14: 4,230 | BK14: 4,144 | BL14: 4,049 | BM14: 1949 | BN14: 2547 | BO14: 2975 | BP14: 3358 | BQ14: 0 | BR14: 0 | BS14: 0 | BT14: 0 | BU14: 320 | BV14: 291 | BW14: 291 | BX14: 282 | BY14: 5177 | BZ14: 5179 | CA14: 5226 | CB14: 5253 | CC14: 4,273 | CD14: 4,211 | CE14: 4,138 | CF14: 4,049 | CG14: 6041 | CH14: 5770 | CI14: 5502 | CJ14: 5349 | CK14: 320 | CL14: 291 | CM14: 291 | CN14: 282 | CO14: 60,550 | CP14: 260,551,799
A15: 123 | B15: 8 | C15: =IF('iaith - language'!$K$1=2,VLOOKUP(A15,Text!$A$3:$C$353,2,FALSE),VLOOKUP(A15,Text!$A$3:$C$353,3,FALSE)) -> Powys | D15: 356 | E15: 341 | F15: 351 | G15: 371 | H15: 56,296 | I15: 519,531.21 | J15: 132,447 | K15: 108,417 | L15: 35,775 | M15: 535,268 | N15: 44,427 | O15: 0.00 | P15: 3,871 | Q15: 6,330 | R15: 2,540 | S15: 15,052 | T15: 1,700 | U15: 9,233 | V15: 8,918,831 | W15: 0 | X15: 7,982 | Y15: 3,055 | Z15: 680 | AA15: 665 | AB15: 770 | AC15: 850 | AD15: 975 | AE15: 1,050 | AF15: 1,090 | AG15: 1,130 | AH15: 1,185 | AI15: 1,140 | AJ15: 1,205 | AK15: 743 | AL15: 747 | AM15: 706 | AN15: 633 | AO15: 300 | AP15: 300 | AQ15: 300 | AR15: 300 | AS15: 31 | AT15: 15 | AU15: 0 | AV15: 0 | AW15: 260 | AX15: 239 | AY15: 387 | AZ15: 888 | BA15: 756 | BB15: 755 | BC15: 716 | BD15: 644 | BE15: 300 | BF15: 300 | BG15: 300 | BH15: 300 | BI15: 4,158 | BJ15: 4,066 | BK15: 4,006 | BL15: 3,945 | BM15: 260 | BN15: 239 | BO15: 387 | BP15: 900 | BQ15: 6 | BR15: 0 | BS15: 0 | BT15: 0 | BU15: 1246 | BV15: 861 | BW15: 677 | BX15: 647 | BY15: 3238 | BZ15: 3596 | CA15: 3722 | CB15: 3817 | CC15: 4,128 | CD15: 4,056 | CE15: 4,005 | CF15: 3,945 | CG15: 5214 | CH15: 5121 | CI15: 5022 | CJ15: 4889 | CK15: 1252 | CL15: 861 | CM15: 677 | CN15: 647 | CO15: 64,850 | CP15: 230,710,316
A16: 124 | B16: 9 | C16: =IF('iaith - language'!$K$1=2,VLOOKUP(A16,Text!$A$3:$C$353,2,FALSE),VLOOKUP(A16,Text!$A$3:$C$353,3,FALSE)) -> Sir Ceredigion | D16: 246 | E16: 252 | F16: 266 | G16: 222 | H16: 32,217 | I16: 178,890.87 | J16: 72,992 | K16: 60,670 | L16: 18,195 | M16: 781,341 | N16: 10,504 | O16: 12.92 | P16: 1,935 | Q16: 3,580 | R16: 1,370 | S16: 6,787 | T16: 862 | U16: 5,716 | V16: 5,406,442 | W16: 0 | X16: 6,653 | Y16: 1,523 | Z16: 395 | AA16: 435 | AB16: 455 | AC16: 515 | AD16: 565 | AE16: 610 | AF16: 650 | AG16: 650 | AH16: 670 | AI16: 665 | AJ16: 730 | AK16: 412 | AL16: 429 | AM16: 431 | AN16: 393 | AO16: 100 | AP16: 300 | AQ16: 200 | AR16: 300 | AS16: 13 | AT16: 5 | AU16: 0 | AV16: 0 | AW16: 145 | AX16: 129 | AY16: 131 | AZ16: 369 | BA16: 416 | BB16: 433 | BC16: 432 | BD16: 393 | BE16: 100 | BF16: 300 | BG16: 200 | BH16: 300 | BI16: 2,309 | BJ16: 2,286 | BK16: 2,236 | BL16: 2,193 | BM16: 145 | BN16: 129 | BO16: 131 | BP16: 373 | BQ16: 0 | BR16: 0 | BS16: 0 | BT16: 0 | BU16: 499 | BV16: 412 | BW16: 396 | BX16: 375 | BY16: 2160 | BZ16: 2236 | CA16: 2270 | CB16: 2307 | CC16: 2,295 | CD16: 2,281 | CE16: 2,236 | CF16: 2,193 | CG16: 2825 | CH16: 3019 | CI16: 2868 | CJ16: 2886 | CK16: 499 | CL16: 412 | CM16: 396 | CN16: 375 | CO16: 35,550 | CP16: 154,808,032
A17: 125 | B17: 10 | C17: =IF('iaith - language'!$K$1=2,VLOOKUP(A17,Text!$A$3:$C$353,2,FALSE),VLOOKUP(A17,Text!$A$3:$C$353,3,FALSE)) -> Sir Benfro | D17: 250 | E17: 251 | F17: 275 | G17: 232 | H17: 54,494 | I17: 161,834.46 | J17: 125,055 | K17: 100,995 | L17: 32,130 | M17: 1,011,884 | N17: 0 | O17: 12.30 | P17: 1,773 | Q17: 6,650 | R17: 2,230 | S17: 15,726 | T17: 1,487 | U17: 10,487 | V17: 8,529,024 | W17: 2,607 | X17: 13,579 | Y17: 1,995 | Z17: 1,315 | AA17: 1,415 | AB17: 1,655 | AC17: 1,825 | AD17: 1,865 | AE17: 1,930 | AF17: 1,900 | AG17: 1,840 | AH17: 1,845 | AI17: 1,860 | AJ17: 1,890 | AK17: 1,219 | AL17: 1,193 | AM17: 1,095 | AN17: 1,011 | AO17: 900 | AP17: 1,000 | AQ17: 800 | AR17: 700 | AS17: 30 | AT17: 10 | AU17: 0 | AV17: 0 | AW17: 397 | AX17: 336 | AY17: 734 | AZ17: 1560 | BA17: 1,235 | BB17: 1,205 | BC17: 1,104 | BD17: 1,023 | BE17: 900 | BF17: 1,000 | BG17: 800 | BH17: 700 | BI17: 4,358 | BJ17: 4,312 | BK17: 4,270 | BL17: 4,195 | BM17: 397 | BN17: 336 | BO17: 740 | BP17: 1574 | BQ17: 0 | BR17: 0 | BS17: 0 | BT17: 0 | BU17: 369 | BV17: 355 | BW17: 340 | BX17: 332 | BY17: 4692 | BZ17: 4754 | CA17: 4847 | CB17: 4864 | CC17: 4,321 | CD17: 4,306 | CE17: 4,270 | CF17: 4,195 | CG17: 6493 | CH17: 6517 | CI17: 6174 | CJ17: 5918 | CK17: 369 | CL17: 355 | CM17: 340 | CN17: 332 | CO17: 61,590 | CP17: 261,655,324
A18: 126 | B18: 11 | C18: =IF('iaith - language'!$K$1=2,VLOOKUP(A18,Text!$A$3:$C$353,2,FALSE),VLOOKUP(A18,Text!$A$3:$C$353,3,FALSE)) -> Sir Gaerfyrddin | D18: 407 | E18: 335 | F18: 311 | G18: 354 | H18: 75,837 | I18: 237,110.39 | J18: 187,568 | K18: 150,166 | L18: 44,011 | M18: 2,277,127 | N18: 0 | O18: 9.06 | P18: 3,097 | Q18: 6,680 | R18: 2,700 | S18: 20,464 | T18: 2,374 | U18: 16,007 | V18: 15,099,868 | W18: 0 | X18: 4,062 | Y18: 2,274 | Z18: 1,950 | AA18: 1,995 | AB18: 1,995 | AC18: 2,110 | AD18: 2,175 | AE18: 2,315 | AF18: 2,420 | AG18: 2,525 | AH18: 2,725 | AI18: 2,780 | AJ18: 2,885 | AK18: 1,632 | AL18: 1,666 | AM18: 1,634 | AN18: 1,529 | AO18: 1,500 | AP18: 1,500 | AQ18: 1,400 | AR18: 1,700 | AS18: 66 | AT18: 22 | AU18: 7 | AV18: 0 | AW18: 613 | AX18: 558 | AY18: 525 | AZ18: 1134 | BA18: 1,656 | BB18: 1,690 | BC18: 1,663 | BD18: 1,544 | BE18: 1,500 | BF18: 1,500 | BG18: 1,400 | BH18: 1,700 | BI18: 6,512 | BJ18: 6,457 | BK18: 6,365 | BL18: 6,235 | BM18: 613 | BN18: 561 | BO18: 524 | BP18: 1143 | BQ18: 5 | BR18: 0 | BS18: 0 | BT18: 0 | BU18: 680 | BV18: 659 | BW18: 640 | BX18: 611 | BY18: 7873 | BZ18: 7992 | CA18: 8136 | CB18: 8213 | CC18: 6,448 | CD18: 6,432 | CE18: 6,360 | CF18: 6,234 | CG18: 9668 | CH18: 9647 | CI18: 9428 | CJ18: 9479 | CK18: 685 | CL18: 659 | CM18: 640 | CN18: 611 | CO18: 87,920 | CP18: 486,977,791
A19: 127 | B19: 12 | C19: =IF('iaith - language'!$K$1=2,VLOOKUP(A19,Text!$A$3:$C$353,2,FALSE),VLOOKUP(A19,Text!$A$3:$C$353,3,FALSE)) -> Abertawe | D19: 554 | E19: 495 | F19: 488 | G19: 556 | H19: 90,699 | I19: 37,759.64 | J19: 246,466 | K19: 199,277 | L19: 48,049 | M19: 4,125,956 | N19: 0 | O19: 7.90 | P19: 385 | Q19: 7,460 | R19: 2,930 | S19: 28,642 | T19: 2,634 | U19: 22,438 | V19: 20,310,694 | W19: 139 | X19: 5,167 | Y19: 3,175 | Z19: 4,885 | AA19: 4,830 | AB19: 4,800 | AC19: 4,960 | AD19: 5,150 | AE19: 5,285 | AF19: 5,285 | AG19: 5,245 | AH19: 5,285 | AI19: 5,290 | AJ19: 5,385 | AK19: 2,388 | AL19: 2,230 | AM19: 2,066 | AN19: 1,914 | AO19: 900 | AP19: 700 | AQ19: 600 | AR19: 600 | AS19: 58 | AT19: 18 | AU19: 5 | AV19: 0 | AW19: 3516 | AX19: 4570 | AY19: 5389 | AZ19: 6347 | BA19: 2,400 | BB19: 2,235 | BC19: 2,065 | BD19: 1,921 | BE19: 900 | BF19: 700 | BG19: 600 | BH19: 600 | BI19: 8,087 | BJ19: 7,969 | BK19: 7,866 | BL19: 7,712 | BM19: 3561 | BN19: 4627 | BO19: 5453 | BP19: 6418 | BQ19: 6 | BR19: 0 | BS19: 0 | BT19: 0 | BU19: 890 | BV19: 825 | BW19: 786 | BX19: 760 | BY19: 10652 | BZ19: 10818 | CA19: 10987 | CB19: 11033 | CC19: 8,029 | CD19: 7,953 | CE19: 7,864 | CF19: 7,711 | CG19: 11387 | CH19: 10904 | CI19: 10531 | CJ19: 10233 | CK19: 896 | CL19: 825 | CM19: 786 | CN19: 760 | CO19: 113,050 | CP19: 616,853,136
A20: 128 | B20: 13 | C20: =IF('iaith - language'!$K$1=2,VLOOKUP(A20,Text!$A$3:$C$353,2,FALSE),VLOOKUP(A20,Text!$A$3:$C$353,3,FALSE)) -> Castell-nedd Port Talbot | D20: 228 | E20: 196 | F20: 161 | G20: 214 | H20: 53,223 | I20: 44,229.60 | J20: 142,906 | K20: 114,862 | L20: 29,530 | M20: 2,932,569 | N20: 0 | O20: 2.90 | P20: 225 | Q20: 3,880 | R20: 1,780 | S20: 19,139 | T20: 1,709 | U20: 17,067 | V20: 17,307,947 | W20: 173 | X20: 859 | Y20: 1,162 | Z20: 2,885 | AA20: 2,840 | AB20: 2,815 | AC20: 2,870 | AD20: 3,000 | AE20: 3,045 | AF20: 2,985 | AG20: 3,020 | AH20: 3,000 | AI20: 2,940 | AJ20: 3,010 | AK20: 1,823 | AL20: 1,738 | AM20: 1,605 | AN20: 1,514 | AO20: 300 | AP20: 300 | AQ20: 300 | AR20: 300 | AS20: 56 | AT20: 23 | AU20: 0 | AV20: 0 | AW20: 2769 | AX20: 3236 | AY20: 3682 | AZ20: 4301 | BA20: 1,829 | BB20: 1,743 | BC20: 1,602 | BD20: 1,522 | BE20: 300 | BF20: 300 | BG20: 300 | BH20: 300 | BI20: 5,535 | BJ20: 5,470 | BK20: 5,396 | BL20: 5,269 | BM20: 2788 | BN20: 3259 | BO20: 3729 | BP20: 4356 | BQ20: 6 | BR20: 0 | BS20: 0 | BT20: 0 | BU20: 725 | BV20: 688 | BW20: 661 | BX20: 635 | BY20: 8082 | BZ20: 8216 | CA20: 8352 | CB20: 8420 | CC20: 5,483 | CD20: 5,451 | CE20: 5,396 | CF20: 5,269 | CG20: 7664 | CH20: 7513 | CI20: 7298 | CJ20: 7091 | CK20: 731 | CL20: 688 | CM20: 661 | CN20: 635 | CO20: 66,410 | CP20: 396,951,277
A21: 129 | B21: 14 | C21: =IF('iaith - language'!$K$1=2,VLOOKUP(A21,Text!$A$3:$C$353,2,FALSE),VLOOKUP(A21,Text!$A$3:$C$353,3,FALSE)) -> Pen-y-bont ar Ogwr | D21: 274 | E21: 227 | F21: 221 | G21: 237 | H21: 55,674 | I21: 25,071.25 | J21: 144,876 | K21: 115,505 | L21: 29,379 | M21: 1,898,933 | N21: 0 | O21: 2.35 | P21: 193 | Q21: 4,950 | R21: 1,780 | S21: 20,245 | T21: 1,641 | U21: 13,336 | V21: 14,084,287 | W21: 0 | X21: 2,525 | Y21: 3,088 | Z21: 1,970 | AA21: 2,120 | AB21: 2,145 | AC21: 2,265 | AD21: 2,350 | AE21: 2,415 | AF21: 2,395 | AG21: 2,415 | AH21: 2,445 | AI21: 2,405 | AJ21: 2,500 | AK21: 1,873 | AL21: 1,762 | AM21: 1,603 | AN21: 1,506 | AO21: 1,200 | AP21: 900 | AQ21: 600 | AR21: 500 | AS21: 34 | AT21: 16 | AU21: 0 | AV21: 0 | AW21: 543 | AX21: 1123 | AY21: 2028 | AZ21: 2821 | BA21: 1,896 | BB21: 1,777 | BC21: 1,616 | BD21: 1,515 | BE21: 1,200 | BF21: 900 | BG21: 600 | BH21: 500 | BI21: 4,412 | BJ21: 4,358 | BK21: 4,277 | BL21: 4,196 | BM21: 543 | BN21: 1135 | BO21: 2050 | BP21: 2847 | BQ21: 5 | BR21: 0 | BS21: 0 | BT21: 0 | BU21: 2548 | BV21: 2349 | BW21: 2248 | BX21: 2045 | BY21: 5064 | BZ21: 5240 | CA21: 5439 | CB21: 5795 | CC21: 4,373 | CD21: 4,340 | CE21: 4,277 | CF21: 4,196 | CG21: 7508 | CH21: 7035 | CI21: 6493 | CJ21: 6211 | CK21: 2553 | CL21: 2349 | CM21: 2248 | CN21: 2045 | CO21: 64,590 | CP21: 475,683,451
A22: 130 | B22: 15 | C22: =IF('iaith - language'!$K$1=2,VLOOKUP(A22,Text!$A$3:$C$353,2,FALSE),VLOOKUP(A22,Text!$A$3:$C$353,3,FALSE)) -> Bro Morgannwg | D22: 393 | E22: 303 | F22: 331 | G22: 351 | H22: 51,918 | I22: 33,106.09 | J22: 132,165 | K22: 104,755 | L22: 27,691 | M22: 1,037,677 | N22: 0 | O22: 4.00 | P22: 303 | Q22: 3,390 | R22: 1,500 | S22: 15,785 | T22: 1,309 | U22: 9,558 | V22: 9,670,925 | W22: 75 | X22: 2,074 | Y22: 3,655 | Z22: 1,105 | AA22: 1,105 | AB22: 1,235 | AC22: 1,405 | AD22: 1,535 | AE22: 1,585 | AF22: 1,600 | AG22: 1,630 | AH22: 1,735 | AI22: 1,765 | AJ22: 1,835 | AK22: 1,202 | AL22: 1,235 | AM22: 1,172 | AN22: 1,070 | AO22: 800 | AP22: 800 | AQ22: 600 | AR22: 600 | AS22: 30 | AT22: 7 | AU22: 0 | AV22: 0 | AW22: 352 | AX22: 310 | AY22: 464 | AZ22: 1232 | BA22: 1,214 | BB22: 1,248 | BC22: 1,179 | BD22: 1,071 | BE22: 800 | BF22: 800 | BG22: 600 | BH22: 600 | BI22: 3,450 | BJ22: 3,401 | BK22: 3,341 | BL22: 3,277 | BM22: 352 | BN22: 310 | BO22: 468 | BP22: 1243 | BQ22: 0 | BR22: 0 | BS22: 0 | BT22: 0 | BU22: 1654 | BV22: 1521 | BW22: 1452 | BX22: 1347 | BY22: 3112 | BZ22: 3256 | CA22: 3426 | CB22: 3677 | CC22: 3,419 | CD22: 3,391 | CE22: 3,341 | CF22: 3,277 | CG22: 5464 | CH22: 5449 | CI22: 5120 | CJ22: 4948 | CK22: 1654 | CL22: 1521 | CM22: 1452 | CN22: 1347 | CO22: 58,920 | CP22: 361,881,138
A23: 131 | B23: 16 | C23: =IF('iaith - language'!$K$1=2,VLOOKUP(A23,Text!$A$3:$C$353,2,FALSE),VLOOKUP(A23,Text!$A$3:$C$353,3,FALSE)) -> Rhondda Cynon Taf | D23: 384 | E23: 328 | F23: 295 | G23: 314 | H23: 92,802 | I23: 42,415.04 | J23: 240,131 | K23: 190,143 | L23: 45,994 | M23: 3,175,110 | N23: 0 | O23: 0.00 | P23: 272 | Q23: 6,620 | R23: 3,060 | S23: 29,510 | T23: 2,600 | U23: 24,866 | V23: 23,037,181 | W23: 0 | X23: 1,233 | Y23: 1,603 | Z23: 3,035 | AA23: 2,920 | AB23: 2,930 | AC23: 3,285 | AD23: 3,615 | AE23: 3,910 | AF23: 4,015 | AG23: 4,140 | AH23: 4,300 | AI23: 4,340 | AJ23: 4,545 | AK23: 3,481 | AL23: 3,470 | AM23: 3,350 | AN23: 3,054 | AO23: 1,800 | AP23: 1,800 | AQ23: 1,800 | AR23: 1,600 | AS23: 75 | AT23: 22 | AU23: 0 | AV23: 0 | AW23: 944 | AX23: 863 | AY23: 805 | AZ23: 2525 | BA23: 3,515 | BB23: 3,501 | BC23: 3,383 | BD23: 3,079 | BE23: 1,800 | BF23: 1,800 | BG23: 1,900 | BH23: 1,600 | BI23: 8,832 | BJ23: 8,714 | BK23: 8,567 | BL23: 8,356 | BM23: 944 | BN23: 861 | BO23: 809 | BP23: 2549 | BQ23: 0 | BR23: 0 | BS23: 0 | BT23: 0 | BU23: 4591 | BV23: 4191 | BW23: 4021 | BX23: 3664 | BY23: 8825 | BZ23: 9176 | CA23: 9496 | CB23: 10220 | CC23: 8,760 | CD23: 8,687 | CE23: 8,567 | CF23: 8,356 | CG23: 14147 | CH23: 14015 | CI23: 13850 | CJ23: 13035 | CK23: 4591 | CL23: 4191 | CM23: 4021 | CN23: 3664 | CO23: 109,750 | CP23: 729,078,645
A24: 132 | B24: 17 | C24: =IF('iaith - language'!$K$1=2,VLOOKUP(A24,Text!$A$3:$C$353,2,FALSE),VLOOKUP(A24,Text!$A$3:$C$353,3,FALSE)) -> Merthyr Tudful | D24: 101 | E24: 106 | F24: 96 | G24: 84 | H24: 21,160 | I24: 11,195.70 | J24: 60,183 | K24: 47,369 | L24: 11,224 | M24: 576,183 | N24: 0 | O24: 0.00 | P24: 51 | Q24: 1,750 | R24: 780 | S24: 7,436 | T24: 678 | U24: 6,399 | V24: 5,994,302 | W24: 0 | X24: 497 | Y24: 1,297 | Z24: 990 | AA24: 1,065 | AB24: 1,150 | AC24: 1,210 | AD24: 1,300 | AE24: 1,335 | AF24: 1,335 | AG24: 1,365 | AH24: 1,395 | AI24: 1,375 | AJ24: 1,410 | AK24: 952 | AL24: 927 | AM24: 842 | AN24: 776 | AO24: 400 | AP24: 500 | AQ24: 300 | AR24: 300 | AS24: 22 | AT24: 8 | AU24: 0 | AV24: 0 | AW24: 302 | AX24: 512 | AY24: 906 | AZ24: 1378 | BA24: 962 | BB24: 934 | BC24: 849 | BD24: 780 | BE24: 400 | BF24: 500 | BG24: 300 | BH24: 300 | BI24: 2,223 | BJ24: 2,190 | BK24: 2,152 | BL24: 2,113 | BM24: 302 | BN24: 515 | BO24: 913 | BP24: 1396 | BQ24: 0 | BR24: 0 | BS24: 0 | BT24: 0 | BU24: 1385 | BV24: 1273 | BW24: 1208 | BX24: 1104 | BY24: 2386 | BZ24: 2494 | CA24: 2601 | CB24: 2829 | CC24: 2,203 | CD24: 2,181 | CE24: 2,152 | CF24: 2,113 | CG24: 3585 | CH24: 3624 | CI24: 3301 | CJ24: 3193 | CK24: 1385 | CL24: 1273 | CM24: 1208 | CN24: 1104 | CO24: 27,370 | CP24: 65,252,281
A25: 133 | B25: 18 | C25: =IF('iaith - language'!$K$1=2,VLOOKUP(A25,Text!$A$3:$C$353,2,FALSE),VLOOKUP(A25,Text!$A$3:$C$353,3,FALSE)) -> Caerffili | D25: 244 | E25: 226 | F25: 199 | G25: 218 | H25: 64,440 | I25: 27,738.78 | J25: 181,019 | K25: 142,914 | L25: 34,992 | M25: 1,066,370 | N25: 0 | O25: 0.00 | P25: 240 | Q25: 4,650 | R25: 2,060 | S25: 27,585 | T25: 1,877 | U25: 17,320 | V25: 13,798,515 | W25: 0 | X25: 926 | Y25: 1,383 | Z25: 2,420 | AA25: 2,555 | AB25: 2,835 | AC25: 2,995 | AD25: 3,240 | AE25: 3,370 | AF25: 3,405 | AG25: 3,425 | AH25: 3,475 | AI25: 3,530 | AJ25: 3,615 | AK25: 2,367 | AL25: 2,351 | AM25: 2,167 | AN25: 1,997 | AO25: 1,900 | AP25: 1,600 | AQ25: 1,300 | AR25: 1,300 | AS25: 69 | AT25: 31 | AU25: 0 | AV25: 0 | AW25: 896 | AX25: 808 | AY25: 1510 | AZ25: 2829 | BA25: 2,382 | BB25: 2,369 | BC25: 2,175 | BD25: 2,000 | BE25: 1,900 | BF25: 1,600 | BG25: 1,300 | BH25: 1,300 | BI25: 6,524 | BJ25: 6,424 | BK25: 6,327 | BL25: 6,206 | BM25: 896 | BN25: 808 | BO25: 1522 | BP25: 2853 | BQ25: 0 | BR25: 0 | BS25: 0 | BT25: 0 | BU25: 2649 | BV25: 2435 | BW25: 2338 | BX25: 2172 | BY25: 7473 | BZ25: 7696 | CA25: 7936 | CB25: 8341 | CC25: 6,458 | CD25: 6,389 | CE25: 6,327 | CF25: 6,206 | CG25: 10806 | CH25: 10393 | CI25: 9802 | CJ25: 9506 | CK25: 2649 | CL25: 2435 | CM25: 2338 | CN25: 2172 | CO25: 79,300 | CP25: 535,664,716
A26: 134 | B26: 19 | C26: =IF('iaith - language'!$K$1=2,VLOOKUP(A26,Text!$A$3:$C$353,2,FALSE),VLOOKUP(A26,Text!$A$3:$C$353,3,FALSE)) -> Blaenau Gwent | D26: 91 | E26: 73 | F26: 79 | G26: 68 | H26: 24,907 | I26: 10,872.81 | J26: 69,713 | K26: 56,106 | L26: 13,932 | M26: 366,171 | N26: 0 | O26: 0.00 | P26: 72 | Q26: 2,070 | R26: 1,080 | S26: 12,860 | T26: 844 | U26: 8,753 | V26: 8,630,824 | W26: 0 | X26: 388 | Y26: 558 | Z26: 1,170 | AA26: 1,240 | AB26: 1,340 | AC26: 1,405 | AD26: 1,520 | AE26: 1,585 | AF26: 1,580 | AG26: 1,565 | AH26: 1,620 | AI26: 1,615 | AJ26: 1,690 | AK26: 1,063 | AL26: 1,034 | AM26: 932 | AN26: 853 | AO26: 700 | AP26: 700 | AQ26: 500 | AR26: 500 | AS26: 27 | AT26: 9 | AU26: 0 | AV26: 0 | AW26: 381 | AX26: 444 | AY26: 973 | AZ26: 1552 | BA26: 1,064 | BB26: 1,040 | BC26: 934 | BD26: 858 | BE26: 700 | BF26: 700 | BG26: 500 | BH26: 500 | BI26: 2,942 | BJ26: 2,888 | BK26: 2,836 | BL26: 2,787 | BM26: 381 | BN26: 446 | BO26: 977 | BP26: 1571 | BQ26: 0 | BR26: 0 | BS26: 0 | BT26: 0 | BU26: 608 | BV26: 588 | BW26: 559 | BX26: 544 | BY26: 3539 | BZ26: 3638 | CA26: 3731 | CB26: 3838 | CC26: 2,913 | CD26: 2,881 | CE26: 2,836 | CF26: 2,787 | CG26: 4706 | CH26: 4628 | CI26: 4270 | CJ26: 4145 | CK26: 608 | CL26: 588 | CM26: 559 | CN26: 544 | CO26: 32,760 | CP26: 190,074,321
A27: 135 | B27: 20 | C27: =IF('iaith - language'!$K$1=2,VLOOKUP(A27,Text!$A$3:$C$353,2,FALSE),VLOOKUP(A27,Text!$A$3:$C$353,3,FALSE)) -> Torfaen | D27: 158 | E27: 126 | F27: 139 | G27: 146 | H27: 31,817 | I27: 12,623.99 | J27: 93,049 | K27: 73,818 | L27: 18,973 | M27: 1,252,922 | N27: 0 | O27: 0.00 | P27: 120 | Q27: 2,770 | R27: 1,210 | S27: 13,621 | T27: 1,010 | U27: 9,985 | V27: 8,796,655 | W27: 0 | X27: 476 | Y27: 891 | Z27: 1,980 | AA27: 1,960 | AB27: 1,925 | AC27: 1,955 | AD27: 2,065 | AE27: 2,055 | AF27: 1,985 | AG27: 1,990 | AH27: 1,990 | AI27: 1,960 | AJ27: 1,980 | AK27: 869 | AL27: 824 | AM27: 759 | AN27: 691 | AO27: 200 | AP27: 100 | AQ27: 100 | AR27: 100 | AS27: 33 | AT27: 14 | AU27: 0 | AV27: 0 | AW27: 2423 | AX27: 2666 | AY27: 2914 | AZ27: 3266 | BA27: 871 | BB27: 823 | BC27: 759 | BD27: 698 | BE27: 200 | BF27: 100 | BG27: 100 | BH27: 100 | BI27: 3,138 | BJ27: 3,095 | BK27: 3,039 | BL27: 2,995 | BM27: 2441 | BN27: 2685 | BO27: 2938 | BP27: 3300 | BQ27: 0 | BR27: 0 | BS27: 0 | BT27: 0 | BU27: 689 | BV27: 647 | BW27: 627 | BX27: 596 | BY27: 4169 | BZ27: 4275 | CA27: 4395 | CB27: 4500 | CC27: 3,110 | CD27: 3,087 | CE27: 3,039 | CF27: 2,995 | CG27: 4209 | CH27: 4018 | CI27: 3898 | CJ27: 3793 | CK27: 689 | CL27: 647 | CM27: 627 | CN27: 596 | CO27: 41,840 | CP27: 169,782,392
A28: 136 | B28: 21 | C28: =IF('iaith - language'!$K$1=2,VLOOKUP(A28,Text!$A$3:$C$353,2,FALSE),VLOOKUP(A28,Text!$A$3:$C$353,3,FALSE)) -> Sir Fynwy | D28: 279 | E28: 284 | F28: 281 | G28: 282 | H28: 36,542 | I28: 85,026.46 | J28: 94,142 | K28: 76,569 | L28: 23,424 | M28: 633,440 | N28: 93,511 | O28: 0.00 | P28: 1,020 | Q28: 3,050 | R28: 1,230 | S28: 10,945 | T28: 1,022 | U28: 5,690 | V28: 6,160,326 | W28: 0 | X28: 1,378 | Y28: 1,707 | Z28: 750 | AA28: 785 | AB28: 785 | AC28: 780 | AD28: 850 | AE28: 855 | AF28: 880 | AG28: 865 | AH28: 860 | AI28: 900 | AJ28: 920 | AK28: 517 | AL28: 491 | AM28: 442 | AN28: 398 | AO28: 300 | AP28: 300 | AQ28: 200 | AR28: 200 | AS28: 16 | AT28: 11 | AU28: 0 | AV28: 0 | AW28: 221 | AX28: 345 | AY28: 712 | AZ28: 912 | BA28: 517 | BB28: 494 | BC28: 441 | BD28: 399 | BE28: 300 | BF28: 300 | BG28: 200 | BH28: 200 | BI28: 2,222 | BJ28: 2,205 | BK28: 2,158 | BL28: 2,115 | BM28: 221 | BN28: 346 | BO28: 716 | BP28: 929 | BQ28: 0 | BR28: 0 | BS28: 0 | BT28: 0 | BU28: 466 | BV28: 438 | BW28: 418 | BX28: 410 | BY28: 2490 | BZ28: 2533 | CA28: 2560 | CB28: 2579 | CC28: 2,204 | CD28: 2,197 | CE28: 2,157 | CF28: 2,111 | CG28: 3039 | CH28: 2999 | CI28: 2799 | CJ28: 2714 | CK28: 466 | CL28: 438 | CM28: 418 | CN28: 410 | CO28: 42,160 | CP28: 151,721,219
A29: 137 | B29: 22 | C29: =IF('iaith - language'!$K$1=2,VLOOKUP(A29,Text!$A$3:$C$353,2,FALSE),VLOOKUP(A29,Text!$A$3:$C$353,3,FALSE)) -> Casnewydd | D29: 273 | E29: 269 | F29: 239 | G29: 273 | H29: 55,075 | I29: 19,037.28 | J29: 153,302 | K29: 118,372 | L29: 26,468 | M29: 903,542 | N29: 754,568 | O29: 0.00 | P29: 144 | Q29: 4,500 | R29: 1,870 | S29: 19,832 | T29: 1,523 | U29: 13,506 | V29: 10,909,877 | W29: 546 | X29: 1,621 | Y29: 3,973 | Z29: 3,490 | AA29: 3,490 | AB29: 3,480 | AC29: 3,535 | AD29: 3,675 | AE29: 3,710 | AF29: 3,675 | AG29: 3,705 | AH29: 3,800 | AI29: 3,830 | AJ29: 3,880 | AK29: 1,687 | AL29: 1,592 | AM29: 1,462 | AN29: 1,371 | AO29: 900 | AP29: 700 | AQ29: 500 | AR29: 500 | AS29: 41 | AT29: 25 | AU29: 0 | AV29: 0 | AW29: 2808 | AX29: 3532 | AY29: 3978 | AZ29: 4552 | BA29: 1,694 | BB29: 1,592 | BC29: 1,462 | BD29: 1,373 | BE29: 900 | BF29: 700 | BG29: 500 | BH29: 500 | BI29: 4,668 | BJ29: 4,612 | BK29: 4,571 | BL29: 4,489 | BM29: 2841 | BN29: 3571 | BO29: 4011 | BP29: 4604 | BQ29: 7 | BR29: 0 | BS29: 0 | BT29: 0 | BU29: 943 | BV29: 887 | BW29: 849 | BX29: 824 | BY29: 5722 | BZ29: 5882 | CA29: 6051 | CB29: 6203 | CC29: 4,624 | CD29: 4,586 | CE29: 4,566 | CF29: 4,489 | CG29: 7262 | CH29: 6904 | CI29: 6533 | CJ29: 6362 | CK29: 950 | CL29: 887 | CM29: 849 | CN29: 824 | CO29: 68,800 | CP29: 352,865,939
A30: 138 | B30: 23 | C30: =IF('iaith - language'!$K$1=2,VLOOKUP(A30,Text!$A$3:$C$353,2,FALSE),VLOOKUP(A30,Text!$A$3:$C$353,3,FALSE)) -> Caerdydd | D30: 735 | E30: 645 | F30: 647 | G30: 745 | H30: 126,882 | I30: 14,229.89 | J30: 364,248 | K30: 289,613 | L30: 51,339 | M30: 5,678,097 | N30: 139,318 | O30: 2.40 | P30: 56 | Q30: 12,420 | R30: 4,180 | S30: 42,377 | T30: 2,980 | U30: 30,405 | V30: 30,142,233 | W30: 232 | X30: 4,191 | Y30: 20,101 | Z30: 6,265 | AA30: 6,460 | AB30: 6,545 | AC30: 6,770 | AD30: 7,245 | AE30: 7,345 | AF30: 7,275 | AG30: 7,260 | AH30: 7,505 | AI30: 7,330 | AJ30: 7,695 | AK30: 3,900 | AL30: 3,620 | AM30: 3,374 | AN30: 3,112 | AO30: 2,900 | AP30: 2,400 | AQ30: 1,700 | AR30: 1,500 | AS30: 88 | AT30: 46 | AU30: 13 | AV30: 7 | AW30: 2670 | AX30: 4671 | AY30: 6155 | AZ30: 7796 | BA30: 3,914 | BB30: 3,628 | BC30: 3,378 | BD30: 3,119 | BE30: 2,900 | BF30: 2,400 | BG30: 1,700 | BH30: 1,500 | BI30: 9,390 | BJ30: 9,253 | BK30: 9,077 | BL30: 8,899 | BM30: 2687 | BN30: 4701 | BO30: 6209 | BP30: 7870 | BQ30: 6 | BR30: 0 | BS30: 0 | BT30: 0 | BU30: 4739 | BV30: 4321 | BW30: 4132 | BX30: 3760 | BY30: 9478 | BZ30: 9813 | CA30: 10224 | CB30: 10983 | CC30: 9,302 | CD30: 9,209 | CE30: 9,067 | CF30: 8,895 | CG30: 16204 | CH30: 15281 | CI30: 14155 | CJ30: 13518 | CK30: 4745 | CL30: 4321 | CM30: 4132 | CN30: 3760 | CO30: 157,340 | CP30: 926,999,534
A32: 139 | C32: =IF('iaith - language'!$K$1=2,VLOOKUP(A32,Text!$A$3:$C$353,2,FALSE),VLOOKUP(A32,Text!$A$3:$C$353,3,FALSE)) -> Cyfanswm AU | D32: =SUM(D9:D30) -> 6,519 | E32: 5,939 | F32: 5,782 | G32: 6,187 | H32: =SUM(H9:H30) -> 1,203,011 | I32: 2,078,169 | J32: =SUM(J9:J30) -> 3,138,631 | K32: 2,508,846 | L32: 651,993 | M32: 33,870,370 | N32: 1,188,849 | O32: 117.16 | P32: 19039.00 | Q32: =SUM(Q9:Q30) -> 108,990 | R32: =SUM(R9:R30) -> 42,880 | S32: =SUM(S9:S30) -> 395,268 | T32: =SUM(T9:T30) -> 34,406 | U32: =SUM(U9:U30) -> 277,989 | V32: 260,666,843 | W32: 6,920 | X32: 100,156 | Y32: 71,625 | Z32: 44,690 | AA32: 45,490 | AB32: 46,760 | AC32: 49,155 | AD32: 52,150 | AE32: 53,715 | AF32: 53,775 | AG32: 53,940 | AH32: 55,325 | AI32: =SUM(AI9:AI30) -> 55,200 | AJ32: =SUM(AJ9:AJ30) -> 56,780 | AK32: 32,201 | AL32: 31,122 | AM32: 29,146 | AN32: 26,937 | AO32: 18,000 | AP32: 16,200 | AQ32: 13,300 | AR32: 13,300 | AS32: 897 | AT32: 349 | AU32: 25 | AV32: 7 | AW32: 25,407 | AX32: 32,195 | AY32: 40,868 | AZ32: 55,701 | BA32: 32,426 | BB32: 31,305 | BC32: 29,281 | BD32: 27,073 | BE32: 18,000 | BF32: 16,200 | BG32: 13,400 | BH32: 13,300 | BI32: 103,125 | BJ32: 101,703 | BK32: 100,066 | BL32: 98,090 | BM32: 25,571 | BN32: 32,457 | BO32: 41,238 | BP32: 56,289 | BQ32: 56 | BR32: 6 | BS32: 6 | BT32: 0 | BU32: 27,539 | BV32: =SUM(BV9:BV30) -> 25,049 | BW32: 23,709 | BX32: 22,017 | BY32: 113,034 | BZ32: 116,017 | CA32: 119,125 | CB32: 122,600 | CC32: 102,225 | CD32: 101,345 | CE32: 100,034 | CF32: 98,081 | CG32: 153,551 | CH32: 149,208 | CI32: 142,747 | CJ32: 138,463 | CK32: 27,595 | CL32: 25,055 | CM32: 23,715 | CN32: 22,017 | CO32: 1,432,660 | CP32: =SUM(CP9:CP30) -> 8,088,077,978
A35: 27 | C35: 65 | D35: =IF('iaith - language'!K1=2,VLOOKUP(A35,Text!$A$3:$C$353,2),VLOOKUP(A35,Text!$A$3:$C$353,3)) -> Yr Is-adran Polisi Cyllid Llywodraeth Leol a Chynaliadwyedd, Llywodraeth Cymru
A36: 30 | C36: 66 | D36: =IF('iaith - language'!K1=2,VLOOKUP(A36,Text!$A$3:$C$353,2),VLOOKUP(A36,Text!$A$3:$C$353,3)) -> Os oes gennych ymholiadau, cysylltwch â:
A37: 29 | C37: 72 | D37: LGFPSettlement@gov.wales
A39: 31 | C39: 67
A40: 32 | C40: 73
A42: 33 | C42: 68 | D42: =IF('iaith - language'!K1=2,VLOOKUP(A42,Text!$A$3:$C$353,2),VLOOKUP(A42,Text!$A$3:$C$353,3)) -> Nodiadau:
A43: 34 | C43: 69 | D43: =IF('iaith - language'!K1=2,VLOOKUP(A44,Text!$A$3:$C$353,2,FALSE),VLOOKUP(A44,Text!$A$3:$C$353,3,FALSE)) -> 1 Cafodd y set ddata 'Stoc Anheddau'r Sector Preifat' ei hepgor o'r cyfrifiadau ar gyfer y setliad Grant Cynnal Refeniw, ond mae wedi ei chynnwys yn y fformiwlâu ar gyfer Cyllid Cyfalaf Cyffredinol
A44: 140 | B44: 141 | C44: 70 | D44: =IF('iaith - language'!K1=2,VLOOKUP(B44,Text!$A$3:$C$353,2,FALSE),VLOOKUP(B44,Text!$A$3:$C$353,3,FALSE)) -> .. Nid yw'r eitem ddata yma ar gael
A45: 36 | C45: 71
